Workbook

Sheet Scholen
A1: Naam School: | C1: Afkorting: | D1: =SUM(D3:D32) -> 413 | E1: =Stand!D1 -> M '13 | F1: =Stand!E1 -> J '13 | G1: =Stand!F1 -> M '12 | H1: =Stand!G1 -> J '12 | I1: =Stand!H1 -> M '11 | J1: =Stand!I1 -> J '11 | K1: =Stand!J1 -> M '10 | L1: =Stand!K1 -> J '10 | M1: =Stand!L1 -> M '09 | N1: =Stand!M1 -> J '09 | O1: =Stand!N1 -> M '08 | P1: =Stand!O1 -> J '08 | Q1: =Stand!P1 -> M '07 | R1: =Stand!Q1 -> J '07 | T1: Aantal deelnemers | V1: Maximaal aantal punten | X1: 1 | Y1: DNS | Z1: DNF | AA1: DQ
E2: =SUM(E3:E32) -> 31 | F2: 26 | G2: 49 | H2: 45 | I2: 36 | J2: 43 | K2: 28 | L2: 39 | M2: 27 | N2: 27 | O2: 33 | P2: 19 | Q2: 6 | R2: 4 | T2: 1e cross | U2: 2e cross | V2: 40 | X2: 2 | Y2: DNS | Z2: DNF | AA2: DQ
B3: Individueel | C3: individueel | D3: =SUM(E3:R3) -> 0 | E3: =COUNTIF('M-13'!G$3:G$83,C3) -> 0 | F3: =COUNTIF('J-13'!G$4:G$83,C3) -> 0 | G3: =COUNTIF('M-12'!G$3:G$83,C3) -> 0 | H3: =COUNTIF('J-12'!G$4:G$83,C3) -> 0 | I3: =COUNTIF('M-11'!G$3:G$83,C3) -> 0 | J3: =COUNTIF('J-11'!G$4:G$83,C3) -> 0 | K3: =COUNTIF('M-10'!G$3:G$83,C3) -> 0 | L3: =COUNTIF('J-10'!G$4:G$83,C3) -> 0 | M3: =COUNTIF('M-09'!G$3:G$83,C3) -> 0 | N3: =COUNTIF('J-09'!G$4:G$83,C3) -> 0 | O3: =COUNTIF('M-08'!G$3:G$83,C3) -> 0 | P3: =COUNTIF('J-08'!G$4:G$83,C3) -> 0 | Q3: =COUNTIF('M-07'!G$3:G$83,C3) -> 0 | R3: =COUNTIF('J-07'!G$4:G$83,C3) -> 0 | T3: =IF(B3<>"",D45+D80,"") -> 0 | U3: =IF(B3<>"",D45+D116,"") -> 0 | X3: 3 | Y3: DNS | Z3: DNF | AA3: DQ
A4: 1 | B4: Albert Schweitzerschool | C4: A.Schweit. | D4: =SUM(E4:R4) -> 13 | E4: =COUNTIF('M-13'!G$3:G$83,C4) -> 0 | F4: =COUNTIF('J-13'!G$4:G$83,C4) -> 0 | G4: =COUNTIF('M-12'!G$3:G$83,C4) -> 0 | H4: =COUNTIF('J-12'!G$4:G$83,C4) -> 1 | I4: =COUNTIF('M-11'!G$3:G$83,C4) -> 2 | J4: =COUNTIF('J-11'!G$4:G$83,C4) -> 4 | K4: =COUNTIF('M-10'!G$3:G$83,C4) -> 1 | L4: =COUNTIF('J-10'!G$4:G$83,C4) -> 0 | M4: =COUNTIF('M-09'!G$3:G$83,C4) -> 0 | N4: =COUNTIF('J-09'!G$4:G$83,C4) -> 4 | O4: =COUNTIF('M-08'!G$3:G$83,C4) -> 0 | P4: =COUNTIF('J-08'!G$4:G$83,C4) -> 1 | Q4: =COUNTIF('M-07'!G$3:G$83,C4) -> 0 | R4: =COUNTIF('J-07'!G$4:G$83,C4) -> 0 | T4: =IF(B4<>"",D46+D81,"") -> 13 | U4: =IF(B4<>"",D46+D117,"") -> 13 | X4: 4 | Y4: DNS | Z4: DNF | AA4: DQ
A5: 2 | B5: Combinatie Tollebeek | C5: Com.Tol. | D5: 18 | E5: =COUNTIF('M-13'!G$3:G$83,C5) -> 1 | F5: =COUNTIF('J-13'!G$4:G$83,C5) -> 1 | G5: =COUNTIF('M-12'!G$3:G$83,C5) -> 1 | H5: =COUNTIF('J-12'!G$4:G$83,C5) -> 5 | I5: =COUNTIF('M-11'!G$3:G$83,C5) -> 1 | J5: =COUNTIF('J-11'!G$4:G$83,C5) -> 2 | K5: =COUNTIF('M-10'!G$3:G$83,C5) -> 1 | L5: =COUNTIF('J-10'!G$4:G$83,C5) -> 2 | M5: =COUNTIF('M-09'!G$3:G$83,C5) -> 0 | N5: =COUNTIF('J-09'!G$4:G$83,C5) -> 1 | O5: =COUNTIF('M-08'!G$3:G$83,C5) -> 0 | P5: =COUNTIF('J-08'!G$4:G$83,C5) -> 2 | Q5: =COUNTIF('M-07'!G$3:G$83,C5) -> 1 | R5: =COUNTIF('J-07'!G$4:G$83,C5) -> 0 | T5: 18 | U5: 18 | X5: 5 | Y5: DNS | Z5: DNF | AA5: DQ
A6: 3 | B6: de Ark Espel | C6: de Ark | D6: 0 | E6: =COUNTIF('M-13'!G$3:G$83,C6) -> 0 | F6: =COUNTIF('J-13'!G$4:G$83,C6) -> 0 | G6: =COUNTIF('M-12'!G$3:G$83,C6) -> 0 | H6: =COUNTIF('J-12'!G$4:G$83,C6) -> 0 | I6: =COUNTIF('M-11'!G$3:G$83,C6) -> 0 | J6: =COUNTIF('J-11'!G$4:G$83,C6) -> 0 | K6: =COUNTIF('M-10'!G$3:G$83,C6) -> 0 | L6: =COUNTIF('J-10'!G$4:G$83,C6) -> 0 | M6: =COUNTIF('M-09'!G$3:G$83,C6) -> 0 | N6: =COUNTIF('J-09'!G$4:G$83,C6) -> 0 | O6: =COUNTIF('M-08'!G$3:G$83,C6) -> 0 | P6: =COUNTIF('J-08'!G$4:G$83,C6) -> 0 | Q6: =COUNTIF('M-07'!G$3:G$83,C6) -> 0 | R6: =COUNTIF('J-07'!G$4:G$83,C6) -> 0 | T6: 0 | U6: 0 | X6: 6 | Y6: DNS | Z6: DNF | AA6: DQ
A7: 4 | B7: De Horizon Ens | C7: Horizon | D7: 56 | E7: =COUNTIF('M-13'!G$3:G$83,C7) -> 5 | F7: =COUNTIF('J-13'!G$4:G$83,C7) -> 4 | G7: =COUNTIF('M-12'!G$3:G$83,C7) -> 3 | H7: =COUNTIF('J-12'!G$4:G$83,C7) -> 3 | I7: =COUNTIF('M-11'!G$3:G$83,C7) -> 1 | J7: =COUNTIF('J-11'!G$4:G$83,C7) -> 3 | K7: =COUNTIF('M-10'!G$3:G$83,C7) -> 2 | L7: =COUNTIF('J-10'!G$4:G$83,C7) -> 12 | M7: =COUNTIF('M-09'!G$3:G$83,C7) -> 5 | N7: =COUNTIF('J-09'!G$4:G$83,C7) -> 3 | O7: =COUNTIF('M-08'!G$3:G$83,C7) -> 9 | P7: =COUNTIF('J-08'!G$4:G$83,C7) -> 5 | Q7: =COUNTIF('M-07'!G$3:G$83,C7) -> 1 | R7: =COUNTIF('J-07'!G$4:G$83,C7) -> 0 | T7: 56 | U7: 56 | X7: 7 | Y7: DNS | Z7: DNF | AA7: DQ
A8: 5 | B8: Windkracht 10 | C8: Windkr.10 | D8: 0 | E8: =COUNTIF('M-13'!G$3:G$83,C8) -> 0 | F8: =COUNTIF('J-13'!G$4:G$83,C8) -> 0 | G8: =COUNTIF('M-12'!G$3:G$83,C8) -> 0 | H8: =COUNTIF('J-12'!G$4:G$83,C8) -> 0 | I8: =COUNTIF('M-11'!G$3:G$83,C8) -> 0 | J8: =COUNTIF('J-11'!G$4:G$83,C8) -> 0 | K8: =COUNTIF('M-10'!G$3:G$83,C8) -> 0 | L8: =COUNTIF('J-10'!G$4:G$83,C8) -> 0 | M8: =COUNTIF('M-09'!G$3:G$83,C8) -> 0 | N8: =COUNTIF('J-09'!G$4:G$83,C8) -> 0 | O8: =COUNTIF('M-08'!G$3:G$83,C8) -> 0 | P8: =COUNTIF('J-08'!G$4:G$83,C8) -> 0 | Q8: =COUNTIF('M-07'!G$3:G$83,C8) -> 0 | R8: =COUNTIF('J-07'!G$4:G$83,C8) -> 0 | T8: 0 | U8: 0 | X8: 8 | Y8: DNS | Z8: DNF | AA8: DQ
A9: 6 | B9: De Lichtboei | C9: Lichtboei | D9: 62 | E9: =COUNTIF('M-13'!G$3:G$83,C9) -> 4 | F9: =COUNTIF('J-13'!G$4:G$83,C9) -> 6 | G9: =COUNTIF('M-12'!G$3:G$83,C9) -> 10 | H9: =COUNTIF('J-12'!G$4:G$83,C9) -> 4 | I9: =COUNTIF('M-11'!G$3:G$83,C9) -> 9 | J9: =COUNTIF('J-11'!G$4:G$83,C9) -> 7 | K9: =COUNTIF('M-10'!G$3:G$83,C9) -> 2 | L9: =COUNTIF('J-10'!G$4:G$83,C9) -> 7 | M9: =COUNTIF('M-09'!G$3:G$83,C9) -> 5 | N9: =COUNTIF('J-09'!G$4:G$83,C9) -> 2 | O9: =COUNTIF('M-08'!G$3:G$83,C9) -> 5 | P9: =COUNTIF('J-08'!G$4:G$83,C9) -> 0 | Q9: =COUNTIF('M-07'!G$3:G$83,C9) -> 1 | R9: =COUNTIF('J-07'!G$4:G$83,C9) -> 0 | T9: 62 | U9: 62 | X9: 9 | Y9: DNS | Z9: DNF | AA9: DQ
A10: 7 | B10: De Triangel | C10: Triangel | D10: 29 | E10: =COUNTIF('M-13'!G$3:G$83,C10) -> 3 | F10: =COUNTIF('J-13'!G$4:G$83,C10) -> 0 | G10: =COUNTIF('M-12'!G$3:G$83,C10) -> 3 | H10: =COUNTIF('J-12'!G$4:G$83,C10) -> 3 | I10: =COUNTIF('M-11'!G$3:G$83,C10) -> 3 | J10: =COUNTIF('J-11'!G$4:G$83,C10) -> 2 | K10: =COUNTIF('M-10'!G$3:G$83,C10) -> 1 | L10: =COUNTIF('J-10'!G$4:G$83,C10) -> 2 | M10: =COUNTIF('M-09'!G$3:G$83,C10) -> 6 | N10: =COUNTIF('J-09'!G$4:G$83,C10) -> 0 | O10: =COUNTIF('M-08'!G$3:G$83,C10) -> 2 | P10: =COUNTIF('J-08'!G$4:G$83,C10) -> 3 | Q10: =COUNTIF('M-07'!G$3:G$83,C10) -> 0 | R10: =COUNTIF('J-07'!G$4:G$83,C10) -> 1 | T10: 29 | U10: 28 | X10: 10 | Y10: DNS | Z10: DNF | AA10: DQ
A11: 8 | B11: De Zevensprong | C11: 7 sprong | D11: 32 | E11: =COUNTIF('M-13'!G$3:G$83,C11) -> 2 | F11: =COUNTIF('J-13'!G$4:G$83,C11) -> 2 | G11: =COUNTIF('M-12'!G$3:G$83,C11) -> 9 | H11: =COUNTIF('J-12'!G$4:G$83,C11) -> 6 | I11: =COUNTIF('M-11'!G$3:G$83,C11) -> 2 | J11: =COUNTIF('J-11'!G$4:G$83,C11) -> 3 | K11: =COUNTIF('M-10'!G$3:G$83,C11) -> 2 | L11: =COUNTIF('J-10'!G$4:G$83,C11) -> 1 | M11: =COUNTIF('M-09'!G$3:G$83,C11) -> 2 | N11: =COUNTIF('J-09'!G$4:G$83,C11) -> 1 | O11: =COUNTIF('M-08'!G$3:G$83,C11) -> 1 | P11: =COUNTIF('J-08'!G$4:G$83,C11) -> 0 | Q11: =COUNTIF('M-07'!G$3:G$83,C11) -> 1 | R11: =COUNTIF('J-07'!G$4:G$83,C11) -> 0 | T11: 32 | U11: 32 | X11: 11 | Y11: DNS | Z11: DNF | AA11: DQ
A12: 9 | B12: Het Lichtschip | C12: Lichtschip | D12: 18 | E12: =COUNTIF('M-13'!G$3:G$83,C12) -> 2 | F12: =COUNTIF('J-13'!G$4:G$83,C12) -> 2 | G12: =COUNTIF('M-12'!G$3:G$83,C12) -> 3 | H12: =COUNTIF('J-12'!G$4:G$83,C12) -> 3 | I12: =COUNTIF('M-11'!G$3:G$83,C12) -> 1 | J12: =COUNTIF('J-11'!G$4:G$83,C12) -> 2 | K12: =COUNTIF('M-10'!G$3:G$83,C12) -> 3 | L12: =COUNTIF('J-10'!G$4:G$83,C12) -> 1 | M12: =COUNTIF('M-09'!G$3:G$83,C12) -> 0 | N12: =COUNTIF('J-09'!G$4:G$83,C12) -> 0 | O12: =COUNTIF('M-08'!G$3:G$83,C12) -> 1 | P12: =COUNTIF('J-08'!G$4:G$83,C12) -> 0 | Q12: =COUNTIF('M-07'!G$3:G$83,C12) -> 0 | R12: =COUNTIF('J-07'!G$4:G$83,C12) -> 0 | T12: 18 | U12: 18 | X12: 12 | Y12: DNS | Z12: DNF | AA12: DQ
A13: 10 | B13: Maria basisschool Marknesse | C13: Mariab.s. | D13: 0 | E13: =COUNTIF('M-13'!G$3:G$83,C13) -> 0 | F13: =COUNTIF('J-13'!G$4:G$83,C13) -> 0 | G13: =COUNTIF('M-12'!G$3:G$83,C13) -> 0 | H13: =COUNTIF('J-12'!G$4:G$83,C13) -> 0 | I13: =COUNTIF('M-11'!G$3:G$83,C13) -> 0 | J13: =COUNTIF('J-11'!G$4:G$83,C13) -> 0 | K13: =COUNTIF('M-10'!G$3:G$83,C13) -> 0 | L13: =COUNTIF('J-10'!G$4:G$83,C13) -> 0 | M13: =COUNTIF('M-09'!G$3:G$83,C13) -> 0 | N13: =COUNTIF('J-09'!G$4:G$83,C13) -> 0 | O13: =COUNTIF('M-08'!G$3:G$83,C13) -> 0 | P13: =COUNTIF('J-08'!G$4:G$83,C13) -> 0 | Q13: =COUNTIF('M-07'!G$3:G$83,C13) -> 0 | R13: =COUNTIF('J-07'!G$4:G$83,C13) -> 0 | T13: 0 | U13: 0 | X13: 13 | Y13: DNS | Z13: DNF | AA13: DQ
A14: 11 | B14: Roderik van Voorst | C14: R.v.voorst | D14: 20 | E14: =COUNTIF('M-13'!G$3:G$83,C14) -> 1 | F14: =COUNTIF('J-13'!G$4:G$83,C14) -> 2 | G14: =COUNTIF('M-12'!G$3:G$83,C14) -> 3 | H14: =COUNTIF('J-12'!G$4:G$83,C14) -> 2 | I14: =COUNTIF('M-11'!G$3:G$83,C14) -> 6 | J14: =COUNTIF('J-11'!G$4:G$83,C14) -> 0 | K14: =COUNTIF('M-10'!G$3:G$83,C14) -> 3 | L14: =COUNTIF('J-10'!G$4:G$83,C14) -> 3 | M14: =COUNTIF('M-09'!G$3:G$83,C14) -> 0 | N14: =COUNTIF('J-09'!G$4:G$83,C14) -> 0 | O14: =COUNTIF('M-08'!G$3:G$83,C14) -> 0 | P14: =COUNTIF('J-08'!G$4:G$83,C14) -> 0 | Q14: =COUNTIF('M-07'!G$3:G$83,C14) -> 0 | R14: =COUNTIF('J-07'!G$4:G$83,C14) -> 0 | T14: 20 | U14: 20 | X14: 14 | Y14: DNS | Z14: DNF | AA14: DQ
A15: 12 | B15: 't Kompas | C15: 't Kompas | D15: 42 | E15: =COUNTIF('M-13'!G$3:G$83,C15) -> 2 | F15: =COUNTIF('J-13'!G$4:G$83,C15) -> 3 | G15: =COUNTIF('M-12'!G$3:G$83,C15) -> 3 | H15: =COUNTIF('J-12'!G$4:G$83,C15) -> 5 | I15: =COUNTIF('M-11'!G$3:G$83,C15) -> 6 | J15: =COUNTIF('J-11'!G$4:G$83,C15) -> 7 | K15: =COUNTIF('M-10'!G$3:G$83,C15) -> 0 | L15: =COUNTIF('J-10'!G$4:G$83,C15) -> 3 | M15: =COUNTIF('M-09'!G$3:G$83,C15) -> 2 | N15: =COUNTIF('J-09'!G$4:G$83,C15) -> 6 | O15: =COUNTIF('M-08'!G$3:G$83,C15) -> 4 | P15: =COUNTIF('J-08'!G$4:G$83,C15) -> 1 | Q15: =COUNTIF('M-07'!G$3:G$83,C15) -> 0 | R15: =COUNTIF('J-07'!G$4:G$83,C15) -> 0 | T15: 42 | U15: 42 | X15: 15 | Y15: DNS | Z15: DNF | AA15: DQ
A16: 13 | B16: Klipper/Rank Luttelgeest | C16: de Klipper | D16: 0 | E16: =COUNTIF('M-13'!G$3:G$83,C16) -> 0 | F16: =COUNTIF('J-13'!G$4:G$83,C16) -> 0 | G16: =COUNTIF('M-12'!G$3:G$83,C16) -> 0 | H16: =COUNTIF('J-12'!G$4:G$83,C16) -> 0 | I16: =COUNTIF('M-11'!G$3:G$83,C16) -> 0 | J16: =COUNTIF('J-11'!G$4:G$83,C16) -> 0 | K16: =COUNTIF('M-10'!G$3:G$83,C16) -> 0 | L16: =COUNTIF('J-10'!G$4:G$83,C16) -> 0 | M16: =COUNTIF('M-09'!G$3:G$83,C16) -> 0 | N16: =COUNTIF('J-09'!G$4:G$83,C16) -> 0 | O16: =COUNTIF('M-08'!G$3:G$83,C16) -> 0 | P16: =COUNTIF('J-08'!G$4:G$83,C16) -> 0 | Q16: =COUNTIF('M-07'!G$3:G$83,C16) -> 0 | R16: =COUNTIF('J-07'!G$4:G$83,C16) -> 0 | T16: 0 | U16: 0 | X16: 16 | Y16: DNS | Z16: DNF | AA16: DQ
A17: 14 | B17: st.Josephschool | C17: st Joseph | D17: 21 | E17: =COUNTIF('M-13'!G$3:G$83,C17) -> 2 | F17: =COUNTIF('J-13'!G$4:G$83,C17) -> 2 | G17: =COUNTIF('M-12'!G$3:G$83,C17) -> 3 | H17: =COUNTIF('J-12'!G$4:G$83,C17) -> 4 | I17: =COUNTIF('M-11'!G$3:G$83,C17) -> 0 | J17: =COUNTIF('J-11'!G$4:G$83,C17) -> 0 | K17: =COUNTIF('M-10'!G$3:G$83,C17) -> 5 | L17: =COUNTIF('J-10'!G$4:G$83,C17) -> 2 | M17: =COUNTIF('M-09'!G$3:G$83,C17) -> 1 | N17: =COUNTIF('J-09'!G$4:G$83,C17) -> 0 | O17: =COUNTIF('M-08'!G$3:G$83,C17) -> 1 | P17: =COUNTIF('J-08'!G$4:G$83,C17) -> 1 | Q17: =COUNTIF('M-07'!G$3:G$83,C17) -> 0 | R17: =COUNTIF('J-07'!G$4:G$83,C17) -> 0 | T17: 21 | U17: 21 | X17: 17 | Y17: DNS | Z17: DNF | AA17: DQ
A18: 15 | B18: Floreant | C18: Floreant | D18: 61 | E18: =COUNTIF('M-13'!G$3:G$83,C18) -> 5 | F18: =COUNTIF('J-13'!G$4:G$83,C18) -> 3 | G18: =COUNTIF('M-12'!G$3:G$83,C18) -> 4 | H18: =COUNTIF('J-12'!G$4:G$83,C18) -> 5 | I18: =COUNTIF('M-11'!G$3:G$83,C18) -> 3 | J18: =COUNTIF('J-11'!G$4:G$83,C18) -> 7 | K18: =COUNTIF('M-10'!G$3:G$83,C18) -> 3 | L18: =COUNTIF('J-10'!G$4:G$83,C18) -> 4 | M18: =COUNTIF('M-09'!G$3:G$83,C18) -> 3 | N18: =COUNTIF('J-09'!G$4:G$83,C18) -> 7 | O18: =COUNTIF('M-08'!G$3:G$83,C18) -> 7 | P18: =COUNTIF('J-08'!G$4:G$83,C18) -> 6 | Q18: =COUNTIF('M-07'!G$3:G$83,C18) -> 2 | R18: =COUNTIF('J-07'!G$4:G$83,C18) -> 2 | T18: 61 | U18: 61 | X18: 18 | Y18: DNS | Z18: DNF | AA18: DQ
A19: 16 | B19: de Koperwiek | C19: Koperwiek | D19: 38 | E19: =COUNTIF('M-13'!G$3:G$83,C19) -> 4 | F19: =COUNTIF('J-13'!G$4:G$83,C19) -> 1 | G19: =COUNTIF('M-12'!G$3:G$83,C19) -> 7 | H19: =COUNTIF('J-12'!G$4:G$83,C19) -> 4 | I19: =COUNTIF('M-11'!G$3:G$83,C19) -> 1 | J19: =COUNTIF('J-11'!G$4:G$83,C19) -> 6 | K19: =COUNTIF('M-10'!G$3:G$83,C19) -> 5 | L19: =COUNTIF('J-10'!G$4:G$83,C19) -> 2 | M19: =COUNTIF('M-09'!G$3:G$83,C19) -> 3 | N19: =COUNTIF('J-09'!G$4:G$83,C19) -> 3 | O19: =COUNTIF('M-08'!G$3:G$83,C19) -> 1 | P19: =COUNTIF('J-08'!G$4:G$83,C19) -> 0 | Q19: =COUNTIF('M-07'!G$3:G$83,C19) -> 0 | R19: =COUNTIF('J-07'!G$4:G$83,C19) -> 1 | T19: 38 | U19: 38 | X19: 19 | Y19: DNS | Z19: DNF | AA19: DQ
A20: 17 | B20: SWS De Wending | C20: Wending | D20: 0 | E20: =COUNTIF('M-13'!G$3:G$83,C20) -> 0 | F20: =COUNTIF('J-13'!G$4:G$83,C20) -> 0 | G20: =COUNTIF('M-12'!G$3:G$83,C20) -> 0 | H20: =COUNTIF('J-12'!G$4:G$83,C20) -> 0 | I20: =COUNTIF('M-11'!G$3:G$83,C20) -> 0 | J20: =COUNTIF('J-11'!G$4:G$83,C20) -> 0 | K20: =COUNTIF('M-10'!G$3:G$83,C20) -> 0 | L20: =COUNTIF('J-10'!G$4:G$83,C20) -> 0 | M20: =COUNTIF('M-09'!G$3:G$83,C20) -> 0 | N20: =COUNTIF('J-09'!G$4:G$83,C20) -> 0 | O20: =COUNTIF('M-08'!G$3:G$83,C20) -> 0 | P20: =COUNTIF('J-08'!G$4:G$83,C20) -> 0 | Q20: =COUNTIF('M-07'!G$3:G$83,C20) -> 0 | R20: =COUNTIF('J-07'!G$4:G$83,C20) -> 0 | T20: 0 | U20: 0 | X20: 20 | Y20: DNS | Z20: DNF | AA20: DQ
A21: 18 | B21: Zeester Marknesse | C21: Zeester | D21: 0 | E21: =COUNTIF('M-13'!G$3:G$83,C21) -> 0 | F21: =COUNTIF('J-13'!G$4:G$83,C21) -> 0 | G21: =COUNTIF('M-12'!G$3:G$83,C21) -> 0 | H21: =COUNTIF('J-12'!G$4:G$83,C21) -> 0 | I21: =COUNTIF('M-11'!G$3:G$83,C21) -> 0 | J21: =COUNTIF('J-11'!G$4:G$83,C21) -> 0 | K21: =COUNTIF('M-10'!G$3:G$83,C21) -> 0 | L21: =COUNTIF('J-10'!G$4:G$83,C21) -> 0 | M21: =COUNTIF('M-09'!G$3:G$83,C21) -> 0 | N21: =COUNTIF('J-09'!G$4:G$83,C21) -> 0 | O21: =COUNTIF('M-08'!G$3:G$83,C21) -> 0 | P21: =COUNTIF('J-08'!G$4:G$83,C21) -> 0 | Q21: =COUNTIF('M-07'!G$3:G$83,C21) -> 0 | R21: =COUNTIF('J-07'!G$4:G$83,C21) -> 0 | T21: 0 | U21: 0 | X21: 21 | Y21: DNS | Z21: DNF | AA21: DQ
A22: 19 | B22: Fondali | C22: Fondali | D22: 2 | E22: =COUNTIF('M-13'!G$3:G$83,C22) -> 0 | F22: =COUNTIF('J-13'!G$4:G$83,C22) -> 0 | G22: =COUNTIF('M-12'!G$3:G$83,C22) -> 0 | H22: =COUNTIF('J-12'!G$4:G$83,C22) -> 0 | I22: =COUNTIF('M-11'!G$3:G$83,C22) -> 1 | J22: =COUNTIF('J-11'!G$4:G$83,C22) -> 0 | K22: =COUNTIF('M-10'!G$3:G$83,C22) -> 0 | L22: =COUNTIF('J-10'!G$4:G$83,C22) -> 0 | M22: =COUNTIF('M-09'!G$3:G$83,C22) -> 0 | N22: =COUNTIF('J-09'!G$4:G$83,C22) -> 0 | O22: =COUNTIF('M-08'!G$3:G$83,C22) -> 1 | P22: =COUNTIF('J-08'!G$4:G$83,C22) -> 0 | Q22: =COUNTIF('M-07'!G$3:G$83,C22) -> 0 | R22: =COUNTIF('J-07'!G$4:G$83,C22) -> 0 | T22: 2 | U22: 2 | X22: 22 | Y22: DNS | Z22: DNF | AA22: DQ
A23: 20 | B23: OBS de Driesprong | C23: 3 sprong | D23: 1 | E23: =COUNTIF('M-13'!G$3:G$83,C23) -> 0 | F23: =COUNTIF('J-13'!G$4:G$83,C23) -> 0 | G23: =COUNTIF('M-12'!G$3:G$83,C23) -> 0 | H23: =COUNTIF('J-12'!G$4:G$83,C23) -> 0 | I23: =COUNTIF('M-11'!G$3:G$83,C23) -> 0 | J23: =COUNTIF('J-11'!G$4:G$83,C23) -> 0 | K23: =COUNTIF('M-10'!G$3:G$83,C23) -> 0 | L23: =COUNTIF('J-10'!G$4:G$83,C23) -> 0 | M23: =COUNTIF('M-09'!G$3:G$83,C23) -> 0 | N23: =COUNTIF('J-09'!G$4:G$83,C23) -> 0 | O23: =COUNTIF('M-08'!G$3:G$83,C23) -> 1 | P23: =COUNTIF('J-08'!G$4:G$83,C23) -> 0 | Q23: =COUNTIF('M-07'!G$3:G$83,C23) -> 0 | R23: =COUNTIF('J-07'!G$4:G$83,C23) -> 0 | T23: 1 | U23: 1 | X23: 23 | Y23: DNS | Z23: DNF | AA23: DQ
A24: 21 | D24: 0 | E24: =COUNTIF('M-13'!G$3:G$83,C24) -> 0 | F24: =COUNTIF('J-13'!G$4:G$83,C24) -> 0 | G24: =COUNTIF('M-12'!G$3:G$83,C24) -> 0 | H24: =COUNTIF('J-12'!G$4:G$83,C24) -> 0 | I24: =COUNTIF('M-11'!G$3:G$83,C24) -> 0 | J24: =COUNTIF('J-11'!G$4:G$83,C24) -> 0 | K24: =COUNTIF('M-10'!G$3:G$83,C24) -> 0 | L24: =COUNTIF('J-10'!G$4:G$83,C24) -> 0 | M24: =COUNTIF('M-09'!G$3:G$83,C24) -> 0 | N24: =COUNTIF('J-09'!G$4:G$83,C24) -> 0 | O24: =COUNTIF('M-08'!G$3:G$83,C24) -> 0 | P24: =COUNTIF('J-08'!G$4:G$83,C24) -> 0 | Q24: =COUNTIF('M-07'!G$3:G$83,C24) -> 0 | R24: =COUNTIF('J-07'!G$4:G$83,C24) -> 0 | X24: 24 | Y24: DNS | Z24: DNF | AA24: DQ
A25: 22 | D25: 0 | E25: =COUNTIF('M-13'!G$3:G$83,C25) -> 0 | F25: =COUNTIF('J-13'!G$4:G$83,C25) -> 0 | G25: =COUNTIF('M-12'!G$3:G$83,C25) -> 0 | H25: =COUNTIF('J-12'!G$4:G$83,C25) -> 0 | I25: =COUNTIF('M-11'!G$3:G$83,C25) -> 0 | J25: =COUNTIF('J-11'!G$4:G$83,C25) -> 0 | K25: =COUNTIF('M-10'!G$3:G$83,C25) -> 0 | L25: =COUNTIF('J-10'!G$4:G$83,C25) -> 0 | M25: =COUNTIF('M-09'!G$3:G$83,C25) -> 0 | N25: =COUNTIF('J-09'!G$4:G$83,C25) -> 0 | O25: =COUNTIF('M-08'!G$3:G$83,C25) -> 0 | P25: =COUNTIF('J-08'!G$4:G$83,C25) -> 0 | Q25: =COUNTIF('M-07'!G$3:G$83,C25) -> 0 | R25: =COUNTIF('J-07'!G$4:G$83,C25) -> 0 | X25: 25 | Y25: DNS | Z25: DNF | AA25: DQ
A26: 23 | D26: 0 | E26: =COUNTIF('M-13'!G$3:G$83,C26) -> 0 | F26: =COUNTIF('J-13'!G$4:G$83,C26) -> 0 | G26: =COUNTIF('M-12'!G$3:G$83,C26) -> 0 | H26: =COUNTIF('J-12'!G$4:G$83,C26) -> 0 | I26: =COUNTIF('M-11'!G$3:G$83,C26) -> 0 | J26: =COUNTIF('J-11'!G$4:G$83,C26) -> 0 | K26: =COUNTIF('M-10'!G$3:G$83,C26) -> 0 | L26: =COUNTIF('J-10'!G$4:G$83,C26) -> 0 | M26: =COUNTIF('M-09'!G$3:G$83,C26) -> 0 | N26: =COUNTIF('J-09'!G$4:G$83,C26) -> 0 | O26: =COUNTIF('M-08'!G$3:G$83,C26) -> 0 | P26: =COUNTIF('J-08'!G$4:G$83,C26) -> 0 | Q26: =COUNTIF('M-07'!G$3:G$83,C26) -> 0 | R26: =COUNTIF('J-07'!G$4:G$83,C26) -> 0 | X26: 26 | Y26: DNS | Z26: DNF | AA26: DQ
A27: 24 | D27: 0 | E27: =COUNTIF('M-13'!G$3:G$83,C27) -> 0 | F27: =COUNTIF('J-13'!G$4:G$83,C27) -> 0 | G27: =COUNTIF('M-12'!G$3:G$83,C27) -> 0 | H27: =COUNTIF('J-12'!G$4:G$83,C27) -> 0 | I27: =COUNTIF('M-11'!G$3:G$83,C27) -> 0 | J27: =COUNTIF('J-11'!G$4:G$83,C27) -> 0 | K27: =COUNTIF('M-10'!G$3:G$83,C27) -> 0 | L27: =COUNTIF('J-10'!G$4:G$83,C27) -> 0 | M27: =COUNTIF('M-09'!G$3:G$83,C27) -> 0 | N27: =COUNTIF('J-09'!G$4:G$83,C27) -> 0 | O27: =COUNTIF('M-08'!G$3:G$83,C27) -> 0 | P27: =COUNTIF('J-08'!G$4:G$83,C27) -> 0 | Q27: =COUNTIF('M-07'!G$3:G$83,C27) -> 0 | R27: =COUNTIF('J-07'!G$4:G$83,C27) -> 0 | X27: 27 | Y27: DNS | Z27: DNF | AA27: DQ
A28: 25 | D28: 0 | E28: =COUNTIF('M-13'!G$3:G$83,C28) -> 0 | F28: =COUNTIF('J-13'!G$4:G$83,C28) -> 0 | G28: =COUNTIF('M-12'!G$3:G$83,C28) -> 0 | H28: =COUNTIF('J-12'!G$4:G$83,C28) -> 0 | I28: =COUNTIF('M-11'!G$3:G$83,C28) -> 0 | J28: =COUNTIF('J-11'!G$4:G$83,C28) -> 0 | K28: =COUNTIF('M-10'!G$3:G$83,C28) -> 0 | L28: =COUNTIF('J-10'!G$4:G$83,C28) -> 0 | M28: =COUNTIF('M-09'!G$3:G$83,C28) -> 0 | N28: =COUNTIF('J-09'!G$4:G$83,C28) -> 0 | O28: =COUNTIF('M-08'!G$3:G$83,C28) -> 0 | P28: =COUNTIF('J-08'!G$4:G$83,C28) -> 0 | Q28: =COUNTIF('M-07'!G$3:G$83,C28) -> 0 | R28: =COUNTIF('J-07'!G$4:G$83,C28) -> 0 | X28: 28 | Y28: DNS | Z28: DNF | AA28: DQ
A29: 26 | D29: 0 | E29: =COUNTIF('M-13'!G$3:G$83,C29) -> 0 | F29: =COUNTIF('J-13'!G$4:G$83,C29) -> 0 | G29: =COUNTIF('M-12'!G$3:G$83,C29) -> 0 | H29: =COUNTIF('J-12'!G$4:G$83,C29) -> 0 | I29: =COUNTIF('M-11'!G$3:G$83,C29) -> 0 | J29: =COUNTIF('J-11'!G$4:G$83,C29) -> 0 | K29: =COUNTIF('M-10'!G$3:G$83,C29) -> 0 | L29: =COUNTIF('J-10'!G$4:G$83,C29) -> 0 | M29: =COUNTIF('M-09'!G$3:G$83,C29) -> 0 | N29: =COUNTIF('J-09'!G$4:G$83,C29) -> 0 | O29: =COUNTIF('M-08'!G$3:G$83,C29) -> 0 | P29: =COUNTIF('J-08'!G$4:G$83,C29) -> 0 | Q29: =COUNTIF('M-07'!G$3:G$83,C29) -> 0 | R29: =COUNTIF('J-07'!G$4:G$83,C29) -> 0 | X29: 29 | Y29: DNS | Z29: DNF | AA29: DQ
A30: 27 | D30: 0 | E30: =COUNTIF('M-13'!G$3:G$83,C30) -> 0 | F30: =COUNTIF('J-13'!G$4:G$83,C30) -> 0 | G30: =COUNTIF('M-12'!G$3:G$83,C30) -> 0 | H30: =COUNTIF('J-12'!G$4:G$83,C30) -> 0 | I30: =COUNTIF('M-11'!G$3:G$83,C30) -> 0 | J30: =COUNTIF('J-11'!G$4:G$83,C30) -> 0 | K30: =COUNTIF('M-10'!G$3:G$83,C30) -> 0 | L30: =COUNTIF('J-10'!G$4:G$83,C30) -> 0 | M30: =COUNTIF('M-09'!G$3:G$83,C30) -> 0 | N30: =COUNTIF('J-09'!G$4:G$83,C30) -> 0 | O30: =COUNTIF('M-08'!G$3:G$83,C30) -> 0 | P30: =COUNTIF('J-08'!G$4:G$83,C30) -> 0 | Q30: =COUNTIF('M-07'!G$3:G$83,C30) -> 0 | R30: =COUNTIF('J-07'!G$4:G$83,C30) -> 0 | X30: 30 | Y30: DNS | Z30: DNF | AA30: DQ
A31: 28 | D31: 0 | E31: =COUNTIF('M-13'!G$3:G$83,C31) -> 0 | F31: =COUNTIF('J-13'!G$4:G$83,C31) -> 0 | G31: =COUNTIF('M-12'!G$3:G$83,C31) -> 0 | H31: =COUNTIF('J-12'!G$4:G$83,C31) -> 0 | I31: =COUNTIF('M-11'!G$3:G$83,C31) -> 0 | J31: =COUNTIF('J-11'!G$4:G$83,C31) -> 0 | K31: =COUNTIF('M-10'!G$3:G$83,C31) -> 0 | L31: =COUNTIF('J-10'!G$4:G$83,C31) -> 0 | M31: =COUNTIF('M-09'!G$3:G$83,C31) -> 0 | N31: =COUNTIF('J-09'!G$4:G$83,C31) -> 0 | O31: =COUNTIF('M-08'!G$3:G$83,C31) -> 0 | P31: =COUNTIF('J-08'!G$4:G$83,C31) -> 0 | Q31: =COUNTIF('M-07'!G$3:G$83,C31) -> 0 | R31: =COUNTIF('J-07'!G$4:G$83,C31) -> 0 | X31: 31 | Y31: DNS | Z31: DNF | AA31: DQ
A32: 29 | D32: 0 | E32: =COUNTIF('M-13'!G$3:G$83,C32) -> 0 | F32: =COUNTIF('J-13'!G$4:G$83,C32) -> 0 | G32: =COUNTIF('M-12'!G$3:G$83,C32) -> 0 | H32: =COUNTIF('J-12'!G$4:G$83,C32) -> 0 | I32: =COUNTIF('M-11'!G$3:G$83,C32) -> 0 | J32: =COUNTIF('J-11'!G$4:G$83,C32) -> 0 | K32: =COUNTIF('M-10'!G$3:G$83,C32) -> 0 | L32: =COUNTIF('J-10'!G$4:G$83,C32) -> 0 | M32: =COUNTIF('M-09'!G$3:G$83,C32) -> 0 | N32: =COUNTIF('J-09'!G$4:G$83,C32) -> 0 | O32: =COUNTIF('M-08'!G$3:G$83,C32) -> 0 | P32: =COUNTIF('J-08'!G$4:G$83,C32) -> 0 | Q32: =COUNTIF('M-07'!G$3:G$83,C32) -> 0 | R32: =COUNTIF('J-07'!G$4:G$83,C32) -> 0 | X32: 32 | Y32: DNS | Z32: DNF | AA32: DQ
T33: =SUM(T3:T32) -> 413 | U33: =SUM(U3:U32) -> 412 | X33: 33 | Y33: DNS | Z33: DNF | AA33: DQ
A34: =E2+G2+I2+K2+M2+O2+Q2 -> 210 | B34: Meisjes | C34: 1e | D34: =SUM(E34:R34) -> 413 | E34: =E44+E79 -> 31 | F34: 26 | G34: 49 | H34: 45 | I34: 36 | J34: 43 | K34: 28 | L34: 39 | M34: 27 | N34: 27 | O34: 33 | P34: 19 | Q34: 6 | R34: 4 | X34: 34 | Y34: DNS | Z34: DNF | AA34: DQ
A35: =F2+H2+J2+L2+N2+P2+R2 -> 203 | B35: Jongens | C35: 2e | D35: =SUM(E35:R35) -> 412 | E35: =E44+E115 -> 31 | F35: 26 | G35: 49 | H35: 45 | I35: 35 | J35: 43 | K35: 28 | L35: 39 | M35: 27 | N35: 27 | O35: 33 | P35: 19 | Q35: 6 | R35: 4 | S35: Totaal: | T35: =SUM(T38:T40) -> 825 | X35: 35 | Y35: DNS | Z35: DNF | AA35: DQ
B36: =CONCATENATE("Scholencross ",Stand!C1) -> Scholencross 2019 | C36: Totaal: | D36: =T35 -> 825 | X36: 36 | Y36: DNS | Z36: DNF | AA36: DQ
X37: 37 | Y37: DNS | Z37: DNF | AA37: DQ
C38: DNS 1e | D38: =SUM(E38:R38) -> 56 | E38: ='M-13'!AJ3 -> 2 | F38: ='J-13'!AJ3 -> 1 | G38: ='M-12'!AJ3 -> 7 | H38: ='J-12'!AJ3 -> 3 | I38: ='M-11'!AJ3 -> 7 | J38: ='J-11'!AJ3 -> 4 | K38: ='M-10'!AJ3 -> 4 | L38: ='J-10'!AJ3 -> 4 | M38: ='M-09'!AJ3 -> 5 | N38: ='J-09'!AJ3 -> 6 | O38: ='M-08'!AJ3 -> 7 | P38: ='J-08'!AJ3 -> 4 | Q38: ='M-07'!AJ3 -> 2 | R38: ='J-07'!AJ3 -> 0 | T38: =SUM(E34:R34) -> 413 | X38: 38 | Y38: DNS | Z38: DNF | AA38: DQ
C39: % | D39: =D38/(D34/100) -> 13.55932203 | E39: =E38/(E34/100) -> 6.451612903 | F39: =F38/(F34/100) -> 3.846153846 | G39: 14.28571429 | H39: 6.666666667 | I39: 19.44444444 | J39: 9.302325581 | K39: 14.28571429 | L39: 10.25641026 | M39: 18.51851852 | N39: 22.22222222 | O39: 21.21212121 | P39: 21.05263158 | Q39: 33.33333333 | R39: 0 | X39: 39 | Y39: DNS | Z39: DNF | AA39: DQ
C40: DNS 2e | D40: =SUM(E40:R40) -> 112 | E40: ='M-13'!AK3 -> 8 | F40: ='J-13'!AK3 -> 13 | G40: ='M-12'!AK3 -> 11 | H40: ='J-12'!AK3 -> 13 | I40: ='M-11'!AK3 -> 9 | J40: ='J-11'!AK3 -> 13 | K40: ='M-10'!AK3 -> 6 | L40: ='J-10'!AK3 -> 9 | M40: ='M-09'!AK3 -> 6 | N40: ='J-09'!AK3 -> 7 | O40: ='M-08'!AK3 -> 11 | P40: ='J-08'!AK3 -> 5 | Q40: ='M-07'!AK3 -> 0 | R40: ='J-07'!AK3 -> 1 | T40: =SUM(E35:R35) -> 412 | X40: 40 | Y40: DNS | Z40: DNF | AA40: DQ
C41: % | D41: =D40/(D35/100) -> 27.18446602 | E41: =E40/(E35/100) -> 25.80645161 | F41: =F40/(F35/100) -> 50 | G41: 22.44897959 | H41: 28.88888889 | I41: 25.71428571 | J41: 30.23255814 | K41: 21.42857143 | L41: 23.07692308 | M41: 22.22222222 | N41: 25.92592593 | O41: 33.33333333 | P41: 26.31578947 | Q41: 0 | R41: 25 | X41: 41 | Y41: DNS | Z41: DNF | AA41: DQ
X42: 42 | Y42: DNS | Z42: DNF | AA42: DQ
B43: Beide crossen | D43: =SUM(D45:D74) -> 412 | E43: =E1 -> M '13 | F43: =F1 -> J '13 | G43: M '12 | H43: J '12 | I43: M '11 | J43: J '11 | K43: M '10 | L43: J '10 | M43: M '09 | N43: J '09 | O43: M '08 | P43: J '08 | Q43: M '07 | R43: J '07 | X43: 43 | Y43: DNS | Z43: DNF | AA43: DQ
E44: =SUM(E45:E74) -> 31 | F44: =SUM(F45:F74) -> 26 | G44: 49 | H44: 45 | I44: 35 | J44: 43 | K44: 28 | L44: 39 | M44: 27 | N44: 27 | O44: 33 | P44: 19 | Q44: 6 | R44: 4 | X44: 44 | Y44: DNS | Z44: DNF | AA44: DQ
B45: =IF(B3<>"",B3,"") -> Individueel | C45: individueel | D45: =IF(C45<>"",SUM(E45:R45),"") -> 0 | E45: =IF(C45<>"",COUNTIF('M-13'!AK$4:AK$83,C45),"") -> 0 | F45: =IF(C45<>"",COUNTIF('J-13'!AK$4:AK$83,C45),"") -> 0 | G45: =IF(C45<>"",COUNTIF('M-12'!AK$4:AK$83,C45),"") -> 0 | H45: =IF(C45<>"",COUNTIF('J-12'!AK$4:AK$83,C45),"") -> 0 | I45: =IF(C45<>"",COUNTIF('M-11'!AK$4:AK$83,C45),"") -> 0 | J45: =IF(C45<>"",COUNTIF('J-11'!AK$4:AK$83,C45),"") -> 0 | K45: =IF(C45<>"",COUNTIF('M-10'!AK$4:AK$83,C45),"") -> 0 | L45: =IF(C45<>"",COUNTIF('J-10'!AK$4:AK$83,C45),"") -> 0 | M45: =IF(C45<>"",COUNTIF('M-09'!AK$4:AK$83,C45),"") -> 0 | N45: =IF(C45<>"",COUNTIF('J-09'!AK$4:AK$83,C45),"") -> 0 | O45: =IF(C45<>"",COUNTIF('M-08'!AK$4:AK$83,C45),"") -> 0 | P45: =IF(C45<>"",COUNTIF('J-08'!AK$4:AK$83,C45),"") -> 0 | Q45: =IF(C45<>"",COUNTIF('M-07'!AK$4:AK$83,C45),"") -> 0 | R45: =IF(C45<>"",COUNTIF('J-07'!AK$4:AK$83,C45),"") -> 0 | X45: 45 | Y45: DNS | Z45: DNF | AA45: DQ
B46: Albert Schweitzerschool | C46: A.Schweit. | D46: =IF(C46<>"",SUM(E46:R46),"") -> 13 | E46: =IF(C46<>"",COUNTIF('M-13'!AK$4:AK$83,C46),"") -> 0 | F46: =IF(C46<>"",COUNTIF('J-13'!AK$4:AK$83,C46),"") -> 0 | G46: =IF(C46<>"",COUNTIF('M-12'!AK$4:AK$83,C46),"") -> 0 | H46: =IF(C46<>"",COUNTIF('J-12'!AK$4:AK$83,C46),"") -> 1 | I46: =IF(C46<>"",COUNTIF('M-11'!AK$4:AK$83,C46),"") -> 2 | J46: =IF(C46<>"",COUNTIF('J-11'!AK$4:AK$83,C46),"") -> 4 | K46: =IF(C46<>"",COUNTIF('M-10'!AK$4:AK$83,C46),"") -> 1 | L46: =IF(C46<>"",COUNTIF('J-10'!AK$4:AK$83,C46),"") -> 0 | M46: =IF(C46<>"",COUNTIF('M-09'!AK$4:AK$83,C46),"") -> 0 | N46: =IF(C46<>"",COUNTIF('J-09'!AK$4:AK$83,C46),"") -> 4 | O46: =IF(C46<>"",COUNTIF('M-08'!AK$4:AK$83,C46),"") -> 0 | P46: =IF(C46<>"",COUNTIF('J-08'!AK$4:AK$83,C46),"") -> 1 | Q46: =IF(C46<>"",COUNTIF('M-07'!AK$4:AK$83,C46),"") -> 0 | R46: =IF(C46<>"",COUNTIF('J-07'!AK$4:AK$83,C46),"") -> 0 | X46: 46 | Y46: DNS | Z46: DNF | AA46: DQ
B47: Combinatie Tollebeek | C47: Com.Tol. | D47: 18 | E47: =IF(C47<>"",COUNTIF('M-13'!AK$4:AK$83,C47),"") -> 1 | F47: =IF(C47<>"",COUNTIF('J-13'!AK$4:AK$83,C47),"") -> 1 | G47: =IF(C47<>"",COUNTIF('M-12'!AK$4:AK$83,C47),"") -> 1 | H47: =IF(C47<>"",COUNTIF('J-12'!AK$4:AK$83,C47),"") -> 5 | I47: =IF(C47<>"",COUNTIF('M-11'!AK$4:AK$83,C47),"") -> 1 | J47: =IF(C47<>"",COUNTIF('J-11'!AK$4:AK$83,C47),"") -> 2 | K47: =IF(C47<>"",COUNTIF('M-10'!AK$4:AK$83,C47),"") -> 1 | L47: =IF(C47<>"",COUNTIF('J-10'!AK$4:AK$83,C47),"") -> 2 | M47: =IF(C47<>"",COUNTIF('M-09'!AK$4:AK$83,C47),"") -> 0 | N47: =IF(C47<>"",COUNTIF('J-09'!AK$4:AK$83,C47),"") -> 1 | O47: =IF(C47<>"",COUNTIF('M-08'!AK$4:AK$83,C47),"") -> 0 | P47: =IF(C47<>"",COUNTIF('J-08'!AK$4:AK$83,C47),"") -> 2 | Q47: =IF(C47<>"",COUNTIF('M-07'!AK$4:AK$83,C47),"") -> 1 | R47: =IF(C47<>"",COUNTIF('J-07'!AK$4:AK$83,C47),"") -> 0 | X47: 47 | Y47: DNS | Z47: DNF | AA47: DQ
B48: de Ark Espel | C48: de Ark | D48: 0 | E48: =IF(C48<>"",COUNTIF('M-13'!AK$4:AK$83,C48),"") -> 0 | F48: =IF(C48<>"",COUNTIF('J-13'!AK$4:AK$83,C48),"") -> 0 | G48: =IF(C48<>"",COUNTIF('M-12'!AK$4:AK$83,C48),"") -> 0 | H48: =IF(C48<>"",COUNTIF('J-12'!AK$4:AK$83,C48),"") -> 0 | I48: =IF(C48<>"",COUNTIF('M-11'!AK$4:AK$83,C48),"") -> 0 | J48: =IF(C48<>"",COUNTIF('J-11'!AK$4:AK$83,C48),"") -> 0 | K48: =IF(C48<>"",COUNTIF('M-10'!AK$4:AK$83,C48),"") -> 0 | L48: =IF(C48<>"",COUNTIF('J-10'!AK$4:AK$83,C48),"") -> 0 | M48: =IF(C48<>"",COUNTIF('M-09'!AK$4:AK$83,C48),"") -> 0 | N48: =IF(C48<>"",COUNTIF('J-09'!AK$4:AK$83,C48),"") -> 0 | O48: =IF(C48<>"",COUNTIF('M-08'!AK$4:AK$83,C48),"") -> 0 | P48: =IF(C48<>"",COUNTIF('J-08'!AK$4:AK$83,C48),"") -> 0 | Q48: =IF(C48<>"",COUNTIF('M-07'!AK$4:AK$83,C48),"") -> 0 | R48: =IF(C48<>"",COUNTIF('J-07'!AK$4:AK$83,C48),"") -> 0 | X48: 48 | Y48: DNS | Z48: DNF | AA48: DQ
B49: De Horizon Ens | C49: Horizon | D49: 56 | E49: =IF(C49<>"",COUNTIF('M-13'!AK$4:AK$83,C49),"") -> 5 | F49: =IF(C49<>"",COUNTIF('J-13'!AK$4:AK$83,C49),"") -> 4 | G49: =IF(C49<>"",COUNTIF('M-12'!AK$4:AK$83,C49),"") -> 3 | H49: =IF(C49<>"",COUNTIF('J-12'!AK$4:AK$83,C49),"") -> 3 | I49: =IF(C49<>"",COUNTIF('M-11'!AK$4:AK$83,C49),"") -> 1 | J49: =IF(C49<>"",COUNTIF('J-11'!AK$4:AK$83,C49),"") -> 3 | K49: =IF(C49<>"",COUNTIF('M-10'!AK$4:AK$83,C49),"") -> 2 | L49: =IF(C49<>"",COUNTIF('J-10'!AK$4:AK$83,C49),"") -> 12 | M49: =IF(C49<>"",COUNTIF('M-09'!AK$4:AK$83,C49),"") -> 5 | N49: =IF(C49<>"",COUNTIF('J-09'!AK$4:AK$83,C49),"") -> 3 | O49: =IF(C49<>"",COUNTIF('M-08'!AK$4:AK$83,C49),"") -> 9 | P49: =IF(C49<>"",COUNTIF('J-08'!AK$4:AK$83,C49),"") -> 5 | Q49: =IF(C49<>"",COUNTIF('M-07'!AK$4:AK$83,C49),"") -> 1 | R49: =IF(C49<>"",COUNTIF('J-07'!AK$4:AK$83,C49),"") -> 0 | X49: 49 | Y49: DNS | Z49: DNF | AA49: DQ
B50: Windkracht 10 | C50: Windkr.10 | D50: 0 | E50: =IF(C50<>"",COUNTIF('M-13'!AK$4:AK$83,C50),"") -> 0 | F50: =IF(C50<>"",COUNTIF('J-13'!AK$4:AK$83,C50),"") -> 0 | G50: =IF(C50<>"",COUNTIF('M-12'!AK$4:AK$83,C50),"") -> 0 | H50: =IF(C50<>"",COUNTIF('J-12'!AK$4:AK$83,C50),"") -> 0 | I50: =IF(C50<>"",COUNTIF('M-11'!AK$4:AK$83,C50),"") -> 0 | J50: =IF(C50<>"",COUNTIF('J-11'!AK$4:AK$83,C50),"") -> 0 | K50: =IF(C50<>"",COUNTIF('M-10'!AK$4:AK$83,C50),"") -> 0 | L50: =IF(C50<>"",COUNTIF('J-10'!AK$4:AK$83,C50),"") -> 0 | M50: =IF(C50<>"",COUNTIF('M-09'!AK$4:AK$83,C50),"") -> 0 | N50: =IF(C50<>"",COUNTIF('J-09'!AK$4:AK$83,C50),"") -> 0 | O50: =IF(C50<>"",COUNTIF('M-08'!AK$4:AK$83,C50),"") -> 0 | P50: =IF(C50<>"",COUNTIF('J-08'!AK$4:AK$83,C50),"") -> 0 | Q50: =IF(C50<>"",COUNTIF('M-07'!AK$4:AK$83,C50),"") -> 0 | R50: =IF(C50<>"",COUNTIF('J-07'!AK$4:AK$83,C50),"") -> 0 | X50: 50 | Y50: DNS | Z50: DNF | AA50: DQ
B51: De Lichtboei | C51: Lichtboei | D51: 62 | E51: =IF(C51<>"",COUNTIF('M-13'!AK$4:AK$83,C51),"") -> 4 | F51: =IF(C51<>"",COUNTIF('J-13'!AK$4:AK$83,C51),"") -> 6 | G51: =IF(C51<>"",COUNTIF('M-12'!AK$4:AK$83,C51),"") -> 10 | H51: =IF(C51<>"",COUNTIF('J-12'!AK$4:AK$83,C51),"") -> 4 | I51: =IF(C51<>"",COUNTIF('M-11'!AK$4:AK$83,C51),"") -> 9 | J51: =IF(C51<>"",COUNTIF('J-11'!AK$4:AK$83,C51),"") -> 7 | K51: =IF(C51<>"",COUNTIF('M-10'!AK$4:AK$83,C51),"") -> 2 | L51: =IF(C51<>"",COUNTIF('J-10'!AK$4:AK$83,C51),"") -> 7 | M51: =IF(C51<>"",COUNTIF('M-09'!AK$4:AK$83,C51),"") -> 5 | N51: =IF(C51<>"",COUNTIF('J-09'!AK$4:AK$83,C51),"") -> 2 | O51: =IF(C51<>"",COUNTIF('M-08'!AK$4:AK$83,C51),"") -> 5 | P51: =IF(C51<>"",COUNTIF('J-08'!AK$4:AK$83,C51),"") -> 0 | Q51: =IF(C51<>"",COUNTIF('M-07'!AK$4:AK$83,C51),"") -> 1 | R51: =IF(C51<>"",COUNTIF('J-07'!AK$4:AK$83,C51),"") -> 0 | X51: 51 | Y51: DNS | Z51: DNF | AA51: DQ
B52: De Triangel | C52: Triangel | D52: 28 | E52: =IF(C52<>"",COUNTIF('M-13'!AK$4:AK$83,C52),"") -> 3 | F52: =IF(C52<>"",COUNTIF('J-13'!AK$4:AK$83,C52),"") -> 0 | G52: =IF(C52<>"",COUNTIF('M-12'!AK$4:AK$83,C52),"") -> 3 | H52: =IF(C52<>"",COUNTIF('J-12'!AK$4:AK$83,C52),"") -> 3 | I52: =IF(C52<>"",COUNTIF('M-11'!AK$4:AK$83,C52),"") -> 2 | J52: =IF(C52<>"",COUNTIF('J-11'!AK$4:AK$83,C52),"") -> 2 | K52: =IF(C52<>"",COUNTIF('M-10'!AK$4:AK$83,C52),"") -> 1 | L52: =IF(C52<>"",COUNTIF('J-10'!AK$4:AK$83,C52),"") -> 2 | M52: =IF(C52<>"",COUNTIF('M-09'!AK$4:AK$83,C52),"") -> 6 | N52: =IF(C52<>"",COUNTIF('J-09'!AK$4:AK$83,C52),"") -> 0 | O52: =IF(C52<>"",COUNTIF('M-08'!AK$4:AK$83,C52),"") -> 2 | P52: =IF(C52<>"",COUNTIF('J-08'!AK$4:AK$83,C52),"") -> 3 | Q52: =IF(C52<>"",COUNTIF('M-07'!AK$4:AK$83,C52),"") -> 0 | R52: =IF(C52<>"",COUNTIF('J-07'!AK$4:AK$83,C52),"") -> 1 | X52: 52 | Y52: DNS | Z52: DNF | AA52: DQ
B53: De Zevensprong | C53: 7 sprong | D53: 32 | E53: =IF(C53<>"",COUNTIF('M-13'!AK$4:AK$83,C53),"") -> 2 | F53: =IF(C53<>"",COUNTIF('J-13'!AK$4:AK$83,C53),"") -> 2 | G53: =IF(C53<>"",COUNTIF('M-12'!AK$4:AK$83,C53),"") -> 9 | H53: =IF(C53<>"",COUNTIF('J-12'!AK$4:AK$83,C53),"") -> 6 | I53: =IF(C53<>"",COUNTIF('M-11'!AK$4:AK$83,C53),"") -> 2 | J53: =IF(C53<>"",COUNTIF('J-11'!AK$4:AK$83,C53),"") -> 3 | K53: =IF(C53<>"",COUNTIF('M-10'!AK$4:AK$83,C53),"") -> 2 | L53: =IF(C53<>"",COUNTIF('J-10'!AK$4:AK$83,C53),"") -> 1 | M53: =IF(C53<>"",COUNTIF('M-09'!AK$4:AK$83,C53),"") -> 2 | N53: =IF(C53<>"",COUNTIF('J-09'!AK$4:AK$83,C53),"") -> 1 | O53: =IF(C53<>"",COUNTIF('M-08'!AK$4:AK$83,C53),"") -> 1 | P53: =IF(C53<>"",COUNTIF('J-08'!AK$4:AK$83,C53),"") -> 0 | Q53: =IF(C53<>"",COUNTIF('M-07'!AK$4:AK$83,C53),"") -> 1 | R53: =IF(C53<>"",COUNTIF('J-07'!AK$4:AK$83,C53),"") -> 0 | X53: 53 | Y53: DNS | Z53: DNF | AA53: DQ
B54: Het Lichtschip | C54: Lichtschip | D54: 18 | E54: =IF(C54<>"",COUNTIF('M-13'!AK$4:AK$83,C54),"") -> 2 | F54: =IF(C54<>"",COUNTIF('J-13'!AK$4:AK$83,C54),"") -> 2 | G54: =IF(C54<>"",COUNTIF('M-12'!AK$4:AK$83,C54),"") -> 3 | H54: =IF(C54<>"",COUNTIF('J-12'!AK$4:AK$83,C54),"") -> 3 | I54: =IF(C54<>"",COUNTIF('M-11'!AK$4:AK$83,C54),"") -> 1 | J54: =IF(C54<>"",COUNTIF('J-11'!AK$4:AK$83,C54),"") -> 2 | K54: =IF(C54<>"",COUNTIF('M-10'!AK$4:AK$83,C54),"") -> 3 | L54: =IF(C54<>"",COUNTIF('J-10'!AK$4:AK$83,C54),"") -> 1 | M54: =IF(C54<>"",COUNTIF('M-09'!AK$4:AK$83,C54),"") -> 0 | N54: =IF(C54<>"",COUNTIF('J-09'!AK$4:AK$83,C54),"") -> 0 | O54: =IF(C54<>"",COUNTIF('M-08'!AK$4:AK$83,C54),"") -> 1 | P54: =IF(C54<>"",COUNTIF('J-08'!AK$4:AK$83,C54),"") -> 0 | Q54: =IF(C54<>"",COUNTIF('M-07'!AK$4:AK$83,C54),"") -> 0 | R54: =IF(C54<>"",COUNTIF('J-07'!AK$4:AK$83,C54),"") -> 0 | X54: 54 | Y54: DNS | Z54: DNF | AA54: DQ
B55: Maria basisschool Marknesse | C55: Mariab.s. | D55: 0 | E55: =IF(C55<>"",COUNTIF('M-13'!AK$4:AK$83,C55),"") -> 0 | F55: =IF(C55<>"",COUNTIF('J-13'!AK$4:AK$83,C55),"") -> 0 | G55: =IF(C55<>"",COUNTIF('M-12'!AK$4:AK$83,C55),"") -> 0 | H55: =IF(C55<>"",COUNTIF('J-12'!AK$4:AK$83,C55),"") -> 0 | I55: =IF(C55<>"",COUNTIF('M-11'!AK$4:AK$83,C55),"") -> 0 | J55: =IF(C55<>"",COUNTIF('J-11'!AK$4:AK$83,C55),"") -> 0 | K55: =IF(C55<>"",COUNTIF('M-10'!AK$4:AK$83,C55),"") -> 0 | L55: =IF(C55<>"",COUNTIF('J-10'!AK$4:AK$83,C55),"") -> 0 | M55: =IF(C55<>"",COUNTIF('M-09'!AK$4:AK$83,C55),"") -> 0 | N55: =IF(C55<>"",COUNTIF('J-09'!AK$4:AK$83,C55),"") -> 0 | O55: =IF(C55<>"",COUNTIF('M-08'!AK$4:AK$83,C55),"") -> 0 | P55: =IF(C55<>"",COUNTIF('J-08'!AK$4:AK$83,C55),"") -> 0 | Q55: =IF(C55<>"",COUNTIF('M-07'!AK$4:AK$83,C55),"") -> 0 | R55: =IF(C55<>"",COUNTIF('J-07'!AK$4:AK$83,C55),"") -> 0 | X55: 55 | Y55: DNS | Z55: DNF | AA55: DQ
B56: Roderik van Voorst | C56: R.v.voorst | D56: 20 | E56: =IF(C56<>"",COUNTIF('M-13'!AK$4:AK$83,C56),"") -> 1 | F56: =IF(C56<>"",COUNTIF('J-13'!AK$4:AK$83,C56),"") -> 2 | G56: =IF(C56<>"",COUNTIF('M-12'!AK$4:AK$83,C56),"") -> 3 | H56: =IF(C56<>"",COUNTIF('J-12'!AK$4:AK$83,C56),"") -> 2 | I56: =IF(C56<>"",COUNTIF('M-11'!AK$4:AK$83,C56),"") -> 6 | J56: =IF(C56<>"",COUNTIF('J-11'!AK$4:AK$83,C56),"") -> 0 | K56: =IF(C56<>"",COUNTIF('M-10'!AK$4:AK$83,C56),"") -> 3 | L56: =IF(C56<>"",COUNTIF('J-10'!AK$4:AK$83,C56),"") -> 3 | M56: =IF(C56<>"",COUNTIF('M-09'!AK$4:AK$83,C56),"") -> 0 | N56: =IF(C56<>"",COUNTIF('J-09'!AK$4:AK$83,C56),"") -> 0 | O56: =IF(C56<>"",COUNTIF('M-08'!AK$4:AK$83,C56),"") -> 0 | P56: =IF(C56<>"",COUNTIF('J-08'!AK$4:AK$83,C56),"") -> 0 | Q56: =IF(C56<>"",COUNTIF('M-07'!AK$4:AK$83,C56),"") -> 0 | R56: =IF(C56<>"",COUNTIF('J-07'!AK$4:AK$83,C56),"") -> 0 | X56: 56 | Y56: DNS | Z56: DNF | AA56: DQ
B57: 't Kompas | C57: 't Kompas | D57: 42 | E57: =IF(C57<>"",COUNTIF('M-13'!AK$4:AK$83,C57),"") -> 2 | F57: =IF(C57<>"",COUNTIF('J-13'!AK$4:AK$83,C57),"") -> 3 | G57: =IF(C57<>"",COUNTIF('M-12'!AK$4:AK$83,C57),"") -> 3 | H57: =IF(C57<>"",COUNTIF('J-12'!AK$4:AK$83,C57),"") -> 5 | I57: =IF(C57<>"",COUNTIF('M-11'!AK$4:AK$83,C57),"") -> 6 | J57: =IF(C57<>"",COUNTIF('J-11'!AK$4:AK$83,C57),"") -> 7 | K57: =IF(C57<>"",COUNTIF('M-10'!AK$4:AK$83,C57),"") -> 0 | L57: =IF(C57<>"",COUNTIF('J-10'!AK$4:AK$83,C57),"") -> 3 | M57: =IF(C57<>"",COUNTIF('M-09'!AK$4:AK$83,C57),"") -> 2 | N57: =IF(C57<>"",COUNTIF('J-09'!AK$4:AK$83,C57),"") -> 6 | O57: =IF(C57<>"",COUNTIF('M-08'!AK$4:AK$83,C57),"") -> 4 | P57: =IF(C57<>"",COUNTIF('J-08'!AK$4:AK$83,C57),"") -> 1 | Q57: =IF(C57<>"",COUNTIF('M-07'!AK$4:AK$83,C57),"") -> 0 | R57: =IF(C57<>"",COUNTIF('J-07'!AK$4:AK$83,C57),"") -> 0 | X57: 57 | Y57: DNS | Z57: DNF | AA57: DQ
B58: Klipper/Rank Luttelgeest | C58: de Klipper | D58: 0 | E58: =IF(C58<>"",COUNTIF('M-13'!AK$4:AK$83,C58),"") -> 0 | F58: =IF(C58<>"",COUNTIF('J-13'!AK$4:AK$83,C58),"") -> 0 | G58: =IF(C58<>"",COUNTIF('M-12'!AK$4:AK$83,C58),"") -> 0 | H58: =IF(C58<>"",COUNTIF('J-12'!AK$4:AK$83,C58),"") -> 0 | I58: =IF(C58<>"",COUNTIF('M-11'!AK$4:AK$83,C58),"") -> 0 | J58: =IF(C58<>"",COUNTIF('J-11'!AK$4:AK$83,C58),"") -> 0 | K58: =IF(C58<>"",COUNTIF('M-10'!AK$4:AK$83,C58),"") -> 0 | L58: =IF(C58<>"",COUNTIF('J-10'!AK$4:AK$83,C58),"") -> 0 | M58: =IF(C58<>"",COUNTIF('M-09'!AK$4:AK$83,C58),"") -> 0 | N58: =IF(C58<>"",COUNTIF('J-09'!AK$4:AK$83,C58),"") -> 0 | O58: =IF(C58<>"",COUNTIF('M-08'!AK$4:AK$83,C58),"") -> 0 | P58: =IF(C58<>"",COUNTIF('J-08'!AK$4:AK$83,C58),"") -> 0 | Q58: =IF(C58<>"",COUNTIF('M-07'!AK$4:AK$83,C58),"") -> 0 | R58: =IF(C58<>"",COUNTIF('J-07'!AK$4:AK$83,C58),"") -> 0 | X58: 58 | Y58: DNS | Z58: DNF | AA58: DQ
B59: st.Josephschool | C59: st Joseph | D59: 21 | E59: =IF(C59<>"",COUNTIF('M-13'!AK$4:AK$83,C59),"") -> 2 | F59: =IF(C59<>"",COUNTIF('J-13'!AK$4:AK$83,C59),"") -> 2 | G59: =IF(C59<>"",COUNTIF('M-12'!AK$4:AK$83,C59),"") -> 3 | H59: =IF(C59<>"",COUNTIF('J-12'!AK$4:AK$83,C59),"") -> 4 | I59: =IF(C59<>"",COUNTIF('M-11'!AK$4:AK$83,C59),"") -> 0 | J59: =IF(C59<>"",COUNTIF('J-11'!AK$4:AK$83,C59),"") -> 0 | K59: =IF(C59<>"",COUNTIF('M-10'!AK$4:AK$83,C59),"") -> 5 | L59: =IF(C59<>"",COUNTIF('J-10'!AK$4:AK$83,C59),"") -> 2 | M59: =IF(C59<>"",COUNTIF('M-09'!AK$4:AK$83,C59),"") -> 1 | N59: =IF(C59<>"",COUNTIF('J-09'!AK$4:AK$83,C59),"") -> 0 | O59: =IF(C59<>"",COUNTIF('M-08'!AK$4:AK$83,C59),"") -> 1 | P59: =IF(C59<>"",COUNTIF('J-08'!AK$4:AK$83,C59),"") -> 1 | Q59: =IF(C59<>"",COUNTIF('M-07'!AK$4:AK$83,C59),"") -> 0 | R59: =IF(C59<>"",COUNTIF('J-07'!AK$4:AK$83,C59),"") -> 0 | X59: 59 | Y59: DNS | Z59: DNF | AA59: DQ
B60: Floreant | C60: Floreant | D60: 61 | E60: =IF(C60<>"",COUNTIF('M-13'!AK$4:AK$83,C60),"") -> 5 | F60: =IF(C60<>"",COUNTIF('J-13'!AK$4:AK$83,C60),"") -> 3 | G60: =IF(C60<>"",COUNTIF('M-12'!AK$4:AK$83,C60),"") -> 4 | H60: =IF(C60<>"",COUNTIF('J-12'!AK$4:AK$83,C60),"") -> 5 | I60: =IF(C60<>"",COUNTIF('M-11'!AK$4:AK$83,C60),"") -> 3 | J60: =IF(C60<>"",COUNTIF('J-11'!AK$4:AK$83,C60),"") -> 7 | K60: =IF(C60<>"",COUNTIF('M-10'!AK$4:AK$83,C60),"") -> 3 | L60: =IF(C60<>"",COUNTIF('J-10'!AK$4:AK$83,C60),"") -> 4 | M60: =IF(C60<>"",COUNTIF('M-09'!AK$4:AK$83,C60),"") -> 3 | N60: =IF(C60<>"",COUNTIF('J-09'!AK$4:AK$83,C60),"") -> 7 | O60: =IF(C60<>"",COUNTIF('M-08'!AK$4:AK$83,C60),"") -> 7 | P60: =IF(C60<>"",COUNTIF('J-08'!AK$4:AK$83,C60),"") -> 6 | Q60: =IF(C60<>"",COUNTIF('M-07'!AK$4:AK$83,C60),"") -> 2 | R60: =IF(C60<>"",COUNTIF('J-07'!AK$4:AK$83,C60),"") -> 2 | X60: 60 | Y60: DNS | Z60: DNF | AA60: DQ
B61: de Koperwiek | C61: Koperwiek | D61: 38 | E61: =IF(C61<>"",COUNTIF('M-13'!AK$4:AK$83,C61),"") -> 4 | F61: =IF(C61<>"",COUNTIF('J-13'!AK$4:AK$83,C61),"") -> 1 | G61: =IF(C61<>"",COUNTIF('M-12'!AK$4:AK$83,C61),"") -> 7 | H61: =IF(C61<>"",COUNTIF('J-12'!AK$4:AK$83,C61),"") -> 4 | I61: =IF(C61<>"",COUNTIF('M-11'!AK$4:AK$83,C61),"") -> 1 | J61: =IF(C61<>"",COUNTIF('J-11'!AK$4:AK$83,C61),"") -> 6 | K61: =IF(C61<>"",COUNTIF('M-10'!AK$4:AK$83,C61),"") -> 5 | L61: =IF(C61<>"",COUNTIF('J-10'!AK$4:AK$83,C61),"") -> 2 | M61: =IF(C61<>"",COUNTIF('M-09'!AK$4:AK$83,C61),"") -> 3 | N61: =IF(C61<>"",COUNTIF('J-09'!AK$4:AK$83,C61),"") -> 3 | O61: =IF(C61<>"",COUNTIF('M-08'!AK$4:AK$83,C61),"") -> 1 | P61: =IF(C61<>"",COUNTIF('J-08'!AK$4:AK$83,C61),"") -> 0 | Q61: =IF(C61<>"",COUNTIF('M-07'!AK$4:AK$83,C61),"") -> 0 | R61: =IF(C61<>"",COUNTIF('J-07'!AK$4:AK$83,C61),"") -> 1 | X61: 61 | Y61: DNS | Z61: DNF | AA61: DQ
B62: SWS De Wending | C62: Wending | D62: 0 | E62: =IF(C62<>"",COUNTIF('M-13'!AK$4:AK$83,C62),"") -> 0 | F62: =IF(C62<>"",COUNTIF('J-13'!AK$4:AK$83,C62),"") -> 0 | G62: =IF(C62<>"",COUNTIF('M-12'!AK$4:AK$83,C62),"") -> 0 | H62: =IF(C62<>"",COUNTIF('J-12'!AK$4:AK$83,C62),"") -> 0 | I62: =IF(C62<>"",COUNTIF('M-11'!AK$4:AK$83,C62),"") -> 0 | J62: =IF(C62<>"",COUNTIF('J-11'!AK$4:AK$83,C62),"") -> 0 | K62: =IF(C62<>"",COUNTIF('M-10'!AK$4:AK$83,C62),"") -> 0 | L62: =IF(C62<>"",COUNTIF('J-10'!AK$4:AK$83,C62),"") -> 0 | M62: =IF(C62<>"",COUNTIF('M-09'!AK$4:AK$83,C62),"") -> 0 | N62: =IF(C62<>"",COUNTIF('J-09'!AK$4:AK$83,C62),"") -> 0 | O62: =IF(C62<>"",COUNTIF('M-08'!AK$4:AK$83,C62),"") -> 0 | P62: =IF(C62<>"",COUNTIF('J-08'!AK$4:AK$83,C62),"") -> 0 | Q62: =IF(C62<>"",COUNTIF('M-07'!AK$4:AK$83,C62),"") -> 0 | R62: =IF(C62<>"",COUNTIF('J-07'!AK$4:AK$83,C62),"") -> 0 | X62: 62 | Y62: DNS | Z62: DNF | AA62: DQ
B63: Zeester Marknesse | C63: Zeester | D63: 0 | E63: =IF(C63<>"",COUNTIF('M-13'!AK$4:AK$83,C63),"") -> 0 | F63: =IF(C63<>"",COUNTIF('J-13'!AK$4:AK$83,C63),"") -> 0 | G63: =IF(C63<>"",COUNTIF('M-12'!AK$4:AK$83,C63),"") -> 0 | H63: =IF(C63<>"",COUNTIF('J-12'!AK$4:AK$83,C63),"") -> 0 | I63: =IF(C63<>"",COUNTIF('M-11'!AK$4:AK$83,C63),"") -> 0 | J63: =IF(C63<>"",COUNTIF('J-11'!AK$4:AK$83,C63),"") -> 0 | K63: =IF(C63<>"",COUNTIF('M-10'!AK$4:AK$83,C63),"") -> 0 | L63: =IF(C63<>"",COUNTIF('J-10'!AK$4:AK$83,C63),"") -> 0 | M63: =IF(C63<>"",COUNTIF('M-09'!AK$4:AK$83,C63),"") -> 0 | N63: =IF(C63<>"",COUNTIF('J-09'!AK$4:AK$83,C63),"") -> 0 | O63: =IF(C63<>"",COUNTIF('M-08'!AK$4:AK$83,C63),"") -> 0 | P63: =IF(C63<>"",COUNTIF('J-08'!AK$4:AK$83,C63),"") -> 0 | Q63: =IF(C63<>"",COUNTIF('M-07'!AK$4:AK$83,C63),"") -> 0 | R63: =IF(C63<>"",COUNTIF('J-07'!AK$4:AK$83,C63),"") -> 0 | X63: 63 | Y63: DNS | Z63: DNF | AA63: DQ
B64: Fondali | C64: Fondali | D64: 2 | E64: =IF(C64<>"",COUNTIF('M-13'!AK$4:AK$83,C64),"") -> 0 | F64: =IF(C64<>"",COUNTIF('J-13'!AK$4:AK$83,C64),"") -> 0 | G64: =IF(C64<>"",COUNTIF('M-12'!AK$4:AK$83,C64),"") -> 0 | H64: =IF(C64<>"",COUNTIF('J-12'!AK$4:AK$83,C64),"") -> 0 | I64: =IF(C64<>"",COUNTIF('M-11'!AK$4:AK$83,C64),"") -> 1 | J64: =IF(C64<>"",COUNTIF('J-11'!AK$4:AK$83,C64),"") -> 0 | K64: =IF(C64<>"",COUNTIF('M-10'!AK$4:AK$83,C64),"") -> 0 | L64: =IF(C64<>"",COUNTIF('J-10'!AK$4:AK$83,C64),"") -> 0 | M64: =IF(C64<>"",COUNTIF('M-09'!AK$4:AK$83,C64),"") -> 0 | N64: =IF(C64<>"",COUNTIF('J-09'!AK$4:AK$83,C64),"") -> 0 | O64: =IF(C64<>"",COUNTIF('M-08'!AK$4:AK$83,C64),"") -> 1 | P64: =IF(C64<>"",COUNTIF('J-08'!AK$4:AK$83,C64),"") -> 0 | Q64: =IF(C64<>"",COUNTIF('M-07'!AK$4:AK$83,C64),"") -> 0 | R64: =IF(C64<>"",COUNTIF('J-07'!AK$4:AK$83,C64),"") -> 0 | X64: 64 | Y64: DNS | Z64: DNF | AA64: DQ
B65: OBS de Driesprong | C65: 3 sprong | D65: 1 | E65: =IF(C65<>"",COUNTIF('M-13'!AK$4:AK$83,C65),"") -> 0 | F65: =IF(C65<>"",COUNTIF('J-13'!AK$4:AK$83,C65),"") -> 0 | G65: =IF(C65<>"",COUNTIF('M-12'!AK$4:AK$83,C65),"") -> 0 | H65: =IF(C65<>"",COUNTIF('J-12'!AK$4:AK$83,C65),"") -> 0 | I65: =IF(C65<>"",COUNTIF('M-11'!AK$4:AK$83,C65),"") -> 0 | J65: =IF(C65<>"",COUNTIF('J-11'!AK$4:AK$83,C65),"") -> 0 | K65: =IF(C65<>"",COUNTIF('M-10'!AK$4:AK$83,C65),"") -> 0 | L65: =IF(C65<>"",COUNTIF('J-10'!AK$4:AK$83,C65),"") -> 0 | M65: =IF(C65<>"",COUNTIF('M-09'!AK$4:AK$83,C65),"") -> 0 | N65: =IF(C65<>"",COUNTIF('J-09'!AK$4:AK$83,C65),"") -> 0 | O65: =IF(C65<>"",COUNTIF('M-08'!AK$4:AK$83,C65),"") -> 1 | P65: =IF(C65<>"",COUNTIF('J-08'!AK$4:AK$83,C65),"") -> 0 | Q65: =IF(C65<>"",COUNTIF('M-07'!AK$4:AK$83,C65),"") -> 0 | R65: =IF(C65<>"",COUNTIF('J-07'!AK$4:AK$83,C65),"") -> 0 | X65: 65 | Y65: DNS | Z65: DNF | AA65: DQ
E66: =IF(C66<>"",COUNTIF('M-13'!AK$4:AK$83,C66),"") ->  | F66: =IF(C66<>"",COUNTIF('J-13'!AK$4:AK$83,C66),"") ->  | G66: =IF(C66<>"",COUNTIF('M-12'!AK$4:AK$83,C66),"") ->  | H66: =IF(C66<>"",COUNTIF('J-12'!AK$4:AK$83,C66),"") ->  | I66: =IF(C66<>"",COUNTIF('M-11'!AK$4:AK$83,C66),"") ->  | J66: =IF(C66<>"",COUNTIF('J-11'!AK$4:AK$83,C66),"") ->  | K66: =IF(C66<>"",COUNTIF('M-10'!AK$4:AK$83,C66),"") ->  | L66: =IF(C66<>"",COUNTIF('J-10'!AK$4:AK$83,C66),"") ->  | M66: =IF(C66<>"",COUNTIF('M-09'!AK$4:AK$83,C66),"") ->  | N66: =IF(C66<>"",COUNTIF('J-09'!AK$4:AK$83,C66),"") ->  | O66: =IF(C66<>"",COUNTIF('M-08'!AK$4:AK$83,C66),"") ->  | P66: =IF(C66<>"",COUNTIF('J-08'!AK$4:AK$83,C66),"") ->  | Q66: =IF(C66<>"",COUNTIF('M-07'!AK$4:AK$83,C66),"") ->  | R66: =IF(C66<>"",COUNTIF('J-07'!AK$4:AK$83,C66),"") ->  | X66: 66 | Y66: DNS | Z66: DNF | AA66: DQ
E67: =IF(C67<>"",COUNTIF('M-13'!AK$4:AK$83,C67),"") ->  | F67: =IF(C67<>"",COUNTIF('J-13'!AK$4:AK$83,C67),"") ->  | G67: =IF(C67<>"",COUNTIF('M-12'!AK$4:AK$83,C67),"") ->  | H67: =IF(C67<>"",COUNTIF('J-12'!AK$4:AK$83,C67),"") ->  | I67: =IF(C67<>"",COUNTIF('M-11'!AK$4:AK$83,C67),"") ->  | J67: =IF(C67<>"",COUNTIF('J-11'!AK$4:AK$83,C67),"") ->  | K67: =IF(C67<>"",COUNTIF('M-10'!AK$4:AK$83,C67),"") ->  | L67: =IF(C67<>"",COUNTIF('J-10'!AK$4:AK$83,C67),"") ->  | M67: =IF(C67<>"",COUNTIF('M-09'!AK$4:AK$83,C67),"") ->  | N67: =IF(C67<>"",COUNTIF('J-09'!AK$4:AK$83,C67),"") ->  | O67: =IF(C67<>"",COUNTIF('M-08'!AK$4:AK$83,C67),"") ->  | P67: =IF(C67<>"",COUNTIF('J-08'!AK$4:AK$83,C67),"") ->  | Q67: =IF(C67<>"",COUNTIF('M-07'!AK$4:AK$83,C67),"") ->  | R67: =IF(C67<>"",COUNTIF('J-07'!AK$4:AK$83,C67),"") ->  | X67: 67 | Y67: DNS | Z67: DNF | AA67: DQ
E68: =IF(C68<>"",COUNTIF('M-13'!AK$4:AK$83,C68),"") ->  | F68: =IF(C68<>"",COUNTIF('J-13'!AK$4:AK$83,C68),"") ->  | G68: =IF(C68<>"",COUNTIF('M-12'!AK$4:AK$83,C68),"") ->  | H68: =IF(C68<>"",COUNTIF('J-12'!AK$4:AK$83,C68),"") ->  | I68: =IF(C68<>"",COUNTIF('M-11'!AK$4:AK$83,C68),"") ->  | J68: =IF(C68<>"",COUNTIF('J-11'!AK$4:AK$83,C68),"") ->  | K68: =IF(C68<>"",COUNTIF('M-10'!AK$4:AK$83,C68),"") ->  | L68: =IF(C68<>"",COUNTIF('J-10'!AK$4:AK$83,C68),"") ->  | M68: =IF(C68<>"",COUNTIF('M-09'!AK$4:AK$83,C68),"") ->  | N68: =IF(C68<>"",COUNTIF('J-09'!AK$4:AK$83,C68),"") ->  | O68: =IF(C68<>"",COUNTIF('M-08'!AK$4:AK$83,C68),"") ->  | P68: =IF(C68<>"",COUNTIF('J-08'!AK$4:AK$83,C68),"") ->  | Q68: =IF(C68<>"",COUNTIF('M-07'!AK$4:AK$83,C68),"") ->  | R68: =IF(C68<>"",COUNTIF('J-07'!AK$4:AK$83,C68),"") ->  | X68: 68 | Y68: DNS | Z68: DNF | AA68: DQ
E69: =IF(C69<>"",COUNTIF('M-13'!AK$4:AK$83,C69),"") ->  | F69: =IF(C69<>"",COUNTIF('J-13'!AK$4:AK$83,C69),"") ->  | G69: =IF(C69<>"",COUNTIF('M-12'!AK$4:AK$83,C69),"") ->  | H69: =IF(C69<>"",COUNTIF('J-12'!AK$4:AK$83,C69),"") ->  | I69: =IF(C69<>"",COUNTIF('M-11'!AK$4:AK$83,C69),"") ->  | J69: =IF(C69<>"",COUNTIF('J-11'!AK$4:AK$83,C69),"") ->  | K69: =IF(C69<>"",COUNTIF('M-10'!AK$4:AK$83,C69),"") ->  | L69: =IF(C69<>"",COUNTIF('J-10'!AK$4:AK$83,C69),"") ->  | M69: =IF(C69<>"",COUNTIF('M-09'!AK$4:AK$83,C69),"") ->  | N69: =IF(C69<>"",COUNTIF('J-09'!AK$4:AK$83,C69),"") ->  | O69: =IF(C69<>"",COUNTIF('M-08'!AK$4:AK$83,C69),"") ->  | P69: =IF(C69<>"",COUNTIF('J-08'!AK$4:AK$83,C69),"") ->  | Q69: =IF(C69<>"",COUNTIF('M-07'!AK$4:AK$83,C69),"") ->  | R69: =IF(C69<>"",COUNTIF('J-07'!AK$4:AK$83,C69),"") ->  | X69: 69 | Y69: DNS | Z69: DNF | AA69: DQ
E70: =IF(C70<>"",COUNTIF('M-13'!AK$4:AK$83,C70),"") ->  | F70: =IF(C70<>"",COUNTIF('J-13'!AK$4:AK$83,C70),"") ->  | G70: =IF(C70<>"",COUNTIF('M-12'!AK$4:AK$83,C70),"") ->  | H70: =IF(C70<>"",COUNTIF('J-12'!AK$4:AK$83,C70),"") ->  | I70: =IF(C70<>"",COUNTIF('M-11'!AK$4:AK$83,C70),"") ->  | J70: =IF(C70<>"",COUNTIF('J-11'!AK$4:AK$83,C70),"") ->  | K70: =IF(C70<>"",COUNTIF('M-10'!AK$4:AK$83,C70),"") ->  | L70: =IF(C70<>"",COUNTIF('J-10'!AK$4:AK$83,C70),"") ->  | M70: =IF(C70<>"",COUNTIF('M-09'!AK$4:AK$83,C70),"") ->  | N70: =IF(C70<>"",COUNTIF('J-09'!AK$4:AK$83,C70),"") ->  | O70: =IF(C70<>"",COUNTIF('M-08'!AK$4:AK$83,C70),"") ->  | P70: =IF(C70<>"",COUNTIF('J-08'!AK$4:AK$83,C70),"") ->  | Q70: =IF(C70<>"",COUNTIF('M-07'!AK$4:AK$83,C70),"") ->  | R70: =IF(C70<>"",COUNTIF('J-07'!AK$4:AK$83,C70),"") ->  | X70: 70 | Y70: DNS | Z70: DNF | AA70: DQ
E71: =IF(C71<>"",COUNTIF('M-13'!AK$4:AK$83,C71),"") ->  | F71: =IF(C71<>"",COUNTIF('J-13'!AK$4:AK$83,C71),"") ->  | G71: =IF(C71<>"",COUNTIF('M-12'!AK$4:AK$83,C71),"") ->  | H71: =IF(C71<>"",COUNTIF('J-12'!AK$4:AK$83,C71),"") ->  | I71: =IF(C71<>"",COUNTIF('M-11'!AK$4:AK$83,C71),"") ->  | J71: =IF(C71<>"",COUNTIF('J-11'!AK$4:AK$83,C71),"") ->  | K71: =IF(C71<>"",COUNTIF('M-10'!AK$4:AK$83,C71),"") ->  | L71: =IF(C71<>"",COUNTIF('J-10'!AK$4:AK$83,C71),"") ->  | M71: =IF(C71<>"",COUNTIF('M-09'!AK$4:AK$83,C71),"") ->  | N71: =IF(C71<>"",COUNTIF('J-09'!AK$4:AK$83,C71),"") ->  | O71: =IF(C71<>"",COUNTIF('M-08'!AK$4:AK$83,C71),"") ->  | P71: =IF(C71<>"",COUNTIF('J-08'!AK$4:AK$83,C71),"") ->  | Q71: =IF(C71<>"",COUNTIF('M-07'!AK$4:AK$83,C71),"") ->  | R71: =IF(C71<>"",COUNTIF('J-07'!AK$4:AK$83,C71),"") ->  | X71: 71 | Y71: DNS | Z71: DNF | AA71: DQ
E72: =IF(C72<>"",COUNTIF('M-13'!AK$4:AK$83,C72),"") ->  | F72: =IF(C72<>"",COUNTIF('J-13'!AK$4:AK$83,C72),"") ->  | G72: =IF(C72<>"",COUNTIF('M-12'!AK$4:AK$83,C72),"") ->  | H72: =IF(C72<>"",COUNTIF('J-12'!AK$4:AK$83,C72),"") ->  | I72: =IF(C72<>"",COUNTIF('M-11'!AK$4:AK$83,C72),"") ->  | J72: =IF(C72<>"",COUNTIF('J-11'!AK$4:AK$83,C72),"") ->  | K72: =IF(C72<>"",COUNTIF('M-10'!AK$4:AK$83,C72),"") ->  | L72: =IF(C72<>"",COUNTIF('J-10'!AK$4:AK$83,C72),"") ->  | M72: =IF(C72<>"",COUNTIF('M-09'!AK$4:AK$83,C72),"") ->  | N72: =IF(C72<>"",COUNTIF('J-09'!AK$4:AK$83,C72),"") ->  | O72: =IF(C72<>"",COUNTIF('M-08'!AK$4:AK$83,C72),"") ->  | P72: =IF(C72<>"",COUNTIF('J-08'!AK$4:AK$83,C72),"") ->  | Q72: =IF(C72<>"",COUNTIF('M-07'!AK$4:AK$83,C72),"") ->  | R72: =IF(C72<>"",COUNTIF('J-07'!AK$4:AK$83,C72),"") ->  | X72: 72 | Y72: DNS | Z72: DNF | AA72: DQ
E73: =IF(C73<>"",COUNTIF('M-13'!AK$4:AK$83,C73),"") ->  | F73: =IF(C73<>"",COUNTIF('J-13'!AK$4:AK$83,C73),"") ->  | G73: =IF(C73<>"",COUNTIF('M-12'!AK$4:AK$83,C73),"") ->  | H73: =IF(C73<>"",COUNTIF('J-12'!AK$4:AK$83,C73),"") ->  | I73: =IF(C73<>"",COUNTIF('M-11'!AK$4:AK$83,C73),"") ->  | J73: =IF(C73<>"",COUNTIF('J-11'!AK$4:AK$83,C73),"") ->  | K73: =IF(C73<>"",COUNTIF('M-10'!AK$4:AK$83,C73),"") ->  | L73: =IF(C73<>"",COUNTIF('J-10'!AK$4:AK$83,C73),"") ->  | M73: =IF(C73<>"",COUNTIF('M-09'!AK$4:AK$83,C73),"") ->  | N73: =IF(C73<>"",COUNTIF('J-09'!AK$4:AK$83,C73),"") ->  | O73: =IF(C73<>"",COUNTIF('M-08'!AK$4:AK$83,C73),"") ->  | P73: =IF(C73<>"",COUNTIF('J-08'!AK$4:AK$83,C73),"") ->  | Q73: =IF(C73<>"",COUNTIF('M-07'!AK$4:AK$83,C73),"") ->  | R73: =IF(C73<>"",COUNTIF('J-07'!AK$4:AK$83,C73),"") ->  | X73: 73 | Y73: DNS | Z73: DNF | AA73: DQ
E74: =IF(C74<>"",COUNTIF('M-13'!AK$4:AK$83,C74),"") ->  | F74: =IF(C74<>"",COUNTIF('J-13'!AK$4:AK$83,C74),"") ->  | G74: =IF(C74<>"",COUNTIF('M-12'!AK$4:AK$83,C74),"") ->  | H74: =IF(C74<>"",COUNTIF('J-12'!AK$4:AK$83,C74),"") ->  | I74: =IF(C74<>"",COUNTIF('M-11'!AK$4:AK$83,C74),"") ->  | J74: =IF(C74<>"",COUNTIF('J-11'!AK$4:AK$83,C74),"") ->  | K74: =IF(C74<>"",COUNTIF('M-10'!AK$4:AK$83,C74),"") ->  | L74: =IF(C74<>"",COUNTIF('J-10'!AK$4:AK$83,C74),"") ->  | M74: =IF(C74<>"",COUNTIF('M-09'!AK$4:AK$83,C74),"") ->  | N74: =IF(C74<>"",COUNTIF('J-09'!AK$4:AK$83,C74),"") ->  | O74: =IF(C74<>"",COUNTIF('M-08'!AK$4:AK$83,C74),"") ->  | P74: =IF(C74<>"",COUNTIF('J-08'!AK$4:AK$83,C74),"") ->  | Q74: =IF(C74<>"",COUNTIF('M-07'!AK$4:AK$83,C74),"") ->  | R74: =IF(C74<>"",COUNTIF('J-07'!AK$4:AK$83,C74),"") ->  | X74: 74 | Y74: DNS | Z74: DNF | AA74: DQ
X75: 75 | Y75: DNS | Z75: DNF | AA75: DQ
X76: 76 | Y76: DNS | Z76: DNF | AA76: DQ
X77: 77 | Y77: DNS | Z77: DNF | AA77: DQ
B78: alleen 1e cross | D78: =SUM(D80:D109) -> 1 | E78: =E1 -> M '13 | F78: =F1 -> J '13 | G78: M '12 | H78: J '12 | I78: M '11 | J78: J '11 | K78: M '10 | L78: J '10 | M78: M '09 | N78: J '09 | O78: M '08 | P78: J '08 | Q78: M '07 | R78: J '07 | X78: 78 | Y78: DNS | Z78: DNF | AA78: DQ
A79: 1e | D79: =SUM(D80:D109) -> 1 | E79: =SUM(E80:E109) -> 0 | F79: 0 | G79: 0 | H79: 0 | I79: 1 | J79: 0 | K79: 0 | L79: 0 | M79: 0 | N79: 0 | O79: 0 | P79: 0 | Q79: 0 | R79: 0 | X79: 79 | Y79: DNS | Z79: DNF | AA79: DQ
A80: =IF(D45<>"",D45+D80,"") -> 0 | B80: =IF(B3<>"",B3,"") -> Individueel | C80: individueel | D80: =IF(C80<>"",SUM(E80:R80),"") -> 0 | E80: =IF(C80<>"",COUNTIF('M-13'!AL$4:AL$83,C80),"") -> 0 | F80: =IF(C80<>"",COUNTIF('J-13'!AL$4:AL$83,C80),"") -> 0 | G80: =IF(C80<>"",COUNTIF('M-12'!AL$4:AL$83,C80),"") -> 0 | H80: =IF(C80<>"",COUNTIF('J-12'!AL$4:AL$83,C80),"") -> 0 | I80: =IF(C80<>"",COUNTIF('M-11'!AL$4:AL$83,C80),"") -> 0 | J80: =IF(C80<>"",COUNTIF('J-11'!AL$4:AL$83,C80),"") -> 0 | K80: =IF(C80<>"",COUNTIF('M-10'!AL$4:AL$83,C80),"") -> 0 | L80: =IF(C80<>"",COUNTIF('J-10'!AL$4:AL$83,C80),"") -> 0 | M80: =IF(C80<>"",COUNTIF('M-09'!AL$4:AL$83,C80),"") -> 0 | N80: =IF(C80<>"",COUNTIF('J-09'!AL$4:AL$83,C80),"") -> 0 | O80: =IF(C80<>"",COUNTIF('M-08'!AL$4:AL$83,C80),"") -> 0 | P80: =IF(C80<>"",COUNTIF('J-08'!AL$4:AL$83,C80),"") -> 0 | Q80: =IF(C80<>"",COUNTIF('M-07'!AL$4:AL$83,C80),"") -> 0 | R80: =IF(C80<>"",COUNTIF('J-07'!AL$4:AL$83,C80),"") -> 0 | X80: 80 | Y80: DNS | Z80: DNF | AA80: DQ
A81: =IF(D46<>"",D46+D81,"") -> 13 | B81: Albert Schweitzerschool | C81: A.Schweit. | D81: 0 | E81: =IF(C81<>"",COUNTIF('M-13'!AL$4:AL$83,C81),"") -> 0 | F81: =IF(C81<>"",COUNTIF('J-13'!AL$4:AL$83,C81),"") -> 0 | G81: =IF(C81<>"",COUNTIF('M-12'!AL$4:AL$83,C81),"") -> 0 | H81: =IF(C81<>"",COUNTIF('J-12'!AL$4:AL$83,C81),"") -> 0 | I81: =IF(C81<>"",COUNTIF('M-11'!AL$4:AL$83,C81),"") -> 0 | J81: =IF(C81<>"",COUNTIF('J-11'!AL$4:AL$83,C81),"") -> 0 | K81: =IF(C81<>"",COUNTIF('M-10'!AL$4:AL$83,C81),"") -> 0 | L81: =IF(C81<>"",COUNTIF('J-10'!AL$4:AL$83,C81),"") -> 0 | M81: =IF(C81<>"",COUNTIF('M-09'!AL$4:AL$83,C81),"") -> 0 | N81: =IF(C81<>"",COUNTIF('J-09'!AL$4:AL$83,C81),"") -> 0 | O81: =IF(C81<>"",COUNTIF('M-08'!AL$4:AL$83,C81),"") -> 0 | P81: =IF(C81<>"",COUNTIF('J-08'!AL$4:AL$83,C81),"") -> 0 | Q81: =IF(C81<>"",COUNTIF('M-07'!AL$4:AL$83,C81),"") -> 0 | R81: =IF(C81<>"",COUNTIF('J-07'!AL$4:AL$83,C81),"") -> 0
A82: 18 | B82: Combinatie Tollebeek | C82: Com.Tol. | D82: 0 | E82: =IF(C82<>"",COUNTIF('M-13'!AL$4:AL$83,C82),"") -> 0 | F82: =IF(C82<>"",COUNTIF('J-13'!AL$4:AL$83,C82),"") -> 0 | G82: =IF(C82<>"",COUNTIF('M-12'!AL$4:AL$83,C82),"") -> 0 | H82: =IF(C82<>"",COUNTIF('J-12'!AL$4:AL$83,C82),"") -> 0 | I82: =IF(C82<>"",COUNTIF('M-11'!AL$4:AL$83,C82),"") -> 0 | J82: =IF(C82<>"",COUNTIF('J-11'!AL$4:AL$83,C82),"") -> 0 | K82: =IF(C82<>"",COUNTIF('M-10'!AL$4:AL$83,C82),"") -> 0 | L82: =IF(C82<>"",COUNTIF('J-10'!AL$4:AL$83,C82),"") -> 0 | M82: =IF(C82<>"",COUNTIF('M-09'!AL$4:AL$83,C82),"") -> 0 | N82: =IF(C82<>"",COUNTIF('J-09'!AL$4:AL$83,C82),"") -> 0 | O82: =IF(C82<>"",COUNTIF('M-08'!AL$4:AL$83,C82),"") -> 0 | P82: =IF(C82<>"",COUNTIF('J-08'!AL$4:AL$83,C82),"") -> 0 | Q82: =IF(C82<>"",COUNTIF('M-07'!AL$4:AL$83,C82),"") -> 0 | R82: =IF(C82<>"",COUNTIF('J-07'!AL$4:AL$83,C82),"") -> 0
A83: 0 | B83: de Ark Espel | C83: de Ark | D83: 0 | E83: =IF(C83<>"",COUNTIF('M-13'!AL$4:AL$83,C83),"") -> 0 | F83: =IF(C83<>"",COUNTIF('J-13'!AL$4:AL$83,C83),"") -> 0 | G83: =IF(C83<>"",COUNTIF('M-12'!AL$4:AL$83,C83),"") -> 0 | H83: =IF(C83<>"",COUNTIF('J-12'!AL$4:AL$83,C83),"") -> 0 | I83: =IF(C83<>"",COUNTIF('M-11'!AL$4:AL$83,C83),"") -> 0 | J83: =IF(C83<>"",COUNTIF('J-11'!AL$4:AL$83,C83),"") -> 0 | K83: =IF(C83<>"",COUNTIF('M-10'!AL$4:AL$83,C83),"") -> 0 | L83: =IF(C83<>"",COUNTIF('J-10'!AL$4:AL$83,C83),"") -> 0 | M83: =IF(C83<>"",COUNTIF('M-09'!AL$4:AL$83,C83),"") -> 0 | N83: =IF(C83<>"",COUNTIF('J-09'!AL$4:AL$83,C83),"") -> 0 | O83: =IF(C83<>"",COUNTIF('M-08'!AL$4:AL$83,C83),"") -> 0 | P83: =IF(C83<>"",COUNTIF('J-08'!AL$4:AL$83,C83),"") -> 0 | Q83: =IF(C83<>"",COUNTIF('M-07'!AL$4:AL$83,C83),"") -> 0 | R83: =IF(C83<>"",COUNTIF('J-07'!AL$4:AL$83,C83),"") -> 0
A84: 56 | B84: De Horizon Ens | C84: Horizon | D84: 0 | E84: =IF(C84<>"",COUNTIF('M-13'!AL$4:AL$83,C84),"") -> 0 | F84: =IF(C84<>"",COUNTIF('J-13'!AL$4:AL$83,C84),"") -> 0 | G84: =IF(C84<>"",COUNTIF('M-12'!AL$4:AL$83,C84),"") -> 0 | H84: =IF(C84<>"",COUNTIF('J-12'!AL$4:AL$83,C84),"") -> 0 | I84: =IF(C84<>"",COUNTIF('M-11'!AL$4:AL$83,C84),"") -> 0 | J84: =IF(C84<>"",COUNTIF('J-11'!AL$4:AL$83,C84),"") -> 0 | K84: =IF(C84<>"",COUNTIF('M-10'!AL$4:AL$83,C84),"") -> 0 | L84: =IF(C84<>"",COUNTIF('J-10'!AL$4:AL$83,C84),"") -> 0 | M84: =IF(C84<>"",COUNTIF('M-09'!AL$4:AL$83,C84),"") -> 0 | N84: =IF(C84<>"",COUNTIF('J-09'!AL$4:AL$83,C84),"") -> 0 | O84: =IF(C84<>"",COUNTIF('M-08'!AL$4:AL$83,C84),"") -> 0 | P84: =IF(C84<>"",COUNTIF('J-08'!AL$4:AL$83,C84),"") -> 0 | Q84: =IF(C84<>"",COUNTIF('M-07'!AL$4:AL$83,C84),"") -> 0 | R84: =IF(C84<>"",COUNTIF('J-07'!AL$4:AL$83,C84),"") -> 0
A85: 0 | B85: Windkracht 10 | C85: Windkr.10 | D85: 0 | E85: =IF(C85<>"",COUNTIF('M-13'!AL$4:AL$83,C85),"") -> 0 | F85: =IF(C85<>"",COUNTIF('J-13'!AL$4:AL$83,C85),"") -> 0 | G85: =IF(C85<>"",COUNTIF('M-12'!AL$4:AL$83,C85),"") -> 0 | H85: =IF(C85<>"",COUNTIF('J-12'!AL$4:AL$83,C85),"") -> 0 | I85: =IF(C85<>"",COUNTIF('M-11'!AL$4:AL$83,C85),"") -> 0 | J85: =IF(C85<>"",COUNTIF('J-11'!AL$4:AL$83,C85),"") -> 0 | K85: =IF(C85<>"",COUNTIF('M-10'!AL$4:AL$83,C85),"") -> 0 | L85: =IF(C85<>"",COUNTIF('J-10'!AL$4:AL$83,C85),"") -> 0 | M85: =IF(C85<>"",COUNTIF('M-09'!AL$4:AL$83,C85),"") -> 0 | N85: =IF(C85<>"",COUNTIF('J-09'!AL$4:AL$83,C85),"") -> 0 | O85: =IF(C85<>"",COUNTIF('M-08'!AL$4:AL$83,C85),"") -> 0 | P85: =IF(C85<>"",COUNTIF('J-08'!AL$4:AL$83,C85),"") -> 0 | Q85: =IF(C85<>"",COUNTIF('M-07'!AL$4:AL$83,C85),"") -> 0 | R85: =IF(C85<>"",COUNTIF('J-07'!AL$4:AL$83,C85),"") -> 0
A86: 62 | B86: De Lichtboei | C86: Lichtboei | D86: 0 | E86: =IF(C86<>"",COUNTIF('M-13'!AL$4:AL$83,C86),"") -> 0 | F86: =IF(C86<>"",COUNTIF('J-13'!AL$4:AL$83,C86),"") -> 0 | G86: =IF(C86<>"",COUNTIF('M-12'!AL$4:AL$83,C86),"") -> 0 | H86: =IF(C86<>"",COUNTIF('J-12'!AL$4:AL$83,C86),"") -> 0 | I86: =IF(C86<>"",COUNTIF('M-11'!AL$4:AL$83,C86),"") -> 0 | J86: =IF(C86<>"",COUNTIF('J-11'!AL$4:AL$83,C86),"") -> 0 | K86: =IF(C86<>"",COUNTIF('M-10'!AL$4:AL$83,C86),"") -> 0 | L86: =IF(C86<>"",COUNTIF('J-10'!AL$4:AL$83,C86),"") -> 0 | M86: =IF(C86<>"",COUNTIF('M-09'!AL$4:AL$83,C86),"") -> 0 | N86: =IF(C86<>"",COUNTIF('J-09'!AL$4:AL$83,C86),"") -> 0 | O86: =IF(C86<>"",COUNTIF('M-08'!AL$4:AL$83,C86),"") -> 0 | P86: =IF(C86<>"",COUNTIF('J-08'!AL$4:AL$83,C86),"") -> 0 | Q86: =IF(C86<>"",COUNTIF('M-07'!AL$4:AL$83,C86),"") -> 0 | R86: =IF(C86<>"",COUNTIF('J-07'!AL$4:AL$83,C86),"") -> 0
A87: 29 | B87: De Triangel | C87: Triangel | D87: 1 | E87: =IF(C87<>"",COUNTIF('M-13'!AL$4:AL$83,C87),"") -> 0 | F87: =IF(C87<>"",COUNTIF('J-13'!AL$4:AL$83,C87),"") -> 0 | G87: =IF(C87<>"",COUNTIF('M-12'!AL$4:AL$83,C87),"") -> 0 | H87: =IF(C87<>"",COUNTIF('J-12'!AL$4:AL$83,C87),"") -> 0 | I87: =IF(C87<>"",COUNTIF('M-11'!AL$4:AL$83,C87),"") -> 1 | J87: =IF(C87<>"",COUNTIF('J-11'!AL$4:AL$83,C87),"") -> 0 | K87: =IF(C87<>"",COUNTIF('M-10'!AL$4:AL$83,C87),"") -> 0 | L87: =IF(C87<>"",COUNTIF('J-10'!AL$4:AL$83,C87),"") -> 0 | M87: =IF(C87<>"",COUNTIF('M-09'!AL$4:AL$83,C87),"") -> 0 | N87: =IF(C87<>"",COUNTIF('J-09'!AL$4:AL$83,C87),"") -> 0 | O87: =IF(C87<>"",COUNTIF('M-08'!AL$4:AL$83,C87),"") -> 0 | P87: =IF(C87<>"",COUNTIF('J-08'!AL$4:AL$83,C87),"") -> 0 | Q87: =IF(C87<>"",COUNTIF('M-07'!AL$4:AL$83,C87),"") -> 0 | R87: =IF(C87<>"",COUNTIF('J-07'!AL$4:AL$83,C87),"") -> 0
A88: 32 | B88: De Zevensprong | C88: 7 sprong | D88: 0 | E88: =IF(C88<>"",COUNTIF('M-13'!AL$4:AL$83,C88),"") -> 0 | F88: =IF(C88<>"",COUNTIF('J-13'!AL$4:AL$83,C88),"") -> 0 | G88: =IF(C88<>"",COUNTIF('M-12'!AL$4:AL$83,C88),"") -> 0 | H88: =IF(C88<>"",COUNTIF('J-12'!AL$4:AL$83,C88),"") -> 0 | I88: =IF(C88<>"",COUNTIF('M-11'!AL$4:AL$83,C88),"") -> 0 | J88: =IF(C88<>"",COUNTIF('J-11'!AL$4:AL$83,C88),"") -> 0 | K88: =IF(C88<>"",COUNTIF('M-10'!AL$4:AL$83,C88),"") -> 0 | L88: =IF(C88<>"",COUNTIF('J-10'!AL$4:AL$83,C88),"") -> 0 | M88: =IF(C88<>"",COUNTIF('M-09'!AL$4:AL$83,C88),"") -> 0 | N88: =IF(C88<>"",COUNTIF('J-09'!AL$4:AL$83,C88),"") -> 0 | O88: =IF(C88<>"",COUNTIF('M-08'!AL$4:AL$83,C88),"") -> 0 | P88: =IF(C88<>"",COUNTIF('J-08'!AL$4:AL$83,C88),"") -> 0 | Q88: =IF(C88<>"",COUNTIF('M-07'!AL$4:AL$83,C88),"") -> 0 | R88: =IF(C88<>"",COUNTIF('J-07'!AL$4:AL$83,C88),"") -> 0
A89: 18 | B89: Het Lichtschip | C89: Lichtschip | D89: 0 | E89: =IF(C89<>"",COUNTIF('M-13'!AL$4:AL$83,C89),"") -> 0 | F89: =IF(C89<>"",COUNTIF('J-13'!AL$4:AL$83,C89),"") -> 0 | G89: =IF(C89<>"",COUNTIF('M-12'!AL$4:AL$83,C89),"") -> 0 | H89: =IF(C89<>"",COUNTIF('J-12'!AL$4:AL$83,C89),"") -> 0 | I89: =IF(C89<>"",COUNTIF('M-11'!AL$4:AL$83,C89),"") -> 0 | J89: =IF(C89<>"",COUNTIF('J-11'!AL$4:AL$83,C89),"") -> 0 | K89: =IF(C89<>"",COUNTIF('M-10'!AL$4:AL$83,C89),"") -> 0 | L89: =IF(C89<>"",COUNTIF('J-10'!AL$4:AL$83,C89),"") -> 0 | M89: =IF(C89<>"",COUNTIF('M-09'!AL$4:AL$83,C89),"") -> 0 | N89: =IF(C89<>"",COUNTIF('J-09'!AL$4:AL$83,C89),"") -> 0 | O89: =IF(C89<>"",COUNTIF('M-08'!AL$4:AL$83,C89),"") -> 0 | P89: =IF(C89<>"",COUNTIF('J-08'!AL$4:AL$83,C89),"") -> 0 | Q89: =IF(C89<>"",COUNTIF('M-07'!AL$4:AL$83,C89),"") -> 0 | R89: =IF(C89<>"",COUNTIF('J-07'!AL$4:AL$83,C89),"") -> 0
A90: 0 | B90: Maria basisschool Marknesse | C90: Mariab.s. | D90: 0 | E90: =IF(C90<>"",COUNTIF('M-13'!AL$4:AL$83,C90),"") -> 0 | F90: =IF(C90<>"",COUNTIF('J-13'!AL$4:AL$83,C90),"") -> 0 | G90: =IF(C90<>"",COUNTIF('M-12'!AL$4:AL$83,C90),"") -> 0 | H90: =IF(C90<>"",COUNTIF('J-12'!AL$4:AL$83,C90),"") -> 0 | I90: =IF(C90<>"",COUNTIF('M-11'!AL$4:AL$83,C90),"") -> 0 | J90: =IF(C90<>"",COUNTIF('J-11'!AL$4:AL$83,C90),"") -> 0 | K90: =IF(C90<>"",COUNTIF('M-10'!AL$4:AL$83,C90),"") -> 0 | L90: =IF(C90<>"",COUNTIF('J-10'!AL$4:AL$83,C90),"") -> 0 | M90: =IF(C90<>"",COUNTIF('M-09'!AL$4:AL$83,C90),"") -> 0 | N90: =IF(C90<>"",COUNTIF('J-09'!AL$4:AL$83,C90),"") -> 0 | O90: =IF(C90<>"",COUNTIF('M-08'!AL$4:AL$83,C90),"") -> 0 | P90: =IF(C90<>"",COUNTIF('J-08'!AL$4:AL$83,C90),"") -> 0 | Q90: =IF(C90<>"",COUNTIF('M-07'!AL$4:AL$83,C90),"") -> 0 | R90: =IF(C90<>"",COUNTIF('J-07'!AL$4:AL$83,C90),"") -> 0
A91: 20 | B91: Roderik van Voorst | C91: R.v.voorst | D91: 0 | E91: =IF(C91<>"",COUNTIF('M-13'!AL$4:AL$83,C91),"") -> 0 | F91: =IF(C91<>"",COUNTIF('J-13'!AL$4:AL$83,C91),"") -> 0 | G91: =IF(C91<>"",COUNTIF('M-12'!AL$4:AL$83,C91),"") -> 0 | H91: =IF(C91<>"",COUNTIF('J-12'!AL$4:AL$83,C91),"") -> 0 | I91: =IF(C91<>"",COUNTIF('M-11'!AL$4:AL$83,C91),"") -> 0 | J91: =IF(C91<>"",COUNTIF('J-11'!AL$4:AL$83,C91),"") -> 0 | K91: =IF(C91<>"",COUNTIF('M-10'!AL$4:AL$83,C91),"") -> 0 | L91: =IF(C91<>"",COUNTIF('J-10'!AL$4:AL$83,C91),"") -> 0 | M91: =IF(C91<>"",COUNTIF('M-09'!AL$4:AL$83,C91),"") -> 0 | N91: =IF(C91<>"",COUNTIF('J-09'!AL$4:AL$83,C91),"") -> 0 | O91: =IF(C91<>"",COUNTIF('M-08'!AL$4:AL$83,C91),"") -> 0 | P91: =IF(C91<>"",COUNTIF('J-08'!AL$4:AL$83,C91),"") -> 0 | Q91: =IF(C91<>"",COUNTIF('M-07'!AL$4:AL$83,C91),"") -> 0 | R91: =IF(C91<>"",COUNTIF('J-07'!AL$4:AL$83,C91),"") -> 0
A92: 42 | B92: 't Kompas | C92: 't Kompas | D92: 0 | E92: =IF(C92<>"",COUNTIF('M-13'!AL$4:AL$83,C92),"") -> 0 | F92: =IF(C92<>"",COUNTIF('J-13'!AL$4:AL$83,C92),"") -> 0 | G92: =IF(C92<>"",COUNTIF('M-12'!AL$4:AL$83,C92),"") -> 0 | H92: =IF(C92<>"",COUNTIF('J-12'!AL$4:AL$83,C92),"") -> 0 | I92: =IF(C92<>"",COUNTIF('M-11'!AL$4:AL$83,C92),"") -> 0 | J92: =IF(C92<>"",COUNTIF('J-11'!AL$4:AL$83,C92),"") -> 0 | K92: =IF(C92<>"",COUNTIF('M-10'!AL$4:AL$83,C92),"") -> 0 | L92: =IF(C92<>"",COUNTIF('J-10'!AL$4:AL$83,C92),"") -> 0 | M92: =IF(C92<>"",COUNTIF('M-09'!AL$4:AL$83,C92),"") -> 0 | N92: =IF(C92<>"",COUNTIF('J-09'!AL$4:AL$83,C92),"") -> 0 | O92: =IF(C92<>"",COUNTIF('M-08'!AL$4:AL$83,C92),"") -> 0 | P92: =IF(C92<>"",COUNTIF('J-08'!AL$4:AL$83,C92),"") -> 0 | Q92: =IF(C92<>"",COUNTIF('M-07'!AL$4:AL$83,C92),"") -> 0 | R92: =IF(C92<>"",COUNTIF('J-07'!AL$4:AL$83,C92),"") -> 0
A93: 0 | B93: Klipper/Rank Luttelgeest | C93: de Klipper | D93: 0 | E93: =IF(C93<>"",COUNTIF('M-13'!AL$4:AL$83,C93),"") -> 0 | F93: =IF(C93<>"",COUNTIF('J-13'!AL$4:AL$83,C93),"") -> 0 | G93: =IF(C93<>"",COUNTIF('M-12'!AL$4:AL$83,C93),"") -> 0 | H93: =IF(C93<>"",COUNTIF('J-12'!AL$4:AL$83,C93),"") -> 0 | I93: =IF(C93<>"",COUNTIF('M-11'!AL$4:AL$83,C93),"") -> 0 | J93: =IF(C93<>"",COUNTIF('J-11'!AL$4:AL$83,C93),"") -> 0 | K93: =IF(C93<>"",COUNTIF('M-10'!AL$4:AL$83,C93),"") -> 0 | L93: =IF(C93<>"",COUNTIF('J-10'!AL$4:AL$83,C93),"") -> 0 | M93: =IF(C93<>"",COUNTIF('M-09'!AL$4:AL$83,C93),"") -> 0 | N93: =IF(C93<>"",COUNTIF('J-09'!AL$4:AL$83,C93),"") -> 0 | O93: =IF(C93<>"",COUNTIF('M-08'!AL$4:AL$83,C93),"") -> 0 | P93: =IF(C93<>"",COUNTIF('J-08'!AL$4:AL$83,C93),"") -> 0 | Q93: =IF(C93<>"",COUNTIF('M-07'!AL$4:AL$83,C93),"") -> 0 | R93: =IF(C93<>"",COUNTIF('J-07'!AL$4:AL$83,C93),"") -> 0
A94: 21 | B94: st.Josephschool | C94: st Joseph | D94: 0 | E94: =IF(C94<>"",COUNTIF('M-13'!AL$4:AL$83,C94),"") -> 0 | F94: =IF(C94<>"",COUNTIF('J-13'!AL$4:AL$83,C94),"") -> 0 | G94: =IF(C94<>"",COUNTIF('M-12'!AL$4:AL$83,C94),"") -> 0 | H94: =IF(C94<>"",COUNTIF('J-12'!AL$4:AL$83,C94),"") -> 0 | I94: =IF(C94<>"",COUNTIF('M-11'!AL$4:AL$83,C94),"") -> 0 | J94: =IF(C94<>"",COUNTIF('J-11'!AL$4:AL$83,C94),"") -> 0 | K94: =IF(C94<>"",COUNTIF('M-10'!AL$4:AL$83,C94),"") -> 0 | L94: =IF(C94<>"",COUNTIF('J-10'!AL$4:AL$83,C94),"") -> 0 | M94: =IF(C94<>"",COUNTIF('M-09'!AL$4:AL$83,C94),"") -> 0 | N94: =IF(C94<>"",COUNTIF('J-09'!AL$4:AL$83,C94),"") -> 0 | O94: =IF(C94<>"",COUNTIF('M-08'!AL$4:AL$83,C94),"") -> 0 | P94: =IF(C94<>"",COUNTIF('J-08'!AL$4:AL$83,C94),"") -> 0 | Q94: =IF(C94<>"",COUNTIF('M-07'!AL$4:AL$83,C94),"") -> 0 | R94: =IF(C94<>"",COUNTIF('J-07'!AL$4:AL$83,C94),"") -> 0
A95: 61 | B95: Floreant | C95: Floreant | D95: 0 | E95: =IF(C95<>"",COUNTIF('M-13'!AL$4:AL$83,C95),"") -> 0 | F95: =IF(C95<>"",COUNTIF('J-13'!AL$4:AL$83,C95),"") -> 0 | G95: =IF(C95<>"",COUNTIF('M-12'!AL$4:AL$83,C95),"") -> 0 | H95: =IF(C95<>"",COUNTIF('J-12'!AL$4:AL$83,C95),"") -> 0 | I95: =IF(C95<>"",COUNTIF('M-11'!AL$4:AL$83,C95),"") -> 0 | J95: =IF(C95<>"",COUNTIF('J-11'!AL$4:AL$83,C95),"") -> 0 | K95: =IF(C95<>"",COUNTIF('M-10'!AL$4:AL$83,C95),"") -> 0 | L95: =IF(C95<>"",COUNTIF('J-10'!AL$4:AL$83,C95),"") -> 0 | M95: =IF(C95<>"",COUNTIF('M-09'!AL$4:AL$83,C95),"") -> 0 | N95: =IF(C95<>"",COUNTIF('J-09'!AL$4:AL$83,C95),"") -> 0 | O95: =IF(C95<>"",COUNTIF('M-08'!AL$4:AL$83,C95),"") -> 0 | P95: =IF(C95<>"",COUNTIF('J-08'!AL$4:AL$83,C95),"") -> 0 | Q95: =IF(C95<>"",COUNTIF('M-07'!AL$4:AL$83,C95),"") -> 0 | R95: =IF(C95<>"",COUNTIF('J-07'!AL$4:AL$83,C95),"") -> 0
A96: 38 | B96: de Koperwiek | C96: Koperwiek | D96: 0 | E96: =IF(C96<>"",COUNTIF('M-13'!AL$4:AL$83,C96),"") -> 0 | F96: =IF(C96<>"",COUNTIF('J-13'!AL$4:AL$83,C96),"") -> 0 | G96: =IF(C96<>"",COUNTIF('M-12'!AL$4:AL$83,C96),"") -> 0 | H96: =IF(C96<>"",COUNTIF('J-12'!AL$4:AL$83,C96),"") -> 0 | I96: =IF(C96<>"",COUNTIF('M-11'!AL$4:AL$83,C96),"") -> 0 | J96: =IF(C96<>"",COUNTIF('J-11'!AL$4:AL$83,C96),"") -> 0 | K96: =IF(C96<>"",COUNTIF('M-10'!AL$4:AL$83,C96),"") -> 0 | L96: =IF(C96<>"",COUNTIF('J-10'!AL$4:AL$83,C96),"") -> 0 | M96: =IF(C96<>"",COUNTIF('M-09'!AL$4:AL$83,C96),"") -> 0 | N96: =IF(C96<>"",COUNTIF('J-09'!AL$4:AL$83,C96),"") -> 0 | O96: =IF(C96<>"",COUNTIF('M-08'!AL$4:AL$83,C96),"") -> 0 | P96: =IF(C96<>"",COUNTIF('J-08'!AL$4:AL$83,C96),"") -> 0 | Q96: =IF(C96<>"",COUNTIF('M-07'!AL$4:AL$83,C96),"") -> 0 | R96: =IF(C96<>"",COUNTIF('J-07'!AL$4:AL$83,C96),"") -> 0
A97: 0 | B97: SWS De Wending | C97: Wending | D97: 0 | E97: =IF(C97<>"",COUNTIF('M-13'!AL$4:AL$83,C97),"") -> 0 | F97: =IF(C97<>"",COUNTIF('J-13'!AL$4:AL$83,C97),"") -> 0 | G97: =IF(C97<>"",COUNTIF('M-12'!AL$4:AL$83,C97),"") -> 0 | H97: =IF(C97<>"",COUNTIF('J-12'!AL$4:AL$83,C97),"") -> 0 | I97: =IF(C97<>"",COUNTIF('M-11'!AL$4:AL$83,C97),"") -> 0 | J97: =IF(C97<>"",COUNTIF('J-11'!AL$4:AL$83,C97),"") -> 0 | K97: =IF(C97<>"",COUNTIF('M-10'!AL$4:AL$83,C97),"") -> 0 | L97: =IF(C97<>"",COUNTIF('J-10'!AL$4:AL$83,C97),"") -> 0 | M97: =IF(C97<>"",COUNTIF('M-09'!AL$4:AL$83,C97),"") -> 0 | N97: =IF(C97<>"",COUNTIF('J-09'!AL$4:AL$83,C97),"") -> 0 | O97: =IF(C97<>"",COUNTIF('M-08'!AL$4:AL$83,C97),"") -> 0 | P97: =IF(C97<>"",COUNTIF('J-08'!AL$4:AL$83,C97),"") -> 0 | Q97: =IF(C97<>"",COUNTIF('M-07'!AL$4:AL$83,C97),"") -> 0 | R97: =IF(C97<>"",COUNTIF('J-07'!AL$4:AL$83,C97),"") -> 0
A98: 0 | B98: Zeester Marknesse | C98: Zeester | D98: 0 | E98: =IF(C98<>"",COUNTIF('M-13'!AL$4:AL$83,C98),"") -> 0 | F98: =IF(C98<>"",COUNTIF('J-13'!AL$4:AL$83,C98),"") -> 0 | G98: =IF(C98<>"",COUNTIF('M-12'!AL$4:AL$83,C98),"") -> 0 | H98: =IF(C98<>"",COUNTIF('J-12'!AL$4:AL$83,C98),"") -> 0 | I98: =IF(C98<>"",COUNTIF('M-11'!AL$4:AL$83,C98),"") -> 0 | J98: =IF(C98<>"",COUNTIF('J-11'!AL$4:AL$83,C98),"") -> 0 | K98: =IF(C98<>"",COUNTIF('M-10'!AL$4:AL$83,C98),"") -> 0 | L98: =IF(C98<>"",COUNTIF('J-10'!AL$4:AL$83,C98),"") -> 0 | M98: =IF(C98<>"",COUNTIF('M-09'!AL$4:AL$83,C98),"") -> 0 | N98: =IF(C98<>"",COUNTIF('J-09'!AL$4:AL$83,C98),"") -> 0 | O98: =IF(C98<>"",COUNTIF('M-08'!AL$4:AL$83,C98),"") -> 0 | P98: =IF(C98<>"",COUNTIF('J-08'!AL$4:AL$83,C98),"") -> 0 | Q98: =IF(C98<>"",COUNTIF('M-07'!AL$4:AL$83,C98),"") -> 0 | R98: =IF(C98<>"",COUNTIF('J-07'!AL$4:AL$83,C98),"") -> 0
A99: 2 | B99: Fondali | C99: Fondali | D99: 0 | E99: =IF(C99<>"",COUNTIF('M-13'!AL$4:AL$83,C99),"") -> 0 | F99: =IF(C99<>"",COUNTIF('J-13'!AL$4:AL$83,C99),"") -> 0 | G99: =IF(C99<>"",COUNTIF('M-12'!AL$4:AL$83,C99),"") -> 0 | H99: =IF(C99<>"",COUNTIF('J-12'!AL$4:AL$83,C99),"") -> 0 | I99: =IF(C99<>"",COUNTIF('M-11'!AL$4:AL$83,C99),"") -> 0 | J99: =IF(C99<>"",COUNTIF('J-11'!AL$4:AL$83,C99),"") -> 0 | K99: =IF(C99<>"",COUNTIF('M-10'!AL$4:AL$83,C99),"") -> 0 | L99: =IF(C99<>"",COUNTIF('J-10'!AL$4:AL$83,C99),"") -> 0 | M99: =IF(C99<>"",COUNTIF('M-09'!AL$4:AL$83,C99),"") -> 0 | N99: =IF(C99<>"",COUNTIF('J-09'!AL$4:AL$83,C99),"") -> 0 | O99: =IF(C99<>"",COUNTIF('M-08'!AL$4:AL$83,C99),"") -> 0 | P99: =IF(C99<>"",COUNTIF('J-08'!AL$4:AL$83,C99),"") -> 0 | Q99: =IF(C99<>"",COUNTIF('M-07'!AL$4:AL$83,C99),"") -> 0 | R99: =IF(C99<>"",COUNTIF('J-07'!AL$4:AL$83,C99),"") -> 0
A100: 1 | B100: OBS de Driesprong | C100: 3 sprong | D100: 0 | E100: =IF(C100<>"",COUNTIF('M-13'!AL$4:AL$83,C100),"") -> 0 | F100: =IF(C100<>"",COUNTIF('J-13'!AL$4:AL$83,C100),"") -> 0 | G100: =IF(C100<>"",COUNTIF('M-12'!AL$4:AL$83,C100),"") -> 0 | H100: =IF(C100<>"",COUNTIF('J-12'!AL$4:AL$83,C100),"") -> 0 | I100: =IF(C100<>"",COUNTIF('M-11'!AL$4:AL$83,C100),"") -> 0 | J100: =IF(C100<>"",COUNTIF('J-11'!AL$4:AL$83,C100),"") -> 0 | K100: =IF(C100<>"",COUNTIF('M-10'!AL$4:AL$83,C100),"") -> 0 | L100: =IF(C100<>"",COUNTIF('J-10'!AL$4:AL$83,C100),"") -> 0 | M100: =IF(C100<>"",COUNTIF('M-09'!AL$4:AL$83,C100),"") -> 0 | N100: =IF(C100<>"",COUNTIF('J-09'!AL$4:AL$83,C100),"") -> 0 | O100: =IF(C100<>"",COUNTIF('M-08'!AL$4:AL$83,C100),"") -> 0 | P100: =IF(C100<>"",COUNTIF('J-08'!AL$4:AL$83,C100),"") -> 0 | Q100: =IF(C100<>"",COUNTIF('M-07'!AL$4:AL$83,C100),"") -> 0 | R100: =IF(C100<>"",COUNTIF('J-07'!AL$4:AL$83,C100),"") -> 0
E101: =IF(C101<>"",COUNTIF('M-13'!AL$4:AL$83,C101),"") ->  | F101: =IF(C101<>"",COUNTIF('J-13'!AL$4:AL$83,C101),"") ->  | G101: =IF(C101<>"",COUNTIF('M-12'!AL$4:AL$83,C101),"") ->  | H101: =IF(C101<>"",COUNTIF('J-12'!AL$4:AL$83,C101),"") ->  | I101: =IF(C101<>"",COUNTIF('M-11'!AL$4:AL$83,C101),"") ->  | J101: =IF(C101<>"",COUNTIF('J-11'!AL$4:AL$83,C101),"") ->  | K101: =IF(C101<>"",COUNTIF('M-10'!AL$4:AL$83,C101),"") ->  | L101: =IF(C101<>"",COUNTIF('J-10'!AL$4:AL$83,C101),"") ->  | M101: =IF(C101<>"",COUNTIF('M-09'!AL$4:AL$83,C101),"") ->  | N101: =IF(C101<>"",COUNTIF('J-09'!AL$4:AL$83,C101),"") ->  | O101: =IF(C101<>"",COUNTIF('M-08'!AL$4:AL$83,C101),"") ->  | P101: =IF(C101<>"",COUNTIF('J-08'!AL$4:AL$83,C101),"") ->  | Q101: =IF(C101<>"",COUNTIF('M-07'!AL$4:AL$83,C101),"") ->  | R101: =IF(C101<>"",COUNTIF('J-07'!AL$4:AL$83,C101),"") -> 
E102: =IF(C102<>"",COUNTIF('M-13'!AL$4:AL$83,C102),"") ->  | F102: =IF(C102<>"",COUNTIF('J-13'!AL$4:AL$83,C102),"") ->  | G102: =IF(C102<>"",COUNTIF('M-12'!AL$4:AL$83,C102),"") ->  | H102: =IF(C102<>"",COUNTIF('J-12'!AL$4:AL$83,C102),"") ->  | I102: =IF(C102<>"",COUNTIF('M-11'!AL$4:AL$83,C102),"") ->  | J102: =IF(C102<>"",COUNTIF('J-11'!AL$4:AL$83,C102),"") ->  | K102: =IF(C102<>"",COUNTIF('M-10'!AL$4:AL$83,C102),"") ->  | L102: =IF(C102<>"",COUNTIF('J-10'!AL$4:AL$83,C102),"") ->  | M102: =IF(C102<>"",COUNTIF('M-09'!AL$4:AL$83,C102),"") ->  | N102: =IF(C102<>"",COUNTIF('J-09'!AL$4:AL$83,C102),"") ->  | O102: =IF(C102<>"",COUNTIF('M-08'!AL$4:AL$83,C102),"") ->  | P102: =IF(C102<>"",COUNTIF('J-08'!AL$4:AL$83,C102),"") ->  | Q102: =IF(C102<>"",COUNTIF('M-07'!AL$4:AL$83,C102),"") ->  | R102: =IF(C102<>"",COUNTIF('J-07'!AL$4:AL$83,C102),"") -> 
E103: =IF(C103<>"",COUNTIF('M-13'!AL$4:AL$83,C103),"") ->  | F103: =IF(C103<>"",COUNTIF('J-13'!AL$4:AL$83,C103),"") ->  | G103: =IF(C103<>"",COUNTIF('M-12'!AL$4:AL$83,C103),"") ->  | H103: =IF(C103<>"",COUNTIF('J-12'!AL$4:AL$83,C103),"") ->  | I103: =IF(C103<>"",COUNTIF('M-11'!AL$4:AL$83,C103),"") ->  | J103: =IF(C103<>"",COUNTIF('J-11'!AL$4:AL$83,C103),"") ->  | K103: =IF(C103<>"",COUNTIF('M-10'!AL$4:AL$83,C103),"") ->  | L103: =IF(C103<>"",COUNTIF('J-10'!AL$4:AL$83,C103),"") ->  | M103: =IF(C103<>"",COUNTIF('M-09'!AL$4:AL$83,C103),"") ->  | N103: =IF(C103<>"",COUNTIF('J-09'!AL$4:AL$83,C103),"") ->  | O103: =IF(C103<>"",COUNTIF('M-08'!AL$4:AL$83,C103),"") ->  | P103: =IF(C103<>"",COUNTIF('J-08'!AL$4:AL$83,C103),"") ->  | Q103: =IF(C103<>"",COUNTIF('M-07'!AL$4:AL$83,C103),"") ->  | R103: =IF(C103<>"",COUNTIF('J-07'!AL$4:AL$83,C103),"") -> 
E104: =IF(C104<>"",COUNTIF('M-13'!AL$4:AL$83,C104),"") ->  | F104: =IF(C104<>"",COUNTIF('J-13'!AL$4:AL$83,C104),"") ->  | G104: =IF(C104<>"",COUNTIF('M-12'!AL$4:AL$83,C104),"") ->  | H104: =IF(C104<>"",COUNTIF('J-12'!AL$4:AL$83,C104),"") ->  | I104: =IF(C104<>"",COUNTIF('M-11'!AL$4:AL$83,C104),"") ->  | J104: =IF(C104<>"",COUNTIF('J-11'!AL$4:AL$83,C104),"") ->  | K104: =IF(C104<>"",COUNTIF('M-10'!AL$4:AL$83,C104),"") ->  | L104: =IF(C104<>"",COUNTIF('J-10'!AL$4:AL$83,C104),"") ->  | M104: =IF(C104<>"",COUNTIF('M-09'!AL$4:AL$83,C104),"") ->  | N104: =IF(C104<>"",COUNTIF('J-09'!AL$4:AL$83,C104),"") ->  | O104: =IF(C104<>"",COUNTIF('M-08'!AL$4:AL$83,C104),"") ->  | P104: =IF(C104<>"",COUNTIF('J-08'!AL$4:AL$83,C104),"") ->  | Q104: =IF(C104<>"",COUNTIF('M-07'!AL$4:AL$83,C104),"") ->  | R104: =IF(C104<>"",COUNTIF('J-07'!AL$4:AL$83,C104),"") -> 
E105: =IF(C105<>"",COUNTIF('M-13'!AL$4:AL$83,C105),"") ->  | F105: =IF(C105<>"",COUNTIF('J-13'!AL$4:AL$83,C105),"") ->  | G105: =IF(C105<>"",COUNTIF('M-12'!AL$4:AL$83,C105),"") ->  | H105: =IF(C105<>"",COUNTIF('J-12'!AL$4:AL$83,C105),"") ->  | I105: =IF(C105<>"",COUNTIF('M-11'!AL$4:AL$83,C105),"") ->  | J105: =IF(C105<>"",COUNTIF('J-11'!AL$4:AL$83,C105),"") ->  | K105: =IF(C105<>"",COUNTIF('M-10'!AL$4:AL$83,C105),"") ->  | L105: =IF(C105<>"",COUNTIF('J-10'!AL$4:AL$83,C105),"") ->  | M105: =IF(C105<>"",COUNTIF('M-09'!AL$4:AL$83,C105),"") ->  | N105: =IF(C105<>"",COUNTIF('J-09'!AL$4:AL$83,C105),"") ->  | O105: =IF(C105<>"",COUNTIF('M-08'!AL$4:AL$83,C105),"") ->  | P105: =IF(C105<>"",COUNTIF('J-08'!AL$4:AL$83,C105),"") ->  | Q105: =IF(C105<>"",COUNTIF('M-07'!AL$4:AL$83,C105),"") ->  | R105: =IF(C105<>"",COUNTIF('J-07'!AL$4:AL$83,C105),"") -> 
E106: =IF(C106<>"",COUNTIF('M-13'!AL$4:AL$83,C106),"") ->  | F106: =IF(C106<>"",COUNTIF('J-13'!AL$4:AL$83,C106),"") ->  | G106: =IF(C106<>"",COUNTIF('M-12'!AL$4:AL$83,C106),"") ->  | H106: =IF(C106<>"",COUNTIF('J-12'!AL$4:AL$83,C106),"") ->  | I106: =IF(C106<>"",COUNTIF('M-11'!AL$4:AL$83,C106),"") ->  | J106: =IF(C106<>"",COUNTIF('J-11'!AL$4:AL$83,C106),"") ->  | K106: =IF(C106<>"",COUNTIF('M-10'!AL$4:AL$83,C106),"") ->  | L106: =IF(C106<>"",COUNTIF('J-10'!AL$4:AL$83,C106),"") ->  | M106: =IF(C106<>"",COUNTIF('M-09'!AL$4:AL$83,C106),"") ->  | N106: =IF(C106<>"",COUNTIF('J-09'!AL$4:AL$83,C106),"") ->  | O106: =IF(C106<>"",COUNTIF('M-08'!AL$4:AL$83,C106),"") ->  | P106: =IF(C106<>"",COUNTIF('J-08'!AL$4:AL$83,C106),"") ->  | Q106: =IF(C106<>"",COUNTIF('M-07'!AL$4:AL$83,C106),"") ->  | R106: =IF(C106<>"",COUNTIF('J-07'!AL$4:AL$83,C106),"") -> 
E107: =IF(C107<>"",COUNTIF('M-13'!AL$4:AL$83,C107),"") ->  | F107: =IF(C107<>"",COUNTIF('J-13'!AL$4:AL$83,C107),"") ->  | G107: =IF(C107<>"",COUNTIF('M-12'!AL$4:AL$83,C107),"") ->  | H107: =IF(C107<>"",COUNTIF('J-12'!AL$4:AL$83,C107),"") ->  | I107: =IF(C107<>"",COUNTIF('M-11'!AL$4:AL$83,C107),"") ->  | J107: =IF(C107<>"",COUNTIF('J-11'!AL$4:AL$83,C107),"") ->  | K107: =IF(C107<>"",COUNTIF('M-10'!AL$4:AL$83,C107),"") ->  | L107: =IF(C107<>"",COUNTIF('J-10'!AL$4:AL$83,C107),"") ->  | M107: =IF(C107<>"",COUNTIF('M-09'!AL$4:AL$83,C107),"") ->  | N107: =IF(C107<>"",COUNTIF('J-09'!AL$4:AL$83,C107),"") ->  | O107: =IF(C107<>"",COUNTIF('M-08'!AL$4:AL$83,C107),"") ->  | P107: =IF(C107<>"",COUNTIF('J-08'!AL$4:AL$83,C107),"") ->  | Q107: =IF(C107<>"",COUNTIF('M-07'!AL$4:AL$83,C107),"") ->  | R107: =IF(C107<>"",COUNTIF('J-07'!AL$4:AL$83,C107),"") -> 
E108: =IF(C108<>"",COUNTIF('M-13'!AL$4:AL$83,C108),"") ->  | F108: =IF(C108<>"",COUNTIF('J-13'!AL$4:AL$83,C108),"") ->  | G108: =IF(C108<>"",COUNTIF('M-12'!AL$4:AL$83,C108),"") ->  | H108: =IF(C108<>"",COUNTIF('J-12'!AL$4:AL$83,C108),"") ->  | I108: =IF(C108<>"",COUNTIF('M-11'!AL$4:AL$83,C108),"") ->  | J108: =IF(C108<>"",COUNTIF('J-11'!AL$4:AL$83,C108),"") ->  | K108: =IF(C108<>"",COUNTIF('M-10'!AL$4:AL$83,C108),"") ->  | L108: =IF(C108<>"",COUNTIF('J-10'!AL$4:AL$83,C108),"") ->  | M108: =IF(C108<>"",COUNTIF('M-09'!AL$4:AL$83,C108),"") ->  | N108: =IF(C108<>"",COUNTIF('J-09'!AL$4:AL$83,C108),"") ->  | O108: =IF(C108<>"",COUNTIF('M-08'!AL$4:AL$83,C108),"") ->  | P108: =IF(C108<>"",COUNTIF('J-08'!AL$4:AL$83,C108),"") ->  | Q108: =IF(C108<>"",COUNTIF('M-07'!AL$4:AL$83,C108),"") ->  | R108: =IF(C108<>"",COUNTIF('J-07'!AL$4:AL$83,C108),"") -> 
E109: =IF(C109<>"",COUNTIF('M-13'!AL$4:AL$83,C109),"") ->  | F109: =IF(C109<>"",COUNTIF('J-13'!AL$4:AL$83,C109),"") ->  | G109: =IF(C109<>"",COUNTIF('M-12'!AL$4:AL$83,C109),"") ->  | H109: =IF(C109<>"",COUNTIF('J-12'!AL$4:AL$83,C109),"") ->  | I109: =IF(C109<>"",COUNTIF('M-11'!AL$4:AL$83,C109),"") ->  | J109: =IF(C109<>"",COUNTIF('J-11'!AL$4:AL$83,C109),"") ->  | K109: =IF(C109<>"",COUNTIF('M-10'!AL$4:AL$83,C109),"") ->  | L109: =IF(C109<>"",COUNTIF('J-10'!AL$4:AL$83,C109),"") ->  | M109: =IF(C109<>"",COUNTIF('M-09'!AL$4:AL$83,C109),"") ->  | N109: =IF(C109<>"",COUNTIF('J-09'!AL$4:AL$83,C109),"") ->  | O109: =IF(C109<>"",COUNTIF('M-08'!AL$4:AL$83,C109),"") ->  | P109: =IF(C109<>"",COUNTIF('J-08'!AL$4:AL$83,C109),"") ->  | Q109: =IF(C109<>"",COUNTIF('M-07'!AL$4:AL$83,C109),"") ->  | R109: =IF(C109<>"",COUNTIF('J-07'!AL$4:AL$83,C109),"") -> 
B114: alleen 2e cross | D114: =SUM(D116:D145) -> 0 | E114: =E1 -> M '13 | F114: =F1 -> J '13 | G114: M '12 | H114: J '12 | I114: M '11 | J114: J '11 | K114: M '10 | L114: J '10 | M114: M '09 | N114: J '09 | O114: M '08 | P114: J '08 | Q114: M '07 | R114: J '07
A115: 2e | D115: =SUM(D116:D145) -> 0 | E115: =SUM(E116:E145) -> 0 | F115: 0 | G115: 0 | H115: 0 | I115: 0 | J115: 0 | K115: 0 | L115: 0 | M115: 0 | N115: 0 | O115: 0 | P115: 0 | Q115: 0 | R115: 0
A116: =IF(D45<>"",D45+D116,"") -> 0 | B116: =IF(B3<>"",B3,"") -> Individueel | C116: individueel | D116: =IF(C116<>"",SUM(E116:R116),"") -> 0 | E116: =IF(C116<>"",COUNTIF('M-13'!AM$4:AM$83,C116),"") -> 0 | F116: =IF(C116<>"",COUNTIF('J-13'!AM$4:AM$83,C116),"") -> 0 | G116: =IF(C116<>"",COUNTIF('M-12'!AM$4:AM$83,C116),"") -> 0 | H116: =IF(C116<>"",COUNTIF('J-12'!AM$4:AM$83,C116),"") -> 0 | I116: =IF(C116<>"",COUNTIF('M-11'!AM$4:AM$83,C116),"") -> 0 | J116: =IF(C116<>"",COUNTIF('J-11'!AM$4:AM$83,C116),"") -> 0 | K116: =IF(C116<>"",COUNTIF('M-10'!AM$4:AM$83,C116),"") -> 0 | L116: =IF(C116<>"",COUNTIF('J-10'!AM$4:AM$83,C116),"") -> 0 | M116: =IF(C116<>"",COUNTIF('M-09'!AM$4:AM$83,C116),"") -> 0 | N116: =IF(C116<>"",COUNTIF('J-09'!AM$4:AM$83,C116),"") -> 0 | O116: =IF(C116<>"",COUNTIF('M-08'!AM$4:AM$83,C116),"") -> 0 | P116: =IF(C116<>"",COUNTIF('J-08'!AM$4:AM$83,C116),"") -> 0 | Q116: =IF(C116<>"",COUNTIF('M-07'!AM$4:AM$83,C116),"") -> 0 | R116: =IF(C116<>"",COUNTIF('J-07'!AM$4:AM$83,C116),"") -> 0
A117: =IF(D46<>"",D46+D117,"") -> 13 | B117: Albert Schweitzerschool | C117: A.Schweit. | D117: 0 | E117: =IF(C117<>"",COUNTIF('M-13'!AM$4:AM$83,C117),"") -> 0 | F117: =IF(C117<>"",COUNTIF('J-13'!AM$4:AM$83,C117),"") -> 0 | G117: =IF(C117<>"",COUNTIF('M-12'!AM$4:AM$83,C117),"") -> 0 | H117: =IF(C117<>"",COUNTIF('J-12'!AM$4:AM$83,C117),"") -> 0 | I117: =IF(C117<>"",COUNTIF('M-11'!AM$4:AM$83,C117),"") -> 0 | J117: =IF(C117<>"",COUNTIF('J-11'!AM$4:AM$83,C117),"") -> 0 | K117: =IF(C117<>"",COUNTIF('M-10'!AM$4:AM$83,C117),"") -> 0 | L117: =IF(C117<>"",COUNTIF('J-10'!AM$4:AM$83,C117),"") -> 0 | M117: =IF(C117<>"",COUNTIF('M-09'!AM$4:AM$83,C117),"") -> 0 | N117: =IF(C117<>"",COUNTIF('J-09'!AM$4:AM$83,C117),"") -> 0 | O117: =IF(C117<>"",COUNTIF('M-08'!AM$4:AM$83,C117),"") -> 0 | P117: =IF(C117<>"",COUNTIF('J-08'!AM$4:AM$83,C117),"") -> 0 | Q117: =IF(C117<>"",COUNTIF('M-07'!AM$4:AM$83,C117),"") -> 0 | R117: =IF(C117<>"",COUNTIF('J-07'!AM$4:AM$83,C117),"") -> 0
A118: 18 | B118: Combinatie Tollebeek | C118: Com.Tol. | D118: 0 | E118: =IF(C118<>"",COUNTIF('M-13'!AM$4:AM$83,C118),"") -> 0 | F118: =IF(C118<>"",COUNTIF('J-13'!AM$4:AM$83,C118),"") -> 0 | G118: =IF(C118<>"",COUNTIF('M-12'!AM$4:AM$83,C118),"") -> 0 | H118: =IF(C118<>"",COUNTIF('J-12'!AM$4:AM$83,C118),"") -> 0 | I118: =IF(C118<>"",COUNTIF('M-11'!AM$4:AM$83,C118),"") -> 0 | J118: =IF(C118<>"",COUNTIF('J-11'!AM$4:AM$83,C118),"") -> 0 | K118: =IF(C118<>"",COUNTIF('M-10'!AM$4:AM$83,C118),"") -> 0 | L118: =IF(C118<>"",COUNTIF('J-10'!AM$4:AM$83,C118),"") -> 0 | M118: =IF(C118<>"",COUNTIF('M-09'!AM$4:AM$83,C118),"") -> 0 | N118: =IF(C118<>"",COUNTIF('J-09'!AM$4:AM$83,C118),"") -> 0 | O118: =IF(C118<>"",COUNTIF('M-08'!AM$4:AM$83,C118),"") -> 0 | P118: =IF(C118<>"",COUNTIF('J-08'!AM$4:AM$83,C118),"") -> 0 | Q118: =IF(C118<>"",COUNTIF('M-07'!AM$4:AM$83,C118),"") -> 0 | R118: =IF(C118<>"",COUNTIF('J-07'!AM$4:AM$83,C118),"") -> 0
A119: 0 | B119: de Ark Espel | C119: de Ark | D119: 0 | E119: =IF(C119<>"",COUNTIF('M-13'!AM$4:AM$83,C119),"") -> 0 | F119: =IF(C119<>"",COUNTIF('J-13'!AM$4:AM$83,C119),"") -> 0 | G119: =IF(C119<>"",COUNTIF('M-12'!AM$4:AM$83,C119),"") -> 0 | H119: =IF(C119<>"",COUNTIF('J-12'!AM$4:AM$83,C119),"") -> 0 | I119: =IF(C119<>"",COUNTIF('M-11'!AM$4:AM$83,C119),"") -> 0 | J119: =IF(C119<>"",COUNTIF('J-11'!AM$4:AM$83,C119),"") -> 0 | K119: =IF(C119<>"",COUNTIF('M-10'!AM$4:AM$83,C119),"") -> 0 | L119: =IF(C119<>"",COUNTIF('J-10'!AM$4:AM$83,C119),"") -> 0 | M119: =IF(C119<>"",COUNTIF('M-09'!AM$4:AM$83,C119),"") -> 0 | N119: =IF(C119<>"",COUNTIF('J-09'!AM$4:AM$83,C119),"") -> 0 | O119: =IF(C119<>"",COUNTIF('M-08'!AM$4:AM$83,C119),"") -> 0 | P119: =IF(C119<>"",COUNTIF('J-08'!AM$4:AM$83,C119),"") -> 0 | Q119: =IF(C119<>"",COUNTIF('M-07'!AM$4:AM$83,C119),"") -> 0 | R119: =IF(C119<>"",COUNTIF('J-07'!AM$4:AM$83,C119),"") -> 0
A120: 56 | B120: De Horizon Ens | C120: Horizon | D120: 0 | E120: =IF(C120<>"",COUNTIF('M-13'!AM$4:AM$83,C120),"") -> 0 | F120: =IF(C120<>"",COUNTIF('J-13'!AM$4:AM$83,C120),"") -> 0 | G120: =IF(C120<>"",COUNTIF('M-12'!AM$4:AM$83,C120),"") -> 0 | H120: =IF(C120<>"",COUNTIF('J-12'!AM$4:AM$83,C120),"") -> 0 | I120: =IF(C120<>"",COUNTIF('M-11'!AM$4:AM$83,C120),"") -> 0 | J120: =IF(C120<>"",COUNTIF('J-11'!AM$4:AM$83,C120),"") -> 0 | K120: =IF(C120<>"",COUNTIF('M-10'!AM$4:AM$83,C120),"") -> 0 | L120: =IF(C120<>"",COUNTIF('J-10'!AM$4:AM$83,C120),"") -> 0 | M120: =IF(C120<>"",COUNTIF('M-09'!AM$4:AM$83,C120),"") -> 0 | N120: =IF(C120<>"",COUNTIF('J-09'!AM$4:AM$83,C120),"") -> 0 | O120: =IF(C120<>"",COUNTIF('M-08'!AM$4:AM$83,C120),"") -> 0 | P120: =IF(C120<>"",COUNTIF('J-08'!AM$4:AM$83,C120),"") -> 0 | Q120: =IF(C120<>"",COUNTIF('M-07'!AM$4:AM$83,C120),"") -> 0 | R120: =IF(C120<>"",COUNTIF('J-07'!AM$4:AM$83,C120),"") -> 0
A121: 0 | B121: Windkracht 10 | C121: Windkr.10 | D121: 0 | E121: =IF(C121<>"",COUNTIF('M-13'!AM$4:AM$83,C121),"") -> 0 | F121: =IF(C121<>"",COUNTIF('J-13'!AM$4:AM$83,C121),"") -> 0 | G121: =IF(C121<>"",COUNTIF('M-12'!AM$4:AM$83,C121),"") -> 0 | H121: =IF(C121<>"",COUNTIF('J-12'!AM$4:AM$83,C121),"") -> 0 | I121: =IF(C121<>"",COUNTIF('M-11'!AM$4:AM$83,C121),"") -> 0 | J121: =IF(C121<>"",COUNTIF('J-11'!AM$4:AM$83,C121),"") -> 0 | K121: =IF(C121<>"",COUNTIF('M-10'!AM$4:AM$83,C121),"") -> 0 | L121: =IF(C121<>"",COUNTIF('J-10'!AM$4:AM$83,C121),"") -> 0 | M121: =IF(C121<>"",COUNTIF('M-09'!AM$4:AM$83,C121),"") -> 0 | N121: =IF(C121<>"",COUNTIF('J-09'!AM$4:AM$83,C121),"") -> 0 | O121: =IF(C121<>"",COUNTIF('M-08'!AM$4:AM$83,C121),"") -> 0 | P121: =IF(C121<>"",COUNTIF('J-08'!AM$4:AM$83,C121),"") -> 0 | Q121: =IF(C121<>"",COUNTIF('M-07'!AM$4:AM$83,C121),"") -> 0 | R121: =IF(C121<>"",COUNTIF('J-07'!AM$4:AM$83,C121),"") -> 0
A122: 62 | B122: De Lichtboei | C122: Lichtboei | D122: 0 | E122: =IF(C122<>"",COUNTIF('M-13'!AM$4:AM$83,C122),"") -> 0 | F122: =IF(C122<>"",COUNTIF('J-13'!AM$4:AM$83,C122),"") -> 0 | G122: =IF(C122<>"",COUNTIF('M-12'!AM$4:AM$83,C122),"") -> 0 | H122: =IF(C122<>"",COUNTIF('J-12'!AM$4:AM$83,C122),"") -> 0 | I122: =IF(C122<>"",COUNTIF('M-11'!AM$4:AM$83,C122),"") -> 0 | J122: =IF(C122<>"",COUNTIF('J-11'!AM$4:AM$83,C122),"") -> 0 | K122: =IF(C122<>"",COUNTIF('M-10'!AM$4:AM$83,C122),"") -> 0 | L122: =IF(C122<>"",COUNTIF('J-10'!AM$4:AM$83,C122),"") -> 0 | M122: =IF(C122<>"",COUNTIF('M-09'!AM$4:AM$83,C122),"") -> 0 | N122: =IF(C122<>"",COUNTIF('J-09'!AM$4:AM$83,C122),"") -> 0 | O122: =IF(C122<>"",COUNTIF('M-08'!AM$4:AM$83,C122),"") -> 0 | P122: =IF(C122<>"",COUNTIF('J-08'!AM$4:AM$83,C122),"") -> 0 | Q122: =IF(C122<>"",COUNTIF('M-07'!AM$4:AM$83,C122),"") -> 0 | R122: =IF(C122<>"",COUNTIF('J-07'!AM$4:AM$83,C122),"") -> 0
A123: 28 | B123: De Triangel | C123: Triangel | D123: 0 | E123: =IF(C123<>"",COUNTIF('M-13'!AM$4:AM$83,C123),"") -> 0 | F123: =IF(C123<>"",COUNTIF('J-13'!AM$4:AM$83,C123),"") -> 0 | G123: =IF(C123<>"",COUNTIF('M-12'!AM$4:AM$83,C123),"") -> 0 | H123: =IF(C123<>"",COUNTIF('J-12'!AM$4:AM$83,C123),"") -> 0 | I123: =IF(C123<>"",COUNTIF('M-11'!AM$4:AM$83,C123),"") -> 0 | J123: =IF(C123<>"",COUNTIF('J-11'!AM$4:AM$83,C123),"") -> 0 | K123: =IF(C123<>"",COUNTIF('M-10'!AM$4:AM$83,C123),"") -> 0 | L123: =IF(C123<>"",COUNTIF('J-10'!AM$4:AM$83,C123),"") -> 0 | M123: =IF(C123<>"",COUNTIF('M-09'!AM$4:AM$83,C123),"") -> 0 | N123: =IF(C123<>"",COUNTIF('J-09'!AM$4:AM$83,C123),"") -> 0 | O123: =IF(C123<>"",COUNTIF('M-08'!AM$4:AM$83,C123),"") -> 0 | P123: =IF(C123<>"",COUNTIF('J-08'!AM$4:AM$83,C123),"") -> 0 | Q123: =IF(C123<>"",COUNTIF('M-07'!AM$4:AM$83,C123),"") -> 0 | R123: =IF(C123<>"",COUNTIF('J-07'!AM$4:AM$83,C123),"") -> 0
A124: 32 | B124: De Zevensprong | C124: 7 sprong | D124: 0 | E124: =IF(C124<>"",COUNTIF('M-13'!AM$4:AM$83,C124),"") -> 0 | F124: =IF(C124<>"",COUNTIF('J-13'!AM$4:AM$83,C124),"") -> 0 | G124: =IF(C124<>"",COUNTIF('M-12'!AM$4:AM$83,C124),"") -> 0 | H124: =IF(C124<>"",COUNTIF('J-12'!AM$4:AM$83,C124),"") -> 0 | I124: =IF(C124<>"",COUNTIF('M-11'!AM$4:AM$83,C124),"") -> 0 | J124: =IF(C124<>"",COUNTIF('J-11'!AM$4:AM$83,C124),"") -> 0 | K124: =IF(C124<>"",COUNTIF('M-10'!AM$4:AM$83,C124),"") -> 0 | L124: =IF(C124<>"",COUNTIF('J-10'!AM$4:AM$83,C124),"") -> 0 | M124: =IF(C124<>"",COUNTIF('M-09'!AM$4:AM$83,C124),"") -> 0 | N124: =IF(C124<>"",COUNTIF('J-09'!AM$4:AM$83,C124),"") -> 0 | O124: =IF(C124<>"",COUNTIF('M-08'!AM$4:AM$83,C124),"") -> 0 | P124: =IF(C124<>"",COUNTIF('J-08'!AM$4:AM$83,C124),"") -> 0 | Q124: =IF(C124<>"",COUNTIF('M-07'!AM$4:AM$83,C124),"") -> 0 | R124: =IF(C124<>"",COUNTIF('J-07'!AM$4:AM$83,C124),"") -> 0
A125: 18 | B125: Het Lichtschip | C125: Lichtschip | D125: 0 | E125: =IF(C125<>"",COUNTIF('M-13'!AM$4:AM$83,C125),"") -> 0 | F125: =IF(C125<>"",COUNTIF('J-13'!AM$4:AM$83,C125),"") -> 0 | G125: =IF(C125<>"",COUNTIF('M-12'!AM$4:AM$83,C125),"") -> 0 | H125: =IF(C125<>"",COUNTIF('J-12'!AM$4:AM$83,C125),"") -> 0 | I125: =IF(C125<>"",COUNTIF('M-11'!AM$4:AM$83,C125),"") -> 0 | J125: =IF(C125<>"",COUNTIF('J-11'!AM$4:AM$83,C125),"") -> 0 | K125: =IF(C125<>"",COUNTIF('M-10'!AM$4:AM$83,C125),"") -> 0 | L125: =IF(C125<>"",COUNTIF('J-10'!AM$4:AM$83,C125),"") -> 0 | M125: =IF(C125<>"",COUNTIF('M-09'!AM$4:AM$83,C125),"") -> 0 | N125: =IF(C125<>"",COUNTIF('J-09'!AM$4:AM$83,C125),"") -> 0 | O125: =IF(C125<>"",COUNTIF('M-08'!AM$4:AM$83,C125),"") -> 0 | P125: =IF(C125<>"",COUNTIF('J-08'!AM$4:AM$83,C125),"") -> 0 | Q125: =IF(C125<>"",COUNTIF('M-07'!AM$4:AM$83,C125),"") -> 0 | R125: =IF(C125<>"",COUNTIF('J-07'!AM$4:AM$83,C125),"") -> 0
A126: 0 | B126: Maria basisschool Marknesse | C126: Mariab.s. | D126: 0 | E126: =IF(C126<>"",COUNTIF('M-13'!AM$4:AM$83,C126),"") -> 0 | F126: =IF(C126<>"",COUNTIF('J-13'!AM$4:AM$83,C126),"") -> 0 | G126: =IF(C126<>"",COUNTIF('M-12'!AM$4:AM$83,C126),"") -> 0 | H126: =IF(C126<>"",COUNTIF('J-12'!AM$4:AM$83,C126),"") -> 0 | I126: =IF(C126<>"",COUNTIF('M-11'!AM$4:AM$83,C126),"") -> 0 | J126: =IF(C126<>"",COUNTIF('J-11'!AM$4:AM$83,C126),"") -> 0 | K126: =IF(C126<>"",COUNTIF('M-10'!AM$4:AM$83,C126),"") -> 0 | L126: =IF(C126<>"",COUNTIF('J-10'!AM$4:AM$83,C126),"") -> 0 | M126: =IF(C126<>"",COUNTIF('M-09'!AM$4:AM$83,C126),"") -> 0 | N126: =IF(C126<>"",COUNTIF('J-09'!AM$4:AM$83,C126),"") -> 0 | O126: =IF(C126<>"",COUNTIF('M-08'!AM$4:AM$83,C126),"") -> 0 | P126: =IF(C126<>"",COUNTIF('J-08'!AM$4:AM$83,C126),"") -> 0 | Q126: =IF(C126<>"",COUNTIF('M-07'!AM$4:AM$83,C126),"") -> 0 | R126: =IF(C126<>"",COUNTIF('J-07'!AM$4:AM$83,C126),"") -> 0
A127: 20 | B127: Roderik van Voorst | C127: R.v.voorst | D127: 0 | E127: =IF(C127<>"",COUNTIF('M-13'!AM$4:AM$83,C127),"") -> 0 | F127: =IF(C127<>"",COUNTIF('J-13'!AM$4:AM$83,C127),"") -> 0 | G127: =IF(C127<>"",COUNTIF('M-12'!AM$4:AM$83,C127),"") -> 0 | H127: =IF(C127<>"",COUNTIF('J-12'!AM$4:AM$83,C127),"") -> 0 | I127: =IF(C127<>"",COUNTIF('M-11'!AM$4:AM$83,C127),"") -> 0 | J127: =IF(C127<>"",COUNTIF('J-11'!AM$4:AM$83,C127),"") -> 0 | K127: =IF(C127<>"",COUNTIF('M-10'!AM$4:AM$83,C127),"") -> 0 | L127: =IF(C127<>"",COUNTIF('J-10'!AM$4:AM$83,C127),"") -> 0 | M127: =IF(C127<>"",COUNTIF('M-09'!AM$4:AM$83,C127),"") -> 0 | N127: =IF(C127<>"",COUNTIF('J-09'!AM$4:AM$83,C127),"") -> 0 | O127: =IF(C127<>"",COUNTIF('M-08'!AM$4:AM$83,C127),"") -> 0 | P127: =IF(C127<>"",COUNTIF('J-08'!AM$4:AM$83,C127),"") -> 0 | Q127: =IF(C127<>"",COUNTIF('M-07'!AM$4:AM$83,C127),"") -> 0 | R127: =IF(C127<>"",COUNTIF('J-07'!AM$4:AM$83,C127),"") -> 0
A128: 42 | B128: 't Kompas | C128: 't Kompas | D128: 0 | E128: =IF(C128<>"",COUNTIF('M-13'!AM$4:AM$83,C128),"") -> 0 | F128: =IF(C128<>"",COUNTIF('J-13'!AM$4:AM$83,C128),"") -> 0 | G128: =IF(C128<>"",COUNTIF('M-12'!AM$4:AM$83,C128),"") -> 0 | H128: =IF(C128<>"",COUNTIF('J-12'!AM$4:AM$83,C128),"") -> 0 | I128: =IF(C128<>"",COUNTIF('M-11'!AM$4:AM$83,C128),"") -> 0 | J128: =IF(C128<>"",COUNTIF('J-11'!AM$4:AM$83,C128),"") -> 0 | K128: =IF(C128<>"",COUNTIF('M-10'!AM$4:AM$83,C128),"") -> 0 | L128: =IF(C128<>"",COUNTIF('J-10'!AM$4:AM$83,C128),"") -> 0 | M128: =IF(C128<>"",COUNTIF('M-09'!AM$4:AM$83,C128),"") -> 0 | N128: =IF(C128<>"",COUNTIF('J-09'!AM$4:AM$83,C128),"") -> 0 | O128: =IF(C128<>"",COUNTIF('M-08'!AM$4:AM$83,C128),"") -> 0 | P128: =IF(C128<>"",COUNTIF('J-08'!AM$4:AM$83,C128),"") -> 0 | Q128: =IF(C128<>"",COUNTIF('M-07'!AM$4:AM$83,C128),"") -> 0 | R128: =IF(C128<>"",COUNTIF('J-07'!AM$4:AM$83,C128),"") -> 0
A129: 0 | B129: Klipper/Rank Luttelgeest | C129: de Klipper | D129: 0 | E129: =IF(C129<>"",COUNTIF('M-13'!AM$4:AM$83,C129),"") -> 0 | F129: =IF(C129<>"",COUNTIF('J-13'!AM$4:AM$83,C129),"") -> 0 | G129: =IF(C129<>"",COUNTIF('M-12'!AM$4:AM$83,C129),"") -> 0 | H129: =IF(C129<>"",COUNTIF('J-12'!AM$4:AM$83,C129),"") -> 0 | I129: =IF(C129<>"",COUNTIF('M-11'!AM$4:AM$83,C129),"") -> 0 | J129: =IF(C129<>"",COUNTIF('J-11'!AM$4:AM$83,C129),"") -> 0 | K129: =IF(C129<>"",COUNTIF('M-10'!AM$4:AM$83,C129),"") -> 0 | L129: =IF(C129<>"",COUNTIF('J-10'!AM$4:AM$83,C129),"") -> 0 | M129: =IF(C129<>"",COUNTIF('M-09'!AM$4:AM$83,C129),"") -> 0 | N129: =IF(C129<>"",COUNTIF('J-09'!AM$4:AM$83,C129),"") -> 0 | O129: =IF(C129<>"",COUNTIF('M-08'!AM$4:AM$83,C129),"") -> 0 | P129: =IF(C129<>"",COUNTIF('J-08'!AM$4:AM$83,C129),"") -> 0 | Q129: =IF(C129<>"",COUNTIF('M-07'!AM$4:AM$83,C129),"") -> 0 | R129: =IF(C129<>"",COUNTIF('J-07'!AM$4:AM$83,C129),"") -> 0
A130: 21 | B130: st.Josephschool | C130: st Joseph | D130: 0 | E130: =IF(C130<>"",COUNTIF('M-13'!AM$4:AM$83,C130),"") -> 0 | F130: =IF(C130<>"",COUNTIF('J-13'!AM$4:AM$83,C130),"") -> 0 | G130: =IF(C130<>"",COUNTIF('M-12'!AM$4:AM$83,C130),"") -> 0 | H130: =IF(C130<>"",COUNTIF('J-12'!AM$4:AM$83,C130),"") -> 0 | I130: =IF(C130<>"",COUNTIF('M-11'!AM$4:AM$83,C130),"") -> 0 | J130: =IF(C130<>"",COUNTIF('J-11'!AM$4:AM$83,C130),"") -> 0 | K130: =IF(C130<>"",COUNTIF('M-10'!AM$4:AM$83,C130),"") -> 0 | L130: =IF(C130<>"",COUNTIF('J-10'!AM$4:AM$83,C130),"") -> 0 | M130: =IF(C130<>"",COUNTIF('M-09'!AM$4:AM$83,C130),"") -> 0 | N130: =IF(C130<>"",COUNTIF('J-09'!AM$4:AM$83,C130),"") -> 0 | O130: =IF(C130<>"",COUNTIF('M-08'!AM$4:AM$83,C130),"") -> 0 | P130: =IF(C130<>"",COUNTIF('J-08'!AM$4:AM$83,C130),"") -> 0 | Q130: =IF(C130<>"",COUNTIF('M-07'!AM$4:AM$83,C130),"") -> 0 | R130: =IF(C130<>"",COUNTIF('J-07'!AM$4:AM$83,C130),"") -> 0
A131: 61 | B131: Floreant | C131: Floreant | D131: 0 | E131: =IF(C131<>"",COUNTIF('M-13'!AM$4:AM$83,C131),"") -> 0 | F131: =IF(C131<>"",COUNTIF('J-13'!AM$4:AM$83,C131),"") -> 0 | G131: =IF(C131<>"",COUNTIF('M-12'!AM$4:AM$83,C131),"") -> 0 | H131: =IF(C131<>"",COUNTIF('J-12'!AM$4:AM$83,C131),"") -> 0 | I131: =IF(C131<>"",COUNTIF('M-11'!AM$4:AM$83,C131),"") -> 0 | J131: =IF(C131<>"",COUNTIF('J-11'!AM$4:AM$83,C131),"") -> 0 | K131: =IF(C131<>"",COUNTIF('M-10'!AM$4:AM$83,C131),"") -> 0 | L131: =IF(C131<>"",COUNTIF('J-10'!AM$4:AM$83,C131),"") -> 0 | M131: =IF(C131<>"",COUNTIF('M-09'!AM$4:AM$83,C131),"") -> 0 | N131: =IF(C131<>"",COUNTIF('J-09'!AM$4:AM$83,C131),"") -> 0 | O131: =IF(C131<>"",COUNTIF('M-08'!AM$4:AM$83,C131),"") -> 0 | P131: =IF(C131<>"",COUNTIF('J-08'!AM$4:AM$83,C131),"") -> 0 | Q131: =IF(C131<>"",COUNTIF('M-07'!AM$4:AM$83,C131),"") -> 0 | R131: =IF(C131<>"",COUNTIF('J-07'!AM$4:AM$83,C131),"") -> 0
A132: 38 | B132: de Koperwiek | C132: Koperwiek | D132: 0 | E132: =IF(C132<>"",COUNTIF('M-13'!AM$4:AM$83,C132),"") -> 0 | F132: =IF(C132<>"",COUNTIF('J-13'!AM$4:AM$83,C132),"") -> 0 | G132: =IF(C132<>"",COUNTIF('M-12'!AM$4:AM$83,C132),"") -> 0 | H132: =IF(C132<>"",COUNTIF('J-12'!AM$4:AM$83,C132),"") -> 0 | I132: =IF(C132<>"",COUNTIF('M-11'!AM$4:AM$83,C132),"") -> 0 | J132: =IF(C132<>"",COUNTIF('J-11'!AM$4:AM$83,C132),"") -> 0 | K132: =IF(C132<>"",COUNTIF('M-10'!AM$4:AM$83,C132),"") -> 0 | L132: =IF(C132<>"",COUNTIF('J-10'!AM$4:AM$83,C132),"") -> 0 | M132: =IF(C132<>"",COUNTIF('M-09'!AM$4:AM$83,C132),"") -> 0 | N132: =IF(C132<>"",COUNTIF('J-09'!AM$4:AM$83,C132),"") -> 0 | O132: =IF(C132<>"",COUNTIF('M-08'!AM$4:AM$83,C132),"") -> 0 | P132: =IF(C132<>"",COUNTIF('J-08'!AM$4:AM$83,C132),"") -> 0 | Q132: =IF(C132<>"",COUNTIF('M-07'!AM$4:AM$83,C132),"") -> 0 | R132: =IF(C132<>"",COUNTIF('J-07'!AM$4:AM$83,C132),"") -> 0
A133: 0 | B133: SWS De Wending | C133: Wending | D133: 0 | E133: =IF(C133<>"",COUNTIF('M-13'!AM$4:AM$83,C133),"") -> 0 | F133: =IF(C133<>"",COUNTIF('J-13'!AM$4:AM$83,C133),"") -> 0 | G133: =IF(C133<>"",COUNTIF('M-12'!AM$4:AM$83,C133),"") -> 0 | H133: =IF(C133<>"",COUNTIF('J-12'!AM$4:AM$83,C133),"") -> 0 | I133: =IF(C133<>"",COUNTIF('M-11'!AM$4:AM$83,C133),"") -> 0 | J133: =IF(C133<>"",COUNTIF('J-11'!AM$4:AM$83,C133),"") -> 0 | K133: =IF(C133<>"",COUNTIF('M-10'!AM$4:AM$83,C133),"") -> 0 | L133: =IF(C133<>"",COUNTIF('J-10'!AM$4:AM$83,C133),"") -> 0 | M133: =IF(C133<>"",COUNTIF('M-09'!AM$4:AM$83,C133),"") -> 0 | N133: =IF(C133<>"",COUNTIF('J-09'!AM$4:AM$83,C133),"") -> 0 | O133: =IF(C133<>"",COUNTIF('M-08'!AM$4:AM$83,C133),"") -> 0 | P133: =IF(C133<>"",COUNTIF('J-08'!AM$4:AM$83,C133),"") -> 0 | Q133: =IF(C133<>"",COUNTIF('M-07'!AM$4:AM$83,C133),"") -> 0 | R133: =IF(C133<>"",COUNTIF('J-07'!AM$4:AM$83,C133),"") -> 0
A134: 0 | B134: Zeester Marknesse | C134: Zeester | D134: 0 | E134: =IF(C134<>"",COUNTIF('M-13'!AM$4:AM$83,C134),"") -> 0 | F134: =IF(C134<>"",COUNTIF('J-13'!AM$4:AM$83,C134),"") -> 0 | G134: =IF(C134<>"",COUNTIF('M-12'!AM$4:AM$83,C134),"") -> 0 | H134: =IF(C134<>"",COUNTIF('J-12'!AM$4:AM$83,C134),"") -> 0 | I134: =IF(C134<>"",COUNTIF('M-11'!AM$4:AM$83,C134),"") -> 0 | J134: =IF(C134<>"",COUNTIF('J-11'!AM$4:AM$83,C134),"") -> 0 | K134: =IF(C134<>"",COUNTIF('M-10'!AM$4:AM$83,C134),"") -> 0 | L134: =IF(C134<>"",COUNTIF('J-10'!AM$4:AM$83,C134),"") -> 0 | M134: =IF(C134<>"",COUNTIF('M-09'!AM$4:AM$83,C134),"") -> 0 | N134: =IF(C134<>"",COUNTIF('J-09'!AM$4:AM$83,C134),"") -> 0 | O134: =IF(C134<>"",COUNTIF('M-08'!AM$4:AM$83,C134),"") -> 0 | P134: =IF(C134<>"",COUNTIF('J-08'!AM$4:AM$83,C134),"") -> 0 | Q134: =IF(C134<>"",COUNTIF('M-07'!AM$4:AM$83,C134),"") -> 0 | R134: =IF(C134<>"",COUNTIF('J-07'!AM$4:AM$83,C134),"") -> 0
A135: 2 | B135: Fondali | C135: Fondali | D135: 0 | E135: =IF(C135<>"",COUNTIF('M-13'!AM$4:AM$83,C135),"") -> 0 | F135: =IF(C135<>"",COUNTIF('J-13'!AM$4:AM$83,C135),"") -> 0 | G135: =IF(C135<>"",COUNTIF('M-12'!AM$4:AM$83,C135),"") -> 0 | H135: =IF(C135<>"",COUNTIF('J-12'!AM$4:AM$83,C135),"") -> 0 | I135: =IF(C135<>"",COUNTIF('M-11'!AM$4:AM$83,C135),"") -> 0 | J135: =IF(C135<>"",COUNTIF('J-11'!AM$4:AM$83,C135),"") -> 0 | K135: =IF(C135<>"",COUNTIF('M-10'!AM$4:AM$83,C135),"") -> 0 | L135: =IF(C135<>"",COUNTIF('J-10'!AM$4:AM$83,C135),"") -> 0 | M135: =IF(C135<>"",COUNTIF('M-09'!AM$4:AM$83,C135),"") -> 0 | N135: =IF(C135<>"",COUNTIF('J-09'!AM$4:AM$83,C135),"") -> 0 | O135: =IF(C135<>"",COUNTIF('M-08'!AM$4:AM$83,C135),"") -> 0 | P135: =IF(C135<>"",COUNTIF('J-08'!AM$4:AM$83,C135),"") -> 0 | Q135: =IF(C135<>"",COUNTIF('M-07'!AM$4:AM$83,C135),"") -> 0 | R135: =IF(C135<>"",COUNTIF('J-07'!AM$4:AM$83,C135),"") -> 0
A136: 1 | B136: OBS de Driesprong | C136: 3 sprong | D136: 0 | E136: =IF(C136<>"",COUNTIF('M-13'!AM$4:AM$83,C136),"") -> 0 | F136: =IF(C136<>"",COUNTIF('J-13'!AM$4:AM$83,C136),"") -> 0 | G136: =IF(C136<>"",COUNTIF('M-12'!AM$4:AM$83,C136),"") -> 0 | H136: =IF(C136<>"",COUNTIF('J-12'!AM$4:AM$83,C136),"") -> 0 | I136: =IF(C136<>"",COUNTIF('M-11'!AM$4:AM$83,C136),"") -> 0 | J136: =IF(C136<>"",COUNTIF('J-11'!AM$4:AM$83,C136),"") -> 0 | K136: =IF(C136<>"",COUNTIF('M-10'!AM$4:AM$83,C136),"") -> 0 | L136: =IF(C136<>"",COUNTIF('J-10'!AM$4:AM$83,C136),"") -> 0 | M136: =IF(C136<>"",COUNTIF('M-09'!AM$4:AM$83,C136),"") -> 0 | N136: =IF(C136<>"",COUNTIF('J-09'!AM$4:AM$83,C136),"") -> 0 | O136: =IF(C136<>"",COUNTIF('M-08'!AM$4:AM$83,C136),"") -> 0 | P136: =IF(C136<>"",COUNTIF('J-08'!AM$4:AM$83,C136),"") -> 0 | Q136: =IF(C136<>"",COUNTIF('M-07'!AM$4:AM$83,C136),"") -> 0 | R136: =IF(C136<>"",COUNTIF('J-07'!AM$4:AM$83,C136),"") -> 0
E137: =IF(C137<>"",COUNTIF('M-13'!AM$4:AM$83,C137),"") ->  | F137: =IF(C137<>"",COUNTIF('J-13'!AM$4:AM$83,C137),"") ->  | G137: =IF(C137<>"",COUNTIF('M-12'!AM$4:AM$83,C137),"") ->  | H137: =IF(C137<>"",COUNTIF('J-12'!AM$4:AM$83,C137),"") ->  | I137: =IF(C137<>"",COUNTIF('M-11'!AM$4:AM$83,C137),"") ->  | J137: =IF(C137<>"",COUNTIF('J-11'!AM$4:AM$83,C137),"") ->  | K137: =IF(C137<>"",COUNTIF('M-10'!AM$4:AM$83,C137),"") ->  | L137: =IF(C137<>"",COUNTIF('J-10'!AM$4:AM$83,C137),"") ->  | M137: =IF(C137<>"",COUNTIF('M-09'!AM$4:AM$83,C137),"") ->  | N137: =IF(C137<>"",COUNTIF('J-09'!AM$4:AM$83,C137),"") ->  | O137: =IF(C137<>"",COUNTIF('M-08'!AM$4:AM$83,C137),"") ->  | P137: =IF(C137<>"",COUNTIF('J-08'!AM$4:AM$83,C137),"") ->  | Q137: =IF(C137<>"",COUNTIF('M-07'!AM$4:AM$83,C137),"") ->  | R137: =IF(C137<>"",COUNTIF('J-07'!AM$4:AM$83,C137),"") -> 
E138: =IF(C138<>"",COUNTIF('M-13'!AM$4:AM$83,C138),"") ->  | F138: =IF(C138<>"",COUNTIF('J-13'!AM$4:AM$83,C138),"") ->  | G138: =IF(C138<>"",COUNTIF('M-12'!AM$4:AM$83,C138),"") ->  | H138: =IF(C138<>"",COUNTIF('J-12'!AM$4:AM$83,C138),"") ->  | I138: =IF(C138<>"",COUNTIF('M-11'!AM$4:AM$83,C138),"") ->  | J138: =IF(C138<>"",COUNTIF('J-11'!AM$4:AM$83,C138),"") ->  | K138: =IF(C138<>"",COUNTIF('M-10'!AM$4:AM$83,C138),"") ->  | L138: =IF(C138<>"",COUNTIF('J-10'!AM$4:AM$83,C138),"") ->  | M138: =IF(C138<>"",COUNTIF('M-09'!AM$4:AM$83,C138),"") ->  | N138: =IF(C138<>"",COUNTIF('J-09'!AM$4:AM$83,C138),"") ->  | O138: =IF(C138<>"",COUNTIF('M-08'!AM$4:AM$83,C138),"") ->  | P138: =IF(C138<>"",COUNTIF('J-08'!AM$4:AM$83,C138),"") ->  | Q138: =IF(C138<>"",COUNTIF('M-07'!AM$4:AM$83,C138),"") ->  | R138: =IF(C138<>"",COUNTIF('J-07'!AM$4:AM$83,C138),"") -> 
E139: =IF(C139<>"",COUNTIF('M-13'!AM$4:AM$83,C139),"") ->  | F139: =IF(C139<>"",COUNTIF('J-13'!AM$4:AM$83,C139),"") ->  | G139: =IF(C139<>"",COUNTIF('M-12'!AM$4:AM$83,C139),"") ->  | H139: =IF(C139<>"",COUNTIF('J-12'!AM$4:AM$83,C139),"") ->  | I139: =IF(C139<>"",COUNTIF('M-11'!AM$4:AM$83,C139),"") ->  | J139: =IF(C139<>"",COUNTIF('J-11'!AM$4:AM$83,C139),"") ->  | K139: =IF(C139<>"",COUNTIF('M-10'!AM$4:AM$83,C139),"") ->  | L139: =IF(C139<>"",COUNTIF('J-10'!AM$4:AM$83,C139),"") ->  | M139: =IF(C139<>"",COUNTIF('M-09'!AM$4:AM$83,C139),"") ->  | N139: =IF(C139<>"",COUNTIF('J-09'!AM$4:AM$83,C139),"") ->  | O139: =IF(C139<>"",COUNTIF('M-08'!AM$4:AM$83,C139),"") ->  | P139: =IF(C139<>"",COUNTIF('J-08'!AM$4:AM$83,C139),"") ->  | Q139: =IF(C139<>"",COUNTIF('M-07'!AM$4:AM$83,C139),"") ->  | R139: =IF(C139<>"",COUNTIF('J-07'!AM$4:AM$83,C139),"") -> 
E140: =IF(C140<>"",COUNTIF('M-13'!AM$4:AM$83,C140),"") ->  | F140: =IF(C140<>"",COUNTIF('J-13'!AM$4:AM$83,C140),"") ->  | G140: =IF(C140<>"",COUNTIF('M-12'!AM$4:AM$83,C140),"") ->  | H140: =IF(C140<>"",COUNTIF('J-12'!AM$4:AM$83,C140),"") ->  | I140: =IF(C140<>"",COUNTIF('M-11'!AM$4:AM$83,C140),"") ->  | J140: =IF(C140<>"",COUNTIF('J-11'!AM$4:AM$83,C140),"") ->  | K140: =IF(C140<>"",COUNTIF('M-10'!AM$4:AM$83,C140),"") ->  | L140: =IF(C140<>"",COUNTIF('J-10'!AM$4:AM$83,C140),"") ->  | M140: =IF(C140<>"",COUNTIF('M-09'!AM$4:AM$83,C140),"") ->  | N140: =IF(C140<>"",COUNTIF('J-09'!AM$4:AM$83,C140),"") ->  | O140: =IF(C140<>"",COUNTIF('M-08'!AM$4:AM$83,C140),"") ->  | P140: =IF(C140<>"",COUNTIF('J-08'!AM$4:AM$83,C140),"") ->  | Q140: =IF(C140<>"",COUNTIF('M-07'!AM$4:AM$83,C140),"") ->  | R140: =IF(C140<>"",COUNTIF('J-07'!AM$4:AM$83,C140),"") -> 
E141: =IF(C141<>"",COUNTIF('M-13'!AM$4:AM$83,C141),"") ->  | F141: =IF(C141<>"",COUNTIF('J-13'!AM$4:AM$83,C141),"") ->  | G141: =IF(C141<>"",COUNTIF('M-12'!AM$4:AM$83,C141),"") ->  | H141: =IF(C141<>"",COUNTIF('J-12'!AM$4:AM$83,C141),"") ->  | I141: =IF(C141<>"",COUNTIF('M-11'!AM$4:AM$83,C141),"") ->  | J141: =IF(C141<>"",COUNTIF('J-11'!AM$4:AM$83,C141),"") ->  | K141: =IF(C141<>"",COUNTIF('M-10'!AM$4:AM$83,C141),"") ->  | L141: =IF(C141<>"",COUNTIF('J-10'!AM$4:AM$83,C141),"") ->  | M141: =IF(C141<>"",COUNTIF('M-09'!AM$4:AM$83,C141),"") ->  | N141: =IF(C141<>"",COUNTIF('J-09'!AM$4:AM$83,C141),"") ->  | O141: =IF(C141<>"",COUNTIF('M-08'!AM$4:AM$83,C141),"") ->  | P141: =IF(C141<>"",COUNTIF('J-08'!AM$4:AM$83,C141),"") ->  | Q141: =IF(C141<>"",COUNTIF('M-07'!AM$4:AM$83,C141),"") ->  | R141: =IF(C141<>"",COUNTIF('J-07'!AM$4:AM$83,C141),"") -> 
E142: =IF(C142<>"",COUNTIF('M-13'!AM$4:AM$83,C142),"") ->  | F142: =IF(C142<>"",COUNTIF('J-13'!AM$4:AM$83,C142),"") ->  | G142: =IF(C142<>"",COUNTIF('M-12'!AM$4:AM$83,C142),"") ->  | H142: =IF(C142<>"",COUNTIF('J-12'!AM$4:AM$83,C142),"") ->  | I142: =IF(C142<>"",COUNTIF('M-11'!AM$4:AM$83,C142),"") ->  | J142: =IF(C142<>"",COUNTIF('J-11'!AM$4:AM$83,C142),"") ->  | K142: =IF(C142<>"",COUNTIF('M-10'!AM$4:AM$83,C142),"") ->  | L142: =IF(C142<>"",COUNTIF('J-10'!AM$4:AM$83,C142),"") ->  | M142: =IF(C142<>"",COUNTIF('M-09'!AM$4:AM$83,C142),"") ->  | N142: =IF(C142<>"",COUNTIF('J-09'!AM$4:AM$83,C142),"") ->  | O142: =IF(C142<>"",COUNTIF('M-08'!AM$4:AM$83,C142),"") ->  | P142: =IF(C142<>"",COUNTIF('J-08'!AM$4:AM$83,C142),"") ->  | Q142: =IF(C142<>"",COUNTIF('M-07'!AM$4:AM$83,C142),"") ->  | R142: =IF(C142<>"",COUNTIF('J-07'!AM$4:AM$83,C142),"") -> 
E143: =IF(C143<>"",COUNTIF('M-13'!AM$4:AM$83,C143),"") ->  | F143: =IF(C143<>"",COUNTIF('J-13'!AM$4:AM$83,C143),"") ->  | G143: =IF(C143<>"",COUNTIF('M-12'!AM$4:AM$83,C143),"") ->  | H143: =IF(C143<>"",COUNTIF('J-12'!AM$4:AM$83,C143),"") ->  | I143: =IF(C143<>"",COUNTIF('M-11'!AM$4:AM$83,C143),"") ->  | J143: =IF(C143<>"",COUNTIF('J-11'!AM$4:AM$83,C143),"") ->  | K143: =IF(C143<>"",COUNTIF('M-10'!AM$4:AM$83,C143),"") ->  | L143: =IF(C143<>"",COUNTIF('J-10'!AM$4:AM$83,C143),"") ->  | M143: =IF(C143<>"",COUNTIF('M-09'!AM$4:AM$83,C143),"") ->  | N143: =IF(C143<>"",COUNTIF('J-09'!AM$4:AM$83,C143),"") ->  | O143: =IF(C143<>"",COUNTIF('M-08'!AM$4:AM$83,C143),"") ->  | P143: =IF(C143<>"",COUNTIF('J-08'!AM$4:AM$83,C143),"") ->  | Q143: =IF(C143<>"",COUNTIF('M-07'!AM$4:AM$83,C143),"") ->  | R143: =IF(C143<>"",COUNTIF('J-07'!AM$4:AM$83,C143),"") -> 
E144: =IF(C144<>"",COUNTIF('M-13'!AM$4:AM$83,C144),"") ->  | F144: =IF(C144<>"",COUNTIF('J-13'!AM$4:AM$83,C144),"") ->  | G144: =IF(C144<>"",COUNTIF('M-12'!AM$4:AM$83,C144),"") ->  | H144: =IF(C144<>"",COUNTIF('J-12'!AM$4:AM$83,C144),"") ->  | I144: =IF(C144<>"",COUNTIF('M-11'!AM$4:AM$83,C144),"") ->  | J144: =IF(C144<>"",COUNTIF('J-11'!AM$4:AM$83,C144),"") ->  | K144: =IF(C144<>"",COUNTIF('M-10'!AM$4:AM$83,C144),"") ->  | L144: =IF(C144<>"",COUNTIF('J-10'!AM$4:AM$83,C144),"") ->  | M144: =IF(C144<>"",COUNTIF('M-09'!AM$4:AM$83,C144),"") ->  | N144: =IF(C144<>"",COUNTIF('J-09'!AM$4:AM$83,C144),"") ->  | O144: =IF(C144<>"",COUNTIF('M-08'!AM$4:AM$83,C144),"") ->  | P144: =IF(C144<>"",COUNTIF('J-08'!AM$4:AM$83,C144),"") ->  | Q144: =IF(C144<>"",COUNTIF('M-07'!AM$4:AM$83,C144),"") ->  | R144: =IF(C144<>"",COUNTIF('J-07'!AM$4:AM$83,C144),"") -> 
E145: =IF(C145<>"",COUNTIF('M-13'!AM$4:AM$83,C145),"") ->  | F145: =IF(C145<>"",COUNTIF('J-13'!AM$4:AM$83,C145),"") ->  | G145: =IF(C145<>"",COUNTIF('M-12'!AM$4:AM$83,C145),"") ->  | H145: =IF(C145<>"",COUNTIF('J-12'!AM$4:AM$83,C145),"") ->  | I145: =IF(C145<>"",COUNTIF('M-11'!AM$4:AM$83,C145),"") ->  | J145: =IF(C145<>"",COUNTIF('J-11'!AM$4:AM$83,C145),"") ->  | K145: =IF(C145<>"",COUNTIF('M-10'!AM$4:AM$83,C145),"") ->  | L145: =IF(C145<>"",COUNTIF('J-10'!AM$4:AM$83,C145),"") ->  | M145: =IF(C145<>"",COUNTIF('M-09'!AM$4:AM$83,C145),"") ->  | N145: =IF(C145<>"",COUNTIF('J-09'!AM$4:AM$83,C145),"") ->  | O145: =IF(C145<>"",COUNTIF('M-08'!AM$4:AM$83,C145),"") ->  | P145: =IF(C145<>"",COUNTIF('J-08'!AM$4:AM$83,C145),"") ->  | Q145: =IF(C145<>"",COUNTIF('M-07'!AM$4:AM$83,C145),"") ->  | R145: =IF(C145<>"",COUNTIF('J-07'!AM$4:AM$83,C145),"") -> 

Sheet Stand
A1: Stand Scholencross | C1: 2019 | D1: =CONCATENATE("M '",RIGHT($C1-6,2)) -> M '13 | E1: =CONCATENATE("J '",RIGHT($C1-6,2)) -> J '13 | F1: =CONCATENATE("M '",RIGHT($C1-7,2)) -> M '12 | G1: =CONCATENATE("J '",RIGHT($C1-7,2)) -> J '12 | H1: =CONCATENATE("M '",RIGHT($C1-8,2)) -> M '11 | I1: =CONCATENATE("J '",RIGHT($C1-8,2)) -> J '11 | J1: =CONCATENATE("M '",RIGHT($C1-9,2)) -> M '10 | K1: =CONCATENATE("J '",RIGHT($C1-9,2)) -> J '10 | L1: =CONCATENATE("M '",RIGHT($C1-10,2)) -> M '09 | M1: =CONCATENATE("J '",RIGHT($C1-10,2)) -> J '09 | N1: =CONCATENATE("M '",RIGHT($C1-11,2)) -> M '08 | O1: =CONCATENATE("J '",RIGHT($C1-11,2)) -> J '08 | P1: =CONCATENATE("M '",RIGHT($C1-12,2)) -> M '07 | Q1: =CONCATENATE("J '",RIGHT($C1-12,2)) -> J '07 | R1: Punten totaal | T1: =CONCATENATE("M-",RIGHT($C1-6,2)) -> M-13 | U1: =CONCATENATE("J-",RIGHT($C1-6,2)) -> J-13 | V1: =CONCATENATE("M-",RIGHT($C1-7,2)) -> M-12 | W1: =CONCATENATE("J-",RIGHT($C1-7,2)) -> J-12 | X1: =CONCATENATE("M-",RIGHT($C1-8,2)) -> M-11 | Y1: =CONCATENATE("J-",RIGHT($C1-8,2)) -> J-11 | Z1: =CONCATENATE("M-",RIGHT($C1-9,2)) -> M-10 | AA1: =CONCATENATE("J-",RIGHT($C1-9,2)) -> J-10 | AB1: =CONCATENATE("M-",RIGHT($C1-10,2)) -> M-09 | AC1: =CONCATENATE("J-",RIGHT($C1-10,2)) -> J-09 | AD1: =CONCATENATE("M-",RIGHT($C1-11,2)) -> M-08 | AE1: =CONCATENATE("J-",RIGHT($C1-11,2)) -> J-08 | AF1: =CONCATENATE("M-",RIGHT($C1-12,2)) -> M-07 | AG1: =CONCATENATE("J-",RIGHT($C1-12,2)) -> J-07
A2: =HLOOKUP(1,$C$42:$AF$76,35,FALSE) -> 1 | B2: =IF(HLOOKUP(1,C$42:AF$73,2,FALSE)=0,"",HLOOKUP(1,C$42:AF$73,2,FALSE)) -> Floreant | C2: =IF(AND(B2<>"",B2<>"Individueel"),"1e cross","") -> 1e cross | D2: =IF(HLOOKUP(1,C$42:AF$73,4,FALSE)=0,"",HLOOKUP(1,C$42:AF$73,4,FALSE)) -> 102 | E2: =IF(HLOOKUP(1,D$42:AG$73,6,FALSE)=0,"",HLOOKUP(1,D$42:AG$73,6,FALSE)) -> 73 | F2: =E3 -> 110 | G2: 114 | H2: =IF(HLOOKUP(1,$C$42:$AF$73,12,FALSE)=0,"",HLOOKUP(1,$C$42:$AF$73,12,FALSE)) -> 65 | I2: =IF(HLOOKUP(1,$C$42:$AF$73,14,FALSE)=0,"",HLOOKUP(1,$C$42:$AF$73,14,FALSE)) -> 112 | J2: =IF(HLOOKUP(1,$C$42:$AF$73,16,FALSE)=0,"",HLOOKUP(1,$C$42:$AF$73,16,FALSE)) -> 33 | K2: =IF(HLOOKUP(1,$C$42:$AF$73,18,FALSE)=0,"",HLOOKUP(1,$C$42:$AF$73,18,FALSE)) -> 92 | L2: =IF(HLOOKUP(1,$C$42:$AF$73,20,FALSE)=0,"",HLOOKUP(1,$C$42:$AF$73,20,FALSE)) -> 69 | M2: =IF(HLOOKUP(1,$C$42:$AF$73,22,FALSE)=0,"",HLOOKUP(1,$C$42:$AF$73,22,FALSE)) -> 109 | N2: =IF(HLOOKUP(1,$C$42:$AF$73,24,FALSE)=0,"",HLOOKUP(1,$C$42:$AF$73,24,FALSE)) -> 86 | O2: =IF(HLOOKUP(1,$C$42:$AF$73,26,FALSE)=0,"",HLOOKUP(1,$C$42:$AF$73,26,FALSE)) -> 97 | P2: =IF(HLOOKUP(1,$C$42:$AF$73,28,FALSE)=0,"",HLOOKUP(1,$C$42:$AF$73,28,FALSE)) -> 77 | Q2: =IF(HLOOKUP(1,$C$42:$AF$73,30,FALSE)=0,"",HLOOKUP(1,$C$42:$AF$73,30,FALSE)) -> 78 | R2: =SUM(D2:Q2,D3:Q3) -> 2453 | U2: =F2+G2+G3+F3 -> 416
C3: =IF(AND(B2<>"",B2<>"Individueel"),"2e cross","") -> 2e cross | D3: =IF(HLOOKUP(1,C$42:AF$73,5,FALSE)=0,"",HLOOKUP(1,C$42:AF$73,5,FALSE)) -> 110 | E3: =IF(HLOOKUP(1,D$42:AG$73,5,FALSE)=0,"",HLOOKUP(1,D$42:AG$73,5,FALSE)) -> 110 | F3: =IF(HLOOKUP(1,$C$42:$AF$73,9,FALSE)=0,"",HLOOKUP(1,$C$42:$AF$73,9,FALSE)) -> 81 | G3: 111 | H3: =IF(HLOOKUP(1,$C$42:$AF$73,13,FALSE)=0,"",HLOOKUP(1,$C$42:$AF$73,13,FALSE)) -> 63 | I3: =IF(HLOOKUP(1,$C$42:$AF$73,13,FALSE)=0,"",HLOOKUP(1,$C$42:$AF$73,13,FALSE)) -> 63 | J3: =IF(HLOOKUP(1,$C$42:$AF$73,17,FALSE)=0,"",HLOOKUP(1,$C$42:$AF$73,17,FALSE)) -> 96 | K3: =IF(HLOOKUP(1,$C$42:$AF$73,19,FALSE)=0,"",HLOOKUP(1,$C$42:$AF$73,19,FALSE)) -> 89 | L3: =IF(HLOOKUP(1,$C$42:$AF$73,21,FALSE)=0,"",HLOOKUP(1,$C$42:$AF$73,21,FALSE)) -> 69 | M3: =IF(HLOOKUP(1,$C$42:$AF$73,23,FALSE)=0,"",HLOOKUP(1,$C$42:$AF$73,23,FALSE)) -> 98 | N3: =IF(HLOOKUP(1,$C$42:$AF$73,25,FALSE)=0,"",HLOOKUP(1,$C$42:$AF$73,25,FALSE)) -> 89 | O3: =IF(HLOOKUP(1,$C$42:$AF$73,27,FALSE)=0,"",HLOOKUP(1,$C$42:$AF$73,27,FALSE)) -> 102 | P3: =IF(HLOOKUP(1,$C$42:$AF$73,29,FALSE)=0,"",HLOOKUP(1,$C$42:$AF$73,29,FALSE)) -> 77 | Q3: =IF(HLOOKUP(1,$C$42:$AF$73,30,FALSE)=0,"",HLOOKUP(1,$C$42:$AF$73,30,FALSE)) -> 78 | U3: =IF(R2>0,1,0) -> 1
A4: =HLOOKUP(2,$C$42:$AF$76,35,FALSE) -> 2 | B4: =IF(HLOOKUP(2,C$42:AF$73,2,FALSE)=0,"",HLOOKUP(2,C$42:AF$73,2,FALSE)) -> De Horizon Ens | C4: =IF(AND(B4<>"",B4<>"Individueel"),"1e cross","") -> 1e cross | D4: =IF(HLOOKUP(2,C$42:AF$73,4,FALSE)=0,"",HLOOKUP(2,C$42:AF$73,4,FALSE)) -> 91 | E4: =IF(HLOOKUP(2,C$42:AF$73,6,FALSE)=0,"",HLOOKUP(2,C$42:AF$73,6,FALSE)) -> 99 | F4: =IF(HLOOKUP(2,$C$42:$AF$73,8,FALSE)=0,"",HLOOKUP(2,$C$42:$AF$73,8,FALSE)) -> 68 | G4: =IF(HLOOKUP(2,$C$42:$AF$73,10,FALSE)=0,"",HLOOKUP(2,$C$42:$AF$73,10,FALSE)) -> 69 | H4: =IF(HLOOKUP(2,$C$42:$AF$73,12,FALSE)=0,"",HLOOKUP(2,$C$42:$AF$73,12,FALSE)) -> 40 | I4: =IF(HLOOKUP(2,$C$42:$AF$73,14,FALSE)=0,"",HLOOKUP(2,$C$42:$AF$73,14,FALSE)) -> 51 | J4: =IF(HLOOKUP(2,$C$42:$AF$73,16,FALSE)=0,"",HLOOKUP(2,$C$42:$AF$73,16,FALSE)) -> 74 | K4: =IF(HLOOKUP(2,$C$42:$AF$73,18,FALSE)=0,"",HLOOKUP(2,$C$42:$AF$73,18,FALSE)) -> 113 | L4: =IF(HLOOKUP(2,$C$42:$AF$73,20,FALSE)=0,"",HLOOKUP(2,$C$42:$AF$73,20,FALSE)) -> 106 | M4: =IF(HLOOKUP(2,$C$42:$AF$73,22,FALSE)=0,"",HLOOKUP(2,$C$42:$AF$73,22,FALSE)) -> 30 | N4: =IF(HLOOKUP(2,$C$42:$AF$73,24,FALSE)=0,"",HLOOKUP(2,$C$42:$AF$73,24,FALSE)) -> 88 | O4: =IF(HLOOKUP(2,$C$42:$AF$73,26,FALSE)=0,"",HLOOKUP(2,$C$42:$AF$73,26,FALSE)) -> 105 | P4: =IF(HLOOKUP(2,$C$42:$AF$73,28,FALSE)=0,"",HLOOKUP(2,$C$42:$AF$73,28,FALSE)) -> 40 | Q4: =IF(HLOOKUP(2,$C$42:$AF$73,30,FALSE)=0,"",HLOOKUP(2,$C$42:$AF$73,30,FALSE)) ->  | R4: =SUM(D4:Q4,D5:Q5) -> 1970
C5: =IF(AND(B4<>"",B4<>"Individueel"),"2e cross","") -> 2e cross | D5: =IF(HLOOKUP(2,C$42:AF$73,5,FALSE)=0,"",HLOOKUP(2,C$42:AF$73,5,FALSE)) -> 104 | E5: =IF(HLOOKUP(2,C$42:AF$73,7,FALSE)=0,"",HLOOKUP(2,C$42:AF$73,7,FALSE)) -> 72 | F5: =IF(HLOOKUP(2,$C$42:$AF$73,9,FALSE)=0,"",HLOOKUP(2,$C$42:$AF$73,9,FALSE)) -> 84 | G5: =IF(HLOOKUP(2,$C$42:$AF$73,11,FALSE)=0,"",HLOOKUP(2,$C$42:$AF$73,11,FALSE)) -> 57 | H5: =IF(HLOOKUP(2,$C$42:$AF$73,13,FALSE)=0,"",HLOOKUP(2,$C$42:$AF$73,13,FALSE)) -> 40 | I5: =IF(HLOOKUP(2,$C$42:$AF$73,15,FALSE)=0,"",HLOOKUP(2,$C$42:$AF$73,15,FALSE)) -> 42 | J5: =IF(HLOOKUP(2,$C$42:$AF$73,17,FALSE)=0,"",HLOOKUP(2,$C$42:$AF$73,17,FALSE)) -> 67 | K5: =IF(HLOOKUP(2,$C$42:$AF$73,19,FALSE)=0,"",HLOOKUP(2,$C$42:$AF$73,19,FALSE)) -> 113 | L5: =IF(HLOOKUP(2,$C$42:$AF$73,21,FALSE)=0,"",HLOOKUP(2,$C$42:$AF$73,21,FALSE)) -> 103 | M5: =IF(HLOOKUP(2,$C$42:$AF$73,23,FALSE)=0,"",HLOOKUP(2,$C$42:$AF$73,23,FALSE)) -> 69 | N5: =IF(HLOOKUP(2,$C$42:$AF$73,25,FALSE)=0,"",HLOOKUP(2,$C$42:$AF$73,25,FALSE)) -> 103 | O5: =IF(HLOOKUP(2,$C$42:$AF$73,27,FALSE)=0,"",HLOOKUP(2,$C$42:$AF$73,27,FALSE)) -> 104 | P5: =IF(HLOOKUP(2,$C$42:$AF$73,29,FALSE)=0,"",HLOOKUP(2,$C$42:$AF$73,29,FALSE)) -> 38 | Q5: =IF(HLOOKUP(2,$C$42:$AF$73,31,FALSE)=0,"",HLOOKUP(2,$C$42:$AF$73,31,FALSE)) ->  | U5: =IF(R4>0,1,0) -> 1
A6: =HLOOKUP(3,$C$42:$AF$76,35,FALSE) -> 3 | B6: =IF(HLOOKUP(3,C$42:AF$73,2,FALSE)=0,"",HLOOKUP(3,C$42:AF$73,2,FALSE)) -> De Lichtboei | C6: =IF(AND(B6<>"",B6<>"Individueel"),"1e cross","") -> 1e cross | D6: =IF(HLOOKUP(3,C$42:AF$73,4,FALSE)=0,"",HLOOKUP(3,C$42:AF$73,4,FALSE)) -> 99 | E6: =IF(HLOOKUP(3,C$42:AF$73,6,FALSE)=0,"",HLOOKUP(3,C$42:AF$73,6,FALSE)) -> 95 | F6: =IF(HLOOKUP(3,D$42:AG$73,8,FALSE)=0,"",HLOOKUP(3,D$42:AG$73,8,FALSE)) -> 76 | G6: =IF(HLOOKUP(3,$C$42:$AF$73,10,FALSE)=0,"",HLOOKUP(3,$C$42:$AF$73,10,FALSE)) -> 101 | H6: =IF(HLOOKUP(3,$C$42:$AF$73,12,FALSE)=0,"",HLOOKUP(3,$C$42:$AF$73,12,FALSE)) -> 98 | I6: =IF(HLOOKUP(3,$C$42:$AF$73,14,FALSE)=0,"",HLOOKUP(3,$C$42:$AF$73,14,FALSE)) -> 84 | J6: =IF(HLOOKUP(3,$C$42:$AF$73,16,FALSE)=0,"",HLOOKUP(3,$C$42:$AF$73,16,FALSE)) -> 63 | K6: =IF(HLOOKUP(3,$C$42:$AF$73,18,FALSE)=0,"",HLOOKUP(3,$C$42:$AF$73,18,FALSE)) -> 94 | L6: =IF(HLOOKUP(3,$C$42:$AF$73,20,FALSE)=0,"",HLOOKUP(3,$C$42:$AF$73,20,FALSE)) -> 92 | M6: =IF(HLOOKUP(3,$C$42:$AF$73,22,FALSE)=0,"",HLOOKUP(3,$C$42:$AF$73,22,FALSE)) -> 71 | N6: =IF(HLOOKUP(3,$C$42:$AF$73,24,FALSE)=0,"",HLOOKUP(3,$C$42:$AF$73,24,FALSE)) -> 90 | O6: =IF(HLOOKUP(3,$C$42:$AF$73,26,FALSE)=0,"",HLOOKUP(3,$C$42:$AF$73,26,FALSE)) ->  | P6: =IF(HLOOKUP(3,$C$42:$AF$73,28,FALSE)=0,"",HLOOKUP(3,$C$42:$AF$73,28,FALSE)) ->  | Q6: =IF(HLOOKUP(3,$C$42:$AF$73,30,FALSE)=0,"",HLOOKUP(3,$C$42:$AF$73,30,FALSE)) ->  | R6: =SUM(D6:Q6,D7:Q7) -> 1864
C7: =IF(AND(B6<>"",B6<>"Individueel"),"2e cross","") -> 2e cross | D7: =IF(HLOOKUP(3,C$42:AF$73,5,FALSE)=0,"",HLOOKUP(3,C$42:AF$73,5,FALSE)) -> 84 | E7: =IF(HLOOKUP(3,C$42:AF$73,7,FALSE)=0,"",HLOOKUP(3,C$42:AF$73,7,FALSE)) -> 70 | F7: =IF(HLOOKUP(3,D$42:AG$73,9,FALSE)=0,"",HLOOKUP(3,D$42:AG$73,9,FALSE)) -> 78 | G7: =IF(HLOOKUP(3,$C$42:$AF$73,11,FALSE)=0,"",HLOOKUP(3,$C$42:$AF$73,11,FALSE)) -> 45 | H7: =IF(HLOOKUP(3,$C$42:$AF$73,13,FALSE)=0,"",HLOOKUP(3,$C$42:$AF$73,13,FALSE)) -> 103 | I7: =IF(HLOOKUP(3,$C$42:$AF$73,15,FALSE)=0,"",HLOOKUP(3,$C$42:$AF$73,15,FALSE)) -> 93 | J7: =IF(HLOOKUP(3,$C$42:$AF$73,17,FALSE)=0,"",HLOOKUP(3,$C$42:$AF$73,17,FALSE)) -> 34 | K7: =IF(HLOOKUP(3,$C$42:$AF$73,19,FALSE)=0,"",HLOOKUP(3,$C$42:$AF$73,19,FALSE)) -> 101 | L7: =IF(HLOOKUP(3,$C$42:$AF$73,21,FALSE)=0,"",HLOOKUP(3,$C$42:$AF$73,21,FALSE)) -> 93 | M7: =IF(HLOOKUP(3,$C$42:$AF$73,23,FALSE)=0,"",HLOOKUP(3,$C$42:$AF$73,23,FALSE)) -> 73 | N7: =IF(HLOOKUP(3,$C$42:$AF$73,25,FALSE)=0,"",HLOOKUP(3,$C$42:$AF$73,25,FALSE)) -> 88 | O7: =IF(HLOOKUP(3,$C$42:$AF$73,27,FALSE)=0,"",HLOOKUP(3,$C$42:$AF$73,27,FALSE)) ->  | P7: =IF(HLOOKUP(3,$C$42:$AF$73,29,FALSE)=0,"",HLOOKUP(3,$C$42:$AF$73,29,FALSE)) -> 39 | Q7: =IF(HLOOKUP(3,$C$42:$AF$73,31,FALSE)=0,"",HLOOKUP(3,$C$42:$AF$73,31,FALSE)) ->  | U7: =IF(R6>0,1,0) -> 1
A8: =HLOOKUP(4,$C$42:$AF$76,35,FALSE) -> 4 | B8: =IF(HLOOKUP(4,C$42:AF$73,2,FALSE)=0,"",HLOOKUP(4,C$42:AF$73,2,FALSE)) -> 't Kompas | C8: =IF(AND(B8<>"",B8<>"Individueel"),"1e cross","") -> 1e cross | D8: =IF(HLOOKUP(4,C$42:AF$73,4,FALSE)=0,"",HLOOKUP(4,C$42:AF$73,4,FALSE)) -> 63 | E8: =IF(HLOOKUP(4,C$42:AF$73,6,FALSE)=0,"",HLOOKUP(4,C$42:AF$73,6,FALSE)) -> 98 | F8: =IF(HLOOKUP(4,$C$42:$AF$73,8,FALSE)=0,"",HLOOKUP(4,$C$42:$AF$73,8,FALSE)) -> 30 | G8: =IF(HLOOKUP(4,$C$42:$AF$73,10,FALSE)=0,"",HLOOKUP(4,$C$42:$AF$73,10,FALSE)) -> 76 | H8: =IF(HLOOKUP(4,$C$42:$AF$73,12,FALSE)=0,"",HLOOKUP(4,$C$42:$AF$73,12,FALSE)) -> 68 | I8: =IF(HLOOKUP(4,$C$42:$AF$73,14,FALSE)=0,"",HLOOKUP(4,$C$42:$AF$73,14,FALSE)) -> 113 | J8: =IF(HLOOKUP(4,$C$42:$AF$73,16,FALSE)=0,"",HLOOKUP(4,$C$42:$AF$73,16,FALSE)) ->  | K8: =IF(HLOOKUP(4,$C$42:$AF$73,18,FALSE)=0,"",HLOOKUP(4,$C$42:$AF$73,18,FALSE)) -> 62 | L8: =IF(HLOOKUP(4,$C$42:$AF$73,20,FALSE)=0,"",HLOOKUP(4,$C$42:$AF$73,20,FALSE)) -> 62 | M8: =IF(HLOOKUP(4,$C$42:$AF$73,22,FALSE)=0,"",HLOOKUP(4,$C$42:$AF$73,22,FALSE)) -> 104 | N8: =IF(HLOOKUP(4,$C$42:$AF$73,24,FALSE)=0,"",HLOOKUP(4,$C$42:$AF$73,24,FALSE)) -> 68 | O8: =IF(HLOOKUP(4,$C$42:$AF$73,26,FALSE)=0,"",HLOOKUP(4,$C$42:$AF$73,26,FALSE)) -> 30 | P8: =IF(HLOOKUP(4,$C$42:$AF$73,28,FALSE)=0,"",HLOOKUP(4,$C$42:$AF$73,28,FALSE)) ->  | Q8: =IF(HLOOKUP(4,$C$42:$AF$73,30,FALSE)=0,"",HLOOKUP(4,$C$42:$AF$73,30,FALSE)) ->  | R8: =SUM(D8:Q8,D9:Q9) -> 1441
C9: =IF(AND(B8<>"",B8<>"Individueel"),"2e cross","") -> 2e cross | D9: =IF(HLOOKUP(4,C$42:AF$73,5,FALSE)=0,"",HLOOKUP(4,C$42:AF$73,5,FALSE)) -> 55 | E9: =IF(HLOOKUP(4,C$42:AF$73,7,FALSE)=0,"",HLOOKUP(4,C$42:AF$73,7,FALSE)) -> 89 | F9: =IF(HLOOKUP(4,$C$42:$AF$73,9,FALSE)=0,"",HLOOKUP(4,$C$42:$AF$73,9,FALSE)) -> 16 | G9: =IF(HLOOKUP(4,$C$42:$AF$73,11,FALSE)=0,"",HLOOKUP(4,$C$42:$AF$73,11,FALSE)) -> 78 | I9: =IF(HLOOKUP(4,$C$42:$AF$73,15,FALSE)=0,"",HLOOKUP(4,$C$42:$AF$73,15,FALSE)) -> 112 | J9: =IF(HLOOKUP(4,$C$42:$AF$73,17,FALSE)=0,"",HLOOKUP(4,$C$42:$AF$73,17,FALSE)) ->  | K9: =IF(HLOOKUP(4,$C$42:$AF$73,19,FALSE)=0,"",HLOOKUP(4,$C$42:$AF$73,19,FALSE)) -> 48 | L9: =IF(HLOOKUP(4,$C$42:$AF$73,21,FALSE)=0,"",HLOOKUP(4,$C$42:$AF$73,21,FALSE)) -> 65 | M9: =IF(HLOOKUP(4,$C$42:$AF$73,23,FALSE)=0,"",HLOOKUP(4,$C$42:$AF$73,23,FALSE)) -> 104 | N9: =IF(HLOOKUP(4,$C$42:$AF$73,25,FALSE)=0,"",HLOOKUP(4,$C$42:$AF$73,25,FALSE)) -> 70 | O9: =IF(HLOOKUP(4,$C$42:$AF$73,27,FALSE)=0,"",HLOOKUP(4,$C$42:$AF$73,27,FALSE)) -> 30 | P9: =IF(HLOOKUP(4,$C$42:$AF$73,29,FALSE)=0,"",HLOOKUP(4,$C$42:$AF$73,29,FALSE)) ->  | Q9: =IF(HLOOKUP(4,$C$42:$AF$73,31,FALSE)=0,"",HLOOKUP(4,$C$42:$AF$73,31,FALSE)) ->  | U9: =IF(R8>0,1,0) -> 1
A10: =HLOOKUP(5,$C$42:$AF$76,35,FALSE) -> 5 | B10: =IF(HLOOKUP(5,C$42:AF$73,2,FALSE)=0,"",HLOOKUP(5,C$42:AF$73,2,FALSE)) -> De Zevensprong | C10: =IF(AND(B10<>"",B10<>"Individueel"),"1e cross","") -> 1e cross | D10: =IF(HLOOKUP(5,C$42:AF$73,4,FALSE)=0,"",HLOOKUP(5,C$42:AF$73,4,FALSE)) -> 62 | E10: =IF(HLOOKUP(5,C$42:AF$73,6,FALSE)=0,"",HLOOKUP(5,C$42:AF$73,6,FALSE)) -> 60 | F10: =IF(HLOOKUP(5,$C$42:$AF$73,8,FALSE)=0,"",HLOOKUP(5,$C$42:$AF$73,8,FALSE)) -> 104 | G10: =IF(HLOOKUP(5,$C$42:$AF$73,10,FALSE)=0,"",HLOOKUP(5,$C$42:$AF$73,10,FALSE)) -> 89 | H10: =IF(HLOOKUP(5,$C$42:$AF$73,12,FALSE)=0,"",HLOOKUP(5,$C$42:$AF$73,12,FALSE)) -> 53 | I10: =IF(HLOOKUP(5,$C$42:$AF$73,14,FALSE)=0,"",HLOOKUP(5,$C$42:$AF$73,14,FALSE)) -> 52 | J10: =IF(HLOOKUP(5,$C$42:$AF$73,16,FALSE)=0,"",HLOOKUP(5,$C$42:$AF$73,16,FALSE)) -> 53 | K10: =IF(HLOOKUP(5,$C$42:$AF$73,18,FALSE)=0,"",HLOOKUP(5,$C$42:$AF$73,18,FALSE)) -> 23 | L10: =IF(HLOOKUP(5,$C$42:$AF$73,20,FALSE)=0,"",HLOOKUP(5,$C$42:$AF$73,20,FALSE)) -> 40 | M10: =IF(HLOOKUP(5,$C$42:$AF$73,22,FALSE)=0,"",HLOOKUP(5,$C$42:$AF$73,22,FALSE)) -> 26 | N10: =IF(HLOOKUP(5,$C$42:$AF$73,24,FALSE)=0,"",HLOOKUP(5,$C$42:$AF$73,24,FALSE)) -> 40 | O10: =IF(HLOOKUP(5,$C$42:$AF$73,26,FALSE)=0,"",HLOOKUP(5,$C$42:$AF$73,26,FALSE)) ->  | P10: =IF(HLOOKUP(5,$C$42:$AF$73,28,FALSE)=0,"",HLOOKUP(5,$C$42:$AF$73,28,FALSE)) -> 37 | Q10: =IF(HLOOKUP(5,$C$42:$AF$73,30,FALSE)=0,"",HLOOKUP(5,$C$42:$AF$73,30,FALSE)) ->  | R10: =SUM(D10:Q10,D11:Q11) -> 1173
C11: =IF(AND(B10<>"",B10<>"Individueel"),"2e cross","") -> 2e cross | D11: =IF(HLOOKUP(5,C$42:AF$73,5,FALSE)=0,"",HLOOKUP(5,C$42:AF$73,5,FALSE)) -> 54 | E11: =IF(HLOOKUP(5,C$42:AF$73,7,FALSE)=0,"",HLOOKUP(5,C$42:AF$73,7,FALSE)) -> 36 | F11: =IF(HLOOKUP(5,$C$42:$AF$73,9,FALSE)=0,"",HLOOKUP(5,$C$42:$AF$73,9,FALSE)) -> 100 | G11: =IF(HLOOKUP(5,$C$42:$AF$73,11,FALSE)=0,"",HLOOKUP(5,$C$42:$AF$73,11,FALSE)) -> 96 | H11: =IF(HLOOKUP(5,$C$42:$AF$73,13,FALSE)=0,"",HLOOKUP(5,$C$42:$AF$73,13,FALSE)) -> 51 | I11: =IF(HLOOKUP(5,$C$42:$AF$73,15,FALSE)=0,"",HLOOKUP(5,$C$42:$AF$73,15,FALSE)) -> 35 | J11: =IF(HLOOKUP(5,$C$42:$AF$73,17,FALSE)=0,"",HLOOKUP(5,$C$42:$AF$73,17,FALSE)) -> 22 | L11: =IF(HLOOKUP(5,$C$42:$AF$73,21,FALSE)=0,"",HLOOKUP(5,$C$42:$AF$73,21,FALSE)) -> 40 | M11: =IF(HLOOKUP(5,$C$42:$AF$73,23,FALSE)=0,"",HLOOKUP(5,$C$42:$AF$73,23,FALSE)) -> 25 | N11: =IF(HLOOKUP(5,$C$42:$AF$73,25,FALSE)=0,"",HLOOKUP(5,$C$42:$AF$73,25,FALSE)) -> 39 | O11: =IF(HLOOKUP(5,$C$42:$AF$73,27,FALSE)=0,"",HLOOKUP(5,$C$42:$AF$73,27,FALSE)) ->  | P11: =IF(HLOOKUP(5,$C$42:$AF$73,29,FALSE)=0,"",HLOOKUP(5,$C$42:$AF$73,29,FALSE)) -> 36 | Q11: =IF(HLOOKUP(5,$C$42:$AF$73,31,FALSE)=0,"",HLOOKUP(5,$C$42:$AF$73,31,FALSE)) ->  | U11: =IF(R10>0,1,0) -> 1
A12: =HLOOKUP(6,$C$42:$AF$76,35,FALSE) -> 6 | B12: =IF(HLOOKUP(6,C$42:AF$73,2,FALSE)=0,"",HLOOKUP(6,C$42:AF$73,2,FALSE)) -> De Triangel | C12: =IF(AND(B12<>"",B12<>"Individueel"),"1e cross","") -> 1e cross | E12: =IF(HLOOKUP(6,C$42:AF$73,6,FALSE)=0,"",HLOOKUP(6,C$42:AF$73,6,FALSE)) ->  | F12: =IF(HLOOKUP(6,$C$42:$AF$73,8,FALSE)=0,"",HLOOKUP(6,$C$42:$AF$73,8,FALSE)) -> 17 | G12: =IF(HLOOKUP(6,$C$42:$AF$73,10,FALSE)=0,"",HLOOKUP(6,$C$42:$AF$73,10,FALSE)) -> 55 | H12: =IF(HLOOKUP(6,$C$42:$AF$73,12,FALSE)=0,"",HLOOKUP(6,$C$42:$AF$73,12,FALSE)) -> 82 | I12: =IF(HLOOKUP(6,$C$42:$AF$73,14,FALSE)=0,"",HLOOKUP(6,$C$42:$AF$73,14,FALSE)) -> 46 | J12: =IF(HLOOKUP(6,$C$42:$AF$73,16,FALSE)=0,"",HLOOKUP(6,$C$42:$AF$73,16,FALSE)) ->  | K12: =IF(HLOOKUP(6,$C$42:$AF$73,18,FALSE)=0,"",HLOOKUP(6,$C$42:$AF$73,18,FALSE)) -> 49 | L12: =IF(HLOOKUP(6,$C$42:$AF$73,20,FALSE)=0,"",HLOOKUP(6,$C$42:$AF$73,20,FALSE)) -> 95 | M12: =IF(HLOOKUP(6,$C$42:$AF$73,22,FALSE)=0,"",HLOOKUP(6,$C$42:$AF$73,22,FALSE)) ->  | N12: =IF(HLOOKUP(6,$C$42:$AF$73,24,FALSE)=0,"",HLOOKUP(6,$C$42:$AF$73,24,FALSE)) -> 58 | O12: =IF(HLOOKUP(6,$C$42:$AF$73,26,FALSE)=0,"",HLOOKUP(6,$C$42:$AF$73,26,FALSE)) -> 68 | P12: =IF(HLOOKUP(6,$C$42:$AF$73,28,FALSE)=0,"",HLOOKUP(6,$C$42:$AF$73,28,FALSE)) ->  | Q12: =IF(HLOOKUP(6,$C$42:$AF$73,30,FALSE)=0,"",HLOOKUP(6,$C$42:$AF$73,30,FALSE)) -> 39 | R12: =SUM(D12:Q12,D13:Q13) -> 1130
C13: =IF(AND(B12<>"",B12<>"Individueel"),"2e cross","") -> 2e cross | D13: =IF(HLOOKUP(6,C$42:AF$73,5,FALSE)=0,"",HLOOKUP(6,C$42:AF$73,5,FALSE)) -> 82 | E13: =IF(HLOOKUP(6,C$42:AF$73,7,FALSE)=0,"",HLOOKUP(6,C$42:AF$73,7,FALSE)) ->  | F13: =IF(HLOOKUP(6,$C$42:$AF$73,9,FALSE)=0,"",HLOOKUP(6,$C$42:$AF$73,9,FALSE)) -> 53 | G13: =IF(HLOOKUP(6,$C$42:$AF$73,11,FALSE)=0,"",HLOOKUP(6,$C$42:$AF$73,11,FALSE)) -> 62 | H13: =IF(HLOOKUP(6,$C$42:$AF$73,13,FALSE)=0,"",HLOOKUP(6,$C$42:$AF$73,13,FALSE)) -> 59 | I13: =IF(HLOOKUP(6,$C$42:$AF$73,15,FALSE)=0,"",HLOOKUP(6,$C$42:$AF$73,15,FALSE)) -> 46 | J13: =IF(HLOOKUP(6,$C$42:$AF$73,17,FALSE)=0,"",HLOOKUP(6,$C$42:$AF$73,17,FALSE)) -> 30 | K13: =IF(HLOOKUP(6,$C$42:$AF$73,19,FALSE)=0,"",HLOOKUP(6,$C$42:$AF$73,19,FALSE)) -> 53 | L13: =IF(HLOOKUP(6,$C$42:$AF$73,21,FALSE)=0,"",HLOOKUP(6,$C$42:$AF$73,21,FALSE)) -> 94 | M13: =IF(HLOOKUP(6,$C$42:$AF$73,23,FALSE)=0,"",HLOOKUP(6,$C$42:$AF$73,23,FALSE)) ->  | N13: =IF(HLOOKUP(6,$C$42:$AF$73,25,FALSE)=0,"",HLOOKUP(6,$C$42:$AF$73,25,FALSE)) -> 36 | O13: =IF(HLOOKUP(6,$C$42:$AF$73,27,FALSE)=0,"",HLOOKUP(6,$C$42:$AF$73,27,FALSE)) -> 67 | P13: =IF(HLOOKUP(6,$C$42:$AF$73,29,FALSE)=0,"",HLOOKUP(6,$C$42:$AF$73,29,FALSE)) ->  | Q13: =IF(HLOOKUP(6,$C$42:$AF$73,31,FALSE)=0,"",HLOOKUP(6,$C$42:$AF$73,31,FALSE)) -> 39 | U13: =IF(R12>0,1,0) -> 1
A14: =HLOOKUP(7,$C$42:$AF$76,35,FALSE) -> 7 | B14: =IF(HLOOKUP(7,C$42:AF$73,2,FALSE)=0,"",HLOOKUP(7,C$42:AF$73,2,FALSE)) -> de Koperwiek | C14: =IF(AND(B14<>"",B14<>"Individueel"),"1e cross","") -> 1e cross | D14: =IF(HLOOKUP(7,C$42:AF$73,4,FALSE)=0,"",HLOOKUP(7,C$42:AF$73,4,FALSE)) -> 54 | E14: =IF(HLOOKUP(7,C$42:AF$73,6,FALSE)=0,"",HLOOKUP(7,C$42:AF$73,6,FALSE)) -> 19 | F14: =IF(HLOOKUP(7,$C$42:$AF$73,8,FALSE)=0,"",HLOOKUP(7,$C$42:$AF$73,8,FALSE)) -> 95 | G14: =IF(HLOOKUP(7,$C$42:$AF$73,10,FALSE)=0,"",HLOOKUP(7,$C$42:$AF$73,10,FALSE)) -> 57 | H14: =IF(HLOOKUP(7,$C$42:$AF$73,12,FALSE)=0,"",HLOOKUP(7,$C$42:$AF$73,12,FALSE)) -> 21 | I14: =IF(HLOOKUP(7,$C$42:$AF$73,14,FALSE)=0,"",HLOOKUP(7,$C$42:$AF$73,14,FALSE)) -> 81 | J14: =IF(HLOOKUP(7,$C$42:$AF$73,16,FALSE)=0,"",HLOOKUP(7,$C$42:$AF$73,16,FALSE)) -> 87 | K14: =IF(HLOOKUP(7,$C$42:$AF$73,18,FALSE)=0,"",HLOOKUP(7,$C$42:$AF$73,18,FALSE)) -> 51 | L14: =IF(HLOOKUP(7,$C$42:$AF$73,20,FALSE)=0,"",HLOOKUP(7,$C$42:$AF$73,20,FALSE)) -> 80 | M14: =IF(HLOOKUP(7,$C$42:$AF$73,22,FALSE)=0,"",HLOOKUP(7,$C$42:$AF$73,22,FALSE)) -> 53 | N14: =IF(HLOOKUP(7,$C$42:$AF$73,24,FALSE)=0,"",HLOOKUP(7,$C$42:$AF$73,24,FALSE)) -> 22 | O14: =IF(HLOOKUP(7,$C$42:$AF$73,26,FALSE)=0,"",HLOOKUP(7,$C$42:$AF$73,26,FALSE)) ->  | P14: =IF(HLOOKUP(7,$C$42:$AF$73,28,FALSE)=0,"",HLOOKUP(7,$C$42:$AF$73,28,FALSE)) ->  | Q14: =IF(HLOOKUP(7,$C$42:$AF$73,30,FALSE)=0,"",HLOOKUP(7,$C$42:$AF$73,30,FALSE)) -> 37 | R14: =SUM(D14:Q14,D15:Q15) -> 1102
C15: =IF(AND(B14<>"",B14<>"Individueel"),"2e cross","") -> 2e cross | D15: =IF(HLOOKUP(7,C$42:AF$73,5,FALSE)=0,"",HLOOKUP(7,C$42:AF$73,5,FALSE)) -> 41 | E15: =IF(HLOOKUP(7,C$42:AF$73,7,FALSE)=0,"",HLOOKUP(7,C$42:AF$73,7,FALSE)) ->  | F15: =IF(HLOOKUP(7,$C$42:$AF$73,9,FALSE)=0,"",HLOOKUP(7,$C$42:$AF$73,9,FALSE)) -> 86 | G15: =IF(HLOOKUP(7,$C$42:$AF$73,11,FALSE)=0,"",HLOOKUP(7,$C$42:$AF$73,11,FALSE)) -> 45 | H15: =IF(HLOOKUP(7,$C$42:$AF$73,13,FALSE)=0,"",HLOOKUP(7,$C$42:$AF$73,13,FALSE)) ->  | I15: =IF(HLOOKUP(7,$C$42:$AF$73,15,FALSE)=0,"",HLOOKUP(7,$C$42:$AF$73,15,FALSE)) -> 87 | J15: =IF(HLOOKUP(7,$C$42:$AF$73,17,FALSE)=0,"",HLOOKUP(7,$C$42:$AF$73,17,FALSE)) -> 77 | K15: =IF(HLOOKUP(7,$C$42:$AF$73,19,FALSE)=0,"",HLOOKUP(7,$C$42:$AF$73,19,FALSE)) -> 56 | L15: =IF(HLOOKUP(7,$C$42:$AF$73,21,FALSE)=0,"",HLOOKUP(7,$C$42:$AF$73,21,FALSE)) ->  | M15: =IF(HLOOKUP(7,$C$42:$AF$73,23,FALSE)=0,"",HLOOKUP(7,$C$42:$AF$73,23,FALSE)) -> 53 | N15: =IF(HLOOKUP(7,$C$42:$AF$73,25,FALSE)=0,"",HLOOKUP(7,$C$42:$AF$73,25,FALSE)) ->  | O15: =IF(HLOOKUP(7,$C$42:$AF$73,27,FALSE)=0,"",HLOOKUP(7,$C$42:$AF$73,27,FALSE)) ->  | P15: =IF(HLOOKUP(7,$C$42:$AF$73,29,FALSE)=0,"",HLOOKUP(7,$C$42:$AF$73,29,FALSE)) ->  | Q15: =IF(HLOOKUP($A14,$C$42:$AF$73,31,FALSE)=0,"",HLOOKUP($A14,$C$42:$AF$73,31,FALSE)) ->  | U15: =IF(R14>0,1,0) -> 1
A16: =HLOOKUP(8,$C$42:$AF$76,35,FALSE) -> 8 | B16: =IF(HLOOKUP(8,C$42:AF$73,2,FALSE)=0,"",HLOOKUP(8,C$42:AF$73,2,FALSE)) -> st.Josephschool | C16: =IF(AND(B16<>"",B16<>"Individueel"),"1e cross","") -> 1e cross | D16: =IF(HLOOKUP(8,C$42:AF$73,4,FALSE)=0,"",HLOOKUP(8,C$42:AF$73,4,FALSE)) -> 64 | E16: =IF(HLOOKUP(8,C$42:AF$73,6,FALSE)=0,"",HLOOKUP(8,C$42:AF$73,6,FALSE)) -> 66 | F16: =IF(HLOOKUP(8,$C$42:$AF$73,8,FALSE)=0,"",HLOOKUP(8,$C$42:$AF$73,8,FALSE)) -> 72 | G16: =IF(HLOOKUP(8,$C$42:$AF$73,10,FALSE)=0,"",HLOOKUP(8,$C$42:$AF$73,10,FALSE)) -> 56 | H16: =IF(HLOOKUP(8,$C$42:$AF$73,12,FALSE)=0,"",HLOOKUP(8,$C$42:$AF$73,12,FALSE)) ->  | I16: =IF(HLOOKUP(8,$C$42:$AF$73,14,FALSE)=0,"",HLOOKUP(8,$C$42:$AF$73,14,FALSE)) ->  | J16: =IF(HLOOKUP(8,$C$42:$AF$73,16,FALSE)=0,"",HLOOKUP(8,$C$42:$AF$73,16,FALSE)) -> 114 | K16: =IF(HLOOKUP(8,$C$42:$AF$73,18,FALSE)=0,"",HLOOKUP(8,$C$42:$AF$73,18,FALSE)) -> 73 | L16: =IF(HLOOKUP(8,$C$42:$AF$73,20,FALSE)=0,"",HLOOKUP(8,$C$42:$AF$73,20,FALSE)) ->  | M16: =IF(HLOOKUP(8,$C$42:$AF$73,22,FALSE)=0,"",HLOOKUP(8,$C$42:$AF$73,22,FALSE)) ->  | N16: =IF(HLOOKUP(8,$C$42:$AF$73,24,FALSE)=0,"",HLOOKUP(8,$C$42:$AF$73,24,FALSE)) -> 39 | O16: =IF(HLOOKUP(8,$C$42:$AF$73,26,FALSE)=0,"",HLOOKUP(8,$C$42:$AF$73,26,FALSE)) -> 39 | P16: =IF(HLOOKUP(8,$C$42:$AF$73,28,FALSE)=0,"",HLOOKUP(8,$C$42:$AF$73,28,FALSE)) ->  | Q16: =IF(HLOOKUP(8,$C$42:$AF$73,30,FALSE)=0,"",HLOOKUP(8,$C$42:$AF$73,30,FALSE)) ->  | R16: =SUM(D16:Q16,D17:Q17) -> 1039
C17: =IF(AND(B16<>"",B16<>"Individueel"),"2e cross","") -> 2e cross | D17: =IF(HLOOKUP(8,C$42:AF$73,5,FALSE)=0,"",HLOOKUP(8,C$42:AF$73,5,FALSE)) -> 65 | E17: =IF(HLOOKUP(8,C$42:AF$73,7,FALSE)=0,"",HLOOKUP(8,C$42:AF$73,7,FALSE)) -> 40 | F17: =IF(HLOOKUP(8,$C$42:$AF$73,9,FALSE)=0,"",HLOOKUP(8,$C$42:$AF$73,9,FALSE)) -> 74 | G17: =IF(HLOOKUP(8,$C$42:$AF$73,11,FALSE)=0,"",HLOOKUP(8,$C$42:$AF$73,11,FALSE)) -> 88 | H17: =IF(HLOOKUP(8,$C$42:$AF$73,13,FALSE)=0,"",HLOOKUP(8,$C$42:$AF$73,13,FALSE)) ->  | I17: =IF(HLOOKUP(8,$C$42:$AF$73,15,FALSE)=0,"",HLOOKUP(8,$C$42:$AF$73,15,FALSE)) ->  | J17: =IF(HLOOKUP(8,$C$42:$AF$73,17,FALSE)=0,"",HLOOKUP(8,$C$42:$AF$73,17,FALSE)) -> 108 | K17: =IF(HLOOKUP(8,$C$42:$AF$73,19,FALSE)=0,"",HLOOKUP(8,$C$42:$AF$73,19,FALSE)) -> 39 | L17: =IF(HLOOKUP(8,$C$42:$AF$73,21,FALSE)=0,"",HLOOKUP(8,$C$42:$AF$73,21,FALSE)) -> 31 | M17: =IF(HLOOKUP(8,$C$42:$AF$73,23,FALSE)=0,"",HLOOKUP(8,$C$42:$AF$73,23,FALSE)) ->  | N17: =IF(HLOOKUP(8,$C$42:$AF$73,25,FALSE)=0,"",HLOOKUP(8,$C$42:$AF$73,25,FALSE)) -> 32 | O17: =IF(HLOOKUP(8,$C$42:$AF$73,27,FALSE)=0,"",HLOOKUP(8,$C$42:$AF$73,27,FALSE)) -> 39 | P17: =IF(HLOOKUP(8,$C$42:$AF$73,29,FALSE)=0,"",HLOOKUP(8,$C$42:$AF$73,29,FALSE)) ->  | Q17: =IF(HLOOKUP(8,$C$42:$AF$73,31,FALSE)=0,"",HLOOKUP(8,$C$42:$AF$73,31,FALSE)) ->  | U17: =IF(R16>0,1,0) -> 1
A18: =HLOOKUP(9,$C$42:$AF$76,35,FALSE) -> 9 | B18: =IF(HLOOKUP(9,C$42:AF$73,2,FALSE)=0,"",HLOOKUP(9,C$42:AF$73,2,FALSE)) -> Het Lichtschip | C18: =IF(AND(B18<>"",B18<>"Individueel"),"1e cross","") -> 1e cross | D18: =IF(HLOOKUP(9,C$42:AF$73,4,FALSE)=0,"",HLOOKUP(9,C$42:AF$73,4,FALSE)) -> 25 | E18: =IF(HLOOKUP(9,C$42:AF$73,6,FALSE)=0,"",HLOOKUP(9,C$42:AF$73,6,FALSE)) -> 58 | F18: =IF(HLOOKUP(9,$C$42:$AF$73,8,FALSE)=0,"",HLOOKUP(9,$C$42:$AF$73,8,FALSE)) -> 99 | G18: =IF(HLOOKUP(9,$C$42:$AF$73,10,FALSE)=0,"",HLOOKUP(9,$C$42:$AF$73,10,FALSE)) -> 62 | H18: =IF(HLOOKUP(9,$C$42:$AF$73,12,FALSE)=0,"",HLOOKUP(9,$C$42:$AF$73,12,FALSE)) -> 29 | I18: =IF(HLOOKUP(9,$C$42:$AF$73,14,FALSE)=0,"",HLOOKUP(9,$C$42:$AF$73,14,FALSE)) -> 48 | J18: =IF(HLOOKUP(9,$C$42:$AF$73,16,FALSE)=0,"",HLOOKUP(9,$C$42:$AF$73,16,FALSE)) -> 62 | K18: =IF(HLOOKUP(9,$C$42:$AF$73,18,FALSE)=0,"",HLOOKUP(9,$C$42:$AF$73,18,FALSE)) -> 17 | L18: =IF(HLOOKUP(9,$C$42:$AF$73,20,FALSE)=0,"",HLOOKUP(9,$C$42:$AF$73,20,FALSE)) ->  | M18: =IF(HLOOKUP(9,$C$42:$AF$73,22,FALSE)=0,"",HLOOKUP(9,$C$42:$AF$73,22,FALSE)) ->  | N18: =IF(HLOOKUP(9,$C$42:$AF$73,24,FALSE)=0,"",HLOOKUP(9,$C$42:$AF$73,24,FALSE)) -> 38 | O18: =IF(HLOOKUP(9,$C$42:$AF$73,26,FALSE)=0,"",HLOOKUP(9,$C$42:$AF$73,26,FALSE)) ->  | P18: =IF(HLOOKUP(9,$C$42:$AF$73,28,FALSE)=0,"",HLOOKUP(9,$C$42:$AF$73,28,FALSE)) ->  | Q18: =IF(HLOOKUP(9,$C$42:$AF$73,30,FALSE)=0,"",HLOOKUP(9,$C$42:$AF$73,30,FALSE)) ->  | R18: =SUM(D18:Q18,D19:Q19) -> 840
C19: =IF(AND(B18<>"",B18<>"Individueel"),"2e cross","") -> 2e cross | D19: =IF(HLOOKUP(9,C$42:AF$73,5,FALSE)=0,"",HLOOKUP(9,C$42:AF$73,5,FALSE)) -> 30 | E19: =IF(HLOOKUP(9,C$42:AF$73,7,FALSE)=0,"",HLOOKUP(9,C$42:AF$73,7,FALSE)) -> 37 | F19: =IF(HLOOKUP(9,$C$42:$AF$73,9,FALSE)=0,"",HLOOKUP(9,$C$42:$AF$73,9,FALSE)) -> 90 | G19: =IF(HLOOKUP(9,$C$42:$AF$73,11,FALSE)=0,"",HLOOKUP(9,$C$42:$AF$73,11,FALSE)) -> 49 | H19: =IF(HLOOKUP(9,$C$42:$AF$73,13,FALSE)=0,"",HLOOKUP(9,$C$42:$AF$73,13,FALSE)) -> 21 | I19: =IF(HLOOKUP(9,$C$42:$AF$73,15,FALSE)=0,"",HLOOKUP(9,$C$42:$AF$73,15,FALSE)) -> 50 | J19: =IF(HLOOKUP(9,$C$42:$AF$73,17,FALSE)=0,"",HLOOKUP(9,$C$42:$AF$73,17,FALSE)) -> 87 | K19: =IF(HLOOKUP(9,$C$42:$AF$73,19,FALSE)=0,"",HLOOKUP(9,$C$42:$AF$73,19,FALSE)) ->  | L19: =IF(HLOOKUP(9,$C$42:$AF$73,21,FALSE)=0,"",HLOOKUP(9,$C$42:$AF$73,21,FALSE)) ->  | M19: =IF(HLOOKUP(9,$C$42:$AF$73,23,FALSE)=0,"",HLOOKUP(9,$C$42:$AF$73,23,FALSE)) ->  | N19: =IF(HLOOKUP(9,$C$42:$AF$73,25,FALSE)=0,"",HLOOKUP(9,$C$42:$AF$73,25,FALSE)) -> 38 | O19: =IF(HLOOKUP(9,$C$42:$AF$73,27,FALSE)=0,"",HLOOKUP(9,$C$42:$AF$73,27,FALSE)) ->  | P19: =IF(HLOOKUP(9,$C$42:$AF$73,29,FALSE)=0,"",HLOOKUP(9,$C$42:$AF$73,29,FALSE)) ->  | Q19: =IF(HLOOKUP(9,$C$42:$AF$73,31,FALSE)=0,"",HLOOKUP(9,$C$42:$AF$73,31,FALSE)) ->  | U19: =IF(R18>0,1,0) -> 1
A20: =HLOOKUP(10,$C$42:$AF$76,35,FALSE) -> 10 | B20: =IF(HLOOKUP(10,C$42:AF$73,2,FALSE)=0,"",HLOOKUP(10,C$42:AF$73,2,FALSE)) -> Combinatie Tollebeek | C20: =IF(AND(B20<>"",B20<>"Individueel"),"1e cross","") -> 1e cross | D20: =IF(HLOOKUP(10,C$42:AF$73,4,FALSE)=0,"",HLOOKUP(10,C$42:AF$73,4,FALSE)) -> 29 | E20: =IF(HLOOKUP(10,C$42:AF$73,6,FALSE)=0,"",HLOOKUP(10,C$42:AF$73,6,FALSE)) -> 25 | F20: =IF(HLOOKUP(10,$C$42:$AF$73,8,FALSE)=0,"",HLOOKUP(10,$C$42:$AF$73,8,FALSE)) ->  | G20: =IF(HLOOKUP(10,$C$42:$AF$73,10,FALSE)=0,"",HLOOKUP(10,$C$42:$AF$73,10,FALSE)) -> 78 | H20: =IF(HLOOKUP(10,$C$42:$AF$73,12,FALSE)=0,"",HLOOKUP(10,$C$42:$AF$73,12,FALSE)) -> 25 | I20: =IF(HLOOKUP(10,$C$42:$AF$73,14,FALSE)=0,"",HLOOKUP(10,$C$42:$AF$73,14,FALSE)) -> 53 | J20: =IF(HLOOKUP(10,$C$42:$AF$73,16,FALSE)=0,"",HLOOKUP(10,$C$42:$AF$73,16,FALSE)) -> 21 | K20: =IF(HLOOKUP(10,$C$42:$AF$73,18,FALSE)=0,"",HLOOKUP(10,$C$42:$AF$73,18,FALSE)) -> 54 | L20: =IF(HLOOKUP(10,$C$42:$AF$73,20,FALSE)=0,"",HLOOKUP(10,$C$42:$AF$73,20,FALSE)) ->  | M20: =IF(HLOOKUP(10,$C$42:$AF$73,22,FALSE)=0,"",HLOOKUP(10,$C$42:$AF$73,22,FALSE)) -> 39 | N20: =IF(HLOOKUP(10,$C$42:$AF$73,24,FALSE)=0,"",HLOOKUP(10,$C$42:$AF$73,24,FALSE)) ->  | O20: =IF(HLOOKUP(10,$C$42:$AF$73,26,FALSE)=0,"",HLOOKUP(10,$C$42:$AF$73,26,FALSE)) -> 69 | P20: =IF(HLOOKUP(10,$C$42:$AF$73,28,FALSE)=0,"",HLOOKUP(10,$C$42:$AF$73,28,FALSE)) ->  | Q20: =IF(HLOOKUP(10,$C$42:$AF$73,30,FALSE)=0,"",HLOOKUP(10,$C$42:$AF$73,30,FALSE)) ->  | R20: =SUM(D20:Q20,D21:Q21) -> 762
C21: =IF(AND(B20<>"",B20<>"Individueel"),"2e cross","") -> 2e cross | D21: =IF(HLOOKUP(10,C$42:AF$73,5,FALSE)=0,"",HLOOKUP(10,C$42:AF$73,5,FALSE)) ->  | E21: =IF(HLOOKUP(10,C$42:AF$73,7,FALSE)=0,"",HLOOKUP(10,C$42:AF$73,7,FALSE)) -> 29 | F21: =IF(HLOOKUP(10,$C$42:$AF$73,9,FALSE)=0,"",HLOOKUP(10,$C$42:$AF$73,9,FALSE)) ->  | G21: =IF(HLOOKUP(10,$C$42:$AF$73,11,FALSE)=0,"",HLOOKUP(10,$C$42:$AF$73,11,FALSE)) -> 76 | H21: =IF(HLOOKUP(10,$C$42:$AF$73,13,FALSE)=0,"",HLOOKUP(10,$C$42:$AF$73,13,FALSE)) -> 24 | I21: =IF(HLOOKUP(10,$C$42:$AF$73,15,FALSE)=0,"",HLOOKUP(10,$C$42:$AF$73,15,FALSE)) -> 35 | J21: =IF(HLOOKUP(10,$C$42:$AF$73,17,FALSE)=0,"",HLOOKUP(10,$C$42:$AF$73,17,FALSE)) -> 37 | K21: =IF(HLOOKUP(10,$C$42:$AF$73,19,FALSE)=0,"",HLOOKUP(10,$C$42:$AF$73,19,FALSE)) -> 28 | L21: =IF(HLOOKUP(10,$C$42:$AF$73,21,FALSE)=0,"",HLOOKUP(10,$C$42:$AF$73,21,FALSE)) ->  | M21: =IF(HLOOKUP(10,$C$42:$AF$73,23,FALSE)=0,"",HLOOKUP(10,$C$42:$AF$73,23,FALSE)) -> 38 | N21: =IF(HLOOKUP(10,$C$42:$AF$73,25,FALSE)=0,"",HLOOKUP(10,$C$42:$AF$73,25,FALSE)) ->  | O21: =IF(HLOOKUP(10,$C$42:$AF$73,27,FALSE)=0,"",HLOOKUP(10,$C$42:$AF$73,27,FALSE)) -> 67 | P21: =IF(HLOOKUP(10,$C$42:$AF$73,29,FALSE)=0,"",HLOOKUP(10,$C$42:$AF$73,29,FALSE)) -> 35 | Q21: =IF(HLOOKUP(10,$C$42:$AF$73,31,FALSE)=0,"",HLOOKUP(10,$C$42:$AF$73,31,FALSE)) ->  | U21: =IF(R20>0,1,0) -> 1
A22: =HLOOKUP(11,$C$42:$AF$76,35,FALSE) -> 11 | B22: =IF(HLOOKUP(11,C$42:AF$73,2,FALSE)=0,"",HLOOKUP(11,C$42:AF$73,2,FALSE)) -> Roderik van Voorst | C22: =IF(AND(B22<>"",B22<>"Individueel"),"1e cross","") -> 1e cross | D22: =IF(HLOOKUP(11,C$42:AF$73,4,FALSE)=0,"",HLOOKUP(11,C$42:AF$73,4,FALSE)) -> 24 | E22: =IF(HLOOKUP(11,C$42:AF$73,6,FALSE)=0,"",HLOOKUP(11,C$42:AF$73,6,FALSE)) -> 56 | F22: =IF(HLOOKUP(11,$C$42:$AF$73,8,FALSE)=0,"",HLOOKUP(11,$C$42:$AF$73,8,FALSE)) -> 75 | G22: =IF(HLOOKUP(11,$C$42:$AF$73,10,FALSE)=0,"",HLOOKUP(11,$C$42:$AF$73,10,FALSE)) -> 21 | H22: =IF(HLOOKUP(11,$C$42:$AF$73,12,FALSE)=0,"",HLOOKUP(11,$C$42:$AF$73,12,FALSE)) -> 93 | I22: =IF(HLOOKUP(11,$C$42:$AF$73,14,FALSE)=0,"",HLOOKUP(11,$C$42:$AF$73,14,FALSE)) ->  | J22: =IF(HLOOKUP(11,$C$42:$AF$73,16,FALSE)=0,"",HLOOKUP(11,$C$42:$AF$73,16,FALSE)) -> 79 | K22: =IF(HLOOKUP(11,$C$42:$AF$73,18,FALSE)=0,"",HLOOKUP(11,$C$42:$AF$73,18,FALSE)) -> 56 | L22: =IF(HLOOKUP(11,$C$42:$AF$73,20,FALSE)=0,"",HLOOKUP(11,$C$42:$AF$73,20,FALSE)) ->  | M22: =IF(HLOOKUP(11,$C$42:$AF$73,22,FALSE)=0,"",HLOOKUP(11,$C$42:$AF$73,22,FALSE)) ->  | N22: =IF(HLOOKUP(11,$C$42:$AF$73,24,FALSE)=0,"",HLOOKUP(11,$C$42:$AF$73,24,FALSE)) ->  | O22: =IF(HLOOKUP(11,$C$42:$AF$73,26,FALSE)=0,"",HLOOKUP(11,$C$42:$AF$73,26,FALSE)) ->  | P22: =IF(HLOOKUP(11,$C$42:$AF$73,28,FALSE)=0,"",HLOOKUP(11,$C$42:$AF$73,28,FALSE)) ->  | Q22: =IF(HLOOKUP(11,$C$42:$AF$73,30,FALSE)=0,"",HLOOKUP(11,$C$42:$AF$73,30,FALSE)) ->  | R22: =SUM(D22:Q22,D23:Q23) -> 667
C23: =IF(AND(B22<>"",B22<>"Individueel"),"2e cross","") -> 2e cross | D23: =IF(HLOOKUP(11,C$42:AF$73,5,FALSE)=0,"",HLOOKUP(11,C$42:AF$73,5,FALSE)) -> 24 | E23: =IF(HLOOKUP(11,C$42:AF$73,7,FALSE)=0,"",HLOOKUP(11,C$42:AF$73,7,FALSE)) -> 35 | F23: =IF(HLOOKUP(11,$C$42:$AF$73,9,FALSE)=0,"",HLOOKUP(11,$C$42:$AF$73,9,FALSE)) -> 38 | G23: =IF(HLOOKUP(11,$C$42:$AF$73,11,FALSE)=0,"",HLOOKUP(11,$C$42:$AF$73,11,FALSE)) -> 20 | H23: =IF(HLOOKUP(11,$C$42:$AF$73,13,FALSE)=0,"",HLOOKUP(11,$C$42:$AF$73,13,FALSE)) -> 82 | I23: =IF(HLOOKUP(11,$C$42:$AF$73,15,FALSE)=0,"",HLOOKUP(11,$C$42:$AF$73,15,FALSE)) ->  | J23: =IF(HLOOKUP(11,$C$42:$AF$73,17,FALSE)=0,"",HLOOKUP(11,$C$42:$AF$73,17,FALSE)) -> 31 | K23: =IF(HLOOKUP(11,$C$42:$AF$73,19,FALSE)=0,"",HLOOKUP(11,$C$42:$AF$73,19,FALSE)) -> 33 | L23: =IF(HLOOKUP(11,$C$42:$AF$73,21,FALSE)=0,"",HLOOKUP(11,$C$42:$AF$73,21,FALSE)) ->  | M23: =IF(HLOOKUP(11,$C$42:$AF$73,23,FALSE)=0,"",HLOOKUP(11,$C$42:$AF$73,23,FALSE)) ->  | N23: =IF(HLOOKUP(11,$C$42:$AF$73,25,FALSE)=0,"",HLOOKUP(11,$C$42:$AF$73,25,FALSE)) ->  | O23: =IF(HLOOKUP(11,$C$42:$AF$73,27,FALSE)=0,"",HLOOKUP(11,$C$42:$AF$73,27,FALSE)) ->  | P23: =IF(HLOOKUP(11,$C$42:$AF$73,29,FALSE)=0,"",HLOOKUP(11,$C$42:$AF$73,29,FALSE)) ->  | Q23: =IF(HLOOKUP(11,$C$42:$AF$73,31,FALSE)=0,"",HLOOKUP(11,$C$42:$AF$73,31,FALSE)) ->  | U23: =IF(R22>0,1,0) -> 1
A24: =HLOOKUP(12,$C$42:$AF$76,35,FALSE) -> 12 | B24: =IF(HLOOKUP(12,C$42:AF$73,2,FALSE)=0,"",HLOOKUP(12,C$42:AF$73,2,FALSE)) -> Albert Schweitzerschool | C24: =IF(AND(B24<>"",B24<>"Individueel"),"1e cross","") -> 1e cross | D24: =IF(HLOOKUP(12,C$42:AF$73,4,FALSE)=0,"",HLOOKUP(12,C$42:AF$73,4,FALSE)) ->  | E24: =IF(HLOOKUP(12,C$42:AF$73,6,FALSE)=0,"",HLOOKUP(12,C$42:AF$73,6,FALSE)) ->  | F24: =IF(HLOOKUP(12,$C$42:$AF$73,8,FALSE)=0,"",HLOOKUP(12,$C$42:$AF$73,8,FALSE)) ->  | G24: =IF(HLOOKUP(12,$C$42:$AF$73,10,FALSE)=0,"",HLOOKUP(12,$C$42:$AF$73,10,FALSE)) -> 14 | H24: =IF(HLOOKUP(12,$C$42:$AF$73,12,FALSE)=0,"",HLOOKUP(12,$C$42:$AF$73,12,FALSE)) -> 55 | I24: =IF(HLOOKUP(12,$C$42:$AF$73,14,FALSE)=0,"",HLOOKUP(12,$C$42:$AF$73,14,FALSE)) -> 89 | J24: =IF(HLOOKUP(12,$C$42:$AF$73,16,FALSE)=0,"",HLOOKUP(12,$C$42:$AF$73,16,FALSE)) -> 24 | K24: =IF(HLOOKUP(12,$C$42:$AF$73,18,FALSE)=0,"",HLOOKUP(12,$C$42:$AF$73,18,FALSE)) ->  | L24: =IF(HLOOKUP(12,$C$42:$AF$73,20,FALSE)=0,"",HLOOKUP(12,$C$42:$AF$73,20,FALSE)) ->  | M24: =IF(HLOOKUP(12,$C$42:$AF$73,22,FALSE)=0,"",HLOOKUP(12,$C$42:$AF$73,22,FALSE)) -> 88 | N24: =IF(HLOOKUP(12,$C$42:$AF$73,24,FALSE)=0,"",HLOOKUP(12,$C$42:$AF$73,24,FALSE)) ->  | O24: =IF(HLOOKUP(12,$C$42:$AF$73,26,FALSE)=0,"",HLOOKUP(12,$C$42:$AF$73,26,FALSE)) -> 34 | P24: =IF(HLOOKUP(12,$C$42:$AF$73,28,FALSE)=0,"",HLOOKUP(12,$C$42:$AF$73,28,FALSE)) ->  | Q24: =IF(HLOOKUP(12,$C$42:$AF$73,30,FALSE)=0,"",HLOOKUP(12,$C$42:$AF$73,30,FALSE)) ->  | R24: =SUM(D24:Q24,D25:Q25) -> 548
C25: =IF(AND(B24<>"",B24<>"Individueel"),"2e cross","") -> 2e cross | D25: =IF(HLOOKUP(12,C$42:AF$73,5,FALSE)=0,"",HLOOKUP(12,C$42:AF$73,5,FALSE)) ->  | E25: =IF(HLOOKUP(12,C$42:AF$73,7,FALSE)=0,"",HLOOKUP(12,C$42:AF$73,7,FALSE)) ->  | F25: =IF(HLOOKUP(12,$C$42:$AF$73,9,FALSE)=0,"",HLOOKUP(12,$C$42:$AF$73,9,FALSE)) ->  | G25: =IF(HLOOKUP(12,$C$42:$AF$73,11,FALSE)=0,"",HLOOKUP(12,$C$42:$AF$73,11,FALSE)) -> 15 | H25: =IF(HLOOKUP(12,$C$42:$AF$73,13,FALSE)=0,"",HLOOKUP(12,$C$42:$AF$73,13,FALSE)) -> 38 | I25: =IF(HLOOKUP(12,$C$42:$AF$73,15,FALSE)=0,"",HLOOKUP(12,$C$42:$AF$73,15,FALSE)) -> 77 | J25: =IF(HLOOKUP(12,$C$42:$AF$73,17,FALSE)=0,"",HLOOKUP(12,$C$42:$AF$73,17,FALSE)) -> 21 | K25: =IF(HLOOKUP(12,$C$42:$AF$73,19,FALSE)=0,"",HLOOKUP(12,$C$42:$AF$73,19,FALSE)) ->  | L25: =IF(HLOOKUP(12,$C$42:$AF$73,21,FALSE)=0,"",HLOOKUP(12,$C$42:$AF$73,21,FALSE)) ->  | M25: =IF(HLOOKUP(12,$C$42:$AF$73,23,FALSE)=0,"",HLOOKUP(12,$C$42:$AF$73,23,FALSE)) -> 60 | N25: =IF(HLOOKUP(12,$C$42:$AF$73,25,FALSE)=0,"",HLOOKUP(12,$C$42:$AF$73,25,FALSE)) ->  | O25: =IF(HLOOKUP(12,$C$42:$AF$73,27,FALSE)=0,"",HLOOKUP(12,$C$42:$AF$73,27,FALSE)) -> 33 | P25: =IF(HLOOKUP(12,$C$42:$AF$73,29,FALSE)=0,"",HLOOKUP(12,$C$42:$AF$73,29,FALSE)) ->  | Q25: =IF(HLOOKUP(12,$C$42:$AF$73,31,FALSE)=0,"",HLOOKUP(12,$C$42:$AF$73,31,FALSE)) ->  | U25: =IF(R24>0,1,0) -> 1
A26: =HLOOKUP(13,$C$42:$AF$76,35,FALSE) -> 13 | B26: =IF(HLOOKUP(13,C$42:AF$73,2,FALSE)=0,"",HLOOKUP(13,C$42:AF$73,2,FALSE)) -> Fondali | C26: =IF(AND(B26<>"",B26<>"Individueel"),"1e cross","") -> 1e cross | D26: =IF(HLOOKUP(13,C$42:AF$73,4,FALSE)=0,"",HLOOKUP(13,C$42:AF$73,4,FALSE)) ->  | E26: =IF(HLOOKUP(1,D$42:AG$73,5,FALSE)=0,"",HLOOKUP(1,D$42:AG$73,5,FALSE)) -> 110 | F26: =IF(HLOOKUP(13,$C$42:$AF$73,8,FALSE)=0,"",HLOOKUP(13,$C$42:$AF$73,8,FALSE)) ->  | G26: =IF(HLOOKUP(13,$C$42:$AF$73,10,FALSE)=0,"",HLOOKUP(13,$C$42:$AF$73,10,FALSE)) ->  | H26: =IF(HLOOKUP(13,$C$42:$AF$73,12,FALSE)=0,"",HLOOKUP(13,$C$42:$AF$73,12,FALSE)) -> 38 | I26: =IF(HLOOKUP(13,$C$42:$AF$73,14,FALSE)=0,"",HLOOKUP(13,$C$42:$AF$73,14,FALSE)) ->  | J26: =IF(HLOOKUP(13,$C$42:$AF$73,16,FALSE)=0,"",HLOOKUP(13,$C$42:$AF$73,16,FALSE)) ->  | K26: =IF(HLOOKUP(13,$C$42:$AF$73,18,FALSE)=0,"",HLOOKUP(13,$C$42:$AF$73,18,FALSE)) ->  | L26: =IF(HLOOKUP(13,$C$42:$AF$73,20,FALSE)=0,"",HLOOKUP(13,$C$42:$AF$73,20,FALSE)) ->  | M26: =IF(HLOOKUP(13,$C$42:$AF$73,22,FALSE)=0,"",HLOOKUP(13,$C$42:$AF$73,22,FALSE)) ->  | N26: =IF(HLOOKUP(13,$C$42:$AF$73,24,FALSE)=0,"",HLOOKUP(13,$C$42:$AF$73,24,FALSE)) -> 37 | O26: =IF(HLOOKUP(13,$C$42:$AF$73,26,FALSE)=0,"",HLOOKUP(13,$C$42:$AF$73,26,FALSE)) ->  | P26: =IF(HLOOKUP(13,$C$42:$AF$73,28,FALSE)=0,"",HLOOKUP(13,$C$42:$AF$73,28,FALSE)) ->  | Q26: =IF(HLOOKUP(13,$C$42:$AF$73,30,FALSE)=0,"",HLOOKUP(13,$C$42:$AF$73,30,FALSE)) ->  | R26: =SUM(D26:Q26,D27:Q27) -> 224
C27: =IF(AND(B26<>"",B26<>"Individueel"),"2e cross","") -> 2e cross | D27: =IF(HLOOKUP(13,C$42:AF$73,5,FALSE)=0,"",HLOOKUP(13,C$42:AF$73,5,FALSE)) ->  | E27: =IF(HLOOKUP(13,C$42:AF$73,7,FALSE)=0,"",HLOOKUP(13,C$42:AF$73,7,FALSE)) ->  | F27: =IF(HLOOKUP(13,$C$42:$AF$73,9,FALSE)=0,"",HLOOKUP(13,$C$42:$AF$73,9,FALSE)) ->  | G27: =IF(HLOOKUP(13,$C$42:$AF$73,11,FALSE)=0,"",HLOOKUP(13,$C$42:$AF$73,11,FALSE)) ->  | H27: =IF(HLOOKUP(13,$C$42:$AF$73,13,FALSE)=0,"",HLOOKUP(13,$C$42:$AF$73,13,FALSE)) -> 39 | I27: =IF(HLOOKUP(13,$C$42:$AF$73,15,FALSE)=0,"",HLOOKUP(13,$C$42:$AF$73,15,FALSE)) ->  | J27: =IF(HLOOKUP(13,$C$42:$AF$73,17,FALSE)=0,"",HLOOKUP(13,$C$42:$AF$73,17,FALSE)) ->  | K27: =IF(HLOOKUP(13,$C$42:$AF$73,19,FALSE)=0,"",HLOOKUP(13,$C$42:$AF$73,19,FALSE)) ->  | L27: =IF(HLOOKUP(13,$C$42:$AF$73,21,FALSE)=0,"",HLOOKUP(13,$C$42:$AF$73,21,FALSE)) ->  | M27: =IF(HLOOKUP(13,$C$42:$AF$73,23,FALSE)=0,"",HLOOKUP(13,$C$42:$AF$73,23,FALSE)) ->  | N27: =IF(HLOOKUP(13,$C$42:$AF$73,25,FALSE)=0,"",HLOOKUP(13,$C$42:$AF$73,25,FALSE)) ->  | O27: =IF(HLOOKUP(13,$C$42:$AF$73,27,FALSE)=0,"",HLOOKUP(13,$C$42:$AF$73,27,FALSE)) ->  | P27: =IF(HLOOKUP(13,$C$42:$AF$73,29,FALSE)=0,"",HLOOKUP(13,$C$42:$AF$73,29,FALSE)) ->  | Q27: =IF(HLOOKUP(13,$C$42:$AF$73,31,FALSE)=0,"",HLOOKUP(13,$C$42:$AF$73,31,FALSE)) ->  | U27: =IF(R26>0,1,0) -> 1
A28: =HLOOKUP(14,$C$42:$AF$76,35,FALSE) -> 14 | B28: =IF(HLOOKUP(14,C$42:AF$73,2,FALSE)=0,"",HLOOKUP(14,C$42:AF$73,2,FALSE)) -> OBS de Driesprong | C28: =IF(AND(B28<>"",B28<>"Individueel"),"1e cross","") -> 1e cross | D28: =IF(HLOOKUP(14,C$42:AF$73,4,FALSE)=0,"",HLOOKUP(14,C$42:AF$73,4,FALSE)) ->  | E28: =IF(HLOOKUP(14,C$42:AF$73,6,FALSE)=0,"",HLOOKUP(14,C$42:AF$73,6,FALSE)) ->  | F28: =IF(HLOOKUP(14,$C$42:$AF$73,8,FALSE)=0,"",HLOOKUP(14,$C$42:$AF$73,8,FALSE)) ->  | G28: =IF(HLOOKUP(14,$C$42:$AF$73,10,FALSE)=0,"",HLOOKUP(14,$C$42:$AF$73,10,FALSE)) ->  | H28: =IF(HLOOKUP(14,$C$42:$AF$73,12,FALSE)=0,"",HLOOKUP(14,$C$42:$AF$73,12,FALSE)) ->  | I28: =IF(HLOOKUP(14,$C$42:$AF$73,14,FALSE)=0,"",HLOOKUP(14,$C$42:$AF$73,14,FALSE)) ->  | J28: =IF(HLOOKUP(14,$C$42:$AF$73,16,FALSE)=0,"",HLOOKUP(14,$C$42:$AF$73,16,FALSE)) ->  | K28: =IF(HLOOKUP(14,$C$42:$AF$73,18,FALSE)=0,"",HLOOKUP(14,$C$42:$AF$73,18,FALSE)) ->  | L28: =IF(HLOOKUP(14,$C$42:$AF$73,20,FALSE)=0,"",HLOOKUP(14,$C$42:$AF$73,20,FALSE)) ->  | M28: =IF(HLOOKUP(14,$C$42:$AF$73,22,FALSE)=0,"",HLOOKUP(14,$C$42:$AF$73,22,FALSE)) ->  | N28: =IF(HLOOKUP(14,$C$42:$AF$73,24,FALSE)=0,"",HLOOKUP(14,$C$42:$AF$73,24,FALSE)) -> 23 | O28: =IF(HLOOKUP(14,$C$42:$AF$73,26,FALSE)=0,"",HLOOKUP(14,$C$42:$AF$73,26,FALSE)) ->  | P28: =IF(HLOOKUP(14,$C$42:$AF$73,28,FALSE)=0,"",HLOOKUP(14,$C$42:$AF$73,28,FALSE)) ->  | Q28: =IF(HLOOKUP(14,$C$42:$AF$73,30,FALSE)=0,"",HLOOKUP(14,$C$42:$AF$73,30,FALSE)) ->  | R28: =SUM(D28:Q28,D29:Q29) -> 23
C29: =IF(AND(B28<>"",B28<>"Individueel"),"2e cross","") -> 2e cross | D29: =IF(HLOOKUP(14,C$42:AF$73,5,FALSE)=0,"",HLOOKUP(14,C$42:AF$73,5,FALSE)) ->  | E29: =IF(HLOOKUP(14,C$42:AF$73,7,FALSE)=0,"",HLOOKUP(14,C$42:AF$73,7,FALSE)) ->  | F29: =IF(HLOOKUP(14,$C$42:$AF$73,9,FALSE)=0,"",HLOOKUP(14,$C$42:$AF$73,9,FALSE)) ->  | G29: =IF(HLOOKUP(14,$C$42:$AF$73,11,FALSE)=0,"",HLOOKUP(14,$C$42:$AF$73,11,FALSE)) ->  | H29: =IF(HLOOKUP(14,$C$42:$AF$73,13,FALSE)=0,"",HLOOKUP(14,$C$42:$AF$73,13,FALSE)) ->  | I29: =IF(HLOOKUP(14,$C$42:$AF$73,15,FALSE)=0,"",HLOOKUP(14,$C$42:$AF$73,15,FALSE)) ->  | J29: =IF(HLOOKUP(14,$C$42:$AF$73,17,FALSE)=0,"",HLOOKUP(14,$C$42:$AF$73,17,FALSE)) ->  | K29: =IF(HLOOKUP(14,$C$42:$AF$73,19,FALSE)=0,"",HLOOKUP(14,$C$42:$AF$73,19,FALSE)) ->  | L29: =IF(HLOOKUP(14,$C$42:$AF$73,21,FALSE)=0,"",HLOOKUP(14,$C$42:$AF$73,21,FALSE)) ->  | M29: =IF(HLOOKUP(14,$C$42:$AF$73,23,FALSE)=0,"",HLOOKUP(14,$C$42:$AF$73,23,FALSE)) ->  | N29: =IF(HLOOKUP(14,$C$42:$AF$73,25,FALSE)=0,"",HLOOKUP(14,$C$42:$AF$73,25,FALSE)) ->  | O29: =IF(HLOOKUP(14,$C$42:$AF$73,27,FALSE)=0,"",HLOOKUP(14,$C$42:$AF$73,27,FALSE)) ->  | P29: =IF(HLOOKUP(14,$C$42:$AF$73,29,FALSE)=0,"",HLOOKUP(14,$C$42:$AF$73,29,FALSE)) ->  | Q29: =IF(HLOOKUP(14,$C$42:$AF$73,31,FALSE)=0,"",HLOOKUP(14,$C$42:$AF$73,31,FALSE)) ->  | U29: =IF(R28>0,1,0) -> 1
A30: =HLOOKUP(15,$C$42:$AF$76,35,FALSE) -> 15 | B30: =IF(HLOOKUP(15,C$42:AF$73,2,FALSE)=0,"",HLOOKUP(15,C$42:AF$73,2,FALSE)) -> Individueel | C30: =IF(AND(B30<>"",B30<>"Individueel"),"1e cross","") ->  | D30: =IF(HLOOKUP(15,C$42:AF$73,4,FALSE)=0,"",HLOOKUP(15,C$42:AF$73,4,FALSE)) ->  | E30: =IF(HLOOKUP(15,C$42:AF$73,6,FALSE)=0,"",HLOOKUP(15,C$42:AF$73,6,FALSE)) ->  | F30: =IF(HLOOKUP(15,$C$42:$AF$73,8,FALSE)=0,"",HLOOKUP(15,$C$42:$AF$73,8,FALSE)) ->  | G30: =IF(HLOOKUP(15,$C$42:$AF$73,10,FALSE)=0,"",HLOOKUP(15,$C$42:$AF$73,10,FALSE)) ->  | H30: =IF(HLOOKUP(15,$C$42:$AF$73,12,FALSE)=0,"",HLOOKUP(15,$C$42:$AF$73,12,FALSE)) ->  | I30: =IF(HLOOKUP(15,$C$42:$AF$73,14,FALSE)=0,"",HLOOKUP(15,$C$42:$AF$73,14,FALSE)) ->  | J30: =IF(HLOOKUP(15,$C$42:$AF$73,16,FALSE)=0,"",HLOOKUP(15,$C$42:$AF$73,16,FALSE)) ->  | K30: =IF(HLOOKUP(15,$C$42:$AF$73,18,FALSE)=0,"",HLOOKUP(15,$C$42:$AF$73,18,FALSE)) ->  | L30: =IF(HLOOKUP(15,$C$42:$AF$73,20,FALSE)=0,"",HLOOKUP(15,$C$42:$AF$73,20,FALSE)) ->  | M30: =IF(HLOOKUP(15,$C$42:$AF$73,22,FALSE)=0,"",HLOOKUP(15,$C$42:$AF$73,22,FALSE)) ->  | N30: =IF(HLOOKUP(15,$C$42:$AF$73,24,FALSE)=0,"",HLOOKUP(15,$C$42:$AF$73,24,FALSE)) ->  | O30: =IF(HLOOKUP(15,$C$42:$AF$73,26,FALSE)=0,"",HLOOKUP(15,$C$42:$AF$73,26,FALSE)) ->  | P30: =IF(HLOOKUP(15,$C$42:$AF$73,28,FALSE)=0,"",HLOOKUP(15,$C$42:$AF$73,28,FALSE)) ->  | Q30: =IF(HLOOKUP(15,$C$42:$AF$73,30,FALSE)=0,"",HLOOKUP(15,$C$42:$AF$73,30,FALSE)) ->  | R30: =SUM(D30:Q30,D31:Q31) -> 0
C31: =IF(AND(B30<>"",B30<>"Individueel"),"2e cross","") ->  | D31: =IF(HLOOKUP(15,C$42:AF$73,5,FALSE)=0,"",HLOOKUP(15,C$42:AF$73,5,FALSE)) ->  | E31: =IF(HLOOKUP(15,C$42:AF$73,7,FALSE)=0,"",HLOOKUP(15,C$42:AF$73,7,FALSE)) ->  | F31: =IF(HLOOKUP(15,$C$42:$AF$73,9,FALSE)=0,"",HLOOKUP(15,$C$42:$AF$73,9,FALSE)) ->  | G31: =IF(HLOOKUP(15,$C$42:$AF$73,11,FALSE)=0,"",HLOOKUP(15,$C$42:$AF$73,11,FALSE)) ->  | H31: =IF(HLOOKUP(15,$C$42:$AF$73,13,FALSE)=0,"",HLOOKUP(15,$C$42:$AF$73,13,FALSE)) ->  | I31: =IF(HLOOKUP(15,$C$42:$AF$73,15,FALSE)=0,"",HLOOKUP(15,$C$42:$AF$73,15,FALSE)) ->  | J31: =IF(HLOOKUP(15,$C$42:$AF$73,17,FALSE)=0,"",HLOOKUP(15,$C$42:$AF$73,17,FALSE)) ->  | K31: =IF(HLOOKUP(15,$C$42:$AF$73,19,FALSE)=0,"",HLOOKUP(15,$C$42:$AF$73,19,FALSE)) ->  | L31: =IF(HLOOKUP(15,$C$42:$AF$73,21,FALSE)=0,"",HLOOKUP(15,$C$42:$AF$73,21,FALSE)) ->  | M31: =IF(HLOOKUP(15,$C$42:$AF$73,23,FALSE)=0,"",HLOOKUP(15,$C$42:$AF$73,23,FALSE)) ->  | N31: =IF(HLOOKUP(15,$C$42:$AF$73,25,FALSE)=0,"",HLOOKUP(15,$C$42:$AF$73,25,FALSE)) ->  | O31: =IF(HLOOKUP(15,$C$42:$AF$73,27,FALSE)=0,"",HLOOKUP(15,$C$42:$AF$73,27,FALSE)) ->  | P31: =IF(HLOOKUP(15,$C$42:$AF$73,29,FALSE)=0,"",HLOOKUP(15,$C$42:$AF$73,29,FALSE)) ->  | Q31: =IF(HLOOKUP(15,$C$42:$AF$73,31,FALSE)=0,"",HLOOKUP(15,$C$42:$AF$73,31,FALSE)) ->  | U31: =IF(R30>0,1,0) -> 0
A32: =HLOOKUP(16,$C$42:$AF$76,35,FALSE) -> 15 | C32: =IF(AND(B32<>"",B32<>"Individueel"),"1e cross","") ->  | D32: =IF(HLOOKUP(16,C$42:AF$73,4,FALSE)=0,"",HLOOKUP(16,C$42:AF$73,4,FALSE)) ->  | E32: =IF(HLOOKUP(16,C$42:AF$73,6,FALSE)=0,"",HLOOKUP(16,C$42:AF$73,6,FALSE)) ->  | F32: =IF(HLOOKUP(16,$C$42:$AF$73,8,FALSE)=0,"",HLOOKUP(16,$C$42:$AF$73,8,FALSE)) ->  | G32: =IF(HLOOKUP(16,$C$42:$AF$73,10,FALSE)=0,"",HLOOKUP(16,$C$42:$AF$73,10,FALSE)) ->  | H32: =IF(HLOOKUP(16,$C$42:$AF$73,12,FALSE)=0,"",HLOOKUP(16,$C$42:$AF$73,12,FALSE)) ->  | I32: =IF(HLOOKUP(16,$C$42:$AF$73,14,FALSE)=0,"",HLOOKUP(16,$C$42:$AF$73,14,FALSE)) ->  | J32: =IF(HLOOKUP(16,$C$42:$AF$73,16,FALSE)=0,"",HLOOKUP(16,$C$42:$AF$73,16,FALSE)) ->  | K32: =IF(HLOOKUP(16,$C$42:$AF$73,18,FALSE)=0,"",HLOOKUP(16,$C$42:$AF$73,18,FALSE)) ->  | L32: =IF(HLOOKUP(16,$C$42:$AF$73,20,FALSE)=0,"",HLOOKUP(16,$C$42:$AF$73,20,FALSE)) ->  | M32: =IF(HLOOKUP(16,$C$42:$AF$73,22,FALSE)=0,"",HLOOKUP(16,$C$42:$AF$73,22,FALSE)) ->  | N32: =IF(HLOOKUP(16,$C$42:$AF$73,24,FALSE)=0,"",HLOOKUP(16,$C$42:$AF$73,24,FALSE)) ->  | O32: =IF(HLOOKUP(16,$C$42:$AF$73,26,FALSE)=0,"",HLOOKUP(16,$C$42:$AF$73,26,FALSE)) ->  | P32: =IF(HLOOKUP(16,$C$42:$AF$73,28,FALSE)=0,"",HLOOKUP(16,$C$42:$AF$73,28,FALSE)) ->  | Q32: =IF(HLOOKUP(16,$C$42:$AF$73,30,FALSE)=0,"",HLOOKUP(16,$C$42:$AF$73,30,FALSE)) ->  | R32: =SUM(D32:Q32,D33:Q33) -> 0
C33: =IF(AND(B32<>"",B32<>"Individueel"),"2e cross","") ->  | D33: =IF(HLOOKUP(16,C$42:AF$73,5,FALSE)=0,"",HLOOKUP(16,C$42:AF$73,5,FALSE)) ->  | E33: =IF(HLOOKUP(16,C$42:AF$73,7,FALSE)=0,"",HLOOKUP(16,C$42:AF$73,7,FALSE)) ->  | F33: =IF(HLOOKUP(16,$C$42:$AF$73,9,FALSE)=0,"",HLOOKUP(16,$C$42:$AF$73,9,FALSE)) ->  | G33: =IF(HLOOKUP(16,$C$42:$AF$73,11,FALSE)=0,"",HLOOKUP(16,$C$42:$AF$73,11,FALSE)) ->  | H33: =IF(HLOOKUP(16,$C$42:$AF$73,13,FALSE)=0,"",HLOOKUP(16,$C$42:$AF$73,13,FALSE)) ->  | I33: =IF(HLOOKUP(16,$C$42:$AF$73,15,FALSE)=0,"",HLOOKUP(16,$C$42:$AF$73,15,FALSE)) ->  | J33: =IF(HLOOKUP(16,$C$42:$AF$73,17,FALSE)=0,"",HLOOKUP(16,$C$42:$AF$73,17,FALSE)) ->  | K33: =IF(HLOOKUP(16,$C$42:$AF$73,19,FALSE)=0,"",HLOOKUP(16,$C$42:$AF$73,19,FALSE)) ->  | L33: =IF(HLOOKUP(16,$C$42:$AF$73,21,FALSE)=0,"",HLOOKUP(16,$C$42:$AF$73,21,FALSE)) ->  | M33: =IF(HLOOKUP(16,$C$42:$AF$73,23,FALSE)=0,"",HLOOKUP(16,$C$42:$AF$73,23,FALSE)) ->  | N33: =IF(HLOOKUP(16,$C$42:$AF$73,25,FALSE)=0,"",HLOOKUP(16,$C$42:$AF$73,25,FALSE)) ->  | O33: =IF(HLOOKUP(16,$C$42:$AF$73,27,FALSE)=0,"",HLOOKUP(16,$C$42:$AF$73,27,FALSE)) ->  | P33: =IF(HLOOKUP(16,$C$42:$AF$73,29,FALSE)=0,"",HLOOKUP(16,$C$42:$AF$73,29,FALSE)) ->  | Q33: =IF(HLOOKUP(16,$C$42:$AF$73,31,FALSE)=0,"",HLOOKUP(16,$C$42:$AF$73,31,FALSE)) ->  | U33: =IF(R32>0,1,0) -> 0
A34: =HLOOKUP(17,$C$42:$AF$76,35,FALSE) -> 15 | C34: =IF(AND(B34<>"",B34<>"Individueel"),"1e cross","") ->  | D34: =IF(HLOOKUP(17,C$42:AF$73,4,FALSE)=0,"",HLOOKUP(17,C$42:AF$73,4,FALSE)) ->  | E34: =IF(HLOOKUP(17,C$42:AF$73,6,FALSE)=0,"",HLOOKUP(17,C$42:AF$73,6,FALSE)) ->  | F34: =IF(HLOOKUP(17,$C$42:$AF$73,8,FALSE)=0,"",HLOOKUP(17,$C$42:$AF$73,8,FALSE)) ->  | G34: =IF(HLOOKUP(17,$C$42:$AF$73,10,FALSE)=0,"",HLOOKUP(17,$C$42:$AF$73,10,FALSE)) ->  | H34: =IF(HLOOKUP(17,$C$42:$AF$73,12,FALSE)=0,"",HLOOKUP(17,$C$42:$AF$73,12,FALSE)) ->  | I34: =IF(HLOOKUP(17,$C$42:$AF$73,14,FALSE)=0,"",HLOOKUP(17,$C$42:$AF$73,14,FALSE)) ->  | J34: =IF(HLOOKUP(17,$C$42:$AF$73,16,FALSE)=0,"",HLOOKUP(17,$C$42:$AF$73,16,FALSE)) ->  | K34: =IF(HLOOKUP(17,$C$42:$AF$73,18,FALSE)=0,"",HLOOKUP(17,$C$42:$AF$73,18,FALSE)) ->  | L34: =IF(HLOOKUP(17,$C$42:$AF$73,20,FALSE)=0,"",HLOOKUP(17,$C$42:$AF$73,20,FALSE)) ->  | M34: =IF(HLOOKUP(17,$C$42:$AF$73,22,FALSE)=0,"",HLOOKUP(17,$C$42:$AF$73,22,FALSE)) ->  | N34: =IF(HLOOKUP(17,$C$42:$AF$73,24,FALSE)=0,"",HLOOKUP(17,$C$42:$AF$73,24,FALSE)) ->  | O34: =IF(HLOOKUP(17,$C$42:$AF$73,26,FALSE)=0,"",HLOOKUP(17,$C$42:$AF$73,26,FALSE)) ->  | P34: =IF(HLOOKUP(17,$C$42:$AF$73,28,FALSE)=0,"",HLOOKUP(17,$C$42:$AF$73,28,FALSE)) ->  | Q34: =IF(HLOOKUP(17,$C$42:$AF$73,30,FALSE)=0,"",HLOOKUP(17,$C$42:$AF$73,30,FALSE)) ->  | R34: =SUM(D34:Q34,D35:Q35) -> 0
C35: =IF(AND(B34<>"",B34<>"Individueel"),"2e cross","") ->  | D35: =IF(HLOOKUP(17,C$42:AF$73,5,FALSE)=0,"",HLOOKUP(17,C$42:AF$73,5,FALSE)) ->  | E35: =IF(HLOOKUP(17,C$42:AF$73,7,FALSE)=0,"",HLOOKUP(17,C$42:AF$73,7,FALSE)) ->  | F35: =IF(HLOOKUP(17,$C$42:$AF$73,9,FALSE)=0,"",HLOOKUP(17,$C$42:$AF$73,9,FALSE)) ->  | G35: =IF(HLOOKUP(17,$C$42:$AF$73,11,FALSE)=0,"",HLOOKUP(17,$C$42:$AF$73,11,FALSE)) ->  | H35: =IF(HLOOKUP(17,$C$42:$AF$73,13,FALSE)=0,"",HLOOKUP(17,$C$42:$AF$73,13,FALSE)) ->  | I35: =IF(HLOOKUP(17,$C$42:$AF$73,15,FALSE)=0,"",HLOOKUP(17,$C$42:$AF$73,15,FALSE)) ->  | J35: =IF(HLOOKUP(17,$C$42:$AF$73,17,FALSE)=0,"",HLOOKUP(17,$C$42:$AF$73,17,FALSE)) ->  | K35: =IF(HLOOKUP(17,$C$42:$AF$73,19,FALSE)=0,"",HLOOKUP(17,$C$42:$AF$73,19,FALSE)) ->  | L35: =IF(HLOOKUP(17,$C$42:$AF$73,21,FALSE)=0,"",HLOOKUP(17,$C$42:$AF$73,21,FALSE)) ->  | M35: =IF(HLOOKUP(17,$C$42:$AF$73,23,FALSE)=0,"",HLOOKUP(17,$C$42:$AF$73,23,FALSE)) ->  | N35: =IF(HLOOKUP(17,$C$42:$AF$73,25,FALSE)=0,"",HLOOKUP(17,$C$42:$AF$73,25,FALSE)) ->  | O35: =IF(HLOOKUP(17,$C$42:$AF$73,27,FALSE)=0,"",HLOOKUP(17,$C$42:$AF$73,27,FALSE)) ->  | P35: =IF(HLOOKUP(17,$C$42:$AF$73,29,FALSE)=0,"",HLOOKUP(17,$C$42:$AF$73,29,FALSE)) ->  | Q35: =IF(HLOOKUP(17,$C$42:$AF$73,31,FALSE)=0,"",HLOOKUP(17,$C$42:$AF$73,31,FALSE)) ->  | U35: =IF(R34>0,1,0) -> 0
A36: =HLOOKUP(18,$C$42:$AF$76,35,FALSE) -> 15 | C36: =IF(AND(B36<>"",B36<>"Individueel"),"1e cross","") ->  | D36: =IF(HLOOKUP(18,C$42:AF$73,4,FALSE)=0,"",HLOOKUP(18,C$42:AF$73,4,FALSE)) ->  | E36: =IF(HLOOKUP(18,C$42:AF$73,6,FALSE)=0,"",HLOOKUP(18,C$42:AF$73,6,FALSE)) ->  | F36: =IF(HLOOKUP(18,$C$42:$AF$73,8,FALSE)=0,"",HLOOKUP(18,$C$42:$AF$73,8,FALSE)) ->  | G36: =IF(HLOOKUP(18,$C$42:$AF$73,10,FALSE)=0,"",HLOOKUP(18,$C$42:$AF$73,10,FALSE)) ->  | H36: =IF(HLOOKUP(18,$C$42:$AF$73,12,FALSE)=0,"",HLOOKUP(18,$C$42:$AF$73,12,FALSE)) ->  | I36: =IF(HLOOKUP(18,$C$42:$AF$73,14,FALSE)=0,"",HLOOKUP(18,$C$42:$AF$73,14,FALSE)) ->  | J36: =IF(HLOOKUP(18,$C$42:$AF$73,16,FALSE)=0,"",HLOOKUP(18,$C$42:$AF$73,16,FALSE)) ->  | K36: =IF(HLOOKUP(18,$C$42:$AF$73,18,FALSE)=0,"",HLOOKUP(18,$C$42:$AF$73,18,FALSE)) ->  | L36: =IF(HLOOKUP(18,$C$42:$AF$73,20,FALSE)=0,"",HLOOKUP(18,$C$42:$AF$73,20,FALSE)) ->  | M36: =IF(HLOOKUP(18,$C$42:$AF$73,22,FALSE)=0,"",HLOOKUP(18,$C$42:$AF$73,22,FALSE)) ->  | N36: =IF(HLOOKUP(18,$C$42:$AF$73,24,FALSE)=0,"",HLOOKUP(18,$C$42:$AF$73,24,FALSE)) ->  | O36: =IF(HLOOKUP(18,$C$42:$AF$73,26,FALSE)=0,"",HLOOKUP(18,$C$42:$AF$73,26,FALSE)) ->  | P36: =IF(HLOOKUP(18,$C$42:$AF$73,28,FALSE)=0,"",HLOOKUP(18,$C$42:$AF$73,28,FALSE)) ->  | Q36: =IF(HLOOKUP(18,$C$42:$AF$73,30,FALSE)=0,"",HLOOKUP(18,$C$42:$AF$73,30,FALSE)) ->  | R36: =SUM(D36:Q36,D37:Q37) -> 0
C37: =IF(AND(B36<>"",B36<>"Individueel"),"2e cross","") ->  | D37: =IF(HLOOKUP(18,C$42:AF$73,5,FALSE)=0,"",HLOOKUP(18,C$42:AF$73,5,FALSE)) ->  | E37: =IF(HLOOKUP(18,C$42:AF$73,7,FALSE)=0,"",HLOOKUP(18,C$42:AF$73,7,FALSE)) ->  | F37: =IF(HLOOKUP(18,$C$42:$AF$73,9,FALSE)=0,"",HLOOKUP(18,$C$42:$AF$73,9,FALSE)) ->  | G37: =IF(HLOOKUP(18,$C$42:$AF$73,11,FALSE)=0,"",HLOOKUP(18,$C$42:$AF$73,11,FALSE)) ->  | H37: =IF(HLOOKUP(18,$C$42:$AF$73,13,FALSE)=0,"",HLOOKUP(18,$C$42:$AF$73,13,FALSE)) ->  | I37: =IF(HLOOKUP(18,$C$42:$AF$73,15,FALSE)=0,"",HLOOKUP(18,$C$42:$AF$73,15,FALSE)) ->  | J37: =IF(HLOOKUP(18,$C$42:$AF$73,17,FALSE)=0,"",HLOOKUP(18,$C$42:$AF$73,17,FALSE)) ->  | K37: =IF(HLOOKUP(18,$C$42:$AF$73,19,FALSE)=0,"",HLOOKUP(18,$C$42:$AF$73,19,FALSE)) ->  | L37: =IF(HLOOKUP(18,$C$42:$AF$73,21,FALSE)=0,"",HLOOKUP(18,$C$42:$AF$73,21,FALSE)) ->  | M37: =IF(HLOOKUP(18,$C$42:$AF$73,23,FALSE)=0,"",HLOOKUP(18,$C$42:$AF$73,23,FALSE)) ->  | N37: =IF(HLOOKUP(18,$C$42:$AF$73,25,FALSE)=0,"",HLOOKUP(18,$C$42:$AF$73,25,FALSE)) ->  | O37: =IF(HLOOKUP(18,$C$42:$AF$73,27,FALSE)=0,"",HLOOKUP(18,$C$42:$AF$73,27,FALSE)) ->  | P37: =IF(HLOOKUP(18,$C$42:$AF$73,29,FALSE)=0,"",HLOOKUP(18,$C$42:$AF$73,29,FALSE)) ->  | Q37: =IF(HLOOKUP(18,$C$42:$AF$73,31,FALSE)=0,"",HLOOKUP(18,$C$42:$AF$73,31,FALSE)) ->  | U37: =IF(R36>0,1,0) -> 0
C42: =MAX(D44:AF44) -> 15 | D42: =RANK(D75,$D75:$AF75,0) -> 12 | E42: =RANK(E75,$D75:$AF75,0) -> 10 | F42: =RANK(F75,$D75:$AF75,0) -> 15 | G42: 2 | H42: 16 | I42: 3 | J42: 6 | K42: 5 | L42: 9 | M42: 17 | N42: 11 | O42: 4 | P42: 18 | Q42: 8 | R42: 1 | S42: 7 | T42: 19 | U42: 20 | V42: 13 | W42: 14 | X42: 21 | Y42: 22 | Z42: 23 | AA42: 24 | AB42: 25 | AC42: 26 | AD42: 27 | AE42: 28 | AF42: 29
A43: =Scholen!B34 -> Meisjes | C43: =Scholen!B3 -> Individueel | D43: =Scholen!B4 -> Albert Schweitzerschool | E43: =Scholen!B5 -> Combinatie Tollebeek | F43: =Scholen!B6 -> de Ark Espel | G43: =Scholen!B7 -> De Horizon Ens | H43: =Scholen!B8 -> Windkracht 10 | I43: =Scholen!B9 -> De Lichtboei | J43: =Scholen!B10 -> De Triangel | K43: =Scholen!B11 -> De Zevensprong | L43: =Scholen!B12 -> Het Lichtschip | M43: =Scholen!B13 -> Maria basisschool Marknesse | N43: =Scholen!B14 -> Roderik van Voorst | O43: =Scholen!B15 -> 't Kompas | P43: =Scholen!B16 -> Klipper/Rank Luttelgeest | Q43: =Scholen!B17 -> st.Josephschool | R43: =Scholen!B18 -> Floreant | S43: =Scholen!B19 -> de Koperwiek | T43: =Scholen!B20 -> SWS De Wending | U43: =Scholen!B21 -> Zeester Marknesse | V43: =Scholen!B22 -> Fondali | W43: =Scholen!B23 -> OBS de Driesprong | X43: =Scholen!B24 -> 0 | Y43: =Scholen!B25 -> 0 | Z43: =Scholen!B26 -> 0 | AA43: =Scholen!B27 -> 0 | AB43: =Scholen!B28 -> 0 | AC43: =Scholen!B29 -> 0 | AD43: =Scholen!B30 -> 0 | AE43: =Scholen!B31 -> 0 | AF43: =Scholen!B32 -> 0
A44: =SUM(U3:U38) -> 14 | C44: =C42 -> 15 | D44: =RANK(D73,$D73:$AF73,0) -> 12 | E44: 10 | F44: 15 | G44: 2 | H44: 15 | I44: 3 | J44: 6 | K44: 5 | L44: 9 | M44: 15 | N44: 11 | O44: 4 | P44: 15 | Q44: 8 | R44: 1 | S44: 7 | T44: =RANK(T73,$D73:$AF73,0) -> 15 | U44: 15 | V44: 13 | W44: 14 | X44: 15 | Y44: 15 | Z44: 15 | AA44: 15 | AB44: 15 | AC44: 15 | AD44: 15 | AE44: 15 | AF44: 15
A45: =D1 -> M '13 | C45: =HLOOKUP(C$43,'M-13'!$BV$275:$CY$276,2,FALSE) -> 0 | D45: =HLOOKUP(D$43,'M-13'!$BV$275:$CY$276,2,FALSE) -> 0 | E45: =HLOOKUP(E$43,'M-13'!$BV$275:$CY$276,2,FALSE) -> 29 | F45: =HLOOKUP(F$43,'M-13'!$BV$275:$CY$276,2,FALSE) -> 0 | G45: =HLOOKUP(G$43,'M-13'!$BV$275:$CY$276,2,FALSE) -> 91 | H45: =HLOOKUP(H$43,'M-13'!$BV$275:$CY$276,2,FALSE) -> 0 | I45: =HLOOKUP(I$43,'M-13'!$BV$275:$CY$276,2,FALSE) -> 99 | J45: =HLOOKUP(J$43,'M-13'!$BV$275:$CY$276,2,FALSE) -> 71 | K45: =HLOOKUP(K$43,'M-13'!$BV$275:$CY$276,2,FALSE) -> 62 | L45: =HLOOKUP(L$43,'M-13'!$BV$275:$CY$276,2,FALSE) -> 25 | M45: =HLOOKUP(M$43,'M-13'!$BV$275:$CY$276,2,FALSE) -> 0 | N45: =HLOOKUP(N$43,'M-13'!$BV$275:$CY$276,2,FALSE) -> 24 | O45: =HLOOKUP(O$43,'M-13'!$BV$275:$CY$276,2,FALSE) -> 63 | P45: =HLOOKUP(P$43,'M-13'!$BV$275:$CY$276,2,FALSE) -> 0 | Q45: =HLOOKUP(Q$43,'M-13'!$BV$275:$CY$276,2,FALSE) -> 64 | R45: =HLOOKUP(R$43,'M-13'!$BV$275:$CY$276,2,FALSE) -> 102 | S45: =HLOOKUP(S$43,'M-13'!$BV$275:$CY$276,2,FALSE) -> 54 | T45: =HLOOKUP(T$43,'M-13'!$BV$275:$CY$276,2,FALSE) -> 0 | U45: =HLOOKUP(U$43,'M-13'!$BV$275:$CY$276,2,FALSE) -> 0 | V45: =HLOOKUP(V$43,'M-13'!$BV$275:$CY$276,2,FALSE) -> 0 | W45: =HLOOKUP(W$43,'M-13'!$BV$275:$CY$276,2,FALSE) -> 0 | X45: =HLOOKUP(X$43,'M-13'!$BV$275:$CY$276,2,FALSE) -> 0 | Y45: =HLOOKUP(Y$43,'M-13'!$BV$275:$CY$276,2,FALSE) -> 0 | Z45: =HLOOKUP(Z$43,'M-13'!$BV$275:$CY$276,2,FALSE) -> 0 | AA45: =HLOOKUP(AA$43,'M-13'!$BV$275:$CY$276,2,FALSE) -> 0 | AB45: =HLOOKUP(AB$43,'M-13'!$BV$275:$CY$276,2,FALSE) -> 0 | AC45: =HLOOKUP(AC$43,'M-13'!$BV$275:$CY$276,2,FALSE) -> 0 | AD45: =HLOOKUP(AD$43,'M-13'!$BV$275:$CY$276,2,FALSE) -> 0 | AE45: =HLOOKUP(AE$43,'M-13'!$BV$275:$CY$276,2,FALSE) -> 0 | AF45: =HLOOKUP(AF$43,'M-13'!$BV$275:$CY$276,2,FALSE) -> 0
C46: =HLOOKUP(C$43,'M-13'!$BV$275:$CY$360,86,FALSE) -> 0 | D46: =HLOOKUP(D$43,'M-13'!$BV$275:$CY$360,86,FALSE) -> 0 | E46: =HLOOKUP(E$43,'M-13'!$BV$275:$CY$360,86,FALSE) -> 0 | F46: =HLOOKUP(F$43,'M-13'!$BV$275:$CY$360,86,FALSE) -> 0 | G46: =HLOOKUP(G$43,'M-13'!$BV$275:$CY$360,86,FALSE) -> 104 | H46: =HLOOKUP(H$43,'M-13'!$BV$275:$CY$360,86,FALSE) -> 0 | I46: =HLOOKUP(I$43,'M-13'!$BV$275:$CY$360,86,FALSE) -> 84 | J46: =HLOOKUP(J$43,'M-13'!$BV$275:$CY$360,86,FALSE) -> 82 | K46: =HLOOKUP(K$43,'M-13'!$BV$275:$CY$360,86,FALSE) -> 54 | L46: =HLOOKUP(L$43,'M-13'!$BV$275:$CY$360,86,FALSE) -> 30 | M46: =HLOOKUP(M$43,'M-13'!$BV$275:$CY$360,86,FALSE) -> 0 | N46: =HLOOKUP(N$43,'M-13'!$BV$275:$CY$360,86,FALSE) -> 24 | O46: =HLOOKUP(O$43,'M-13'!$BV$275:$CY$360,86,FALSE) -> 55 | P46: =HLOOKUP(P$43,'M-13'!$BV$275:$CY$360,86,FALSE) -> 0 | Q46: =HLOOKUP(Q$43,'M-13'!$BV$275:$CY$360,86,FALSE) -> 65 | R46: =HLOOKUP(R$43,'M-13'!$BV$275:$CY$360,86,FALSE) -> 110 | S46: =HLOOKUP(S$43,'M-13'!$BV$275:$CY$360,86,FALSE) -> 41 | T46: =HLOOKUP(T$43,'M-13'!$BV$275:$CY$360,86,FALSE) -> 0 | U46: =HLOOKUP(U$43,'M-13'!$BV$275:$CY$360,86,FALSE) -> 0 | V46: =HLOOKUP(V$43,'M-13'!$BV$275:$CY$360,86,FALSE) -> 0 | W46: =HLOOKUP(W$43,'M-13'!$BV$275:$CY$360,86,FALSE) -> 0 | X46: =HLOOKUP(X$43,'M-13'!$BV$275:$CY$360,86,FALSE) -> 0 | Y46: =HLOOKUP(Y$43,'M-13'!$BV$275:$CY$360,86,FALSE) -> 0 | Z46: =HLOOKUP(Z$43,'M-13'!$BV$275:$CY$360,86,FALSE) -> 0 | AA46: =HLOOKUP(AA$43,'M-13'!$BV$275:$CY$360,86,FALSE) -> 0 | AB46: =HLOOKUP(AB$43,'M-13'!$BV$275:$CY$360,86,FALSE) -> 0 | AC46: =HLOOKUP(AC$43,'M-13'!$BV$275:$CY$360,86,FALSE) -> 0 | AD46: =HLOOKUP(AD$43,'M-13'!$BV$275:$CY$360,86,FALSE) -> 0 | AE46: =HLOOKUP(AE$43,'M-13'!$BV$275:$CY$360,86,FALSE) -> 0 | AF46: =HLOOKUP(AF$43,'M-13'!$BV$275:$CY$360,86,FALSE) -> 0
A47: =E1 -> J '13 | C47: =HLOOKUP(C$43,'J-13'!$BV$275:$CY$276,2,FALSE) -> 0 | D47: =HLOOKUP(D$43,'J-13'!$BV$275:$CY$276,2,FALSE) -> 0 | E47: =HLOOKUP(E$43,'J-13'!$BV$275:$CY$276,2,FALSE) -> 25 | F47: =HLOOKUP(F$43,'J-13'!$BV$275:$CY$276,2,FALSE) -> 0 | G47: =HLOOKUP(G$43,'J-13'!$BV$275:$CY$276,2,FALSE) -> 99 | H47: =HLOOKUP(H$43,'J-13'!$BV$275:$CY$276,2,FALSE) -> 0 | I47: =HLOOKUP(I$43,'J-13'!$BV$275:$CY$276,2,FALSE) -> 95 | J47: =HLOOKUP(J$43,'J-13'!$BV$275:$CY$276,2,FALSE) -> 0 | K47: =HLOOKUP(K$43,'J-13'!$BV$275:$CY$276,2,FALSE) -> 60 | L47: =HLOOKUP(L$43,'J-13'!$BV$275:$CY$276,2,FALSE) -> 58 | M47: =HLOOKUP(M$43,'J-13'!$BV$275:$CY$276,2,FALSE) -> 0 | N47: =HLOOKUP(N$43,'J-13'!$BV$275:$CY$276,2,FALSE) -> 56 | O47: =HLOOKUP(O$43,'J-13'!$BV$275:$CY$276,2,FALSE) -> 98 | P47: =HLOOKUP(P$43,'J-13'!$BV$275:$CY$276,2,FALSE) -> 0 | Q47: =HLOOKUP(Q$43,'J-13'!$BV$275:$CY$276,2,FALSE) -> 66 | R47: =HLOOKUP(R$43,'J-13'!$BV$275:$CY$276,2,FALSE) -> 73 | S47: =HLOOKUP(S$43,'J-13'!$BV$275:$CY$276,2,FALSE) -> 19 | T47: =HLOOKUP(T$43,'J-13'!$BV$275:$CY$276,2,FALSE) -> 0 | U47: =HLOOKUP(U$43,'J-13'!$BV$275:$CY$276,2,FALSE) -> 0 | V47: =HLOOKUP(V$43,'J-13'!$BV$275:$CY$276,2,FALSE) -> 0 | W47: =HLOOKUP(W$43,'J-13'!$BV$275:$CY$276,2,FALSE) -> 0 | X47: =HLOOKUP(X$43,'J-13'!$BV$275:$CY$276,2,FALSE) -> 0 | Y47: =HLOOKUP(Y$43,'J-13'!$BV$275:$CY$276,2,FALSE) -> 0 | Z47: =HLOOKUP(Z$43,'J-13'!$BV$275:$CY$276,2,FALSE) -> 0 | AA47: =HLOOKUP(AA$43,'J-13'!$BV$275:$CY$276,2,FALSE) -> 0 | AB47: =HLOOKUP(AB$43,'J-13'!$BV$275:$CY$276,2,FALSE) -> 0 | AC47: =HLOOKUP(AC$43,'J-13'!$BV$275:$CY$276,2,FALSE) -> 0 | AD47: =HLOOKUP(AD$43,'J-13'!$BV$275:$CY$276,2,FALSE) -> 0 | AE47: =HLOOKUP(AE$43,'J-13'!$BV$275:$CY$276,2,FALSE) -> 0 | AF47: =HLOOKUP(AF$43,'J-13'!$BV$275:$CY$276,2,FALSE) -> 0
C48: =HLOOKUP(C$43,'J-13'!$BV$275:$CY$360,86,FALSE) -> 0 | D48: =HLOOKUP(D$43,'J-13'!$BV$275:$CY$360,86,FALSE) -> 0 | E48: =HLOOKUP(E$43,'J-13'!$BV$275:$CY$360,86,FALSE) -> 29 | F48: =HLOOKUP(F$43,'J-13'!$BV$275:$CY$360,86,FALSE) -> 0 | G48: =HLOOKUP(G$43,'J-13'!$BV$275:$CY$360,86,FALSE) -> 72 | H48: =HLOOKUP(H$43,'J-13'!$BV$275:$CY$360,86,FALSE) -> 0 | I48: =HLOOKUP(I$43,'J-13'!$BV$275:$CY$360,86,FALSE) -> 70 | J48: =HLOOKUP(J$43,'J-13'!$BV$275:$CY$360,86,FALSE) -> 0 | K48: =HLOOKUP(K$43,'J-13'!$BV$275:$CY$360,86,FALSE) -> 36 | L48: =HLOOKUP(L$43,'J-13'!$BV$275:$CY$360,86,FALSE) -> 37 | M48: =HLOOKUP(M$43,'J-13'!$BV$275:$CY$360,86,FALSE) -> 0 | N48: =HLOOKUP(N$43,'J-13'!$BV$275:$CY$360,86,FALSE) -> 35 | O48: =HLOOKUP(O$43,'J-13'!$BV$275:$CY$360,86,FALSE) -> 89 | P48: =HLOOKUP(P$43,'J-13'!$BV$275:$CY$360,86,FALSE) -> 0 | Q48: =HLOOKUP(Q$43,'J-13'!$BV$275:$CY$360,86,FALSE) -> 40 | R48: =HLOOKUP(R$43,'J-13'!$BV$275:$CY$360,86,FALSE) -> 34 | S48: =HLOOKUP(S$43,'J-13'!$BV$275:$CY$360,86,FALSE) -> 0 | T48: =HLOOKUP(T$43,'J-13'!$BV$275:$CY$360,86,FALSE) -> 0 | U48: =HLOOKUP(U$43,'J-13'!$BV$275:$CY$360,86,FALSE) -> 0 | V48: =HLOOKUP(V$43,'J-13'!$BV$275:$CY$360,86,FALSE) -> 0 | W48: =HLOOKUP(W$43,'J-13'!$BV$275:$CY$360,86,FALSE) -> 0 | X48: =HLOOKUP(X$43,'J-13'!$BV$275:$CY$360,86,FALSE) -> 0 | Y48: =HLOOKUP(Y$43,'J-13'!$BV$275:$CY$360,86,FALSE) -> 0 | Z48: =HLOOKUP(Z$43,'J-13'!$BV$275:$CY$360,86,FALSE) -> 0 | AA48: =HLOOKUP(AA$43,'J-13'!$BV$275:$CY$360,86,FALSE) -> 0 | AB48: =HLOOKUP(AB$43,'J-13'!$BV$275:$CY$360,86,FALSE) -> 0 | AC48: =HLOOKUP(AC$43,'J-13'!$BV$275:$CY$360,86,FALSE) -> 0 | AD48: =HLOOKUP(AD$43,'J-13'!$BV$275:$CY$360,86,FALSE) -> 0 | AE48: =HLOOKUP(AE$43,'J-13'!$BV$275:$CY$360,86,FALSE) -> 0 | AF48: =HLOOKUP(AF$43,'J-13'!$BV$275:$CY$360,86,FALSE) -> 0
A49: =F1 -> M '12 | C49: =HLOOKUP(C$43,'M-12'!$BV$275:$CY$276,2,FALSE) -> 0 | D49: =HLOOKUP(D$43,'M-12'!$BV$275:$CY$276,2,FALSE) -> 0 | E49: =HLOOKUP(E$43,'M-12'!$BV$275:$CY$276,2,FALSE) -> 0 | F49: =HLOOKUP(F$43,'M-12'!$BV$275:$CY$276,2,FALSE) -> 0 | G49: =HLOOKUP(G$43,'M-12'!$BV$275:$CY$276,2,FALSE) -> 68 | H49: =HLOOKUP(H$43,'M-12'!$BV$275:$CY$276,2,FALSE) -> 0 | I49: =HLOOKUP(I$43,'M-12'!$BV$275:$CY$276,2,FALSE) -> 76 | J49: =HLOOKUP(J$43,'M-12'!$BV$275:$CY$276,2,FALSE) -> 17 | K49: =HLOOKUP(K$43,'M-12'!$BV$275:$CY$276,2,FALSE) -> 104 | L49: =HLOOKUP(L$43,'M-12'!$BV$275:$CY$276,2,FALSE) -> 99 | M49: =HLOOKUP(M$43,'M-12'!$BV$275:$CY$276,2,FALSE) -> 0 | N49: =HLOOKUP(N$43,'M-12'!$BV$275:$CY$276,2,FALSE) -> 75 | O49: =HLOOKUP(O$43,'M-12'!$BV$275:$CY$276,2,FALSE) -> 30 | P49: =HLOOKUP(P$43,'M-12'!$BV$275:$CY$276,2,FALSE) -> 0 | Q49: =HLOOKUP(Q$43,'M-12'!$BV$275:$CY$276,2,FALSE) -> 72 | R49: =HLOOKUP(R$43,'M-12'!$BV$275:$CY$276,2,FALSE) -> 93 | S49: =HLOOKUP(S$43,'M-12'!$BV$275:$CY$276,2,FALSE) -> 95 | T49: =HLOOKUP(T$43,'M-12'!$BV$275:$CY$276,2,FALSE) -> 0 | U49: =HLOOKUP(U$43,'M-12'!$BV$275:$CY$276,2,FALSE) -> 0 | V49: =HLOOKUP(V$43,'M-12'!$BV$275:$CY$276,2,FALSE) -> 0 | W49: =HLOOKUP(W$43,'M-12'!$BV$275:$CY$276,2,FALSE) -> 0 | X49: =HLOOKUP(X$43,'M-12'!$BV$275:$CY$276,2,FALSE) -> 0 | Y49: =HLOOKUP(Y$43,'M-12'!$BV$275:$CY$276,2,FALSE) -> 0 | Z49: =HLOOKUP(Z$43,'M-12'!$BV$275:$CY$276,2,FALSE) -> 0 | AA49: =HLOOKUP(AA$43,'M-12'!$BV$275:$CY$276,2,FALSE) -> 0 | AB49: =HLOOKUP(AB$43,'M-12'!$BV$275:$CY$276,2,FALSE) -> 0 | AC49: =HLOOKUP(AC$43,'M-12'!$BV$275:$CY$276,2,FALSE) -> 0 | AD49: =HLOOKUP(AD$43,'M-12'!$BV$275:$CY$276,2,FALSE) -> 0 | AE49: =HLOOKUP(AE$43,'M-12'!$BV$275:$CY$276,2,FALSE) -> 0 | AF49: =HLOOKUP(AF$43,'M-12'!$BV$275:$CY$276,2,FALSE) -> 0
C50: =HLOOKUP(C$43,'M-12'!$BV$275:$CY$360,86,FALSE) -> 0 | D50: =HLOOKUP(D$43,'M-12'!$BV$275:$CY$360,86,FALSE) -> 0 | E50: =HLOOKUP(E$43,'M-12'!$BV$275:$CY$360,86,FALSE) -> 0 | F50: =HLOOKUP(F$43,'M-12'!$BV$275:$CY$360,86,FALSE) -> 0 | G50: =HLOOKUP(G$43,'M-12'!$BV$275:$CY$360,86,FALSE) -> 84 | H50: =HLOOKUP(H$43,'M-12'!$BV$275:$CY$360,86,FALSE) -> 0 | I50: =HLOOKUP(I$43,'M-12'!$BV$275:$CY$360,86,FALSE) -> 78 | J50: =HLOOKUP(J$43,'M-12'!$BV$275:$CY$360,86,FALSE) -> 53 | K50: =HLOOKUP(K$43,'M-12'!$BV$275:$CY$360,86,FALSE) -> 100 | L50: =HLOOKUP(L$43,'M-12'!$BV$275:$CY$360,86,FALSE) -> 90 | M50: =HLOOKUP(M$43,'M-12'!$BV$275:$CY$360,86,FALSE) -> 0 | N50: =HLOOKUP(N$43,'M-12'!$BV$275:$CY$360,86,FALSE) -> 38 | O50: =HLOOKUP(O$43,'M-12'!$BV$275:$CY$360,86,FALSE) -> 16 | P50: =HLOOKUP(P$43,'M-12'!$BV$275:$CY$360,86,FALSE) -> 0 | Q50: =HLOOKUP(Q$43,'M-12'!$BV$275:$CY$360,86,FALSE) -> 74 | R50: =HLOOKUP(R$43,'M-12'!$BV$275:$CY$360,86,FALSE) -> 81 | S50: =HLOOKUP(S$43,'M-12'!$BV$275:$CY$360,86,FALSE) -> 86 | T50: =HLOOKUP(T$43,'M-12'!$BV$275:$CY$360,86,FALSE) -> 0 | U50: =HLOOKUP(U$43,'M-12'!$BV$275:$CY$360,86,FALSE) -> 0 | V50: =HLOOKUP(V$43,'M-12'!$BV$275:$CY$360,86,FALSE) -> 0 | W50: =HLOOKUP(W$43,'M-12'!$BV$275:$CY$360,86,FALSE) -> 0 | X50: =HLOOKUP(X$43,'M-12'!$BV$275:$CY$360,86,FALSE) -> 0 | Y50: =HLOOKUP(Y$43,'M-12'!$BV$275:$CY$360,86,FALSE) -> 0 | Z50: =HLOOKUP(Z$43,'M-12'!$BV$275:$CY$360,86,FALSE) -> 0 | AA50: =HLOOKUP(AA$43,'M-12'!$BV$275:$CY$360,86,FALSE) -> 0 | AB50: =HLOOKUP(AB$43,'M-12'!$BV$275:$CY$360,86,FALSE) -> 0 | AC50: =HLOOKUP(AC$43,'M-12'!$BV$275:$CY$360,86,FALSE) -> 0 | AD50: =HLOOKUP(AD$43,'M-12'!$BV$275:$CY$360,86,FALSE) -> 0 | AE50: =HLOOKUP(AE$43,'M-12'!$BV$275:$CY$360,86,FALSE) -> 0 | AF50: =HLOOKUP(AF$43,'M-12'!$BV$275:$CY$360,86,FALSE) -> 0
A51: =G1 -> J '12 | C51: =HLOOKUP(C$43,'J-12'!$BV$275:$CY$276,2,FALSE) -> 0 | D51: =HLOOKUP(D$43,'J-12'!$BV$275:$CY$276,2,FALSE) -> 14 | E51: =HLOOKUP(E$43,'J-12'!$BV$275:$CY$276,2,FALSE) -> 78 | F51: =HLOOKUP(F$43,'J-12'!$BV$275:$CY$276,2,FALSE) -> 0 | G51: =HLOOKUP(G$43,'J-12'!$BV$275:$CY$276,2,FALSE) -> 69 | H51: =HLOOKUP(H$43,'J-12'!$BV$275:$CY$276,2,FALSE) -> 0 | I51: =HLOOKUP(I$43,'J-12'!$BV$275:$CY$276,2,FALSE) -> 101 | J51: =HLOOKUP(J$43,'J-12'!$BV$275:$CY$276,2,FALSE) -> 55 | K51: =HLOOKUP(K$43,'J-12'!$BV$275:$CY$276,2,FALSE) -> 89 | L51: =HLOOKUP(L$43,'J-12'!$BV$275:$CY$276,2,FALSE) -> 62 | M51: =HLOOKUP(M$43,'J-12'!$BV$275:$CY$276,2,FALSE) -> 0 | N51: =HLOOKUP(N$43,'J-12'!$BV$275:$CY$276,2,FALSE) -> 21 | O51: =HLOOKUP(O$43,'J-12'!$BV$275:$CY$276,2,FALSE) -> 76 | P51: =HLOOKUP(P$43,'J-12'!$BV$275:$CY$276,2,FALSE) -> 0 | Q51: =HLOOKUP(Q$43,'J-12'!$BV$275:$CY$276,2,FALSE) -> 56 | R51: =HLOOKUP(R$43,'J-12'!$BV$275:$CY$276,2,FALSE) -> 114 | S51: =HLOOKUP(S$43,'J-12'!$BV$275:$CY$276,2,FALSE) -> 57 | T51: =HLOOKUP(T$43,'J-12'!$BV$275:$CY$276,2,FALSE) -> 0 | U51: =HLOOKUP(U$43,'J-12'!$BV$275:$CY$276,2,FALSE) -> 0 | V51: =HLOOKUP(V$43,'J-12'!$BV$275:$CY$276,2,FALSE) -> 0 | W51: =HLOOKUP(W$43,'J-12'!$BV$275:$CY$276,2,FALSE) -> 0 | X51: =HLOOKUP(X$43,'J-12'!$BV$275:$CY$276,2,FALSE) -> 0 | Y51: =HLOOKUP(Y$43,'J-12'!$BV$275:$CY$276,2,FALSE) -> 0 | Z51: =HLOOKUP(Z$43,'J-12'!$BV$275:$CY$276,2,FALSE) -> 0 | AA51: =HLOOKUP(AA$43,'J-12'!$BV$275:$CY$276,2,FALSE) -> 0 | AB51: =HLOOKUP(AB$43,'J-12'!$BV$275:$CY$276,2,FALSE) -> 0 | AC51: =HLOOKUP(AC$43,'J-12'!$BV$275:$CY$276,2,FALSE) -> 0 | AD51: =HLOOKUP(AD$43,'J-12'!$BV$275:$CY$276,2,FALSE) -> 0 | AE51: =HLOOKUP(AE$43,'J-12'!$BV$275:$CY$276,2,FALSE) -> 0 | AF51: =HLOOKUP(AF$43,'J-12'!$BV$275:$CY$276,2,FALSE) -> 0
C52: =HLOOKUP(C$43,'J-12'!$BV$275:$CY$360,86,FALSE) -> 0 | D52: =HLOOKUP(D$43,'J-12'!$BV$275:$CY$360,86,FALSE) -> 15 | E52: =HLOOKUP(E$43,'J-12'!$BV$275:$CY$360,86,FALSE) -> 76 | F52: =HLOOKUP(F$43,'J-12'!$BV$275:$CY$360,86,FALSE) -> 0 | G52: =HLOOKUP(G$43,'J-12'!$BV$275:$CY$360,86,FALSE) -> 57 | H52: =HLOOKUP(H$43,'J-12'!$BV$275:$CY$360,86,FALSE) -> 0 | I52: =HLOOKUP(I$43,'J-12'!$BV$275:$CY$360,86,FALSE) -> 45 | J52: =HLOOKUP(J$43,'J-12'!$BV$275:$CY$360,86,FALSE) -> 62 | K52: =HLOOKUP(K$43,'J-12'!$BV$275:$CY$360,86,FALSE) -> 96 | L52: =HLOOKUP(L$43,'J-12'!$BV$275:$CY$360,86,FALSE) -> 49 | M52: =HLOOKUP(M$43,'J-12'!$BV$275:$CY$360,86,FALSE) -> 0 | N52: =HLOOKUP(N$43,'J-12'!$BV$275:$CY$360,86,FALSE) -> 20 | O52: =HLOOKUP(O$43,'J-12'!$BV$275:$CY$360,86,FALSE) -> 78 | P52: =HLOOKUP(P$43,'J-12'!$BV$275:$CY$360,86,FALSE) -> 0 | Q52: =HLOOKUP(Q$43,'J-12'!$BV$275:$CY$360,86,FALSE) -> 88 | R52: =HLOOKUP(R$43,'J-12'!$BV$275:$CY$360,86,FALSE) -> 111 | S52: =HLOOKUP(S$43,'J-12'!$BV$275:$CY$360,86,FALSE) -> 45 | T52: =HLOOKUP(T$43,'J-12'!$BV$275:$CY$360,86,FALSE) -> 0 | U52: =HLOOKUP(U$43,'J-12'!$BV$275:$CY$360,86,FALSE) -> 0 | V52: =HLOOKUP(V$43,'J-12'!$BV$275:$CY$360,86,FALSE) -> 0 | W52: =HLOOKUP(W$43,'J-12'!$BV$275:$CY$360,86,FALSE) -> 0 | X52: =HLOOKUP(X$43,'J-12'!$BV$275:$CY$360,86,FALSE) -> 0 | Y52: =HLOOKUP(Y$43,'J-12'!$BV$275:$CY$360,86,FALSE) -> 0 | Z52: =HLOOKUP(Z$43,'J-12'!$BV$275:$CY$360,86,FALSE) -> 0 | AA52: =HLOOKUP(AA$43,'J-12'!$BV$275:$CY$360,86,FALSE) -> 0 | AB52: =HLOOKUP(AB$43,'J-12'!$BV$275:$CY$360,86,FALSE) -> 0 | AC52: =HLOOKUP(AC$43,'J-12'!$BV$275:$CY$360,86,FALSE) -> 0 | AD52: =HLOOKUP(AD$43,'J-12'!$BV$275:$CY$360,86,FALSE) -> 0 | AE52: =HLOOKUP(AE$43,'J-12'!$BV$275:$CY$360,86,FALSE) -> 0 | AF52: =HLOOKUP(AF$43,'J-12'!$BV$275:$CY$360,86,FALSE) -> 0
A53: =H1 -> M '11 | C53: =HLOOKUP(C$43,'M-11'!$BV$275:$CY$276,2,FALSE) -> 0 | D53: =HLOOKUP(D$43,'M-11'!$BV$275:$CY$276,2,FALSE) -> 55 | E53: =HLOOKUP(E$43,'M-11'!$BV$275:$CY$276,2,FALSE) -> 25 | F53: =HLOOKUP(F$43,'M-11'!$BV$275:$CY$276,2,FALSE) -> 0 | G53: =HLOOKUP(G$43,'M-11'!$BV$275:$CY$276,2,FALSE) -> 40 | H53: =HLOOKUP(H$43,'M-11'!$BV$275:$CY$276,2,FALSE) -> 0 | I53: =HLOOKUP(I$43,'M-11'!$BV$275:$CY$276,2,FALSE) -> 98 | J53: =HLOOKUP(J$43,'M-11'!$BV$275:$CY$276,2,FALSE) -> 82 | K53: =HLOOKUP(K$43,'M-11'!$BV$275:$CY$276,2,FALSE) -> 53 | L53: =HLOOKUP(L$43,'M-11'!$BV$275:$CY$276,2,FALSE) -> 29 | M53: =HLOOKUP(M$43,'M-11'!$BV$275:$CY$276,2,FALSE) -> 0 | N53: =HLOOKUP(N$43,'M-11'!$BV$275:$CY$276,2,FALSE) -> 93 | O53: =HLOOKUP(O$43,'M-11'!$BV$275:$CY$276,2,FALSE) -> 68 | P53: =HLOOKUP(P$43,'M-11'!$BV$275:$CY$276,2,FALSE) -> 0 | Q53: =HLOOKUP(Q$43,'M-11'!$BV$275:$CY$276,2,FALSE) -> 0 | R53: =HLOOKUP(R$43,'M-11'!$BV$275:$CY$276,2,FALSE) -> 65 | S53: =HLOOKUP(S$43,'M-11'!$BV$275:$CY$276,2,FALSE) -> 21 | T53: =HLOOKUP(T$43,'M-11'!$BV$275:$CY$276,2,FALSE) -> 0 | U53: =HLOOKUP(U$43,'M-11'!$BV$275:$CY$276,2,FALSE) -> 0 | V53: =HLOOKUP(V$43,'M-11'!$BV$275:$CY$276,2,FALSE) -> 38 | W53: =HLOOKUP(W$43,'M-11'!$BV$275:$CY$276,2,FALSE) -> 0 | X53: =HLOOKUP(X$43,'M-11'!$BV$275:$CY$276,2,FALSE) -> 0 | Y53: =HLOOKUP(Y$43,'M-11'!$BV$275:$CY$276,2,FALSE) -> 0 | Z53: =HLOOKUP(Z$43,'M-11'!$BV$275:$CY$276,2,FALSE) -> 0 | AA53: =HLOOKUP(AA$43,'M-11'!$BV$275:$CY$276,2,FALSE) -> 0 | AB53: =HLOOKUP(AB$43,'M-11'!$BV$275:$CY$276,2,FALSE) -> 0 | AC53: =HLOOKUP(AC$43,'M-11'!$BV$275:$CY$276,2,FALSE) -> 0 | AD53: =HLOOKUP(AD$43,'M-11'!$BV$275:$CY$276,2,FALSE) -> 0 | AE53: =HLOOKUP(AE$43,'M-11'!$BV$275:$CY$276,2,FALSE) -> 0 | AF53: =HLOOKUP(AF$43,'M-11'!$BV$275:$CY$276,2,FALSE) -> 0
C54: =HLOOKUP(C$43,'M-11'!$BV$275:$CY$360,86,FALSE) -> 0 | D54: =HLOOKUP(D$43,'M-11'!$BV$275:$CY$360,86,FALSE) -> 38 | E54: =HLOOKUP(E$43,'M-11'!$BV$275:$CY$360,86,FALSE) -> 24 | F54: =HLOOKUP(F$43,'M-11'!$BV$275:$CY$360,86,FALSE) -> 0 | G54: =HLOOKUP(G$43,'M-11'!$BV$275:$CY$360,86,FALSE) -> 40 | H54: =HLOOKUP(H$43,'M-11'!$BV$275:$CY$360,86,FALSE) -> 0 | I54: =HLOOKUP(I$43,'M-11'!$BV$275:$CY$360,86,FALSE) -> 103 | J54: =HLOOKUP(J$43,'M-11'!$BV$275:$CY$360,86,FALSE) -> 59 | K54: =HLOOKUP(K$43,'M-11'!$BV$275:$CY$360,86,FALSE) -> 51 | L54: =HLOOKUP(L$43,'M-11'!$BV$275:$CY$360,86,FALSE) -> 21 | M54: =HLOOKUP(M$43,'M-11'!$BV$275:$CY$360,86,FALSE) -> 0 | N54: =HLOOKUP(N$43,'M-11'!$BV$275:$CY$360,86,FALSE) -> 82 | O54: =HLOOKUP(O$43,'M-11'!$BV$275:$CY$360,86,FALSE) -> 90 | P54: =HLOOKUP(P$43,'M-11'!$BV$275:$CY$360,86,FALSE) -> 0 | Q54: =HLOOKUP(Q$43,'M-11'!$BV$275:$CY$360,86,FALSE) -> 0 | R54: =HLOOKUP(R$43,'M-11'!$BV$275:$CY$360,86,FALSE) -> 63 | S54: =HLOOKUP(S$43,'M-11'!$BV$275:$CY$360,86,FALSE) -> 0 | T54: =HLOOKUP(T$43,'M-11'!$BV$275:$CY$360,86,FALSE) -> 0 | U54: =HLOOKUP(U$43,'M-11'!$BV$275:$CY$360,86,FALSE) -> 0 | V54: =HLOOKUP(V$43,'M-11'!$BV$275:$CY$360,86,FALSE) -> 39 | W54: =HLOOKUP(W$43,'M-11'!$BV$275:$CY$360,86,FALSE) -> 0 | X54: =HLOOKUP(X$43,'M-11'!$BV$275:$CY$360,86,FALSE) -> 0 | Y54: =HLOOKUP(Y$43,'M-11'!$BV$275:$CY$360,86,FALSE) -> 0 | Z54: =HLOOKUP(Z$43,'M-11'!$BV$275:$CY$360,86,FALSE) -> 0 | AA54: =HLOOKUP(AA$43,'M-11'!$BV$275:$CY$360,86,FALSE) -> 0 | AB54: =HLOOKUP(AB$43,'M-11'!$BV$275:$CY$360,86,FALSE) -> 0 | AC54: =HLOOKUP(AC$43,'M-11'!$BV$275:$CY$360,86,FALSE) -> 0 | AD54: =HLOOKUP(AD$43,'M-11'!$BV$275:$CY$360,86,FALSE) -> 0 | AE54: =HLOOKUP(AE$43,'M-11'!$BV$275:$CY$360,86,FALSE) -> 0 | AF54: =HLOOKUP(AF$43,'M-11'!$BV$275:$CY$360,86,FALSE) -> 0
A55: =I1 -> J '11 | C55: =HLOOKUP(C$43,'J-11'!$BV$275:$CY$276,2,FALSE) -> 0 | D55: =HLOOKUP(D$43,'J-11'!$BV$275:$CY$276,2,FALSE) -> 89 | E55: =HLOOKUP(E$43,'J-11'!$BV$275:$CY$276,2,FALSE) -> 53 | F55: =HLOOKUP(F$43,'J-11'!$BV$275:$CY$276,2,FALSE) -> 0 | G55: =HLOOKUP(G$43,'J-11'!$BV$275:$CY$276,2,FALSE) -> 51 | H55: =HLOOKUP(H$43,'J-11'!$BV$275:$CY$276,2,FALSE) -> 0 | I55: =HLOOKUP(I$43,'J-11'!$BV$275:$CY$276,2,FALSE) -> 84 | J55: =HLOOKUP(J$43,'J-11'!$BV$275:$CY$276,2,FALSE) -> 46 | K55: =HLOOKUP(K$43,'J-11'!$BV$275:$CY$276,2,FALSE) -> 52 | L55: =HLOOKUP(L$43,'J-11'!$BV$275:$CY$276,2,FALSE) -> 48 | M55: =HLOOKUP(M$43,'J-11'!$BV$275:$CY$276,2,FALSE) -> 0 | N55: =HLOOKUP(N$43,'J-11'!$BV$275:$CY$276,2,FALSE) -> 0 | O55: =HLOOKUP(O$43,'J-11'!$BV$275:$CY$276,2,FALSE) -> 113 | P55: =HLOOKUP(P$43,'J-11'!$BV$275:$CY$276,2,FALSE) -> 0 | Q55: =HLOOKUP(Q$43,'J-11'!$BV$275:$CY$276,2,FALSE) -> 0 | R55: =HLOOKUP(R$43,'J-11'!$BV$275:$CY$276,2,FALSE) -> 112 | S55: =HLOOKUP(S$43,'J-11'!$BV$275:$CY$276,2,FALSE) -> 81 | T55: =HLOOKUP(T$43,'J-11'!$BV$275:$CY$276,2,FALSE) -> 0 | U55: =HLOOKUP(U$43,'J-11'!$BV$275:$CY$276,2,FALSE) -> 0 | V55: =HLOOKUP(V$43,'J-11'!$BV$275:$CY$276,2,FALSE) -> 0 | W55: =HLOOKUP(W$43,'J-11'!$BV$275:$CY$276,2,FALSE) -> 0 | X55: =HLOOKUP(X$43,'J-11'!$BV$275:$CY$276,2,FALSE) -> 0 | Y55: =HLOOKUP(Y$43,'J-11'!$BV$275:$CY$276,2,FALSE) -> 0 | Z55: =HLOOKUP(Z$43,'J-11'!$BV$275:$CY$276,2,FALSE) -> 0 | AA55: =HLOOKUP(AA$43,'J-11'!$BV$275:$CY$276,2,FALSE) -> 0 | AB55: =HLOOKUP(AB$43,'J-11'!$BV$275:$CY$276,2,FALSE) -> 0 | AC55: =HLOOKUP(AC$43,'J-11'!$BV$275:$CY$276,2,FALSE) -> 0 | AD55: =HLOOKUP(AD$43,'J-11'!$BV$275:$CY$276,2,FALSE) -> 0 | AE55: =HLOOKUP(AE$43,'J-11'!$BV$275:$CY$276,2,FALSE) -> 0 | AF55: =HLOOKUP(AF$43,'J-11'!$BV$275:$CY$276,2,FALSE) -> 0
C56: =HLOOKUP(C$43,'J-11'!$BV$275:$CY$360,86,FALSE) -> 0 | D56: =HLOOKUP(D$43,'J-11'!$BV$275:$CY$360,86,FALSE) -> 77 | E56: =HLOOKUP(E$43,'J-11'!$BV$275:$CY$360,86,FALSE) -> 35 | F56: =HLOOKUP(F$43,'J-11'!$BV$275:$CY$360,86,FALSE) -> 0 | G56: =HLOOKUP(G$43,'J-11'!$BV$275:$CY$360,86,FALSE) -> 42 | H56: =HLOOKUP(H$43,'J-11'!$BV$275:$CY$360,86,FALSE) -> 0 | I56: =HLOOKUP(I$43,'J-11'!$BV$275:$CY$360,86,FALSE) -> 93 | J56: =HLOOKUP(J$43,'J-11'!$BV$275:$CY$360,86,FALSE) -> 46 | K56: =HLOOKUP(K$43,'J-11'!$BV$275:$CY$360,86,FALSE) -> 35 | L56: =HLOOKUP(L$43,'J-11'!$BV$275:$CY$360,86,FALSE) -> 50 | M56: =HLOOKUP(M$43,'J-11'!$BV$275:$CY$360,86,FALSE) -> 0 | N56: =HLOOKUP(N$43,'J-11'!$BV$275:$CY$360,86,FALSE) -> 0 | O56: =HLOOKUP(O$43,'J-11'!$BV$275:$CY$360,86,FALSE) -> 112 | P56: =HLOOKUP(P$43,'J-11'!$BV$275:$CY$360,86,FALSE) -> 0 | Q56: =HLOOKUP(Q$43,'J-11'!$BV$275:$CY$360,86,FALSE) -> 0 | R56: =HLOOKUP(R$43,'J-11'!$BV$275:$CY$360,86,FALSE) -> 107 | S56: =HLOOKUP(S$43,'J-11'!$BV$275:$CY$360,86,FALSE) -> 87 | T56: =HLOOKUP(T$43,'J-11'!$BV$275:$CY$360,86,FALSE) -> 0 | U56: =HLOOKUP(U$43,'J-11'!$BV$275:$CY$360,86,FALSE) -> 0 | V56: =HLOOKUP(V$43,'J-11'!$BV$275:$CY$360,86,FALSE) -> 0 | W56: =HLOOKUP(W$43,'J-11'!$BV$275:$CY$360,86,FALSE) -> 0 | X56: =HLOOKUP(X$43,'J-11'!$BV$275:$CY$360,86,FALSE) -> 0 | Y56: =HLOOKUP(Y$43,'J-11'!$BV$275:$CY$360,86,FALSE) -> 0 | Z56: =HLOOKUP(Z$43,'J-11'!$BV$275:$CY$360,86,FALSE) -> 0 | AA56: =HLOOKUP(AA$43,'J-11'!$BV$275:$CY$360,86,FALSE) -> 0 | AB56: =HLOOKUP(AB$43,'J-11'!$BV$275:$CY$360,86,FALSE) -> 0 | AC56: =HLOOKUP(AC$43,'J-11'!$BV$275:$CY$360,86,FALSE) -> 0 | AD56: =HLOOKUP(AD$43,'J-11'!$BV$275:$CY$360,86,FALSE) -> 0 | AE56: =HLOOKUP(AE$43,'J-11'!$BV$275:$CY$360,86,FALSE) -> 0 | AF56: =HLOOKUP(AF$43,'J-11'!$BV$275:$CY$360,86,FALSE) -> 0
A57: =J1 -> M '10 | C57: =HLOOKUP(C$43,'M-10'!$BV$275:$CY$276,2,FALSE) -> 0 | D57: =HLOOKUP(D$43,'M-10'!$BV$275:$CY$276,2,FALSE) -> 24 | E57: =HLOOKUP(E$43,'M-10'!$BV$275:$CY$276,2,FALSE) -> 21 | F57: =HLOOKUP(F$43,'M-10'!$BV$275:$CY$276,2,FALSE) -> 0 | G57: =HLOOKUP(G$43,'M-10'!$BV$275:$CY$276,2,FALSE) -> 74 | H57: =HLOOKUP(H$43,'M-10'!$BV$275:$CY$276,2,FALSE) -> 0 | I57: =HLOOKUP(I$43,'M-10'!$BV$275:$CY$276,2,FALSE) -> 63 | J57: =HLOOKUP(J$43,'M-10'!$BV$275:$CY$276,2,FALSE) -> 0 | K57: =HLOOKUP(K$43,'M-10'!$BV$275:$CY$276,2,FALSE) -> 53 | L57: =HLOOKUP(L$43,'M-10'!$BV$275:$CY$276,2,FALSE) -> 62 | M57: =HLOOKUP(M$43,'M-10'!$BV$275:$CY$276,2,FALSE) -> 0 | N57: =HLOOKUP(N$43,'M-10'!$BV$275:$CY$276,2,FALSE) -> 79 | O57: =HLOOKUP(O$43,'M-10'!$BV$275:$CY$276,2,FALSE) -> 0 | P57: =HLOOKUP(P$43,'M-10'!$BV$275:$CY$276,2,FALSE) -> 0 | Q57: =HLOOKUP(Q$43,'M-10'!$BV$275:$CY$276,2,FALSE) -> 114 | R57: =HLOOKUP(R$43,'M-10'!$BV$275:$CY$276,2,FALSE) -> 33 | S57: =HLOOKUP(S$43,'M-10'!$BV$275:$CY$276,2,FALSE) -> 87 | T57: =HLOOKUP(T$43,'M-10'!$BV$275:$CY$276,2,FALSE) -> 0 | U57: =HLOOKUP(U$43,'M-10'!$BV$275:$CY$276,2,FALSE) -> 0 | V57: =HLOOKUP(V$43,'M-10'!$BV$275:$CY$276,2,FALSE) -> 0 | W57: =HLOOKUP(W$43,'M-10'!$BV$275:$CY$276,2,FALSE) -> 0 | X57: =HLOOKUP(X$43,'M-10'!$BV$275:$CY$276,2,FALSE) -> 0 | Y57: =HLOOKUP(Y$43,'M-10'!$BV$275:$CY$276,2,FALSE) -> 0 | Z57: =HLOOKUP(Z$43,'M-10'!$BV$275:$CY$276,2,FALSE) -> 0 | AA57: =HLOOKUP(AA$43,'M-10'!$BV$275:$CY$276,2,FALSE) -> 0 | AB57: =HLOOKUP(AB$43,'M-10'!$BV$275:$CY$276,2,FALSE) -> 0 | AC57: =HLOOKUP(AC$43,'M-10'!$BV$275:$CY$276,2,FALSE) -> 0 | AD57: =HLOOKUP(AD$43,'M-10'!$BV$275:$CY$276,2,FALSE) -> 0 | AE57: =HLOOKUP(AE$43,'M-10'!$BV$275:$CY$276,2,FALSE) -> 0 | AF57: =HLOOKUP(AF$43,'M-10'!$BV$275:$CY$276,2,FALSE) -> 0
C58: =HLOOKUP(C$43,'M-10'!$BV$275:$CY$360,86,FALSE) -> 0 | D58: =HLOOKUP(D$43,'M-10'!$BV$275:$CY$360,86,FALSE) -> 21 | E58: =HLOOKUP(E$43,'M-10'!$BV$275:$CY$360,86,FALSE) -> 37 | F58: =HLOOKUP(F$43,'M-10'!$BV$275:$CY$360,86,FALSE) -> 0 | G58: =HLOOKUP(G$43,'M-10'!$BV$275:$CY$360,86,FALSE) -> 67 | H58: =HLOOKUP(H$43,'M-10'!$BV$275:$CY$360,86,FALSE) -> 0 | I58: =HLOOKUP(I$43,'M-10'!$BV$275:$CY$360,86,FALSE) -> 34 | J58: =HLOOKUP(J$43,'M-10'!$BV$275:$CY$360,86,FALSE) -> 30 | K58: =HLOOKUP(K$43,'M-10'!$BV$275:$CY$360,86,FALSE) -> 22 | L58: =HLOOKUP(L$43,'M-10'!$BV$275:$CY$360,86,FALSE) -> 87 | M58: =HLOOKUP(M$43,'M-10'!$BV$275:$CY$360,86,FALSE) -> 0 | N58: =HLOOKUP(N$43,'M-10'!$BV$275:$CY$360,86,FALSE) -> 31 | O58: =HLOOKUP(O$43,'M-10'!$BV$275:$CY$360,86,FALSE) -> 0 | P58: =HLOOKUP(P$43,'M-10'!$BV$275:$CY$360,86,FALSE) -> 0 | Q58: =HLOOKUP(Q$43,'M-10'!$BV$275:$CY$360,86,FALSE) -> 108 | R58: =HLOOKUP(R$43,'M-10'!$BV$275:$CY$360,86,FALSE) -> 96 | S58: =HLOOKUP(S$43,'M-10'!$BV$275:$CY$360,86,FALSE) -> 77 | T58: =HLOOKUP(T$43,'M-10'!$BV$275:$CY$360,86,FALSE) -> 0 | U58: =HLOOKUP(U$43,'M-10'!$BV$275:$CY$360,86,FALSE) -> 0 | V58: =HLOOKUP(V$43,'M-10'!$BV$275:$CY$360,86,FALSE) -> 0 | W58: =HLOOKUP(W$43,'M-10'!$BV$275:$CY$360,86,FALSE) -> 0 | X58: =HLOOKUP(X$43,'M-10'!$BV$275:$CY$360,86,FALSE) -> 0 | Y58: =HLOOKUP(Y$43,'M-10'!$BV$275:$CY$360,86,FALSE) -> 0 | Z58: =HLOOKUP(Z$43,'M-10'!$BV$275:$CY$360,86,FALSE) -> 0 | AA58: =HLOOKUP(AA$43,'M-10'!$BV$275:$CY$360,86,FALSE) -> 0 | AB58: =HLOOKUP(AB$43,'M-10'!$BV$275:$CY$360,86,FALSE) -> 0 | AC58: =HLOOKUP(AC$43,'M-10'!$BV$275:$CY$360,86,FALSE) -> 0 | AD58: =HLOOKUP(AD$43,'M-10'!$BV$275:$CY$360,86,FALSE) -> 0 | AE58: =HLOOKUP(AE$43,'M-10'!$BV$275:$CY$360,86,FALSE) -> 0 | AF58: =HLOOKUP(AF$43,'M-10'!$BV$275:$CY$360,86,FALSE) -> 0
A59: =K1 -> J '10 | C59: =HLOOKUP(C$43,'J-10'!$BV$275:$CY$276,2,FALSE) -> 0 | D59: =HLOOKUP(D$43,'J-10'!$BV$275:$CY$276,2,FALSE) -> 0 | E59: =HLOOKUP(E$43,'J-10'!$BV$275:$CY$276,2,FALSE) -> 54 | F59: =HLOOKUP(F$43,'J-10'!$BV$275:$CY$276,2,FALSE) -> 0 | G59: =HLOOKUP(G$43,'J-10'!$BV$275:$CY$276,2,FALSE) -> 113 | H59: =HLOOKUP(H$43,'J-10'!$BV$275:$CY$276,2,FALSE) -> 0 | I59: =HLOOKUP(I$43,'J-10'!$BV$275:$CY$276,2,FALSE) -> 94 | J59: =HLOOKUP(J$43,'J-10'!$BV$275:$CY$276,2,FALSE) -> 49 | K59: =HLOOKUP(K$43,'J-10'!$BV$275:$CY$276,2,FALSE) -> 23 | L59: =HLOOKUP(L$43,'J-10'!$BV$275:$CY$276,2,FALSE) -> 17 | M59: =HLOOKUP(M$43,'J-10'!$BV$275:$CY$276,2,FALSE) -> 0 | N59: =HLOOKUP(N$43,'J-10'!$BV$275:$CY$276,2,FALSE) -> 56 | O59: =HLOOKUP(O$43,'J-10'!$BV$275:$CY$276,2,FALSE) -> 62 | P59: =HLOOKUP(P$43,'J-10'!$BV$275:$CY$276,2,FALSE) -> 0 | Q59: =HLOOKUP(Q$43,'J-10'!$BV$275:$CY$276,2,FALSE) -> 73 | R59: =HLOOKUP(R$43,'J-10'!$BV$275:$CY$276,2,FALSE) -> 92 | S59: =HLOOKUP(S$43,'J-10'!$BV$275:$CY$276,2,FALSE) -> 51 | T59: =HLOOKUP(T$43,'J-10'!$BV$275:$CY$276,2,FALSE) -> 0 | U59: =HLOOKUP(U$43,'J-10'!$BV$275:$CY$276,2,FALSE) -> 0 | V59: =HLOOKUP(V$43,'J-10'!$BV$275:$CY$276,2,FALSE) -> 0 | W59: =HLOOKUP(W$43,'J-10'!$BV$275:$CY$276,2,FALSE) -> 0 | X59: =HLOOKUP(X$43,'J-10'!$BV$275:$CY$276,2,FALSE) -> 0 | Y59: =HLOOKUP(Y$43,'J-10'!$BV$275:$CY$276,2,FALSE) -> 0 | Z59: =HLOOKUP(Z$43,'J-10'!$BV$275:$CY$276,2,FALSE) -> 0 | AA59: =HLOOKUP(AA$43,'J-10'!$BV$275:$CY$276,2,FALSE) -> 0 | AB59: =HLOOKUP(AB$43,'J-10'!$BV$275:$CY$276,2,FALSE) -> 0 | AC59: =HLOOKUP(AC$43,'J-10'!$BV$275:$CY$276,2,FALSE) -> 0 | AD59: =HLOOKUP(AD$43,'J-10'!$BV$275:$CY$276,2,FALSE) -> 0 | AE59: =HLOOKUP(AE$43,'J-10'!$BV$275:$CY$276,2,FALSE) -> 0 | AF59: =HLOOKUP(AF$43,'J-10'!$BV$275:$CY$276,2,FALSE) -> 0
C60: =HLOOKUP(C$43,'J-10'!$BV$275:$CY$360,86,FALSE) -> 0 | D60: =HLOOKUP(D$43,'J-10'!$BV$275:$CY$360,86,FALSE) -> 0 | E60: =HLOOKUP(E$43,'J-10'!$BV$275:$CY$360,86,FALSE) -> 28 | F60: =HLOOKUP(F$43,'J-10'!$BV$275:$CY$360,86,FALSE) -> 0 | G60: =HLOOKUP(G$43,'J-10'!$BV$275:$CY$360,86,FALSE) -> 113 | H60: =HLOOKUP(H$43,'J-10'!$BV$275:$CY$360,86,FALSE) -> 0 | I60: =HLOOKUP(I$43,'J-10'!$BV$275:$CY$360,86,FALSE) -> 101 | J60: =HLOOKUP(J$43,'J-10'!$BV$275:$CY$360,86,FALSE) -> 53 | K60: =HLOOKUP(K$43,'J-10'!$BV$275:$CY$360,86,FALSE) -> 29 | L60: =HLOOKUP(L$43,'J-10'!$BV$275:$CY$360,86,FALSE) -> 0 | M60: =HLOOKUP(M$43,'J-10'!$BV$275:$CY$360,86,FALSE) -> 0 | N60: =HLOOKUP(N$43,'J-10'!$BV$275:$CY$360,86,FALSE) -> 33 | O60: =HLOOKUP(O$43,'J-10'!$BV$275:$CY$360,86,FALSE) -> 48 | P60: =HLOOKUP(P$43,'J-10'!$BV$275:$CY$360,86,FALSE) -> 0 | Q60: =HLOOKUP(Q$43,'J-10'!$BV$275:$CY$360,86,FALSE) -> 39 | R60: =HLOOKUP(R$43,'J-10'!$BV$275:$CY$360,86,FALSE) -> 89 | S60: =HLOOKUP(S$43,'J-10'!$BV$275:$CY$360,86,FALSE) -> 56 | T60: =HLOOKUP(T$43,'J-10'!$BV$275:$CY$360,86,FALSE) -> 0 | U60: =HLOOKUP(U$43,'J-10'!$BV$275:$CY$360,86,FALSE) -> 0 | V60: =HLOOKUP(V$43,'J-10'!$BV$275:$CY$360,86,FALSE) -> 0 | W60: =HLOOKUP(W$43,'J-10'!$BV$275:$CY$360,86,FALSE) -> 0 | X60: =HLOOKUP(X$43,'J-10'!$BV$275:$CY$360,86,FALSE) -> 0 | Y60: =HLOOKUP(Y$43,'J-10'!$BV$275:$CY$360,86,FALSE) -> 0 | Z60: =HLOOKUP(Z$43,'J-10'!$BV$275:$CY$360,86,FALSE) -> 0 | AA60: =HLOOKUP(AA$43,'J-10'!$BV$275:$CY$360,86,FALSE) -> 0 | AB60: =HLOOKUP(AB$43,'J-10'!$BV$275:$CY$360,86,FALSE) -> 0 | AC60: =HLOOKUP(AC$43,'J-10'!$BV$275:$CY$360,86,FALSE) -> 0 | AD60: =HLOOKUP(AD$43,'J-10'!$BV$275:$CY$360,86,FALSE) -> 0 | AE60: =HLOOKUP(AE$43,'J-10'!$BV$275:$CY$360,86,FALSE) -> 0 | AF60: =HLOOKUP(AF$43,'J-10'!$BV$275:$CY$360,86,FALSE) -> 0
A61: =L1 -> M '09 | C61: =HLOOKUP(C$43,'M-09'!$BV$275:$CY$276,2,FALSE) -> 0 | D61: =HLOOKUP(D$43,'M-09'!$BV$275:$CY$276,2,FALSE) -> 0 | E61: =HLOOKUP(E$43,'M-09'!$BV$275:$CY$276,2,FALSE) -> 0 | F61: =HLOOKUP(F$43,'M-09'!$BV$275:$CY$276,2,FALSE) -> 0 | G61: =HLOOKUP(G$43,'M-09'!$BV$275:$CY$276,2,FALSE) -> 106 | H61: =HLOOKUP(H$43,'M-09'!$BV$275:$CY$276,2,FALSE) -> 0 | I61: =HLOOKUP(I$43,'M-09'!$BV$275:$CY$276,2,FALSE) -> 92 | J61: =HLOOKUP(J$43,'M-09'!$BV$275:$CY$276,2,FALSE) -> 95 | K61: =HLOOKUP(K$43,'M-09'!$BV$275:$CY$276,2,FALSE) -> 40 | L61: =HLOOKUP(L$43,'M-09'!$BV$275:$CY$276,2,FALSE) -> 0 | M61: =HLOOKUP(M$43,'M-09'!$BV$275:$CY$276,2,FALSE) -> 0 | N61: =HLOOKUP(N$43,'M-09'!$BV$275:$CY$276,2,FALSE) -> 0 | O61: =HLOOKUP(O$43,'M-09'!$BV$275:$CY$276,2,FALSE) -> 62 | P61: =HLOOKUP(P$43,'M-09'!$BV$275:$CY$276,2,FALSE) -> 0 | Q61: =HLOOKUP(Q$43,'M-09'!$BV$275:$CY$276,2,FALSE) -> 0 | R61: =HLOOKUP(R$43,'M-09'!$BV$275:$CY$276,2,FALSE) -> 69 | S61: =HLOOKUP(S$43,'M-09'!$BV$275:$CY$276,2,FALSE) -> 80 | T61: =HLOOKUP(T$43,'M-09'!$BV$275:$CY$276,2,FALSE) -> 0 | U61: =HLOOKUP(U$43,'M-09'!$BV$275:$CY$276,2,FALSE) -> 0 | V61: =HLOOKUP(V$43,'M-09'!$BV$275:$CY$276,2,FALSE) -> 0 | W61: =HLOOKUP(W$43,'M-09'!$BV$275:$CY$276,2,FALSE) -> 0 | X61: =HLOOKUP(X$43,'M-09'!$BV$275:$CY$276,2,FALSE) -> 0 | Y61: =HLOOKUP(Y$43,'M-09'!$BV$275:$CY$276,2,FALSE) -> 0 | Z61: =HLOOKUP(Z$43,'M-09'!$BV$275:$CY$276,2,FALSE) -> 0 | AA61: =HLOOKUP(AA$43,'M-09'!$BV$275:$CY$276,2,FALSE) -> 0 | AB61: =HLOOKUP(AB$43,'M-09'!$BV$275:$CY$276,2,FALSE) -> 0 | AC61: =HLOOKUP(AC$43,'M-09'!$BV$275:$CY$276,2,FALSE) -> 0 | AD61: =HLOOKUP(AD$43,'M-09'!$BV$275:$CY$276,2,FALSE) -> 0 | AE61: =HLOOKUP(AE$43,'M-09'!$BV$275:$CY$276,2,FALSE) -> 0 | AF61: =HLOOKUP(AF$43,'M-09'!$BV$275:$CY$276,2,FALSE) -> 0
C62: =HLOOKUP(C$43,'M-09'!$BV$275:$CY$360,86,FALSE) -> 0 | D62: =HLOOKUP(D$43,'M-09'!$BV$275:$CY$360,86,FALSE) -> 0 | E62: =HLOOKUP(E$43,'M-09'!$BV$275:$CY$360,86,FALSE) -> 0 | F62: =HLOOKUP(F$43,'M-09'!$BV$275:$CY$360,86,FALSE) -> 0 | G62: =HLOOKUP(G$43,'M-09'!$BV$275:$CY$360,86,FALSE) -> 103 | H62: =HLOOKUP(H$43,'M-09'!$BV$275:$CY$360,86,FALSE) -> 0 | I62: =HLOOKUP(I$43,'M-09'!$BV$275:$CY$360,86,FALSE) -> 93 | J62: =HLOOKUP(J$43,'M-09'!$BV$275:$CY$360,86,FALSE) -> 94 | K62: =HLOOKUP(K$43,'M-09'!$BV$275:$CY$360,86,FALSE) -> 40 | L62: =HLOOKUP(L$43,'M-09'!$BV$275:$CY$360,86,FALSE) -> 0 | M62: =HLOOKUP(M$43,'M-09'!$BV$275:$CY$360,86,FALSE) -> 0 | N62: =HLOOKUP(N$43,'M-09'!$BV$275:$CY$360,86,FALSE) -> 0 | O62: =HLOOKUP(O$43,'M-09'!$BV$275:$CY$360,86,FALSE) -> 65 | P62: =HLOOKUP(P$43,'M-09'!$BV$275:$CY$360,86,FALSE) -> 0 | Q62: =HLOOKUP(Q$43,'M-09'!$BV$275:$CY$360,86,FALSE) -> 31 | R62: =HLOOKUP(R$43,'M-09'!$BV$275:$CY$360,86,FALSE) -> 69 | S62: =HLOOKUP(S$43,'M-09'!$BV$275:$CY$360,86,FALSE) -> 0 | T62: =HLOOKUP(T$43,'M-09'!$BV$275:$CY$360,86,FALSE) -> 0 | U62: =HLOOKUP(U$43,'M-09'!$BV$275:$CY$360,86,FALSE) -> 0 | V62: =HLOOKUP(V$43,'M-09'!$BV$275:$CY$360,86,FALSE) -> 0 | W62: =HLOOKUP(W$43,'M-09'!$BV$275:$CY$360,86,FALSE) -> 0 | X62: =HLOOKUP(X$43,'M-09'!$BV$275:$CY$360,86,FALSE) -> 0 | Y62: =HLOOKUP(Y$43,'M-09'!$BV$275:$CY$360,86,FALSE) -> 0 | Z62: =HLOOKUP(Z$43,'M-09'!$BV$275:$CY$360,86,FALSE) -> 0 | AA62: =HLOOKUP(AA$43,'M-09'!$BV$275:$CY$360,86,FALSE) -> 0 | AB62: =HLOOKUP(AB$43,'M-09'!$BV$275:$CY$360,86,FALSE) -> 0 | AC62: =HLOOKUP(AC$43,'M-09'!$BV$275:$CY$360,86,FALSE) -> 0 | AD62: =HLOOKUP(AD$43,'M-09'!$BV$275:$CY$360,86,FALSE) -> 0 | AE62: =HLOOKUP(AE$43,'M-09'!$BV$275:$CY$360,86,FALSE) -> 0 | AF62: =HLOOKUP(AF$43,'M-09'!$BV$275:$CY$360,86,FALSE) -> 0
A63: =M1 -> J '09 | C63: =HLOOKUP(C$43,'J-09'!$BV$275:$CY$276,2,FALSE) -> 0 | D63: =HLOOKUP(D$43,'J-09'!$BV$275:$CY$276,2,FALSE) -> 88 | E63: =HLOOKUP(E$43,'J-09'!$BV$275:$CY$276,2,FALSE) -> 39 | F63: =HLOOKUP(F$43,'J-09'!$BV$275:$CY$276,2,FALSE) -> 0 | G63: =HLOOKUP(G$43,'J-09'!$BV$275:$CY$276,2,FALSE) -> 30 | H63: =HLOOKUP(H$43,'J-09'!$BV$275:$CY$276,2,FALSE) -> 0 | I63: =HLOOKUP(I$43,'J-09'!$BV$275:$CY$276,2,FALSE) -> 71 | J63: =HLOOKUP(J$43,'J-09'!$BV$275:$CY$276,2,FALSE) -> 0 | K63: =HLOOKUP(K$43,'J-09'!$BV$275:$CY$276,2,FALSE) -> 26 | L63: =HLOOKUP(L$43,'J-09'!$BV$275:$CY$276,2,FALSE) -> 0 | M63: =HLOOKUP(M$43,'J-09'!$BV$275:$CY$276,2,FALSE) -> 0 | N63: =HLOOKUP(N$43,'J-09'!$BV$275:$CY$276,2,FALSE) -> 0 | O63: =HLOOKUP(O$43,'J-09'!$BV$275:$CY$276,2,FALSE) -> 104 | P63: =HLOOKUP(P$43,'J-09'!$BV$275:$CY$276,2,FALSE) -> 0 | Q63: =HLOOKUP(Q$43,'J-09'!$BV$275:$CY$276,2,FALSE) -> 0 | R63: =HLOOKUP(R$43,'J-09'!$BV$275:$CY$276,2,FALSE) -> 109 | S63: =HLOOKUP(S$43,'J-09'!$BV$275:$CY$276,2,FALSE) -> 53 | T63: =HLOOKUP(T$43,'J-09'!$BV$275:$CY$276,2,FALSE) -> 0 | U63: =HLOOKUP(U$43,'J-09'!$BV$275:$CY$276,2,FALSE) -> 0 | V63: =HLOOKUP(V$43,'J-09'!$BV$275:$CY$276,2,FALSE) -> 0 | W63: =HLOOKUP(W$43,'J-09'!$BV$275:$CY$276,2,FALSE) -> 0 | X63: =HLOOKUP(X$43,'J-09'!$BV$275:$CY$276,2,FALSE) -> 0 | Y63: =HLOOKUP(Y$43,'J-09'!$BV$275:$CY$276,2,FALSE) -> 0 | Z63: =HLOOKUP(Z$43,'J-09'!$BV$275:$CY$276,2,FALSE) -> 0 | AA63: =HLOOKUP(AA$43,'J-09'!$BV$275:$CY$276,2,FALSE) -> 0 | AB63: =HLOOKUP(AB$43,'J-09'!$BV$275:$CY$276,2,FALSE) -> 0 | AC63: =HLOOKUP(AC$43,'J-09'!$BV$275:$CY$276,2,FALSE) -> 0 | AD63: =HLOOKUP(AD$43,'J-09'!$BV$275:$CY$276,2,FALSE) -> 0 | AE63: =HLOOKUP(AE$43,'J-09'!$BV$275:$CY$276,2,FALSE) -> 0 | AF63: =HLOOKUP(AF$43,'J-09'!$BV$275:$CY$276,2,FALSE) -> 0
C64: =HLOOKUP(C$43,'J-09'!$BV$275:$CY$360,86,FALSE) -> 0 | D64: =HLOOKUP(D$43,'J-09'!$BV$275:$CY$360,86,FALSE) -> 60 | E64: =HLOOKUP(E$43,'J-09'!$BV$275:$CY$360,86,FALSE) -> 38 | F64: =HLOOKUP(F$43,'J-09'!$BV$275:$CY$360,86,FALSE) -> 0 | G64: =HLOOKUP(G$43,'J-09'!$BV$275:$CY$360,86,FALSE) -> 69 | H64: =HLOOKUP(H$43,'J-09'!$BV$275:$CY$360,86,FALSE) -> 0 | I64: =HLOOKUP(I$43,'J-09'!$BV$275:$CY$360,86,FALSE) -> 73 | J64: =HLOOKUP(J$43,'J-09'!$BV$275:$CY$360,86,FALSE) -> 0 | K64: =HLOOKUP(K$43,'J-09'!$BV$275:$CY$360,86,FALSE) -> 25 | L64: =HLOOKUP(L$43,'J-09'!$BV$275:$CY$360,86,FALSE) -> 0 | M64: =HLOOKUP(M$43,'J-09'!$BV$275:$CY$360,86,FALSE) -> 0 | N64: =HLOOKUP(N$43,'J-09'!$BV$275:$CY$360,86,FALSE) -> 0 | O64: =HLOOKUP(O$43,'J-09'!$BV$275:$CY$360,86,FALSE) -> 104 | P64: =HLOOKUP(P$43,'J-09'!$BV$275:$CY$360,86,FALSE) -> 0 | Q64: =HLOOKUP(Q$43,'J-09'!$BV$275:$CY$360,86,FALSE) -> 0 | R64: =HLOOKUP(R$43,'J-09'!$BV$275:$CY$360,86,FALSE) -> 98 | S64: =HLOOKUP(S$43,'J-09'!$BV$275:$CY$360,86,FALSE) -> 53 | T64: =HLOOKUP(T$43,'J-09'!$BV$275:$CY$360,86,FALSE) -> 0 | U64: =HLOOKUP(U$43,'J-09'!$BV$275:$CY$360,86,FALSE) -> 0 | V64: =HLOOKUP(V$43,'J-09'!$BV$275:$CY$360,86,FALSE) -> 0 | W64: =HLOOKUP(W$43,'J-09'!$BV$275:$CY$360,86,FALSE) -> 0 | X64: =HLOOKUP(X$43,'J-09'!$BV$275:$CY$360,86,FALSE) -> 0 | Y64: =HLOOKUP(Y$43,'J-09'!$BV$275:$CY$360,86,FALSE) -> 0 | Z64: =HLOOKUP(Z$43,'J-09'!$BV$275:$CY$360,86,FALSE) -> 0 | AA64: =HLOOKUP(AA$43,'J-09'!$BV$275:$CY$360,86,FALSE) -> 0 | AB64: =HLOOKUP(AB$43,'J-09'!$BV$275:$CY$360,86,FALSE) -> 0 | AC64: =HLOOKUP(AC$43,'J-09'!$BV$275:$CY$360,86,FALSE) -> 0 | AD64: =HLOOKUP(AD$43,'J-09'!$BV$275:$CY$360,86,FALSE) -> 0 | AE64: =HLOOKUP(AE$43,'J-09'!$BV$275:$CY$360,86,FALSE) -> 0 | AF64: =HLOOKUP(AF$43,'J-09'!$BV$275:$CY$360,86,FALSE) -> 0
A65: =N1 -> M '08 | C65: =HLOOKUP(C$43,'M-08'!$BV$275:$CY$276,2,FALSE) -> 0 | D65: =HLOOKUP(D$43,'M-08'!$BV$275:$CY$276,2,FALSE) -> 0 | E65: =HLOOKUP(E$43,'M-08'!$BV$275:$CY$276,2,FALSE) -> 0 | F65: =HLOOKUP(F$43,'M-08'!$BV$275:$CY$276,2,FALSE) -> 0 | G65: =HLOOKUP(G$43,'M-08'!$BV$275:$CY$276,2,FALSE) -> 88 | H65: =HLOOKUP(H$43,'M-08'!$BV$275:$CY$276,2,FALSE) -> 0 | I65: =HLOOKUP(I$43,'M-08'!$BV$275:$CY$276,2,FALSE) -> 90 | J65: =HLOOKUP(J$43,'M-08'!$BV$275:$CY$276,2,FALSE) -> 58 | K65: =HLOOKUP(K$43,'M-08'!$BV$275:$CY$276,2,FALSE) -> 40 | L65: =HLOOKUP(L$43,'M-08'!$BV$275:$CY$276,2,FALSE) -> 38 | M65: =HLOOKUP(M$43,'M-08'!$BV$275:$CY$276,2,FALSE) -> 0 | N65: =HLOOKUP(N$43,'M-08'!$BV$275:$CY$276,2,FALSE) -> 0 | O65: =HLOOKUP(O$43,'M-08'!$BV$275:$CY$276,2,FALSE) -> 68 | P65: =HLOOKUP(P$43,'M-08'!$BV$275:$CY$276,2,FALSE) -> 0 | Q65: =HLOOKUP(Q$43,'M-08'!$BV$275:$CY$276,2,FALSE) -> 39 | R65: =HLOOKUP(R$43,'M-08'!$BV$275:$CY$276,2,FALSE) -> 86 | S65: =HLOOKUP(S$43,'M-08'!$BV$275:$CY$276,2,FALSE) -> 22 | T65: =HLOOKUP(T$43,'M-08'!$BV$275:$CY$276,2,FALSE) -> 0 | U65: =HLOOKUP(U$43,'M-08'!$BV$275:$CY$276,2,FALSE) -> 0 | V65: =HLOOKUP(V$43,'M-08'!$BV$275:$CY$276,2,FALSE) -> 37 | W65: =HLOOKUP(W$43,'M-08'!$BV$275:$CY$276,2,FALSE) -> 23 | X65: =HLOOKUP(X$43,'M-08'!$BV$275:$CY$276,2,FALSE) -> 0 | Y65: =HLOOKUP(Y$43,'M-08'!$BV$275:$CY$276,2,FALSE) -> 0 | Z65: =HLOOKUP(Z$43,'M-08'!$BV$275:$CY$276,2,FALSE) -> 0 | AA65: =HLOOKUP(AA$43,'M-08'!$BV$275:$CY$276,2,FALSE) -> 0 | AB65: =HLOOKUP(AB$43,'M-08'!$BV$275:$CY$276,2,FALSE) -> 0 | AC65: =HLOOKUP(AC$43,'M-08'!$BV$275:$CY$276,2,FALSE) -> 0 | AD65: =HLOOKUP(AD$43,'M-08'!$BV$275:$CY$276,2,FALSE) -> 0 | AE65: =HLOOKUP(AE$43,'M-08'!$BV$275:$CY$276,2,FALSE) -> 0 | AF65: =HLOOKUP(AF$43,'M-08'!$BV$275:$CY$276,2,FALSE) -> 0
C66: =HLOOKUP(C$43,'M-08'!$BV$275:$CY$360,86,FALSE) -> 0 | D66: =HLOOKUP(D$43,'M-08'!$BV$275:$CY$360,86,FALSE) -> 0 | E66: =HLOOKUP(E$43,'M-08'!$BV$275:$CY$360,86,FALSE) -> 0 | F66: =HLOOKUP(F$43,'M-08'!$BV$275:$CY$360,86,FALSE) -> 0 | G66: =HLOOKUP(G$43,'M-08'!$BV$275:$CY$360,86,FALSE) -> 103 | H66: =HLOOKUP(H$43,'M-08'!$BV$275:$CY$360,86,FALSE) -> 0 | I66: =HLOOKUP(I$43,'M-08'!$BV$275:$CY$360,86,FALSE) -> 88 | J66: =HLOOKUP(J$43,'M-08'!$BV$275:$CY$360,86,FALSE) -> 36 | K66: =HLOOKUP(K$43,'M-08'!$BV$275:$CY$360,86,FALSE) -> 39 | L66: =HLOOKUP(L$43,'M-08'!$BV$275:$CY$360,86,FALSE) -> 38 | M66: =HLOOKUP(M$43,'M-08'!$BV$275:$CY$360,86,FALSE) -> 0 | N66: =HLOOKUP(N$43,'M-08'!$BV$275:$CY$360,86,FALSE) -> 0 | O66: =HLOOKUP(O$43,'M-08'!$BV$275:$CY$360,86,FALSE) -> 70 | P66: =HLOOKUP(P$43,'M-08'!$BV$275:$CY$360,86,FALSE) -> 0 | Q66: =HLOOKUP(Q$43,'M-08'!$BV$275:$CY$360,86,FALSE) -> 32 | R66: =HLOOKUP(R$43,'M-08'!$BV$275:$CY$360,86,FALSE) -> 89 | S66: =HLOOKUP(S$43,'M-08'!$BV$275:$CY$360,86,FALSE) -> 0 | T66: =HLOOKUP(T$43,'M-08'!$BV$275:$CY$360,86,FALSE) -> 0 | U66: =HLOOKUP(U$43,'M-08'!$BV$275:$CY$360,86,FALSE) -> 0 | V66: =HLOOKUP(V$43,'M-08'!$BV$275:$CY$360,86,FALSE) -> 0 | W66: =HLOOKUP(W$43,'M-08'!$BV$275:$CY$360,86,FALSE) -> 0 | X66: =HLOOKUP(X$43,'M-08'!$BV$275:$CY$360,86,FALSE) -> 0 | Y66: =HLOOKUP(Y$43,'M-08'!$BV$275:$CY$360,86,FALSE) -> 0 | Z66: =HLOOKUP(Z$43,'M-08'!$BV$275:$CY$360,86,FALSE) -> 0 | AA66: =HLOOKUP(AA$43,'M-08'!$BV$275:$CY$360,86,FALSE) -> 0 | AB66: =HLOOKUP(AB$43,'M-08'!$BV$275:$CY$360,86,FALSE) -> 0 | AC66: =HLOOKUP(AC$43,'M-08'!$BV$275:$CY$360,86,FALSE) -> 0 | AD66: =HLOOKUP(AD$43,'M-08'!$BV$275:$CY$360,86,FALSE) -> 0 | AE66: =HLOOKUP(AE$43,'M-08'!$BV$275:$CY$360,86,FALSE) -> 0 | AF66: =HLOOKUP(AF$43,'M-08'!$BV$275:$CY$360,86,FALSE) -> 0
A67: =O1 -> J '08 | C67: =HLOOKUP(C$43,'J-08'!$BV$275:$CY$276,2,FALSE) -> 0 | D67: =HLOOKUP(D$43,'J-08'!$BV$275:$CY$276,2,FALSE) -> 34 | E67: =HLOOKUP(E$43,'J-08'!$BV$275:$CY$276,2,FALSE) -> 69 | F67: =HLOOKUP(F$43,'J-08'!$BV$275:$CY$276,2,FALSE) -> 0 | G67: =HLOOKUP(G$43,'J-08'!$BV$275:$CY$276,2,FALSE) -> 105 | H67: =HLOOKUP(H$43,'J-08'!$BV$275:$CY$276,2,FALSE) -> 0 | I67: =HLOOKUP(I$43,'J-08'!$BV$275:$CY$276,2,FALSE) -> 0 | J67: =HLOOKUP(J$43,'J-08'!$BV$275:$CY$276,2,FALSE) -> 68 | K67: =HLOOKUP(K$43,'J-08'!$BV$275:$CY$276,2,FALSE) -> 0 | L67: =HLOOKUP(L$43,'J-08'!$BV$275:$CY$276,2,FALSE) -> 0 | M67: =HLOOKUP(M$43,'J-08'!$BV$275:$CY$276,2,FALSE) -> 0 | N67: =HLOOKUP(N$43,'J-08'!$BV$275:$CY$276,2,FALSE) -> 0 | O67: =HLOOKUP(O$43,'J-08'!$BV$275:$CY$276,2,FALSE) -> 30 | P67: =HLOOKUP(P$43,'J-08'!$BV$275:$CY$276,2,FALSE) -> 0 | Q67: =HLOOKUP(Q$43,'J-08'!$BV$275:$CY$276,2,FALSE) -> 39 | R67: =HLOOKUP(R$43,'J-08'!$BV$275:$CY$276,2,FALSE) -> 97 | S67: =HLOOKUP(S$43,'J-08'!$BV$275:$CY$276,2,FALSE) -> 0 | T67: =HLOOKUP(T$43,'J-08'!$BV$275:$CY$276,2,FALSE) -> 0 | U67: =HLOOKUP(U$43,'J-08'!$BV$275:$CY$276,2,FALSE) -> 0 | V67: =HLOOKUP(V$43,'J-08'!$BV$275:$CY$276,2,FALSE) -> 0 | W67: =HLOOKUP(W$43,'J-08'!$BV$275:$CY$276,2,FALSE) -> 0 | X67: =HLOOKUP(X$43,'J-08'!$BV$275:$CY$276,2,FALSE) -> 0 | Y67: =HLOOKUP(Y$43,'J-08'!$BV$275:$CY$276,2,FALSE) -> 0 | Z67: =HLOOKUP(Z$43,'J-08'!$BV$275:$CY$276,2,FALSE) -> 0 | AA67: =HLOOKUP(AA$43,'J-08'!$BV$275:$CY$276,2,FALSE) -> 0 | AB67: =HLOOKUP(AB$43,'J-08'!$BV$275:$CY$276,2,FALSE) -> 0 | AC67: =HLOOKUP(AC$43,'J-08'!$BV$275:$CY$276,2,FALSE) -> 0 | AD67: =HLOOKUP(AD$43,'J-08'!$BV$275:$CY$276,2,FALSE) -> 0 | AE67: =HLOOKUP(AE$43,'J-08'!$BV$275:$CY$276,2,FALSE) -> 0 | AF67: =HLOOKUP(AF$43,'J-08'!$BV$275:$CY$276,2,FALSE) -> 0
C68: =HLOOKUP(C$43,'J-08'!$BV$275:$CY$360,86,FALSE) -> 0 | D68: =HLOOKUP(D$43,'J-08'!$BV$275:$CY$360,86,FALSE) -> 33 | E68: =HLOOKUP(E$43,'J-08'!$BV$275:$CY$360,86,FALSE) -> 67 | F68: =HLOOKUP(F$43,'J-08'!$BV$275:$CY$360,86,FALSE) -> 0 | G68: =HLOOKUP(G$43,'J-08'!$BV$275:$CY$360,86,FALSE) -> 104 | H68: =HLOOKUP(H$43,'J-08'!$BV$275:$CY$360,86,FALSE) -> 0 | I68: =HLOOKUP(I$43,'J-08'!$BV$275:$CY$360,86,FALSE) -> 0 | J68: =HLOOKUP(J$43,'J-08'!$BV$275:$CY$360,86,FALSE) -> 67 | K68: =HLOOKUP(K$43,'J-08'!$BV$275:$CY$360,86,FALSE) -> 0 | L68: =HLOOKUP(L$43,'J-08'!$BV$275:$CY$360,86,FALSE) -> 0 | M68: =HLOOKUP(M$43,'J-08'!$BV$275:$CY$360,86,FALSE) -> 0 | N68: =HLOOKUP(N$43,'J-08'!$BV$275:$CY$360,86,FALSE) -> 0 | O68: =HLOOKUP(O$43,'J-08'!$BV$275:$CY$360,86,FALSE) -> 30 | P68: =HLOOKUP(P$43,'J-08'!$BV$275:$CY$360,86,FALSE) -> 0 | Q68: =HLOOKUP(Q$43,'J-08'!$BV$275:$CY$360,86,FALSE) -> 39 | R68: =HLOOKUP(R$43,'J-08'!$BV$275:$CY$360,86,FALSE) -> 102 | S68: =HLOOKUP(S$43,'J-08'!$BV$275:$CY$360,86,FALSE) -> 0 | T68: =HLOOKUP(T$43,'J-08'!$BV$275:$CY$360,86,FALSE) -> 0 | U68: =HLOOKUP(U$43,'J-08'!$BV$275:$CY$360,86,FALSE) -> 0 | V68: =HLOOKUP(V$43,'J-08'!$BV$275:$CY$360,86,FALSE) -> 0 | W68: =HLOOKUP(W$43,'J-08'!$BV$275:$CY$360,86,FALSE) -> 0 | X68: =HLOOKUP(X$43,'J-08'!$BV$275:$CY$360,86,FALSE) -> 0 | Y68: =HLOOKUP(Y$43,'J-08'!$BV$275:$CY$360,86,FALSE) -> 0 | Z68: =HLOOKUP(Z$43,'J-08'!$BV$275:$CY$360,86,FALSE) -> 0 | AA68: =HLOOKUP(AA$43,'J-08'!$BV$275:$CY$360,86,FALSE) -> 0 | AB68: =HLOOKUP(AB$43,'J-08'!$BV$275:$CY$360,86,FALSE) -> 0 | AC68: =HLOOKUP(AC$43,'J-08'!$BV$275:$CY$360,86,FALSE) -> 0 | AD68: =HLOOKUP(AD$43,'J-08'!$BV$275:$CY$360,86,FALSE) -> 0 | AE68: =HLOOKUP(AE$43,'J-08'!$BV$275:$CY$360,86,FALSE) -> 0 | AF68: =HLOOKUP(AF$43,'J-08'!$BV$275:$CY$360,86,FALSE) -> 0
A69: =P1 -> M '07 | C69: =HLOOKUP(C$43,'M-07'!$BV$275:$CY$276,2,FALSE) -> 0 | D69: =HLOOKUP(D$43,'M-07'!$BV$275:$CY$276,2,FALSE) -> 0 | E69: =HLOOKUP(E$43,'M-07'!$BV$275:$CY$276,2,FALSE) -> 0 | F69: =HLOOKUP(F$43,'M-07'!$BV$275:$CY$276,2,FALSE) -> 0 | G69: =HLOOKUP(G$43,'M-07'!$BV$275:$CY$276,2,FALSE) -> 40 | H69: =HLOOKUP(H$43,'M-07'!$BV$275:$CY$276,2,FALSE) -> 0 | I69: =HLOOKUP(I$43,'M-07'!$BV$275:$CY$276,2,FALSE) -> 0 | J69: =HLOOKUP(J$43,'M-07'!$BV$275:$CY$276,2,FALSE) -> 0 | K69: =HLOOKUP(K$43,'M-07'!$BV$275:$CY$276,2,FALSE) -> 37 | L69: =HLOOKUP(L$43,'M-07'!$BV$275:$CY$276,2,FALSE) -> 0 | M69: =HLOOKUP(M$43,'M-07'!$BV$275:$CY$276,2,FALSE) -> 0 | N69: =HLOOKUP(N$43,'M-07'!$BV$275:$CY$276,2,FALSE) -> 0 | O69: =HLOOKUP(O$43,'M-07'!$BV$275:$CY$276,2,FALSE) -> 0 | P69: =HLOOKUP(P$43,'M-07'!$BV$275:$CY$276,2,FALSE) -> 0 | Q69: =HLOOKUP(Q$43,'M-07'!$BV$275:$CY$276,2,FALSE) -> 0 | R69: =HLOOKUP(R$43,'M-07'!$BV$275:$CY$276,2,FALSE) -> 77 | S69: =HLOOKUP(S$43,'M-07'!$BV$275:$CY$276,2,FALSE) -> 0 | T69: =HLOOKUP(T$43,'M-07'!$BV$275:$CY$276,2,FALSE) -> 0 | U69: =HLOOKUP(U$43,'M-07'!$BV$275:$CY$276,2,FALSE) -> 0 | V69: =HLOOKUP(V$43,'M-07'!$BV$275:$CY$276,2,FALSE) -> 0 | W69: =HLOOKUP(W$43,'M-07'!$BV$275:$CY$276,2,FALSE) -> 0 | X69: =HLOOKUP(X$43,'M-07'!$BV$275:$CY$276,2,FALSE) -> 0 | Y69: =HLOOKUP(Y$43,'M-07'!$BV$275:$CY$276,2,FALSE) -> 0 | Z69: =HLOOKUP(Z$43,'M-07'!$BV$275:$CY$276,2,FALSE) -> 0 | AA69: =HLOOKUP(AA$43,'M-07'!$BV$275:$CY$276,2,FALSE) -> 0 | AB69: =HLOOKUP(AB$43,'M-07'!$BV$275:$CY$276,2,FALSE) -> 0 | AC69: =HLOOKUP(AC$43,'M-07'!$BV$275:$CY$276,2,FALSE) -> 0 | AD69: =HLOOKUP(AD$43,'M-07'!$BV$275:$CY$276,2,FALSE) -> 0 | AE69: =HLOOKUP(AE$43,'M-07'!$BV$275:$CY$276,2,FALSE) -> 0 | AF69: =HLOOKUP(AF$43,'M-07'!$BV$275:$CY$276,2,FALSE) -> 0
C70: =HLOOKUP(C$43,'M-07'!$BV$275:$CY$360,86,FALSE) -> 0 | D70: =HLOOKUP(D$43,'M-07'!$BV$275:$CY$360,86,FALSE) -> 0 | E70: =HLOOKUP(E$43,'M-07'!$BV$275:$CY$360,86,FALSE) -> 35 | F70: =HLOOKUP(F$43,'M-07'!$BV$275:$CY$360,86,FALSE) -> 0 | G70: =HLOOKUP(G$43,'M-07'!$BV$275:$CY$360,86,FALSE) -> 38 | H70: =HLOOKUP(H$43,'M-07'!$BV$275:$CY$360,86,FALSE) -> 0 | I70: =HLOOKUP(I$43,'M-07'!$BV$275:$CY$360,86,FALSE) -> 39 | J70: =HLOOKUP(J$43,'M-07'!$BV$275:$CY$360,86,FALSE) -> 0 | K70: =HLOOKUP(K$43,'M-07'!$BV$275:$CY$360,86,FALSE) -> 36 | L70: =HLOOKUP(L$43,'M-07'!$BV$275:$CY$360,86,FALSE) -> 0 | M70: =HLOOKUP(M$43,'M-07'!$BV$275:$CY$360,86,FALSE) -> 0 | N70: =HLOOKUP(N$43,'M-07'!$BV$275:$CY$360,86,FALSE) -> 0 | O70: =HLOOKUP(O$43,'M-07'!$BV$275:$CY$360,86,FALSE) -> 0 | P70: =HLOOKUP(P$43,'M-07'!$BV$275:$CY$360,86,FALSE) -> 0 | Q70: =HLOOKUP(Q$43,'M-07'!$BV$275:$CY$360,86,FALSE) -> 0 | R70: =HLOOKUP(R$43,'M-07'!$BV$275:$CY$360,86,FALSE) -> 77 | S70: =HLOOKUP(S$43,'M-07'!$BV$275:$CY$360,86,FALSE) -> 0 | T70: =HLOOKUP(T$43,'M-07'!$BV$275:$CY$360,86,FALSE) -> 0 | U70: =HLOOKUP(U$43,'M-07'!$BV$275:$CY$360,86,FALSE) -> 0 | V70: =HLOOKUP(V$43,'M-07'!$BV$275:$CY$360,86,FALSE) -> 0 | W70: =HLOOKUP(W$43,'M-07'!$BV$275:$CY$360,86,FALSE) -> 0 | X70: =HLOOKUP(X$43,'M-07'!$BV$275:$CY$360,86,FALSE) -> 0 | Y70: =HLOOKUP(Y$43,'M-07'!$BV$275:$CY$360,86,FALSE) -> 0 | Z70: =HLOOKUP(Z$43,'M-07'!$BV$275:$CY$360,86,FALSE) -> 0 | AA70: =HLOOKUP(AA$43,'M-07'!$BV$275:$CY$360,86,FALSE) -> 0 | AB70: =HLOOKUP(AB$43,'M-07'!$BV$275:$CY$360,86,FALSE) -> 0 | AC70: =HLOOKUP(AC$43,'M-07'!$BV$275:$CY$360,86,FALSE) -> 0 | AD70: =HLOOKUP(AD$43,'M-07'!$BV$275:$CY$360,86,FALSE) -> 0 | AE70: =HLOOKUP(AE$43,'M-07'!$BV$275:$CY$360,86,FALSE) -> 0 | AF70: =HLOOKUP(AF$43,'M-07'!$BV$275:$CY$360,86,FALSE) -> 0
A71: =Q1 -> J '07 | C71: =HLOOKUP(C$43,'J-07'!$BV$275:$CY$276,2,FALSE) -> 0 | D71: =HLOOKUP(D$43,'J-07'!$BV$275:$CY$276,2,FALSE) -> 0 | E71: =HLOOKUP(E$43,'J-07'!$BV$275:$CY$276,2,FALSE) -> 0 | F71: =HLOOKUP(F$43,'J-07'!$BV$275:$CY$276,2,FALSE) -> 0 | G71: =HLOOKUP(G$43,'J-07'!$BV$275:$CY$276,2,FALSE) -> 0 | H71: =HLOOKUP(H$43,'J-07'!$BV$275:$CY$276,2,FALSE) -> 0 | I71: =HLOOKUP(I$43,'J-07'!$BV$275:$CY$276,2,FALSE) -> 0 | J71: =HLOOKUP(J$43,'J-07'!$BV$275:$CY$276,2,FALSE) -> 39 | K71: =HLOOKUP(K$43,'J-07'!$BV$275:$CY$276,2,FALSE) -> 0 | L71: =HLOOKUP(L$43,'J-07'!$BV$275:$CY$276,2,FALSE) -> 0 | M71: =HLOOKUP(M$43,'J-07'!$BV$275:$CY$276,2,FALSE) -> 0 | N71: =HLOOKUP(N$43,'J-07'!$BV$275:$CY$276,2,FALSE) -> 0 | O71: =HLOOKUP(O$43,'J-07'!$BV$275:$CY$276,2,FALSE) -> 0 | P71: =HLOOKUP(P$43,'J-07'!$BV$275:$CY$276,2,FALSE) -> 0 | Q71: =HLOOKUP(Q$43,'J-07'!$BV$275:$CY$276,2,FALSE) -> 0 | R71: =HLOOKUP(R$43,'J-07'!$BV$275:$CY$276,2,FALSE) -> 78 | S71: =HLOOKUP(S$43,'J-07'!$BV$275:$CY$276,2,FALSE) -> 37 | T71: =HLOOKUP(T$43,'J-07'!$BV$275:$CY$276,2,FALSE) -> 0 | U71: =HLOOKUP(U$43,'J-07'!$BV$275:$CY$276,2,FALSE) -> 0 | V71: =HLOOKUP(V$43,'J-07'!$BV$275:$CY$276,2,FALSE) -> 0 | W71: =HLOOKUP(W$43,'J-07'!$BV$275:$CY$276,2,FALSE) -> 0 | X71: =HLOOKUP(X$43,'J-07'!$BV$275:$CY$276,2,FALSE) -> 0 | Y71: =HLOOKUP(Y$43,'J-07'!$BV$275:$CY$276,2,FALSE) -> 0 | Z71: =HLOOKUP(Z$43,'J-07'!$BV$275:$CY$276,2,FALSE) -> 0 | AA71: =HLOOKUP(AA$43,'J-07'!$BV$275:$CY$276,2,FALSE) -> 0 | AB71: =HLOOKUP(AB$43,'J-07'!$BV$275:$CY$276,2,FALSE) -> 0 | AC71: =HLOOKUP(AC$43,'J-07'!$BV$275:$CY$276,2,FALSE) -> 0 | AD71: =HLOOKUP(AD$43,'J-07'!$BV$275:$CY$276,2,FALSE) -> 0 | AE71: =HLOOKUP(AE$43,'J-07'!$BV$275:$CY$276,2,FALSE) -> 0 | AF71: =HLOOKUP(AF$43,'J-07'!$BV$275:$CY$276,2,FALSE) -> 0
C72: =HLOOKUP(C$43,'J-07'!$BV$275:$CY$360,86,FALSE) -> 0 | D72: =HLOOKUP(D$43,'J-07'!$BV$275:$CY$360,86,FALSE) -> 0 | E72: =HLOOKUP(E$43,'J-07'!$BV$275:$CY$360,86,FALSE) -> 0 | F72: =HLOOKUP(F$43,'J-07'!$BV$275:$CY$360,86,FALSE) -> 0 | G72: =HLOOKUP(G$43,'J-07'!$BV$275:$CY$360,86,FALSE) -> 0 | H72: =HLOOKUP(H$43,'J-07'!$BV$275:$CY$360,86,FALSE) -> 0 | I72: =HLOOKUP(I$43,'J-07'!$BV$275:$CY$360,86,FALSE) -> 0 | J72: =HLOOKUP(J$43,'J-07'!$BV$275:$CY$360,86,FALSE) -> 39 | K72: =HLOOKUP(K$43,'J-07'!$BV$275:$CY$360,86,FALSE) -> 0 | L72: =HLOOKUP(L$43,'J-07'!$BV$275:$CY$360,86,FALSE) -> 0 | M72: =HLOOKUP(M$43,'J-07'!$BV$275:$CY$360,86,FALSE) -> 0 | N72: =HLOOKUP(N$43,'J-07'!$BV$275:$CY$360,86,FALSE) -> 0 | O72: =HLOOKUP(O$43,'J-07'!$BV$275:$CY$360,86,FALSE) -> 0 | P72: =HLOOKUP(P$43,'J-07'!$BV$275:$CY$360,86,FALSE) -> 0 | Q72: =HLOOKUP(Q$43,'J-07'!$BV$275:$CY$360,86,FALSE) -> 0 | R72: =HLOOKUP(R$43,'J-07'!$BV$275:$CY$360,86,FALSE) -> 78 | S72: =HLOOKUP(S$43,'J-07'!$BV$275:$CY$360,86,FALSE) -> 0 | T72: =HLOOKUP(T$43,'J-07'!$BV$275:$CY$360,86,FALSE) -> 0 | U72: =HLOOKUP(U$43,'J-07'!$BV$275:$CY$360,86,FALSE) -> 0 | V72: =HLOOKUP(V$43,'J-07'!$BV$275:$CY$360,86,FALSE) -> 0 | W72: =HLOOKUP(W$43,'J-07'!$BV$275:$CY$360,86,FALSE) -> 0 | X72: =HLOOKUP(X$43,'J-07'!$BV$275:$CY$360,86,FALSE) -> 0 | Y72: =HLOOKUP(Y$43,'J-07'!$BV$275:$CY$360,86,FALSE) -> 0 | Z72: =HLOOKUP(Z$43,'J-07'!$BV$275:$CY$360,86,FALSE) -> 0 | AA72: =HLOOKUP(AA$43,'J-07'!$BV$275:$CY$360,86,FALSE) -> 0 | AB72: =HLOOKUP(AB$43,'J-07'!$BV$275:$CY$360,86,FALSE) -> 0 | AC72: =HLOOKUP(AC$43,'J-07'!$BV$275:$CY$360,86,FALSE) -> 0 | AD72: =HLOOKUP(AD$43,'J-07'!$BV$275:$CY$360,86,FALSE) -> 0 | AE72: =HLOOKUP(AE$43,'J-07'!$BV$275:$CY$360,86,FALSE) -> 0 | AF72: =HLOOKUP(AF$43,'J-07'!$BV$275:$CY$360,86,FALSE) -> 0
A73: Totaal | C73: =SUM(C45:C72) -> 0 | D73: 548 | E73: 762 | F73: 0 | G73: 1970 | H73: 0 | I73: 1864 | J73: 1201 | K73: 1202 | L73: 840 | M73: 0 | N73: 667 | O73: 1531 | P73: 0 | Q73: 1039 | R73: 2404 | S73: 1102 | T73: 0 | U73: 0 | V73: 114 | W73: 23 | X73: 0 | Y73: 0 | Z73: 0 | AA73: 0 | AB73: 0 | AC73: 0 | AD73: 0 | AE73: 0 | AF73: 0
C74: 0.01 | D74: 0.02 | E74: 0.03 | F74: 0.04 | G74: 0.05 | H74: 0.06 | I74: 0.07 | J74: 0.08 | K74: 0.09 | L74: 0.1 | M74: 0.11 | N74: 0.12 | O74: 0.13 | P74: 0.14 | Q74: 0.15 | R74: 0.16 | S74: 0.17 | T74: 0.18 | U74: 0.19 | V74: 0.2 | W74: 0.21 | X74: 0.22 | Y74: 0.23 | Z74: 0.24 | AA74: 0.25 | AB74: 0.26 | AC74: 0.27 | AD74: 0.28 | AE74: 0.29 | AF74: 0.3
C75: =C73-C74 -> -0.01 | D75: 547.98 | E75: 761.97 | F75: -0.04 | G75: 1969.95 | H75: -0.06 | I75: 1863.93 | J75: 1200.92 | K75: 1201.91 | L75: 839.9 | M75: -0.11 | N75: 666.88 | O75: 1530.87 | P75: -0.14 | Q75: 1038.85 | R75: 2403.84 | S75: 1101.83 | T75: -0.18 | U75: -0.19 | V75: 113.8 | W75: 22.79 | X75: -0.22 | Y75: -0.23 | Z75: -0.24 | AA75: -0.25 | AB75: -0.26 | AC75: -0.27 | AD75: -0.28 | AE75: -0.29 | AF75: -0.3
C76: =C44 -> 15 | D76: =D44 -> 12 | E76: 10 | F76: 15 | G76: 2 | H76: 15 | I76: 3 | J76: 6 | K76: 5 | L76: 9 | M76: 15 | N76: 11 | O76: 4 | P76: 15 | Q76: 8 | R76: 1 | S76: 7 | T76: 15 | U76: 15 | V76: 13 | W76: 14 | X76: 15 | Y76: 15 | Z76: 15 | AA76: 15 | AB76: 15 | AC76: 15 | AD76: 15 | AE76: 15 | AF76: 15
C79: Max: | D79: =MAX(D80:D109) ->  | E79: =MAX(E80:E109) -> 
A80: 1 | B80: =IF(B2<>"",B2,"") -> Floreant | D80: =IF(D2<>"",D2,0)+IF(D3<>"",D3,0) -> 212 | E80: =IF(E2<>"",E2,0)+IF(E3<>"",E3,0) -> 183 | F80: =IF(F2<>"",F2,0)+IF(F3<>"",F3,0) -> 191 | G80: =IF(G2<>"",G2,0)+IF(G3<>"",G3,0) -> 225 | H80: =IF(H2<>"",H2,0)+IF(H3<>"",H3,0) -> 128 | I80: =IF(I2<>"",I2,0)+IF(I3<>"",I3,0) -> 175 | J80: =IF(J2<>"",J2,0)+IF(J3<>"",J3,0) -> 129 | K80: =IF(K2<>"",K2,0)+IF(K3<>"",K3,0) -> 181 | L80: =IF(L2<>"",L2,0)+IF(L3<>"",L3,0) -> 138 | M80: =IF(M2<>"",M2,0)+IF(M3<>"",M3,0) -> 207 | N80: =IF(N2<>"",N2,0)+IF(N3<>"",N3,0) -> 175 | O80: =IF(O2<>"",O2,0)+IF(O3<>"",O3,0) -> 199 | P80: =IF(P2<>"",P2,0)+IF(P3<>"",P3,0) -> 154 | Q80: =IF(Q2<>"",Q2,0)+IF(Q3<>"",Q3,0) -> 156
A81: 2 | B81: =IF(B4<>"",B4,"") -> De Horizon Ens | D81: =IF(D4<>"",D4,0)+IF(D5<>"",D5,0) -> 195 | E81: =IF(E4<>"",E4,0)+IF(E5<>"",E5,0) -> 171 | F81: =IF(F4<>"",F4,0)+IF(F5<>"",F5,0) -> 152 | G81: =IF(G4<>"",G4,0)+IF(G5<>"",G5,0) -> 126 | H81: =IF(H4<>"",H4,0)+IF(H5<>"",H5,0) -> 80 | I81: =IF(I4<>"",I4,0)+IF(I5<>"",I5,0) -> 93 | J81: =IF(J4<>"",J4,0)+IF(J5<>"",J5,0) -> 141 | K81: =IF(K4<>"",K4,0)+IF(K5<>"",K5,0) -> 226 | L81: =IF(L4<>"",L4,0)+IF(L5<>"",L5,0) -> 209 | M81: =IF(M4<>"",M4,0)+IF(M5<>"",M5,0) -> 99 | N81: =IF(N4<>"",N4,0)+IF(N5<>"",N5,0) -> 191 | O81: =IF(O4<>"",O4,0)+IF(O5<>"",O5,0) -> 209 | P81: =IF(P4<>"",P4,0)+IF(P5<>"",P5,0) -> 78 | Q81: =IF(Q4<>"",Q4,0)+IF(Q5<>"",Q5,0) -> 0
A82: 3 | B82: =IF(B6<>"",B6,"") -> De Lichtboei | D82: =IF(D6<>"",D6,0)+IF(D7<>"",D7,0) -> 183 | E82: =IF(E6<>"",E6,0)+IF(E7<>"",E7,0) -> 165 | F82: =IF(F6<>"",F6,0)+IF(F7<>"",F7,0) -> 154 | G82: =IF(G6<>"",G6,0)+IF(G7<>"",G7,0) -> 146 | H82: =IF(H6<>"",H6,0)+IF(H7<>"",H7,0) -> 201 | I82: =IF(I6<>"",I6,0)+IF(I7<>"",I7,0) -> 177 | J82: =IF(J6<>"",J6,0)+IF(J7<>"",J7,0) -> 97 | K82: =IF(K6<>"",K6,0)+IF(K7<>"",K7,0) -> 195 | L82: =IF(L6<>"",L6,0)+IF(L7<>"",L7,0) -> 185 | M82: =IF(M6<>"",M6,0)+IF(M7<>"",M7,0) -> 144 | N82: =IF(N6<>"",N6,0)+IF(N7<>"",N7,0) -> 178 | O82: =IF(O6<>"",O6,0)+IF(O7<>"",O7,0) -> 0 | P82: =IF(P6<>"",P6,0)+IF(P7<>"",P7,0) -> 39 | Q82: =IF(Q6<>"",Q6,0)+IF(Q7<>"",Q7,0) -> 0
A83: 4 | B83: =IF(B8<>"",B8,"") -> 't Kompas | D83: =IF(D8<>"",D8,0)+IF(D9<>"",D9,0) -> 118 | E83: =IF(E8<>"",E8,0)+IF(E9<>"",E9,0) -> 187 | F83: =IF(F8<>"",F8,0)+IF(F9<>"",F9,0) -> 46 | G83: =IF(G8<>"",G8,0)+IF(G9<>"",G9,0) -> 154 | H83: =IF(H8<>"",H8,0)+IF(H9<>"",H9,0) -> 68 | I83: =IF(I8<>"",I8,0)+IF(I9<>"",I9,0) -> 225 | J83: =IF(J8<>"",J8,0)+IF(J9<>"",J9,0) -> 0 | K83: =IF(K8<>"",K8,0)+IF(K9<>"",K9,0) -> 110 | L83: =IF(L8<>"",L8,0)+IF(L9<>"",L9,0) -> 127 | M83: =IF(M8<>"",M8,0)+IF(M9<>"",M9,0) -> 208 | N83: =IF(N8<>"",N8,0)+IF(N9<>"",N9,0) -> 138 | O83: =IF(O8<>"",O8,0)+IF(O9<>"",O9,0) -> 60 | P83: =IF(P8<>"",P8,0)+IF(P9<>"",P9,0) -> 0 | Q83: =IF(Q8<>"",Q8,0)+IF(Q9<>"",Q9,0) -> 0
A84: 5 | B84: =IF(B10<>"",B10,"") -> De Zevensprong | D84: =IF(D10<>"",D10,0)+IF(D11<>"",D11,0) -> 116 | E84: =IF(E10<>"",E10,0)+IF(E11<>"",E11,0) -> 96 | F84: =IF(F10<>"",F10,0)+IF(F11<>"",F11,0) -> 204 | G84: =IF(G10<>"",G10,0)+IF(G11<>"",G11,0) -> 185 | H84: =IF(H10<>"",H10,0)+IF(H11<>"",H11,0) -> 104 | I84: =IF(I10<>"",I10,0)+IF(I11<>"",I11,0) -> 87 | J84: =IF(J10<>"",J10,0)+IF(J11<>"",J11,0) -> 75 | K84: =IF(K10<>"",K10,0)+IF(K11<>"",K11,0) -> 23 | L84: =IF(L10<>"",L10,0)+IF(L11<>"",L11,0) -> 80 | M84: =IF(M10<>"",M10,0)+IF(M11<>"",M11,0) -> 51 | N84: =IF(N10<>"",N10,0)+IF(N11<>"",N11,0) -> 79 | O84: =IF(O10<>"",O10,0)+IF(O11<>"",O11,0) -> 0 | P84: =IF(P10<>"",P10,0)+IF(P11<>"",P11,0) -> 73 | Q84: =IF(Q10<>"",Q10,0)+IF(Q11<>"",Q11,0) -> 0
A85: 6 | B85: =IF(B12<>"",B12,"") -> De Triangel | D85: =IF(D12<>"",D12,0)+IF(D13<>"",D13,0) ->  | E85: =IF(E12<>"",E12,0)+IF(E13<>"",E13,0) -> 0 | F85: =IF(F12<>"",F12,0)+IF(F13<>"",F13,0) -> 70 | G85: =IF(G12<>"",G12,0)+IF(G13<>"",G13,0) -> 117 | H85: =IF(H12<>"",H12,0)+IF(H13<>"",H13,0) -> 141 | I85: =IF(I12<>"",I12,0)+IF(I13<>"",I13,0) -> 92 | J85: =IF(J12<>"",J12,0)+IF(J13<>"",J13,0) -> 30 | K85: =IF(K12<>"",K12,0)+IF(K13<>"",K13,0) -> 102 | L85: =IF(L12<>"",L12,0)+IF(L13<>"",L13,0) -> 189 | M85: =IF(M12<>"",M12,0)+IF(M13<>"",M13,0) -> 0 | N85: =IF(N12<>"",N12,0)+IF(N13<>"",N13,0) -> 94 | O85: =IF(O12<>"",O12,0)+IF(O13<>"",O13,0) -> 135 | P85: =IF(P12<>"",P12,0)+IF(P13<>"",P13,0) -> 0 | Q85: =IF(Q12<>"",Q12,0)+IF(Q13<>"",Q13,0) -> 78
A86: 7 | B86: =IF(B14<>"",B14,"") -> de Koperwiek | D86: =IF(D14<>"",D14,0)+IF(D15<>"",D15,0) -> 95 | E86: =IF(E14<>"",E14,0)+IF(E15<>"",E15,0) -> 19 | F86: =IF(F14<>"",F14,0)+IF(F15<>"",F15,0) -> 181 | G86: =IF(G14<>"",G14,0)+IF(G15<>"",G15,0) -> 102 | H86: =IF(H14<>"",H14,0)+IF(H15<>"",H15,0) -> 21 | I86: =IF(I14<>"",I14,0)+IF(I15<>"",I15,0) -> 168 | J86: =IF(J14<>"",J14,0)+IF(J15<>"",J15,0) -> 164 | K86: =IF(K14<>"",K14,0)+IF(K15<>"",K15,0) -> 107 | L86: =IF(L14<>"",L14,0)+IF(L15<>"",L15,0) -> 80 | M86: =IF(M14<>"",M14,0)+IF(M15<>"",M15,0) -> 106 | N86: =IF(N14<>"",N14,0)+IF(N15<>"",N15,0) -> 22 | O86: =IF(O14<>"",O14,0)+IF(O15<>"",O15,0) -> 0 | P86: =IF(P14<>"",P14,0)+IF(P15<>"",P15,0) -> 0 | Q86: =IF(Q14<>"",Q14,0)+IF(Q15<>"",Q15,0) -> 37
A87: 8 | B87: =IF(B16<>"",B16,"") -> st.Josephschool | D87: =IF(D16<>"",D16,0)+IF(D17<>"",D17,0) -> 129 | E87: =IF(E16<>"",E16,0)+IF(E17<>"",E17,0) -> 106 | F87: =IF(F16<>"",F16,0)+IF(F17<>"",F17,0) -> 146 | G87: =IF(G16<>"",G16,0)+IF(G17<>"",G17,0) -> 144 | H87: =IF(H16<>"",H16,0)+IF(H17<>"",H17,0) -> 0 | I87: =IF(I16<>"",I16,0)+IF(I17<>"",I17,0) -> 0 | J87: =IF(J16<>"",J16,0)+IF(J17<>"",J17,0) -> 222 | K87: =IF(K16<>"",K16,0)+IF(K17<>"",K17,0) -> 112 | L87: =IF(L16<>"",L16,0)+IF(L17<>"",L17,0) -> 31 | M87: =IF(M16<>"",M16,0)+IF(M17<>"",M17,0) -> 0 | N87: =IF(N16<>"",N16,0)+IF(N17<>"",N17,0) -> 71 | O87: =IF(O16<>"",O16,0)+IF(O17<>"",O17,0) -> 78 | P87: =IF(P16<>"",P16,0)+IF(P17<>"",P17,0) -> 0 | Q87: =IF(Q16<>"",Q16,0)+IF(Q17<>"",Q17,0) -> 0
A88: 9 | B88: =IF(B18<>"",B18,"") -> Het Lichtschip | D88: =IF(D18<>"",D18,0)+IF(D19<>"",D19,0) -> 55 | E88: =IF(E18<>"",E18,0)+IF(E19<>"",E19,0) -> 95 | F88: =IF(F18<>"",F18,0)+IF(F19<>"",F19,0) -> 189 | G88: =IF(G18<>"",G18,0)+IF(G19<>"",G19,0) -> 111 | H88: =IF(H18<>"",H18,0)+IF(H19<>"",H19,0) -> 50 | I88: =IF(I18<>"",I18,0)+IF(I19<>"",I19,0) -> 98 | J88: =IF(J18<>"",J18,0)+IF(J19<>"",J19,0) -> 149 | K88: =IF(K18<>"",K18,0)+IF(K19<>"",K19,0) -> 17 | L88: =IF(L18<>"",L18,0)+IF(L19<>"",L19,0) -> 0 | M88: =IF(M18<>"",M18,0)+IF(M19<>"",M19,0) -> 0 | N88: =IF(N18<>"",N18,0)+IF(N19<>"",N19,0) -> 76 | O88: =IF(O18<>"",O18,0)+IF(O19<>"",O19,0) -> 0 | P88: =IF(P18<>"",P18,0)+IF(P19<>"",P19,0) -> 0 | Q88: =IF(Q18<>"",Q18,0)+IF(Q19<>"",Q19,0) -> 0
A89: 10 | B89: =IF(B20<>"",B20,"") -> Combinatie Tollebeek | D89: =IF(D20<>"",D20,0)+IF(D21<>"",D21,0) -> 29 | E89: =IF(E20<>"",E20,0)+IF(E21<>"",E21,0) -> 54 | F89: =IF(F20<>"",F20,0)+IF(F21<>"",F21,0) -> 0 | G89: =IF(G20<>"",G20,0)+IF(G21<>"",G21,0) -> 154 | H89: =IF(H20<>"",H20,0)+IF(H21<>"",H21,0) -> 49 | I89: =IF(I20<>"",I20,0)+IF(I21<>"",I21,0) -> 88 | J89: =IF(J20<>"",J20,0)+IF(J21<>"",J21,0) -> 58 | K89: =IF(K20<>"",K20,0)+IF(K21<>"",K21,0) -> 82 | L89: =IF(L20<>"",L20,0)+IF(L21<>"",L21,0) -> 0 | M89: =IF(M20<>"",M20,0)+IF(M21<>"",M21,0) -> 77 | N89: =IF(N20<>"",N20,0)+IF(N21<>"",N21,0) -> 0 | O89: =IF(O20<>"",O20,0)+IF(O21<>"",O21,0) -> 136 | P89: =IF(P20<>"",P20,0)+IF(P21<>"",P21,0) -> 35 | Q89: =IF(Q20<>"",Q20,0)+IF(Q21<>"",Q21,0) -> 0
A90: 11 | B90: =IF(B22<>"",B22,"") -> Roderik van Voorst | D90: =IF(D22<>"",D22,0)+IF(D23<>"",D23,0) -> 48 | E90: =IF(E22<>"",E22,0)+IF(E23<>"",E23,0) -> 91 | F90: =IF(F22<>"",F22,0)+IF(F23<>"",F23,0) -> 113 | G90: =IF(G22<>"",G22,0)+IF(G23<>"",G23,0) -> 41 | H90: =IF(H22<>"",H22,0)+IF(H23<>"",H23,0) -> 175 | I90: =IF(I22<>"",I22,0)+IF(I23<>"",I23,0) -> 0 | J90: =IF(J22<>"",J22,0)+IF(J23<>"",J23,0) -> 110 | K90: =IF(K22<>"",K22,0)+IF(K23<>"",K23,0) -> 89 | L90: =IF(L22<>"",L22,0)+IF(L23<>"",L23,0) -> 0 | M90: =IF(M22<>"",M22,0)+IF(M23<>"",M23,0) -> 0 | N90: =IF(N22<>"",N22,0)+IF(N23<>"",N23,0) -> 0 | O90: =IF(O22<>"",O22,0)+IF(O23<>"",O23,0) -> 0 | P90: =IF(P22<>"",P22,0)+IF(P23<>"",P23,0) -> 0 | Q90: =IF(Q22<>"",Q22,0)+IF(Q23<>"",Q23,0) -> 0
A91: 12 | B91: =IF(B24<>"",B24,"") -> Albert Schweitzerschool | D91: =IF(D24<>"",D24,0)+IF(D25<>"",D25,0) -> 0 | E91: =IF(E24<>"",E24,0)+IF(E25<>"",E25,0) -> 0 | F91: =IF(F24<>"",F24,0)+IF(F25<>"",F25,0) -> 0 | G91: =IF(G24<>"",G24,0)+IF(G25<>"",G25,0) -> 29 | H91: =IF(H24<>"",H24,0)+IF(H25<>"",H25,0) -> 93 | I91: =IF(I24<>"",I24,0)+IF(I25<>"",I25,0) -> 166 | J91: =IF(J24<>"",J24,0)+IF(J25<>"",J25,0) -> 45 | K91: =IF(K24<>"",K24,0)+IF(K25<>"",K25,0) -> 0 | L91: =IF(L24<>"",L24,0)+IF(L25<>"",L25,0) -> 0 | M91: =IF(M24<>"",M24,0)+IF(M25<>"",M25,0) -> 148 | N91: =IF(N24<>"",N24,0)+IF(N25<>"",N25,0) -> 0 | O91: =IF(O24<>"",O24,0)+IF(O25<>"",O25,0) -> 67 | P91: =IF(P24<>"",P24,0)+IF(P25<>"",P25,0) -> 0 | Q91: =IF(Q24<>"",Q24,0)+IF(Q25<>"",Q25,0) -> 0
A92: 13 | B92: =IF(B26<>"",B26,"") -> Fondali | D92: =IF(D26<>"",D26,0)+IF(D27<>"",D27,0) -> 0 | E92: =IF(E26<>"",E26,0)+IF(E27<>"",E27,0) -> 110 | F92: =IF(F26<>"",F26,0)+IF(F27<>"",F27,0) -> 0 | G92: =IF(G26<>"",G26,0)+IF(G27<>"",G27,0) -> 0 | H92: =IF(H26<>"",H26,0)+IF(H27<>"",H27,0) -> 77 | I92: =IF(I26<>"",I26,0)+IF(I27<>"",I27,0) -> 0 | J92: =IF(J26<>"",J26,0)+IF(J27<>"",J27,0) -> 0 | K92: =IF(K26<>"",K26,0)+IF(K27<>"",K27,0) -> 0 | L92: =IF(L26<>"",L26,0)+IF(L27<>"",L27,0) -> 0 | M92: =IF(M26<>"",M26,0)+IF(M27<>"",M27,0) -> 0 | N92: =IF(N26<>"",N26,0)+IF(N27<>"",N27,0) -> 37 | O92: =IF(O26<>"",O26,0)+IF(O27<>"",O27,0) -> 0 | P92: =IF(P26<>"",P26,0)+IF(P27<>"",P27,0) -> 0 | Q92: =IF(Q26<>"",Q26,0)+IF(Q27<>"",Q27,0) -> 0
A93: 14 | B93: =IF(B28<>"",B28,"") -> OBS de Driesprong | D93: =IF(D28<>"",D28,0)+IF(D29<>"",D29,0) -> 0 | E93: =IF(E28<>"",E28,0)+IF(E29<>"",E29,0) -> 0 | F93: =IF(F28<>"",F28,0)+IF(F29<>"",F29,0) -> 0 | G93: =IF(G28<>"",G28,0)+IF(G29<>"",G29,0) -> 0 | H93: =IF(H28<>"",H28,0)+IF(H29<>"",H29,0) -> 0 | I93: =IF(I28<>"",I28,0)+IF(I29<>"",I29,0) -> 0 | J93: =IF(J28<>"",J28,0)+IF(J29<>"",J29,0) -> 0 | K93: =IF(K28<>"",K28,0)+IF(K29<>"",K29,0) -> 0 | L93: =IF(L28<>"",L28,0)+IF(L29<>"",L29,0) -> 0 | M93: =IF(M28<>"",M28,0)+IF(M29<>"",M29,0) -> 0 | N93: =IF(N28<>"",N28,0)+IF(N29<>"",N29,0) -> 23 | O93: =IF(O28<>"",O28,0)+IF(O29<>"",O29,0) -> 0 | P93: =IF(P28<>"",P28,0)+IF(P29<>"",P29,0) -> 0 | Q93: =IF(Q28<>"",Q28,0)+IF(Q29<>"",Q29,0) -> 0
A94: 15 | B94: =IF(B30<>"",B30,"") -> Individueel | D94: =IF(D30<>"",D30,0)+IF(D31<>"",D31,0) -> 0 | E94: =IF(E30<>"",E30,0)+IF(E31<>"",E31,0) -> 0 | F94: =IF(F30<>"",F30,0)+IF(F31<>"",F31,0) -> 0 | G94: =IF(G30<>"",G30,0)+IF(G31<>"",G31,0) -> 0 | H94: =IF(H30<>"",H30,0)+IF(H31<>"",H31,0) -> 0 | I94: =IF(I30<>"",I30,0)+IF(I31<>"",I31,0) -> 0 | J94: =IF(J30<>"",J30,0)+IF(J31<>"",J31,0) -> 0 | K94: =IF(K30<>"",K30,0)+IF(K31<>"",K31,0) -> 0 | L94: =IF(L30<>"",L30,0)+IF(L31<>"",L31,0) -> 0 | M94: =IF(M30<>"",M30,0)+IF(M31<>"",M31,0) -> 0 | N94: =IF(N30<>"",N30,0)+IF(N31<>"",N31,0) -> 0 | O94: =IF(O30<>"",O30,0)+IF(O31<>"",O31,0) -> 0 | P94: =IF(P30<>"",P30,0)+IF(P31<>"",P31,0) -> 0 | Q94: =IF(Q30<>"",Q30,0)+IF(Q31<>"",Q31,0) -> 0
A95: 16 | B95: =IF(B32<>"",B32,"") ->  | D95: =IF(D32<>"",D32,0)+IF(D33<>"",D33,0) -> 0 | E95: =IF(E32<>"",E32,0)+IF(E33<>"",E33,0) -> 0 | F95: =IF(F32<>"",F32,0)+IF(F33<>"",F33,0) -> 0 | G95: =IF(G32<>"",G32,0)+IF(G33<>"",G33,0) -> 0 | H95: =IF(H32<>"",H32,0)+IF(H33<>"",H33,0) -> 0 | I95: =IF(I32<>"",I32,0)+IF(I33<>"",I33,0) -> 0 | J95: =IF(J32<>"",J32,0)+IF(J33<>"",J33,0) -> 0 | K95: =IF(K32<>"",K32,0)+IF(K33<>"",K33,0) -> 0 | L95: =IF(L32<>"",L32,0)+IF(L33<>"",L33,0) -> 0 | M95: =IF(M32<>"",M32,0)+IF(M33<>"",M33,0) -> 0 | N95: =IF(N32<>"",N32,0)+IF(N33<>"",N33,0) -> 0 | O95: =IF(O32<>"",O32,0)+IF(O33<>"",O33,0) -> 0 | P95: =IF(P32<>"",P32,0)+IF(P33<>"",P33,0) -> 0 | Q95: =IF(Q32<>"",Q32,0)+IF(Q33<>"",Q33,0) -> 0
A96: 17 | B96: =IF(B34<>"",B34,"") ->  | D96: =IF(D34<>"",D34,0)+IF(D35<>"",D35,0) -> 0 | E96: =IF(E34<>"",E34,0)+IF(E35<>"",E35,0) -> 0 | F96: =IF(F34<>"",F34,0)+IF(F35<>"",F35,0) -> 0 | G96: =IF(G34<>"",G34,0)+IF(G35<>"",G35,0) -> 0 | H96: =IF(H34<>"",H34,0)+IF(H35<>"",H35,0) -> 0 | I96: =IF(I34<>"",I34,0)+IF(I35<>"",I35,0) -> 0 | J96: =IF(J34<>"",J34,0)+IF(J35<>"",J35,0) -> 0 | K96: =IF(K34<>"",K34,0)+IF(K35<>"",K35,0) -> 0 | L96: =IF(L34<>"",L34,0)+IF(L35<>"",L35,0) -> 0 | M96: =IF(M34<>"",M34,0)+IF(M35<>"",M35,0) -> 0 | N96: =IF(N34<>"",N34,0)+IF(N35<>"",N35,0) -> 0 | O96: =IF(O34<>"",O34,0)+IF(O35<>"",O35,0) -> 0 | P96: =IF(P34<>"",P34,0)+IF(P35<>"",P35,0) -> 0 | Q96: =IF(Q34<>"",Q34,0)+IF(Q35<>"",Q35,0) -> 0
A97: 18 | B97: =IF(B36<>"",B36,"") ->  | D97: =IF(D36<>"",D36,0)+IF(D37<>"",D37,0) -> 0 | E97: =IF(E36<>"",E36,0)+IF(E37<>"",E37,0) -> 0 | F97: =IF(F36<>"",F36,0)+IF(F37<>"",F37,0) -> 0 | G97: =IF(G36<>"",G36,0)+IF(G37<>"",G37,0) -> 0 | H97: =IF(H36<>"",H36,0)+IF(H37<>"",H37,0) -> 0 | I97: =IF(I36<>"",I36,0)+IF(I37<>"",I37,0) -> 0 | J97: =IF(J36<>"",J36,0)+IF(J37<>"",J37,0) -> 0 | K97: =IF(K36<>"",K36,0)+IF(K37<>"",K37,0) -> 0 | L97: =IF(L36<>"",L36,0)+IF(L37<>"",L37,0) -> 0 | M97: =IF(M36<>"",M36,0)+IF(M37<>"",M37,0) -> 0 | N97: =IF(N36<>"",N36,0)+IF(N37<>"",N37,0) -> 0 | O97: =IF(O36<>"",O36,0)+IF(O37<>"",O37,0) -> 0 | P97: =IF(P36<>"",P36,0)+IF(P37<>"",P37,0) -> 0 | Q97: =IF(Q36<>"",Q36,0)+IF(Q37<>"",Q37,0) -> 0
A98: 19 | B98: =IF(#REF!<>"",#REF!,"") ->  | D98: =IF(#REF!<>"",#REF!,0)+IF(#REF!<>"",#REF!,0) ->  | E98: =IF(#REF!<>"",#REF!,0)+IF(#REF!<>"",#REF!,0) ->  | F98: =IF(#REF!<>"",#REF!,0)+IF(#REF!<>"",#REF!,0) ->  | G98: =IF(#REF!<>"",#REF!,0)+IF(#REF!<>"",#REF!,0) ->  | H98: =IF(#REF!<>"",#REF!,0)+IF(#REF!<>"",#REF!,0) ->  | I98: =IF(#REF!<>"",#REF!,0)+IF(#REF!<>"",#REF!,0) ->  | J98: =IF(#REF!<>"",#REF!,0)+IF(#REF!<>"",#REF!,0) ->  | K98: =IF(#REF!<>"",#REF!,0)+IF(#REF!<>"",#REF!,0) ->  | L98: =IF(#REF!<>"",#REF!,0)+IF(#REF!<>"",#REF!,0) ->  | M98: =IF(#REF!<>"",#REF!,0)+IF(#REF!<>"",#REF!,0) ->  | N98: =IF(#REF!<>"",#REF!,0)+IF(#REF!<>"",#REF!,0) ->  | O98: =IF(#REF!<>"",#REF!,0)+IF(#REF!<>"",#REF!,0) ->  | P98: =IF(#REF!<>"",#REF!,0)+IF(#REF!<>"",#REF!,0) ->  | Q98: =IF(#REF!<>"",#REF!,0)+IF(#REF!<>"",#REF!,0) -> 
A99: 20 | B99: =IF(#REF!<>"",#REF!,"") ->  | D99: =IF(#REF!<>"",#REF!,0)+IF(#REF!<>"",#REF!,0) ->  | E99: =IF(#REF!<>"",#REF!,0)+IF(#REF!<>"",#REF!,0) ->  | F99: =IF(#REF!<>"",#REF!,0)+IF(#REF!<>"",#REF!,0) ->  | G99: =IF(#REF!<>"",#REF!,0)+IF(#REF!<>"",#REF!,0) ->  | H99: =IF(#REF!<>"",#REF!,0)+IF(#REF!<>"",#REF!,0) ->  | I99: =IF(#REF!<>"",#REF!,0)+IF(#REF!<>"",#REF!,0) ->  | J99: =IF(#REF!<>"",#REF!,0)+IF(#REF!<>"",#REF!,0) ->  | K99: =IF(#REF!<>"",#REF!,0)+IF(#REF!<>"",#REF!,0) ->  | L99: =IF(#REF!<>"",#REF!,0)+IF(#REF!<>"",#REF!,0) ->  | M99: =IF(#REF!<>"",#REF!,0)+IF(#REF!<>"",#REF!,0) ->  | N99: =IF(#REF!<>"",#REF!,0)+IF(#REF!<>"",#REF!,0) ->  | O99: =IF(#REF!<>"",#REF!,0)+IF(#REF!<>"",#REF!,0) ->  | P99: =IF(#REF!<>"",#REF!,0)+IF(#REF!<>"",#REF!,0) ->  | Q99: =IF(#REF!<>"",#REF!,0)+IF(#REF!<>"",#REF!,0) -> 
A100: 21 | B100: =IF(#REF!<>"",#REF!,"") ->  | D100: =IF(#REF!<>"",#REF!,0)+IF(#REF!<>"",#REF!,0) ->  | E100: =IF(#REF!<>"",#REF!,0)+IF(#REF!<>"",#REF!,0) ->  | F100: =IF(#REF!<>"",#REF!,0)+IF(#REF!<>"",#REF!,0) ->  | G100: =IF(#REF!<>"",#REF!,0)+IF(#REF!<>"",#REF!,0) ->  | H100: =IF(#REF!<>"",#REF!,0)+IF(#REF!<>"",#REF!,0) ->  | I100: =IF(#REF!<>"",#REF!,0)+IF(#REF!<>"",#REF!,0) ->  | J100: =IF(#REF!<>"",#REF!,0)+IF(#REF!<>"",#REF!,0) ->  | K100: =IF(#REF!<>"",#REF!,0)+IF(#REF!<>"",#REF!,0) ->  | L100: =IF(#REF!<>"",#REF!,0)+IF(#REF!<>"",#REF!,0) ->  | M100: =IF(#REF!<>"",#REF!,0)+IF(#REF!<>"",#REF!,0) ->  | N100: =IF(#REF!<>"",#REF!,0)+IF(#REF!<>"",#REF!,0) ->  | O100: =IF(#REF!<>"",#REF!,0)+IF(#REF!<>"",#REF!,0) ->  | P100: =IF(#REF!<>"",#REF!,0)+IF(#REF!<>"",#REF!,0) ->  | Q100: =IF(#REF!<>"",#REF!,0)+IF(#REF!<>"",#REF!,0) -> 
A101: 22 | B101: =IF(#REF!<>"",#REF!,"") ->  | D101: =IF(#REF!<>"",#REF!,0)+IF(#REF!<>"",#REF!,0) ->  | E101: =IF(#REF!<>"",#REF!,0)+IF(#REF!<>"",#REF!,0) ->  | F101: =IF(#REF!<>"",#REF!,0)+IF(#REF!<>"",#REF!,0) ->  | G101: =IF(#REF!<>"",#REF!,0)+IF(#REF!<>"",#REF!,0) ->  | H101: =IF(#REF!<>"",#REF!,0)+IF(#REF!<>"",#REF!,0) ->  | I101: =IF(#REF!<>"",#REF!,0)+IF(#REF!<>"",#REF!,0) ->  | J101: =IF(#REF!<>"",#REF!,0)+IF(#REF!<>"",#REF!,0) ->  | K101: =IF(#REF!<>"",#REF!,0)+IF(#REF!<>"",#REF!,0) ->  | L101: =IF(#REF!<>"",#REF!,0)+IF(#REF!<>"",#REF!,0) ->  | M101: =IF(#REF!<>"",#REF!,0)+IF(#REF!<>"",#REF!,0) ->  | N101: =IF(#REF!<>"",#REF!,0)+IF(#REF!<>"",#REF!,0) ->  | O101: =IF(#REF!<>"",#REF!,0)+IF(#REF!<>"",#REF!,0) ->  | P101: =IF(#REF!<>"",#REF!,0)+IF(#REF!<>"",#REF!,0) ->  | Q101: =IF(#REF!<>"",#REF!,0)+IF(#REF!<>"",#REF!,0) -> 
A102: 23 | B102: =IF(#REF!<>"",#REF!,"") ->  | D102: =IF(#REF!<>"",#REF!,0)+IF(#REF!<>"",#REF!,0) ->  | E102: =IF(#REF!<>"",#REF!,0)+IF(#REF!<>"",#REF!,0) ->  | F102: =IF(#REF!<>"",#REF!,0)+IF(#REF!<>"",#REF!,0) ->  | G102: =IF(#REF!<>"",#REF!,0)+IF(#REF!<>"",#REF!,0) ->  | H102: =IF(#REF!<>"",#REF!,0)+IF(#REF!<>"",#REF!,0) ->  | I102: =IF(#REF!<>"",#REF!,0)+IF(#REF!<>"",#REF!,0) ->  | J102: =IF(#REF!<>"",#REF!,0)+IF(#REF!<>"",#REF!,0) ->  | K102: =IF(#REF!<>"",#REF!,0)+IF(#REF!<>"",#REF!,0) ->  | L102: =IF(#REF!<>"",#REF!,0)+IF(#REF!<>"",#REF!,0) ->  | M102: =IF(#REF!<>"",#REF!,0)+IF(#REF!<>"",#REF!,0) ->  | N102: =IF(#REF!<>"",#REF!,0)+IF(#REF!<>"",#REF!,0) ->  | O102: =IF(#REF!<>"",#REF!,0)+IF(#REF!<>"",#REF!,0) ->  | P102: =IF(#REF!<>"",#REF!,0)+IF(#REF!<>"",#REF!,0) ->  | Q102: =IF(#REF!<>"",#REF!,0)+IF(#REF!<>"",#REF!,0) -> 
A103: 24 | B103: =IF(#REF!<>"",#REF!,"") ->  | D103: =IF(#REF!<>"",#REF!,0)+IF(#REF!<>"",#REF!,0) ->  | E103: =IF(#REF!<>"",#REF!,0)+IF(#REF!<>"",#REF!,0) ->  | F103: =IF(#REF!<>"",#REF!,0)+IF(#REF!<>"",#REF!,0) ->  | G103: =IF(#REF!<>"",#REF!,0)+IF(#REF!<>"",#REF!,0) ->  | H103: =IF(#REF!<>"",#REF!,0)+IF(#REF!<>"",#REF!,0) ->  | I103: =IF(#REF!<>"",#REF!,0)+IF(#REF!<>"",#REF!,0) ->  | J103: =IF(#REF!<>"",#REF!,0)+IF(#REF!<>"",#REF!,0) ->  | K103: =IF(#REF!<>"",#REF!,0)+IF(#REF!<>"",#REF!,0) ->  | L103: =IF(#REF!<>"",#REF!,0)+IF(#REF!<>"",#REF!,0) ->  | M103: =IF(#REF!<>"",#REF!,0)+IF(#REF!<>"",#REF!,0) ->  | N103: =IF(#REF!<>"",#REF!,0)+IF(#REF!<>"",#REF!,0) ->  | O103: =IF(#REF!<>"",#REF!,0)+IF(#REF!<>"",#REF!,0) ->  | P103: =IF(#REF!<>"",#REF!,0)+IF(#REF!<>"",#REF!,0) ->  | Q103: =IF(#REF!<>"",#REF!,0)+IF(#REF!<>"",#REF!,0) -> 
A104: 25 | B104: =IF(#REF!<>"",#REF!,"") ->  | D104: =IF(#REF!<>"",#REF!,0)+IF(#REF!<>"",#REF!,0) ->  | E104: =IF(#REF!<>"",#REF!,0)+IF(#REF!<>"",#REF!,0) ->  | F104: =IF(#REF!<>"",#REF!,0)+IF(#REF!<>"",#REF!,0) ->  | G104: =IF(#REF!<>"",#REF!,0)+IF(#REF!<>"",#REF!,0) ->  | H104: =IF(#REF!<>"",#REF!,0)+IF(#REF!<>"",#REF!,0) ->  | I104: =IF(#REF!<>"",#REF!,0)+IF(#REF!<>"",#REF!,0) ->  | J104: =IF(#REF!<>"",#REF!,0)+IF(#REF!<>"",#REF!,0) ->  | K104: =IF(#REF!<>"",#REF!,0)+IF(#REF!<>"",#REF!,0) ->  | L104: =IF(#REF!<>"",#REF!,0)+IF(#REF!<>"",#REF!,0) ->  | M104: =IF(#REF!<>"",#REF!,0)+IF(#REF!<>"",#REF!,0) ->  | N104: =IF(#REF!<>"",#REF!,0)+IF(#REF!<>"",#REF!,0) ->  | O104: =IF(#REF!<>"",#REF!,0)+IF(#REF!<>"",#REF!,0) ->  | P104: =IF(#REF!<>"",#REF!,0)+IF(#REF!<>"",#REF!,0) ->  | Q104: =IF(#REF!<>"",#REF!,0)+IF(#REF!<>"",#REF!,0) -> 
A105: 26 | B105: =IF(#REF!<>"",#REF!,"") ->  | D105: =IF(#REF!<>"",#REF!,0)+IF(#REF!<>"",#REF!,0) ->  | E105: =IF(#REF!<>"",#REF!,0)+IF(#REF!<>"",#REF!,0) ->  | F105: =IF(#REF!<>"",#REF!,0)+IF(#REF!<>"",#REF!,0) ->  | G105: =IF(#REF!<>"",#REF!,0)+IF(#REF!<>"",#REF!,0) ->  | H105: =IF(#REF!<>"",#REF!,0)+IF(#REF!<>"",#REF!,0) ->  | I105: =IF(#REF!<>"",#REF!,0)+IF(#REF!<>"",#REF!,0) ->  | J105: =IF(#REF!<>"",#REF!,0)+IF(#REF!<>"",#REF!,0) ->  | K105: =IF(#REF!<>"",#REF!,0)+IF(#REF!<>"",#REF!,0) ->  | L105: =IF(#REF!<>"",#REF!,0)+IF(#REF!<>"",#REF!,0) ->  | M105: =IF(#REF!<>"",#REF!,0)+IF(#REF!<>"",#REF!,0) ->  | N105: =IF(#REF!<>"",#REF!,0)+IF(#REF!<>"",#REF!,0) ->  | O105: =IF(#REF!<>"",#REF!,0)+IF(#REF!<>"",#REF!,0) ->  | P105: =IF(#REF!<>"",#REF!,0)+IF(#REF!<>"",#REF!,0) ->  | Q105: =IF(#REF!<>"",#REF!,0)+IF(#REF!<>"",#REF!,0) -> 
A106: 27 | B106: =IF(#REF!<>"",#REF!,"") ->  | D106: =IF(#REF!<>"",#REF!,0)+IF(#REF!<>"",#REF!,0) ->  | E106: =IF(#REF!<>"",#REF!,0)+IF(#REF!<>"",#REF!,0) ->  | F106: =IF(#REF!<>"",#REF!,0)+IF(#REF!<>"",#REF!,0) ->  | G106: =IF(#REF!<>"",#REF!,0)+IF(#REF!<>"",#REF!,0) ->  | H106: =IF(#REF!<>"",#REF!,0)+IF(#REF!<>"",#REF!,0) ->  | I106: =IF(#REF!<>"",#REF!,0)+IF(#REF!<>"",#REF!,0) ->  | J106: =IF(#REF!<>"",#REF!,0)+IF(#REF!<>"",#REF!,0) ->  | K106: =IF(#REF!<>"",#REF!,0)+IF(#REF!<>"",#REF!,0) ->  | L106: =IF(#REF!<>"",#REF!,0)+IF(#REF!<>"",#REF!,0) ->  | M106: =IF(#REF!<>"",#REF!,0)+IF(#REF!<>"",#REF!,0) ->  | N106: =IF(#REF!<>"",#REF!,0)+IF(#REF!<>"",#REF!,0) ->  | O106: =IF(#REF!<>"",#REF!,0)+IF(#REF!<>"",#REF!,0) ->  | P106: =IF(#REF!<>"",#REF!,0)+IF(#REF!<>"",#REF!,0) ->  | Q106: =IF(#REF!<>"",#REF!,0)+IF(#REF!<>"",#REF!,0) -> 
A107: 28 | B107: =IF(#REF!<>"",#REF!,"") ->  | D107: =IF(#REF!<>"",#REF!,0)+IF(#REF!<>"",#REF!,0) ->  | E107: =IF(#REF!<>"",#REF!,0)+IF(#REF!<>"",#REF!,0) ->  | F107: =IF(#REF!<>"",#REF!,0)+IF(#REF!<>"",#REF!,0) ->  | G107: =IF(#REF!<>"",#REF!,0)+IF(#REF!<>"",#REF!,0) ->  | H107: =IF(#REF!<>"",#REF!,0)+IF(#REF!<>"",#REF!,0) ->  | I107: =IF(#REF!<>"",#REF!,0)+IF(#REF!<>"",#REF!,0) ->  | J107: =IF(#REF!<>"",#REF!,0)+IF(#REF!<>"",#REF!,0) ->  | K107: =IF(#REF!<>"",#REF!,0)+IF(#REF!<>"",#REF!,0) ->  | L107: =IF(#REF!<>"",#REF!,0)+IF(#REF!<>"",#REF!,0) ->  | M107: =IF(#REF!<>"",#REF!,0)+IF(#REF!<>"",#REF!,0) ->  | N107: =IF(#REF!<>"",#REF!,0)+IF(#REF!<>"",#REF!,0) ->  | O107: =IF(#REF!<>"",#REF!,0)+IF(#REF!<>"",#REF!,0) ->  | P107: =IF(#REF!<>"",#REF!,0)+IF(#REF!<>"",#REF!,0) ->  | Q107: =IF(#REF!<>"",#REF!,0)+IF(#REF!<>"",#REF!,0) -> 
A108: 29 | B108: =IF(#REF!<>"",#REF!,"") ->  | D108: =IF(#REF!<>"",#REF!,0)+IF(#REF!<>"",#REF!,0) ->  | E108: =IF(#REF!<>"",#REF!,0)+IF(#REF!<>"",#REF!,0) ->  | F108: =IF(#REF!<>"",#REF!,0)+IF(#REF!<>"",#REF!,0) ->  | G108: =IF(#REF!<>"",#REF!,0)+IF(#REF!<>"",#REF!,0) ->  | H108: =IF(#REF!<>"",#REF!,0)+IF(#REF!<>"",#REF!,0) ->  | I108: =IF(#REF!<>"",#REF!,0)+IF(#REF!<>"",#REF!,0) ->  | J108: =IF(#REF!<>"",#REF!,0)+IF(#REF!<>"",#REF!,0) ->  | K108: =IF(#REF!<>"",#REF!,0)+IF(#REF!<>"",#REF!,0) ->  | L108: =IF(#REF!<>"",#REF!,0)+IF(#REF!<>"",#REF!,0) ->  | M108: =IF(#REF!<>"",#REF!,0)+IF(#REF!<>"",#REF!,0) ->  | N108: =IF(#REF!<>"",#REF!,0)+IF(#REF!<>"",#REF!,0) ->  | O108: =IF(#REF!<>"",#REF!,0)+IF(#REF!<>"",#REF!,0) ->  | P108: =IF(#REF!<>"",#REF!,0)+IF(#REF!<>"",#REF!,0) ->  | Q108: =IF(#REF!<>"",#REF!,0)+IF(#REF!<>"",#REF!,0) -> 
A109: 30 | B109: =IF(#REF!<>"",#REF!,"") ->  | D109: =IF(#REF!<>"",#REF!,0)+IF(#REF!<>"",#REF!,0) ->  | E109: =IF(#REF!<>"",#REF!,0)+IF(#REF!<>"",#REF!,0) ->  | F109: =IF(#REF!<>"",#REF!,0)+IF(#REF!<>"",#REF!,0) ->  | G109: =IF(#REF!<>"",#REF!,0)+IF(#REF!<>"",#REF!,0) ->  | H109: =IF(#REF!<>"",#REF!,0)+IF(#REF!<>"",#REF!,0) ->  | I109: =IF(#REF!<>"",#REF!,0)+IF(#REF!<>"",#REF!,0) ->  | J109: =IF(#REF!<>"",#REF!,0)+IF(#REF!<>"",#REF!,0) ->  | K109: =IF(#REF!<>"",#REF!,0)+IF(#REF!<>"",#REF!,0) ->  | L109: =IF(#REF!<>"",#REF!,0)+IF(#REF!<>"",#REF!,0) ->  | M109: =IF(#REF!<>"",#REF!,0)+IF(#REF!<>"",#REF!,0) ->  | N109: =IF(#REF!<>"",#REF!,0)+IF(#REF!<>"",#REF!,0) ->  | O109: =IF(#REF!<>"",#REF!,0)+IF(#REF!<>"",#REF!,0) ->  | P109: =IF(#REF!<>"",#REF!,0)+IF(#REF!<>"",#REF!,0) ->  | Q109: =IF(#REF!<>"",#REF!,0)+IF(#REF!<>"",#REF!,0) -> 

Sheet Chrono
A1: CHRONOLOOG SCHOLENCROSS | F1: 1e cross | G1: zaterdag 12 oktober 2019 | H1: =LEFT(G1,19) -> zaterdag 12 oktober
A2: zaterdag 2 november 2019 | F2: 2e cross | G2: zaterdag 2 november 2019
A3: Kinderen geboren in: | B3: m/j | C3: aantal | E3: 2e cross
A5: =Stand!C1-6 -> 2013 | B5: meisjes | C5: =IF($E$3=$F$1,Scholen!E$34,Scholen!E$35) -> 31 | E5: =IF(E$3=F$1,H5,I5) -> 14.30 | H5: 14.30 | I5: 14.30
B6: jongens | C6: =IF($E$3=$F$1,Scholen!F$34,Scholen!F$35) -> 26 | E6: =IF(E$3=F$1,H6,I6) -> 14.38 | H6: 14.36 | I6: 14.38
A8: =A5-1 -> 2012 | B8: meisjes | C8: =IF($E$3=$F$1,Scholen!G$34,Scholen!G$35) -> 49 | E8: =IF(E$3=F$1,H8,I8) -> 14.46 | H8: 14.42 | I8: 14.46
B9: jongens | C9: =IF($E$3=$F$1,Scholen!H$34,Scholen!H$35) -> 45 | E9: =IF(E$3=F$1,H9,I9) -> 14.54 | H9: 14.48 | I9: 14.54
A11: =A8-1 -> 2011 | B11: meisjes | C11: =IF($E$3=$F$1,Scholen!I$34,Scholen!I$35) -> 35 | E11: =IF(E$3=F$1,H11,I11) -> 15.02 | H11: 14.54 | I11: 15.02
B12: jongens | C12: =IF($E$3=$F$1,Scholen!J$34,Scholen!J$35) -> 43 | E12: =IF(E$3=F$1,H12,I12) -> 15.10 | H12: 15.00 | I12: 15.10
A14: =A11-1 -> 2010 | B14: meisjes | C14: =IF($E$3=$F$1,Scholen!K$34,Scholen!K$35) -> 28 | E14: =IF(E$3=F$1,H14,I14) -> 15.18 | H14: 15.06 | I14: 15.18
B15: jongens | C15: =IF($E$3=$F$1,Scholen!L$34,Scholen!L$35) -> 39 | E15: =IF(E$3=F$1,H15,I15) -> 15.26 | H15: 15.12 | I15: 15.26
A17: =A14-1 -> 2009 | B17: meisjes | C17: =IF($E$3=$F$1,Scholen!M$34,Scholen!M$35) -> 27 | E17: =IF(E$3=F$1,H17,I17) -> 15.34 | H17: 15.18 | I17: 15.34
B18: jongens | C18: =IF($E$3=$F$1,Scholen!N$34,Scholen!N$35) -> 27 | E18: =IF(E$3=F$1,H18,I18) -> 15.42 | H18: 15.24 | I18: 15.42
A20: =A17-1 -> 2008 | B20: meisjes | C20: =IF($E$3=$F$1,Scholen!O$34,Scholen!O$35) -> 33 | H20: 15.30 | I20: 15.50
B21: jongens | C21: =IF($E$3=$F$1,Scholen!P$34,Scholen!P$35) -> 19 | H21: 15.36 | I21: 15.58
E22: =IF(E$3=F$1,H20,I20) -> 15.50
A23: =A20-1 -> 2007 | B23: meisjes | C23: =IF($E$3=$F$1,Scholen!Q$34,Scholen!Q$35) -> 6 | H23: 15.42 | I23: 16.06
B24: jongens | C24: =IF($E$3=$F$1,Scholen!R$34,Scholen!R$35) -> 4

Sheet M-13
D1: Inschrijven | P1: Volgorde van binnenkomst | Z1: Uitslagen printscherm
C2: Volgorde | D2: 1e | E2: 2e | F2: =CONCATENATE("Meisjes"," ",Stand!C1-6) -> Meisjes 2013 | H2: 1e cross | I2: 2e cross | J2: 1e cross | L2: 2e cross | N2: Punten Totaal: | P2: =F2 -> Meisjes 2013 | V2: 1e | W2: 2e | X2: 1e | Y2: 2e | Z2: Volgorde | AA2: =AN3 -> 29 | AB2: =F2 -> Meisjes 2013 | AC2: =Stand!C1 -> 2019 | AD2: 1e cross | AF2: 2e cross | AH2: School punten totaal: | AJ2: DNS 1e | AK2: DNS 2e
D3: st.nr. | E3: st.nr. | F3: Naam: | G3: School: | J3: Volgorde | K3: Punten | L3: Volgorde | M3: Punten | P3: 1e cross | R3: 2e cross | AA3: st.nr. | AB3: Naam: | AC3: School: | AD3: Volgorde | AE3: Punten | AF3: Volgorde | AG3: Punten | AJ3: =COUNTIF(AD4:AD83,"=dns") -> 2 | AK3: =COUNTIF(AF4:AF83,"=dns") -> 8 | AN3: =COUNTIF(AN4:AN83,">1") -> 29
A4: 1 | B4: =AO4 -> 23 | C4: =AO4 -> 23 | D4: 1399 | E4: 1399 | F4: Lisa Kampen | G4: Koperwiek | J4: =IF(AND(F4<>"",H4<>""),"XX",IF(ISERROR(VLOOKUP(D4,P$4:Q$83,2,FALSE)),"",VLOOKUP(D4,P$4:Q$83,2,FALSE))) -> 28 | K4: =H103 -> 17 | L4: =IF(AND(F4<>"",I4<>""),"XX",IF(ISERROR(VLOOKUP(E4,R$4:S$83,2,FALSE)),"",VLOOKUP(E4,R$4:S$83,2,FALSE))) -> 21 | M4: =K103 -> 21 | N4: =IF(OR(K4="",M4=""),"",K4+M4) -> 38 | O4: =IF(COUNTIF(P$4:P$83,D4)=1,TRUE,FALSE) -> TRUE | P4: 500 | Q4: 1 | R4: 1377 | S4: 1 | T4: =IF(P4<>"",IF(VLOOKUP(P4,D$4:I$83,5,FALSE)="",1,0),1) -> 1 | U4: =IF(R4<>"",IF(VLOOKUP(R4,E$4:I$83,5,FALSE)="",1,0),1) -> 1 | V4: =COUNTIF(P$4:P$83,P4) -> 1 | W4: =COUNTIF(R$4:R$83,R4) -> 1 | X4: =IF(P4<>"",COUNTIF($D$4:$D$83,P4),1) -> 1 | Y4: =IF(R4<>"",COUNTIF($E$4:$E$83,R4),1) -> 1 | Z4: =VLOOKUP($A4,$B$4:$N$83,2,FALSE) -> 1 | AA4: =VLOOKUP($A4,$B$4:$N$83,3,FALSE) -> 1377 | AB4: =VLOOKUP($A4,$B$4:$N$83,5,FALSE) -> Lynn Fuite | AC4: =VLOOKUP($A4,$B$4:$N$83,6,FALSE) -> Horizon | AD4: =IF(VLOOKUP($A4,$B$4:$N$83,9,FALSE)<>"",VLOOKUP($A4,$B$4:$N$83,9,FALSE),IF(AB4=0,"",IF($R$4="","","dns"))) -> 2 | AE4: =VLOOKUP($A4,$B$4:$N$83,10,FALSE) -> 39 | AF4: =IF(VLOOKUP($A4,$B$4:$N$83,11,FALSE)<>"",VLOOKUP($A4,$B$4:$N$83,11,FALSE),IF(AB4=0,"",IF($R$4="","","dns"))) -> 1 | AG4: =VLOOKUP($A4,$B$4:$N$83,12,FALSE) -> 40 | AH4: =VLOOKUP($A4,$B$4:$N$83,13,FALSE) -> 79 | AJ4: =Scholen!C3 -> individueel | AK4: =IF(G4<>"",IF(AND(H4="",I4=""),G4,""),"") -> Koperwiek | AL4: =IF(AND(H4="",I4<>""),G4,"") ->  | AM4: =IF(AND(H4<>"",I4=""),G4,"") ->  | AN4: =IF(AND(ISNUMBER(J4),ISNUMBER(L4)),160-(-A4*0.0001+J4+L4*1.01),IF(ISNUMBER(J4),80-J4,IF(ISNUMBER(L4),80-(L4*0.99),IF(AND(J4="",L4=""),0.5-A4*0.0001,0.5-A4*0.0001)))) -> 110.7901 | AO4: =RANK(AN4,AN$4:AN$83,0) -> 23 | AQ4: 1 | AR4: DNS | AS4: DNF | AT4: DQ
A5: 2 | B5: 28 | C5: 28 | D5: 1398 | E5: 1398 | F5: Suze Blaakmeer | G5: Koperwiek | J5: =IF(AND(F5<>"",H5<>""),"XX",IF(ISERROR(VLOOKUP(D5,P$4:Q$83,2,FALSE)),"",VLOOKUP(D5,P$4:Q$83,2,FALSE))) -> 27 | K5: 18 | L5: =IF(AND(F5<>"",I5<>""),"XX",IF(ISERROR(VLOOKUP(E5,R$4:S$83,2,FALSE)),"",VLOOKUP(E5,R$4:S$83,2,FALSE))) -> DNS | M5: 0 | N5: 18 | P5: 1377 | Q5: 2 | R5: 500 | S5: 2 | T5: =IF(P5<>"",IF(VLOOKUP(P5,D$4:I$83,5,FALSE)="",1,0),1) -> 1 | U5: =IF(R5<>"",IF(VLOOKUP(R5,E$4:I$83,5,FALSE)="",1,0),1) -> 1 | V5: 1 | W5: 1 | X5: =IF(P5<>"",COUNTIF($D$4:$D$83,P5),1) -> 1 | Y5: =IF(R5<>"",COUNTIF($E$4:$E$83,R5),1) -> 1 | Z5: 2 | AA5: 500 | AB5: =VLOOKUP($A5,$B$4:$N$83,5,FALSE) -> Vajèn Adema | AC5: =VLOOKUP($A5,$B$4:$N$83,6,FALSE) -> Lichtboei | AD5: =IF(VLOOKUP($A5,$B$4:$N$83,9,FALSE)<>"",VLOOKUP($A5,$B$4:$N$83,9,FALSE),IF(AB5=0,"",IF($R$4="","","dns"))) -> 1 | AE5: =VLOOKUP($A5,$B$4:$N$83,10,FALSE) -> 40 | AF5: =IF(VLOOKUP($A5,$B$4:$N$83,11,FALSE)<>"",VLOOKUP($A5,$B$4:$N$83,11,FALSE),IF(AB5=0,"",IF($R$4="","","dns"))) -> 2 | AG5: =VLOOKUP($A5,$B$4:$N$83,12,FALSE) -> 39 | AH5: =VLOOKUP($A5,$B$4:$N$83,13,FALSE) -> 79 | AJ5: =Scholen!C4 -> A.Schweit. | AK5: =IF(G5<>"",IF(AND(H5="",I5=""),G5,""),"") -> Koperwiek | AL5: =IF(AND(H5="",I5<>""),G5,"") ->  | AM5: =IF(AND(H5<>"",I5=""),G5,"") ->  | AN5: 53 | AO5: 28
A6: 3 | B6: 21 | C6: 21 | D6: 1397 | E6: 1397 | F6: Merel Schonewille | G6: Koperwiek | J6: 24 | K6: 19 | L6: 22 | M6: 20 | N6: 39 | P6: 1384 | Q6: 3 | R6: 1389 | S6: 3 | T6: 1 | U6: 1 | V6: 1 | W6: 1 | X6: 1 | Y6: 1 | Z6: 3 | AA6: 1389 | AB6: =VLOOKUP($A6,$B$4:$N$83,5,FALSE) -> Lisa Wentink | AC6: =VLOOKUP($A6,$B$4:$N$83,6,FALSE) -> Floreant | AD6: 5 | AE6: =VLOOKUP($A6,$B$4:$N$83,10,FALSE) -> 36 | AF6: 3 | AG6: =VLOOKUP($A6,$B$4:$N$83,12,FALSE) -> 38 | AH6: =VLOOKUP($A6,$B$4:$N$83,13,FALSE) -> 74 | AJ6: =Scholen!C5 -> Com.Tol. | AK6: Koperwiek | AN6: 113.7803 | AO6: 21
A7: 4 | B7: 29 | C7: 29 | D7: 1396 | E7: 1396 | F7: Lizzy van der Werf | G7: Koperwiek | J7: 29 | K7: 0 | L7: DNS | M7: 0 | N7: 0 | P7: 1394 | Q7: 4 | R7: 1390 | S7: 4 | T7: 1 | U7: 1 | V7: 1 | W7: 1 | X7: 1 | Y7: 1 | Z7: 4 | AA7: 1384 | AB7: Puck van Wieren | AC7: st Joseph | AD7: 3 | AE7: 38 | AF7: 5 | AG7: 36 | AH7: 74 | AJ7: =Scholen!C6 -> de Ark | AK7: Koperwiek | AN7: 51 | AO7: 29
A8: 5 | B8: 17 | C8: 17 | D8: 1395 | E8: 1395 | F8: Linde Zeinstra | G8: Lichtboei | J8: 19 | K8: 22 | L8: 16 | M8: 26 | N8: 48 | P8: 1389 | Q8: 5 | R8: 1384 | S8: 5 | T8: 1 | U8: 1 | V8: 1 | W8: 1 | X8: 1 | Y8: 1 | Z8: 5 | AA8: 1390 | AB8: Loes Pragt | AC8: Floreant | AD8: 7 | AE8: 34 | AF8: 4 | AG8: 37 | AH8: 71 | AJ8: =Scholen!C7 -> Horizon | AK8: Lichtboei | AN8: 124.8405 | AO8: 17
A9: 6 | B9: 24 | C9: 24 | D9: 1394 | E9: 1394 | F9: Layla Duin | G9: Lichtboei | J9: 4 | K9: 37 | L9: DNS | M9: 0 | N9: 37 | P9: 652 | Q9: 6 | R9: 1392 | S9: 6 | T9: 1 | U9: 1 | V9: 1 | W9: 1 | X9: 1 | Y9: 1 | Z9: 6 | AA9: 1392 | AB9: Lize Boons | AC9: Floreant | AD9: 9 | AE9: 32 | AF9: 6 | AG9: 35 | AH9: 67 | AJ9: =Scholen!C8 -> Windkr.10 | AK9: Lichtboei | AN9: 76 | AO9: 24
A10: 7 | B10: 22 | C10: 22 | D10: 1393 | E10: 1393 | F10: Eline Korf | G10: Lichtboei | J10: 25 | K10: 0 | L10: 23 | M10: 19 | N10: 19 | P10: 1390 | Q10: 7 | R10: 1386 | S10: 7 | T10: 1 | U10: 1 | V10: 1 | W10: 1 | X10: 1 | Y10: 1 | Z10: 7 | AA10: 1375 | AB10: Lisa Baas | AC10: Horizon | AD10: 10 | AE10: 31 | AF10: 9 | AG10: 33 | AH10: 64 | AJ10: =Scholen!C9 -> Lichtboei | AK10: Lichtboei | AN10: 111.7707 | AO10: 22
A11: 8 | B11: 6 | C11: 6 | D11: 1392 | E11: 1392 | F11: Lize Boons | G11: Floreant | J11: 9 | K11: 32 | L11: 6 | M11: 35 | N11: 67 | P11: 1373 | Q11: 8 | R11: 1388 | S11: 8 | T11: 1 | U11: 1 | V11: 1 | W11: 1 | X11: 1 | Y11: 1 | Z11: 8 | AA11: 1386 | AB11: Roos Buining | AC11: Triangel | AD11: 13 | AE11: 28 | AF11: 7 | AG11: 34 | AH11: 62 | AJ11: =Scholen!C10 -> Triangel | AK11: Floreant | AN11: 144.9408 | AO11: 6
A12: 9 | B12: 30 | C12: 30 | D12: 1391 | E12: 1391 | F12: Fayenne Frankema | G12: Floreant | J12: DNS | K12: 0 | L12: DNS | M12: 0 | N12: 0 | P12: 1392 | Q12: 9 | R12: 1375 | S12: 9 | T12: 1 | U12: 1 | V12: 1 | W12: 1 | X12: 1 | Y12: 1 | Z12: 9 | AA12: 1373 | AB12: Esmay Bolken | AC12: 't Kompas | AD12: 8 | AE12: 33 | AF12: 14 | AG12: 28 | AH12: 61 | AJ12: =Scholen!C11 -> 7 sprong | AK12: Floreant | AN12: 0.4991 | AO12: 30
A13: 10 | B13: 5 | C13: 5 | D13: 1390 | E13: 1390 | F13: Loes Pragt | G13: Floreant | J13: 7 | K13: 34 | L13: 4 | M13: 37 | N13: 71 | P13: 1375 | Q13: 10 | R13: 653 | S13: 10 | T13: 1 | U13: 1 | V13: 1 | W13: 1 | X13: 1 | Y13: 1 | Z13: 10 | AA13: 653 | AB13: Lana Heupink | AC13: 7 sprong | AD13: 14 | AE13: 27 | AF13: 10 | AG13: 32 | AH13: 59 | AJ13: =Scholen!C12 -> Lichtschip | AK13: Floreant | AN13: 148.961 | AO13: 5
A14: 11 | B14: 3 | C14: 3 | D14: 1389 | E14: 1389 | F14: Lisa Wentink | G14: Floreant | J14: 5 | K14: 36 | L14: 3 | M14: 38 | N14: 74 | P14: 1372 | Q14: 11 | R14: 1374 | S14: 11 | T14: 1 | U14: 1 | V14: 1 | W14: 1 | X14: 1 | Y14: 1 | Z14: 11 | AA14: 1372 | AB14: Michelle Stevens | AC14: 't Kompas | AD14: 11 | AE14: 30 | AF14: 15 | AG14: 27 | AH14: 57 | AJ14: =Scholen!C13 -> Mariab.s. | AK14: Floreant | AN14: 151.9711 | AO14: 3
A15: 12 | B15: 16 | C15: 16 | D15: 1388 | E15: 1388 | F15: Kato Wieringa | G15: Floreant | J15: 26 | K15: 0 | L15: 8 | M15: 0 | N15: 0 | P15: 1382 | Q15: 12 | R15: 1380 | S15: 12 | T15: 1 | U15: 1 | V15: 1 | W15: 1 | X15: 1 | Y15: 1 | Z15: 12 | AA15: 652 | AB15: Anna ligthart | AC15: 7 sprong | AD15: 6 | AE15: 35 | AF15: 20 | AG15: 22 | AH15: 57 | AJ15: =Scholen!C14 -> R.v.voorst | AK15: Floreant | AN15: 125.9212 | AO15: 16
A16: 13 | B16: 20 | C16: 20 | D16: 1387 | E16: 1387 | F16: Sara Hospes | G16: Triangel | J16: 23 | K16: 20 | L16: 19 | M16: 23 | N16: 43 | P16: 1386 | Q16: 13 | R16: 1383 | S16: 13 | T16: 1 | U16: 1 | V16: 1 | W16: 1 | X16: 1 | Y16: 1 | Z16: 13 | AA16: 1380 | AB16: Eva Bronsema | AC16: Lichtschip | AD16: 16 | AE16: 25 | AF16: 12 | AG16: 30 | AH16: 55 | AJ16: =Scholen!C15 -> 't Kompas | AK16: Triangel | AN16: 117.8113 | AO16: 20
A17: 14 | B17: 8 | C17: 8 | D17: 1386 | E17: 1386 | F17: Roos Buining | G17: Triangel | J17: 13 | K17: 28 | L17: 7 | M17: 34 | N17: 62 | P17: 653 | Q17: 14 | R17: 1373 | S17: 14 | T17: 1 | U17: 1 | V17: 1 | W17: 1 | X17: 1 | Y17: 1 | Z17: 14 | AA17: 1383 | AB17: Vera Smit | AC17: st Joseph | AD17: 15 | AE17: 26 | AF17: 13 | AG17: 29 | AH17: 55 | AJ17: =Scholen!C16 -> de Klipper | AK17: Triangel | AN17: 139.9314 | AO17: 8
A18: 15 | B18: 18 | C18: 18 | D18: 1385 | E18: 1385 | F18: Mila van Druten | G18: Triangel | J18: 18 | K18: 23 | L18: 17 | M18: 25 | N18: 48 | P18: 1383 | Q18: 15 | R18: 1372 | S18: 15 | T18: 1 | U18: 1 | V18: 1 | W18: 1 | X18: 1 | Y18: 1 | Z18: 15 | AA18: 1374 | AB18: Cecile Schook | AC18: Horizon | AD18: 22 | AE18: 0 | AF18: 11 | AG18: 31 | AH18: 31 | AJ18: =Scholen!C17 -> st Joseph | AK18: Triangel | AN18: 124.8315 | AO18: 18
A19: 16 | B19: 4 | C19: 4 | D19: 1384 | E19: 1384 | F19: Puck van Wieren | G19: st Joseph | J19: 3 | K19: 38 | L19: 5 | M19: 36 | N19: 74 | P19: 1380 | Q19: 16 | R19: 1395 | S19: 16 | T19: 1 | U19: 1 | V19: 1 | W19: 1 | X19: 1 | Y19: 1 | Z19: 16 | AA19: 1388 | AB19: Kato Wieringa | AC19: Floreant | AD19: 26 | AE19: 0 | AF19: 8 | AG19: 0 | AH19: 0 | AJ19: =Scholen!C18 -> Floreant | AK19: st Joseph | AN19: 151.9516 | AO19: 4
A20: 17 | B20: 14 | C20: 14 | D20: 1383 | E20: 1383 | F20: Vera Smit | G20: st Joseph | J20: 15 | K20: 26 | L20: 13 | M20: 29 | N20: 55 | P20: 1379 | Q20: 17 | R20: 1385 | S20: 17 | T20: 1 | U20: 1 | V20: 1 | W20: 1 | X20: 1 | Y20: 1 | Z20: 17 | AA20: 1395 | AB20: Linde Zeinstra | AC20: Lichtboei | AD20: 19 | AE20: 22 | AF20: 16 | AG20: 26 | AH20: 48 | AJ20: =Scholen!C19 -> Koperwiek | AK20: st Joseph | AN20: 131.8717 | AO20: 14
A21: 18 | B21: 25 | C21: 25 | D21: 1382 | E21: 1382 | F21: Jasmijn Lievaart | G21: Com.Tol. | J21: 12 | K21: 29 | L21: DNS | M21: 0 | N21: 29 | P21: 1385 | Q21: 18 | R21: 1379 | S21: 18 | T21: 1 | U21: 1 | V21: 1 | W21: 1 | X21: 1 | Y21: 1 | Z21: 18 | AA21: 1385 | AB21: Mila van Druten | AC21: Triangel | AD21: 18 | AE21: 23 | AF21: 17 | AG21: 25 | AH21: 48 | AJ21: =Scholen!C20 -> Wending | AK21: Com.Tol. | AN21: 68 | AO21: 25
A22: 19 | B22: 31 | C22: 31 | D22: 1381 | E22: 1381 | F22: Eva Last | G22: Lichtschip | J22: DNS | K22: 0 | L22: DNS | M22: 0 | N22: 0 | P22: 1395 | Q22: 19 | R22: 1387 | S22: 19 | T22: 1 | U22: 1 | V22: 1 | W22: 1 | X22: 1 | Y22: 1 | Z22: 19 | AA22: 1379 | AB22: Sarah Kapitein | AC22: R.v.voorst | AD22: 17 | AE22: 24 | AF22: 18 | AG22: 24 | AH22: 48 | AJ22: =Scholen!C21 -> Zeester | AK22: Lichtschip | AN22: 0.4981 | AO22: 31
A23: 20 | B23: 13 | C23: 13 | D23: 1380 | E23: 1380 | F23: Eva Bronsema | G23: Lichtschip | J23: 16 | K23: 25 | L23: 12 | M23: 30 | N23: 55 | P23: 1376 | Q23: 20 | R23: 652 | S23: 20 | T23: 1 | U23: 1 | V23: 1 | W23: 1 | X23: 1 | Y23: 1 | Z23: 20 | AA23: 1387 | AB23: Sara Hospes | AC23: Triangel | AD23: 23 | AE23: 20 | AF23: 19 | AG23: 23 | AH23: 43 | AJ23: =Scholen!C22 -> Fondali | AK23: Lichtschip | AN23: 131.882 | AO23: 13
A24: 21 | B24: 19 | C24: 19 | D24: 1379 | E24: 1379 | F24: Sarah Kapitein | G24: R.v.voorst | J24: 17 | K24: 24 | L24: 18 | M24: 24 | N24: 48 | P24: 1378 | Q24: 21 | R24: 1399 | S24: 21 | T24: 1 | U24: 1 | V24: 1 | W24: 1 | X24: 1 | Y24: 1 | Z24: 21 | AA24: 1397 | AB24: Merel Schonewille | AC24: Koperwiek | AD24: 24 | AE24: 19 | AF24: 22 | AG24: 20 | AH24: 39 | AJ24: =Scholen!C23 -> 3 sprong | AK24: R.v.voorst | AN24: 124.8221 | AO24: 19
A25: 22 | B25: 27 | C25: 27 | D25: 1378 | E25: 1378 | F25: Julia van Egmond | G25: Horizon | J25: 21 | K25: 0 | L25: DNS | M25: 0 | N25: 0 | P25: 1374 | Q25: 22 | R25: 1397 | S25: 22 | T25: 1 | U25: 1 | V25: 1 | W25: 1 | X25: 1 | Y25: 1 | Z25: 22 | AA25: 1393 | AB25: Eline Korf | AC25: Lichtboei | AD25: 25 | AE25: 0 | AF25: 23 | AG25: 19 | AH25: 19 | AJ25: =Scholen!C24 -> 0 | AK25: Horizon | AN25: 59 | AO25: 27
A26: 23 | B26: 1 | C26: 1 | D26: 1377 | E26: 1377 | F26: Lynn Fuite | G26: Horizon | J26: 2 | K26: 39 | L26: 1 | M26: 40 | N26: 79 | P26: 1387 | Q26: 23 | R26: 1393 | S26: 23 | T26: 1 | U26: 1 | V26: 1 | W26: 1 | X26: 1 | Y26: 1 | Z26: 23 | AA26: 1399 | AB26: Lisa Kampen | AC26: Koperwiek | AD26: 28 | AE26: 17 | AF26: 21 | AG26: 21 | AH26: 38 | AJ26: =Scholen!C25 -> 0 | AK26: Horizon | AN26: 156.9923 | AO26: 1
A27: 24 | B27: 26 | C27: 26 | D27: 1376 | E27: 1376 | F27: Lieke Louws | G27: Horizon | J27: 20 | K27: 21 | L27: DNS | M27: 0 | N27: 21 | P27: 1397 | Q27: 24 | R27: 1398 | S27: DNS | T27: 1 | U27: 1 | V27: 1 | W27: 1 | X27: 1 | Y27: 1 | Z27: 24 | AA27: 1394 | AB27: Layla Duin | AC27: Lichtboei | AD27: 4 | AE27: 37 | AF27: DNS | AG27: 0 | AH27: 37 | AJ27: =Scholen!C26 -> 0 | AK27: Horizon | AN27: 60 | AO27: 26
A28: 25 | B28: 7 | C28: 7 | D28: 1375 | E28: 1375 | F28: Lisa Baas | G28: Horizon | J28: 10 | K28: 31 | L28: 9 | M28: 33 | N28: 64 | P28: 1393 | Q28: 25 | R28: 1396 | S28: DNS | T28: 1 | U28: 1 | V28: 1 | W28: 1 | X28: 1 | Y28: 1 | Z28: 25 | AA28: 1382 | AB28: Jasmijn Lievaart | AC28: Com.Tol. | AD28: 12 | AE28: 29 | AF28: DNS | AG28: 0 | AH28: 29 | AJ28: =Scholen!C27 -> 0 | AK28: Horizon | AN28: 140.9125 | AO28: 7
A29: 26 | B29: 15 | C29: 15 | D29: 1374 | E29: 1374 | F29: Cecile Schook | G29: Horizon | J29: 22 | K29: 0 | L29: 11 | M29: 31 | N29: 31 | P29: 1388 | Q29: 26 | R29: 1394 | S29: DNS | T29: 1 | U29: 1 | V29: 1 | W29: 1 | X29: 1 | Y29: 1 | Z29: 26 | AA29: 1376 | AB29: Lieke Louws | AC29: Horizon | AD29: 20 | AE29: 21 | AF29: DNS | AG29: 0 | AH29: 21 | AJ29: =Scholen!C28 -> 0 | AK29: Horizon | AN29: 126.8926 | AO29: 15
A30: 27 | B30: 9 | C30: 9 | D30: 1373 | E30: 1373 | F30: Esmay Bolken | G30: 't Kompas | J30: 8 | K30: 33 | L30: 14 | M30: 28 | N30: 61 | P30: 1398 | Q30: 27 | R30: 1391 | S30: DNS | T30: 1 | U30: 1 | V30: 1 | W30: 1 | X30: 1 | Y30: 1 | Z30: 27 | AA30: 1378 | AB30: Julia van Egmond | AC30: Horizon | AD30: 21 | AE30: 0 | AF30: DNS | AG30: 0 | AH30: 0 | AJ30: =Scholen!C29 -> 0 | AK30: 't Kompas | AN30: 137.8627 | AO30: 9
A31: 28 | B31: 11 | C31: 11 | D31: 1372 | E31: 1372 | F31: Michelle Stevens | G31: 't Kompas | J31: 11 | K31: 30 | L31: 15 | M31: 27 | N31: 57 | P31: 1399 | Q31: 28 | R31: 1382 | S31: DNS | T31: 1 | U31: 1 | V31: 1 | W31: 1 | X31: 1 | Y31: 1 | Z31: 28 | AA31: 1398 | AB31: Suze Blaakmeer | AC31: Koperwiek | AD31: 27 | AE31: 18 | AF31: DNS | AG31: 0 | AH31: 18 | AJ31: =Scholen!C30 -> 0 | AK31: 't Kompas | AN31: 133.8528 | AO31: 11
A32: 29 | B32: 2 | C32: 2 | D32: 500 | E32: 500 | F32: Vajèn Adema | G32: Lichtboei | J32: 1 | K32: 40 | L32: 2 | M32: 39 | N32: 79 | P32: 1396 | Q32: 29 | R32: 1381 | S32: DNS | T32: 1 | U32: 1 | V32: 1 | W32: 1 | X32: 1 | Y32: 1 | Z32: 29 | AA32: 1396 | AB32: Lizzy van der Werf | AC32: Koperwiek | AD32: 29 | AE32: 0 | AF32: DNS | AG32: 0 | AH32: 0 | AJ32: =Scholen!C31 -> 0 | AK32: Lichtboei | AN32: 156.9829 | AO32: 2
A33: 30 | B33: 12 | C33: 12 | D33: 652 | E33: 652 | F33: Anna ligthart | G33: 7 sprong | J33: 6 | K33: 35 | L33: 20 | M33: 22 | N33: 57 | P33: 1391 | Q33: DNS | R33: 1378 | S33: DNS | T33: 1 | U33: 1 | V33: 1 | W33: 1 | X33: 1 | Y33: 1 | Z33: 30 | AA33: 1391 | AB33: Fayenne Frankema | AC33: Floreant | AD33: DNS | AE33: 0 | AF33: DNS | AG33: 0 | AH33: 0 | AJ33: =Scholen!C32 -> 0 | AK33: 7 sprong | AN33: 133.803 | AO33: 12
A34: 31 | B34: 10 | C34: 10 | D34: 653 | E34: 653 | F34: Lana Heupink | G34: 7 sprong | J34: 14 | K34: 27 | L34: 10 | M34: 32 | N34: 59 | P34: 1381 | Q34: DNS | R34: 1376 | S34: DNS | T34: 1 | U34: 1 | V34: 1 | W34: 1 | X34: 1 | Y34: 1 | Z34: 31 | AA34: 1381 | AB34: Eva Last | AC34: Lichtschip | AD34: DNS | AE34: 0 | AF34: DNS | AG34: 0 | AH34: 0 | AK34: 7 sprong | AN34: 135.9031 | AO34: 10
A35: 32 | B35: 32 | C35: 32 | K35: 0 | M35: 0 | N35: 0 | Q35: 32 | S35: 32 | T35: 1 | U35: 1 | V35: 0 | W35: 0 | X35: 1 | Y35: 1 | Z35: 32 | AA35: 0 | AB35: 0 | AC35: 0 | AE35: 0 | AG35: 0 | AH35: 0 | AN35: 0.4968 | AO35: 32
A36: 33 | B36: =AO36 -> 33 | C36: =AO36 -> 33 | K36: =H135 -> 0 | M36: =K135 -> 0 | N36: =IF(OR(K36="",M36=""),"",K36+M36) -> 0 | Q36: 33 | S36: 33 | T36: 1 | U36: 1 | V36: =COUNTIF(P$4:P$83,P36) -> 0 | W36: =COUNTIF(R$4:R$83,R36) -> 0 | X36: =IF(P36<>"",COUNTIF($D$4:$D$83,P36),1) -> 1 | Y36: 1 | Z36: =VLOOKUP($A36,$B$4:$N$83,2,FALSE) -> 33 | AA36: =VLOOKUP($A36,$B$4:$N$83,3,FALSE) -> 0 | AB36: 0 | AC36: 0 | AE36: 0 | AG36: 0 | AH36: 0 | AN36: =IF(AND(ISNUMBER(J36),ISNUMBER(L36)),160-(-A36*0.0001+J36+L36*1.01),IF(ISNUMBER(J36),80-J36,IF(ISNUMBER(L36),80-(L36*0.99),IF(AND(J36="",L36=""),0.5-A36*0.0001,0.5-A36*0.0001)))) -> 0.4967 | AO36: =RANK(AN36,AN$4:AN$83,0) -> 33
A37: 34 | B37: 34 | C37: 34 | K37: 0 | M37: 0 | N37: 0 | Q37: 34 | S37: 34 | T37: 1 | U37: 1 | V37: 0 | W37: 0 | X37: 1 | Y37: 1 | Z37: 34 | AA37: 0 | AB37: 0 | AC37: 0 | AE37: 0 | AG37: 0 | AH37: 0 | AN37: 0.4966 | AO37: 34
A38: 35 | B38: 35 | C38: 35 | K38: 0 | M38: 0 | N38: 0 | Q38: 35 | S38: 35 | T38: 1 | U38: 1 | V38: 0 | W38: 0 | X38: 1 | Y38: 1 | Z38: 35 | AA38: 0 | AB38: 0 | AC38: 0 | AE38: 0 | AG38: 0 | AH38: 0 | AN38: 0.4965 | AO38: 35
A39: 36 | B39: 36 | C39: 36 | K39: 0 | M39: 0 | N39: 0 | Q39: 36 | S39: 36 | T39: 1 | U39: 1 | V39: 0 | W39: 0 | X39: 1 | Y39: 1 | Z39: 36 | AA39: 0 | AB39: 0 | AC39: 0 | AE39: 0 | AG39: 0 | AH39: 0 | AN39: 0.4964 | AO39: 36
A40: 37 | B40: 37 | C40: 37 | K40: 0 | M40: 0 | N40: 0 | Q40: 37 | S40: 37 | T40: 1 | U40: 1 | V40: 0 | W40: 0 | X40: 1 | Y40: 1 | Z40: 37 | AA40: 0 | AB40: 0 | AC40: 0 | AE40: 0 | AG40: 0 | AH40: 0 | AN40: 0.4963 | AO40: 37
A41: 38 | B41: 38 | C41: 38 | K41: 0 | M41: 0 | N41: 0 | Q41: 38 | S41: 38 | T41: 1 | U41: 1 | V41: 0 | W41: 0 | X41: 1 | Y41: 1 | Z41: 38 | AA41: 0 | AB41: 0 | AC41: 0 | AE41: 0 | AG41: 0 | AH41: 0 | AN41: 0.4962 | AO41: 38
A42: 39 | B42: 39 | C42: 39 | K42: 0 | M42: 0 | N42: 0 | Q42: 39 | S42: 39 | T42: 1 | U42: 1 | V42: 0 | W42: 0 | X42: 1 | Y42: 1 | Z42: 39 | AA42: 0 | AB42: 0 | AC42: 0 | AE42: 0 | AG42: 0 | AH42: 0 | AN42: 0.4961 | AO42: 39
A43: 40 | B43: 40 | C43: 40 | K43: 0 | M43: 0 | N43: 0 | Q43: 40 | S43: 40 | T43: 1 | U43: 1 | V43: 0 | W43: 0 | X43: 1 | Y43: 1 | Z43: 40 | AA43: 0 | AB43: 0 | AC43: 0 | AE43: 0 | AG43: 0 | AH43: 0 | AN43: 0.496 | AO43: 40
A44: 41 | B44: 41 | C44: 41 | K44: 0 | M44: 0 | N44: 0 | Q44: 41 | S44: 41 | T44: 1 | U44: 1 | V44: 0 | W44: 0 | X44: 1 | Y44: 1 | Z44: 41 | AA44: 0 | AB44: 0 | AC44: 0 | AE44: 0 | AG44: 0 | AH44: 0 | AK44: =IF(G44<>"",IF(AND(H44="",I44=""),G44,""),"") ->  | AL44: =IF(AND(H44="",I44<>""),G44,"") ->  | AM44: =IF(AND(H44<>"",I44=""),G44,"") ->  | AN44: 0.4959 | AO44: 41
A45: 42 | B45: 42 | C45: 42 | K45: 0 | M45: 0 | N45: 0 | Q45: 42 | S45: 42 | T45: 1 | U45: 1 | V45: 0 | W45: 0 | X45: 1 | Y45: 1 | Z45: 42 | AA45: 0 | AB45: 0 | AC45: 0 | AE45: 0 | AG45: 0 | AH45: 0 | AN45: 0.4958 | AO45: 42
A46: 43 | B46: 43 | C46: 43 | K46: 0 | M46: 0 | N46: 0 | Q46: 43 | S46: 43 | T46: 1 | U46: 1 | V46: 0 | W46: 0 | X46: 1 | Y46: 1 | Z46: 43 | AA46: 0 | AB46: 0 | AC46: 0 | AE46: 0 | AG46: 0 | AH46: 0 | AN46: 0.4957 | AO46: 43
A47: 44 | B47: 44 | C47: 44 | K47: 0 | M47: 0 | N47: 0 | Q47: 44 | S47: 44 | T47: 1 | U47: 1 | V47: 0 | W47: 0 | X47: 1 | Y47: 1 | Z47: 44 | AA47: 0 | AB47: 0 | AC47: 0 | AE47: 0 | AG47: 0 | AH47: 0 | AN47: 0.4956 | AO47: 44
A48: 45 | B48: 45 | C48: 45 | K48: 0 | M48: 0 | N48: 0 | Q48: 45 | S48: 45 | T48: 1 | U48: 1 | V48: 0 | W48: 0 | X48: 1 | Y48: 1 | Z48: 45 | AA48: 0 | AB48: 0 | AC48: 0 | AE48: 0 | AG48: 0 | AH48: 0 | AN48: 0.4955 | AO48: 45
A49: 46 | B49: 46 | C49: 46 | K49: 0 | M49: 0 | N49: 0 | Q49: 46 | S49: 46 | T49: 1 | U49: 1 | V49: 0 | W49: 0 | X49: 1 | Y49: 1 | Z49: 46 | AA49: 0 | AB49: 0 | AC49: 0 | AE49: 0 | AG49: 0 | AH49: 0 | AN49: 0.4954 | AO49: 46
A50: 47 | B50: 47 | C50: 47 | K50: 0 | M50: 0 | N50: 0 | Q50: 47 | S50: 47 | T50: 1 | U50: 1 | V50: 0 | W50: 0 | X50: 1 | Y50: 1 | Z50: 47 | AA50: 0 | AB50: 0 | AC50: 0 | AE50: 0 | AG50: 0 | AH50: 0 | AN50: 0.4953 | AO50: 47
A51: 48 | B51: 48 | C51: 48 | K51: 0 | M51: 0 | N51: 0 | Q51: 48 | S51: 48 | T51: 1 | U51: 1 | V51: 0 | W51: 0 | X51: 1 | Y51: 1 | Z51: 48 | AA51: 0 | AB51: 0 | AC51: 0 | AE51: 0 | AG51: 0 | AH51: 0 | AN51: 0.4952 | AO51: 48
A52: 49 | B52: 49 | C52: 49 | K52: 0 | M52: 0 | N52: 0 | Q52: 49 | S52: 49 | T52: 1 | U52: 1 | V52: 0 | W52: 0 | X52: 1 | Y52: 1 | Z52: 49 | AA52: 0 | AB52: 0 | AC52: 0 | AE52: 0 | AG52: 0 | AH52: 0 | AN52: 0.4951 | AO52: 49
A53: 50 | B53: 50 | C53: 50 | K53: 0 | M53: 0 | N53: 0 | Q53: 50 | S53: 50 | T53: 1 | U53: 1 | V53: 0 | W53: 0 | X53: 1 | Y53: 1 | Z53: 50 | AA53: 0 | AB53: 0 | AC53: 0 | AE53: 0 | AG53: 0 | AH53: 0 | AN53: 0.495 | AO53: 50
A54: 51 | B54: 51 | C54: 51 | K54: 0 | M54: 0 | N54: 0 | Q54: 51 | S54: 51 | T54: 1 | U54: 1 | V54: 0 | W54: 0 | X54: 1 | Y54: 1 | Z54: 51 | AA54: 0 | AB54: 0 | AC54: 0 | AE54: 0 | AG54: 0 | AH54: 0 | AN54: 0.4949 | AO54: 51
A55: 52 | B55: 52 | C55: 52 | K55: 0 | M55: 0 | N55: 0 | Q55: 52 | S55: 52 | T55: 1 | U55: 1 | V55: 0 | W55: 0 | X55: 1 | Y55: 1 | Z55: 52 | AA55: 0 | AB55: 0 | AC55: 0 | AE55: 0 | AG55: 0 | AH55: 0 | AN55: 0.4948 | AO55: 52
A56: 53 | B56: 53 | C56: 53 | K56: 0 | M56: 0 | N56: 0 | Q56: 53 | S56: 53 | T56: 1 | U56: 1 | V56: 0 | W56: 0 | X56: 1 | Y56: 1 | Z56: 53 | AA56: 0 | AB56: 0 | AC56: 0 | AE56: 0 | AG56: 0 | AH56: 0 | AN56: 0.4947 | AO56: 53
A57: 54 | B57: 54 | C57: 54 | K57: 0 | M57: 0 | N57: 0 | Q57: 54 | S57: 54 | T57: 1 | U57: 1 | V57: 0 | W57: 0 | X57: 1 | Y57: 1 | Z57: 54 | AA57: 0 | AB57: 0 | AC57: 0 | AE57: 0 | AG57: 0 | AH57: 0 | AN57: 0.4946 | AO57: 54
A58: 55 | B58: 55 | C58: 55 | K58: 0 | M58: 0 | N58: 0 | Q58: 55 | S58: 55 | T58: 1 | U58: 1 | V58: 0 | W58: 0 | X58: 1 | Y58: 1 | Z58: 55 | AA58: 0 | AB58: 0 | AC58: 0 | AE58: 0 | AG58: 0 | AH58: 0 | AN58: 0.4945 | AO58: 55
A59: 56 | B59: 56 | C59: 56 | K59: 0 | M59: 0 | N59: 0 | Q59: 56 | S59: 56 | T59: 1 | U59: 1 | V59: 0 | W59: 0 | X59: 1 | Y59: 1 | Z59: 56 | AA59: 0 | AB59: 0 | AC59: 0 | AE59: 0 | AG59: 0 | AH59: 0 | AN59: 0.4944 | AO59: 56
A60: 57 | B60: 57 | C60: 57 | K60: 0 | M60: 0 | N60: 0 | Q60: 57 | S60: 57 | T60: 1 | U60: 1 | V60: 0 | W60: 0 | X60: 1 | Y60: 1 | Z60: 57 | AA60: 0 | AB60: 0 | AC60: 0 | AE60: 0 | AG60: 0 | AH60: 0 | AN60: 0.4943 | AO60: 57
A61: 58 | B61: 58 | C61: 58 | K61: 0 | M61: 0 | N61: 0 | Q61: 58 | S61: 58 | T61: 1 | U61: 1 | V61: 0 | W61: 0 | X61: 1 | Y61: 1 | Z61: 58 | AA61: 0 | AB61: 0 | AC61: 0 | AE61: 0 | AG61: 0 | AH61: 0 | AN61: 0.4942 | AO61: 58
A62: 59 | B62: 59 | C62: 59 | K62: 0 | M62: 0 | N62: 0 | Q62: 59 | S62: 59 | T62: 1 | U62: 1 | V62: 0 | W62: 0 | X62: 1 | Y62: 1 | Z62: 59 | AA62: 0 | AB62: 0 | AC62: 0 | AE62: 0 | AG62: 0 | AH62: 0 | AN62: 0.4941 | AO62: 59
A63: 60 | B63: 60 | C63: 60 | K63: 0 | M63: 0 | N63: 0 | Q63: 60 | S63: 60 | T63: 1 | U63: 1 | V63: 0 | W63: 0 | X63: 1 | Y63: 1 | Z63: 60 | AA63: 0 | AB63: 0 | AC63: 0 | AE63: 0 | AG63: 0 | AH63: 0 | AN63: 0.494 | AO63: 60
A64: 61 | B64: 61 | C64: 61 | K64: 0 | M64: 0 | N64: 0 | Q64: 61 | S64: 61 | T64: 1 | U64: 1 | V64: 0 | W64: 0 | X64: 1 | Y64: 1 | Z64: 61 | AA64: 0 | AB64: 0 | AC64: 0 | AE64: 0 | AG64: 0 | AH64: 0 | AN64: 0.4939 | AO64: 61
A65: 62 | B65: 62 | C65: 62 | K65: 0 | M65: 0 | N65: 0 | Q65: 62 | S65: 62 | T65: 1 | U65: 1 | V65: 0 | W65: 0 | X65: 1 | Y65: 1 | Z65: 62 | AA65: 0 | AB65: 0 | AC65: 0 | AE65: 0 | AG65: 0 | AH65: 0 | AN65: 0.4938 | AO65: 62
A66: 63 | B66: 63 | C66: 63 | K66: 0 | M66: 0 | N66: 0 | Q66: 63 | S66: 63 | T66: 1 | U66: 1 | V66: 0 | W66: 0 | X66: 1 | Y66: 1 | Z66: 63 | AA66: 0 | AB66: 0 | AC66: 0 | AE66: 0 | AG66: 0 | AH66: 0 | AN66: 0.4937 | AO66: 63
A67: 64 | B67: 64 | C67: 64 | K67: 0 | M67: 0 | N67: 0 | Q67: 64 | S67: 64 | T67: 1 | U67: 1 | V67: 0 | W67: 0 | X67: 1 | Y67: 1 | Z67: 64 | AA67: 0 | AB67: 0 | AC67: 0 | AE67: 0 | AG67: 0 | AH67: 0 | AN67: 0.4936 | AO67: 64
A68: 65 | B68: =AO68 -> 65 | C68: =AO68 -> 65 | K68: =H167 -> 0 | M68: =K167 -> 0 | N68: =IF(OR(K68="",M68=""),"",K68+M68) -> 0 | Q68: 65 | S68: 65 | T68: 1 | U68: 1 | V68: =COUNTIF(P$4:P$83,P68) -> 0 | W68: =COUNTIF(R$4:R$83,R68) -> 0 | X68: =IF(P68<>"",COUNTIF($D$4:$D$83,P68),1) -> 1 | Y68: 1 | Z68: =VLOOKUP($A68,$B$4:$N$83,2,FALSE) -> 65 | AA68: =VLOOKUP($A68,$B$4:$N$83,3,FALSE) -> 0 | AB68: 0 | AC68: 0 | AE68: 0 | AG68: 0 | AH68: 0 | AN68: =IF(AND(ISNUMBER(J68),ISNUMBER(L68)),160-(-A68*0.0001+J68+L68*1.01),IF(ISNUMBER(J68),80-J68,IF(ISNUMBER(L68),80-(L68*0.99),IF(AND(J68="",L68=""),0.5-A68*0.0001,0.5-A68*0.0001)))) -> 0.4935 | AO68: =RANK(AN68,AN$4:AN$83,0) -> 65
A69: 66 | B69: 66 | C69: 66 | J69: =IF(AND(F69<>"",H69<>""),"XX",IF(ISERROR(VLOOKUP(D69,P$4:Q$83,2,FALSE)),"",VLOOKUP(D69,P$4:Q$83,2,FALSE))) ->  | K69: 0 | L69: =IF(AND(F69<>"",I69<>""),"XX",IF(ISERROR(VLOOKUP(E69,R$4:S$83,2,FALSE)),"",VLOOKUP(E69,R$4:S$83,2,FALSE))) ->  | M69: 0 | N69: 0 | Q69: 66 | S69: 66 | T69: =IF(P69<>"",IF(VLOOKUP(P69,D$4:I$83,5,FALSE)="",1,0),1) -> 1 | U69: =IF(R69<>"",IF(VLOOKUP(R69,E$4:I$83,5,FALSE)="",1,0),1) -> 1 | V69: 0 | W69: 0 | X69: 1 | Y69: =IF(R69<>"",COUNTIF($E$4:$E$83,R69),1) -> 1 | Z69: 66 | AA69: 0 | AB69: 0 | AC69: 0 | AD69: =IF(VLOOKUP($A69,$B$4:$N$83,9,FALSE)<>"",VLOOKUP($A69,$B$4:$N$83,9,FALSE),IF(AB69=0,"",IF($R$4="","","dns"))) ->  | AE69: 0 | AF69: =IF(VLOOKUP($A69,$B$4:$N$83,11,FALSE)<>"",VLOOKUP($A69,$B$4:$N$83,11,FALSE),IF(AB69=0,"",IF($R$4="","","dns"))) ->  | AG69: 0 | AH69: 0 | AN69: 0.4934 | AO69: 66
A70: 67 | B70: 67 | C70: 67 | K70: 0 | M70: 0 | N70: 0 | Q70: 67 | S70: 67 | T70: 1 | U70: 1 | V70: 0 | W70: 0 | X70: 1 | Y70: 1 | Z70: 67 | AA70: 0 | AB70: =VLOOKUP($A70,$B$4:$N$83,5,FALSE) -> 0 | AC70: =VLOOKUP($A70,$B$4:$N$83,6,FALSE) -> 0 | AE70: =VLOOKUP($A70,$B$4:$N$83,10,FALSE) -> 0 | AG70: =VLOOKUP($A70,$B$4:$N$83,12,FALSE) -> 0 | AH70: =VLOOKUP($A70,$B$4:$N$83,13,FALSE) -> 0 | AN70: 0.4933 | AO70: 67
A71: 68 | B71: 68 | C71: 68 | K71: 0 | M71: 0 | N71: 0 | Q71: 68 | S71: 68 | T71: 1 | U71: 1 | V71: 0 | W71: 0 | X71: 1 | Y71: 1 | Z71: 68 | AA71: 0 | AB71: 0 | AC71: 0 | AE71: 0 | AG71: 0 | AH71: 0 | AN71: 0.4932 | AO71: 68
A72: 69 | B72: 69 | C72: 69 | K72: 0 | M72: 0 | N72: 0 | Q72: 69 | S72: 69 | T72: 1 | U72: 1 | V72: 0 | W72: 0 | X72: 1 | Y72: 1 | Z72: 69 | AA72: 0 | AB72: 0 | AC72: 0 | AE72: 0 | AG72: 0 | AH72: 0 | AN72: 0.4931 | AO72: 69
A73: 70 | B73: 70 | C73: 70 | K73: 0 | M73: 0 | N73: 0 | Q73: 70 | S73: 70 | T73: 1 | U73: 1 | V73: 0 | W73: 0 | X73: 1 | Y73: 1 | Z73: 70 | AA73: 0 | AB73: 0 | AC73: 0 | AE73: 0 | AG73: 0 | AH73: 0 | AN73: 0.493 | AO73: 70
A74: 71 | B74: 71 | C74: 71 | K74: 0 | M74: 0 | N74: 0 | Q74: 71 | S74: 71 | T74: 1 | U74: 1 | V74: 0 | W74: 0 | X74: 1 | Y74: 1 | Z74: 71 | AA74: 0 | AB74: 0 | AC74: 0 | AE74: 0 | AG74: 0 | AH74: 0 | AN74: 0.4929 | AO74: 71
A75: 72 | B75: 72 | C75: 72 | K75: 0 | M75: 0 | N75: 0 | Q75: 72 | S75: 72 | T75: 1 | U75: 1 | V75: 0 | W75: 0 | X75: 1 | Y75: 1 | Z75: 72 | AA75: 0 | AB75: 0 | AC75: 0 | AE75: 0 | AG75: 0 | AH75: 0 | AN75: 0.4928 | AO75: 72
A76: 73 | B76: 73 | C76: 73 | K76: 0 | M76: 0 | N76: 0 | Q76: 73 | S76: 73 | T76: 1 | U76: 1 | V76: 0 | W76: 0 | X76: 1 | Y76: 1 | Z76: 73 | AA76: 0 | AB76: 0 | AC76: 0 | AE76: 0 | AG76: 0 | AH76: 0 | AN76: 0.4927 | AO76: 73
A77: 74 | B77: 74 | C77: 74 | K77: 0 | M77: 0 | N77: 0 | Q77: 74 | S77: 74 | T77: 1 | U77: 1 | V77: 0 | W77: 0 | X77: 1 | Y77: 1 | Z77: 74 | AA77: 0 | AB77: 0 | AC77: 0 | AE77: 0 | AG77: 0 | AH77: 0 | AN77: 0.4926 | AO77: 74
A78: 75 | B78: 75 | C78: 75 | K78: 0 | M78: 0 | N78: 0 | Q78: 75 | S78: 75 | T78: 1 | U78: 1 | V78: 0 | W78: 0 | X78: 1 | Y78: 1 | Z78: 75 | AA78: 0 | AB78: 0 | AC78: 0 | AE78: 0 | AG78: 0 | AH78: 0 | AN78: 0.4925 | AO78: 75
A79: 76 | B79: 76 | C79: 76 | K79: 0 | M79: 0 | N79: 0 | Q79: 76 | S79: 76 | T79: 1 | U79: 1 | V79: 0 | W79: 0 | X79: 1 | Y79: 1 | Z79: 76 | AA79: 0 | AB79: 0 | AC79: 0 | AE79: 0 | AG79: 0 | AH79: 0 | AN79: 0.4924 | AO79: 76
A80: 77 | B80: 77 | C80: 77 | K80: 0 | M80: 0 | N80: 0 | Q80: 77 | S80: 77 | T80: 1 | U80: 1 | V80: 0 | W80: 0 | X80: 1 | Y80: 1 | Z80: 77 | AA80: 0 | AB80: 0 | AC80: 0 | AE80: 0 | AG80: 0 | AH80: 0 | AN80: 0.4923 | AO80: 77
A81: 78 | B81: 78 | C81: 78 | K81: 0 | M81: 0 | N81: 0 | Q81: 78 | S81: 78 | T81: 1 | U81: 1 | V81: 0 | W81: 0 | X81: 1 | Y81: 1 | Z81: 78 | AA81: 0 | AB81: 0 | AC81: 0 | AE81: 0 | AG81: 0 | AH81: 0 | AN81: 0.4922 | AO81: 78
A82: 79 | B82: 79 | C82: 79 | K82: 0 | M82: 0 | N82: 0 | Q82: 79 | S82: 79 | T82: 1 | U82: 1 | V82: 0 | W82: 0 | X82: 1 | Y82: 1 | Z82: 79 | AA82: 0 | AB82: 0 | AC82: 0 | AE82: 0 | AG82: 0 | AH82: 0 | AN82: 0.4921 | AO82: 79
A83: 80 | B83: 80 | C83: 80 | K83: 0 | M83: 0 | N83: 0 | Q83: 80 | S83: 80 | T83: 1 | U83: 1 | V83: 0 | W83: 0 | X83: 1 | Y83: 1 | Z83: 80 | AA83: 0 | AB83: 0 | AC83: 0 | AE83: 0 | AG83: 0 | AH83: 0 | AN83: 0.492 | AO83: 80
T84: 1
Z86: Jaargroepprijs: | AC86: =IF(AG86<>0,HLOOKUP(1,BV$272:CY$275,4,FALSE),"") -> Floreant
F101: 1e cross | I101: 2e cross | L101: totaal | M101: totaal beide | N101: totaal beide + 100 | O101: gesorteerd beide | P101: gesorteerd | Q101: totaal beide + 100 - 0,01* | R101: gesorteerd apart
O102: =COUNTIF(L103:L182,">0") -> 20 | P102: =MAX(P103:P182) -> 27
C103: =F4 -> Lisa Kampen | D103: =G4 -> Koperwiek | F103: =IF(J4<>"",J4,0) -> 28 | G103: =IF(F103<>0,BM278,0) -> 28 | H103: =IF(G103<>0,VLOOKUP(G103,BP$278:BS$357,4),0) -> 17 | I103: =IF(L4<>"",L4,0) -> 21 | J103: =IF(I103<>0,BM362,0) -> 21 | K103: =IF(J103<>0,VLOOKUP(J103,BP$362:BS$441,4),0) -> 21 | L103: =IF(AND(H103>0,K103>0),H103+K103,0) -> 38 | M103: =N4 -> 38 | N103: =IF(AND(H103>0,K103>0),H103+(K103*1.01)+100,H103+K103) -> 138.21 | O103: =RANK(L103,L$103:L$182) -> 20 | P103: =RANK(N103,N$103:N$182) -> 20 | Q103: =N103-(A4*0.00001) -> 138.20999 | R103: =RANK(Q103,Q$103:Q$182) -> 20 | S103: 1
C104: Suze Blaakmeer | D104: Koperwiek | F104: 27 | G104: 27 | H104: 18 | I104: DNS | J104: 0 | K104: 0 | L104: 0 | M104: 18 | N104: 18 | O104: 21 | P104: 26 | Q104: 17.99998 | R104: 26 | S104: 2
C105: Merel Schonewille | D105: Koperwiek | F105: 24 | G105: 24 | H105: 19 | I105: 22 | J105: 22 | K105: 20 | L105: 39 | M105: 39 | N105: 139.2 | O105: 19 | P105: 19 | Q105: 139.19997 | R105: 19 | S105: 3
C106: Lizzy van der Werf | D106: Koperwiek | F106: 29 | G106: 0 | H106: 0 | I106: DNS | J106: 0 | K106: 0 | L106: 0 | M106: 0 | N106: 0 | O106: 21 | P106: 27 | Q106: -4e-05 | R106: 27 | S106: 4
C107: Linde Zeinstra | D107: Lichtboei | F107: 19 | G107: 19 | H107: 22 | I107: 16 | J107: 16 | K107: 26 | L107: 48 | M107: 48 | N107: 148.26 | O107: 15 | P107: 15 | Q107: 148.25995 | R107: 15 | S107: 5
C108: Layla Duin | D108: Lichtboei | F108: 4 | G108: 4 | H108: 37 | I108: DNS | J108: 0 | K108: 0 | L108: 0 | M108: 37 | N108: 37 | O108: 21 | P108: 21 | Q108: 36.99994 | R108: 21 | S108: 6
C109: Eline Korf | D109: Lichtboei | F109: 25 | G109: 0 | H109: 0 | I109: 23 | J109: 23 | K109: 19 | L109: 0 | M109: 19 | N109: 19 | O109: 21 | P109: 25 | Q109: 18.99993 | R109: 25 | S109: 7
C110: Lize Boons | D110: Floreant | F110: 9 | G110: 9 | H110: 32 | I110: 6 | J110: 6 | K110: 35 | L110: 67 | M110: 67 | N110: 167.35 | O110: 6 | P110: 6 | Q110: 167.34992 | R110: 6 | S110: 8
C111: Fayenne Frankema | D111: Floreant | F111: DNS | G111: 0 | H111: 0 | I111: DNS | J111: 0 | K111: 0 | L111: 0 | M111: 0 | N111: 0 | O111: 21 | P111: 27 | Q111: -9e-05 | R111: 28 | S111: 9
C112: Loes Pragt | D112: Floreant | F112: 7 | G112: 7 | H112: 34 | I112: 4 | J112: 4 | K112: 37 | L112: 71 | M112: 71 | N112: 171.37 | O112: 5 | P112: 5 | Q112: 171.3699 | R112: 5 | S112: 10
C113: Lisa Wentink | D113: Floreant | F113: 5 | G113: 5 | H113: 36 | I113: 3 | J113: 3 | K113: 38 | L113: 74 | M113: 74 | N113: 174.38 | O113: 3 | P113: 3 | Q113: 174.37989 | R113: 3 | S113: 11
C114: Kato Wieringa | D114: Floreant | F114: 26 | G114: 0 | H114: 0 | I114: 8 | J114: 0 | K114: 0 | L114: 0 | M114: 0 | N114: 0 | O114: 21 | P114: 27 | Q114: -0.00012 | R114: 29 | S114: 12
C115: Sara Hospes | D115: Triangel | F115: 23 | G115: 23 | H115: 20 | I115: 19 | J115: 19 | K115: 23 | L115: 43 | M115: 43 | N115: 143.23 | O115: 18 | P115: 18 | Q115: 143.22987 | R115: 18 | S115: 13
C116: Roos Buining | D116: Triangel | F116: 13 | G116: 13 | H116: 28 | I116: 7 | J116: 7 | K116: 34 | L116: 62 | M116: 62 | N116: 162.34 | O116: 8 | P116: 8 | Q116: 162.33986 | R116: 8 | S116: 14
C117: Mila van Druten | D117: Triangel | F117: 18 | G117: 18 | H117: 23 | I117: 17 | J117: 17 | K117: 25 | L117: 48 | M117: 48 | N117: 148.25 | O117: 15 | P117: 16 | Q117: 148.24985 | R117: 16 | S117: 15
C118: Puck van Wieren | D118: st Joseph | F118: 3 | G118: 3 | H118: 38 | I118: 5 | J118: 5 | K118: 36 | L118: 74 | M118: 74 | N118: 174.36 | O118: 3 | P118: 4 | Q118: 174.35984 | R118: 4 | S118: 16
C119: Vera Smit | D119: st Joseph | F119: 15 | G119: 15 | H119: 26 | I119: 13 | J119: 13 | K119: 29 | L119: 55 | M119: 55 | N119: 155.29 | O119: 13 | P119: 14 | Q119: 155.28983 | R119: 14 | S119: 17
C120: Jasmijn Lievaart | D120: Com.Tol. | F120: 12 | G120: 12 | H120: 29 | I120: DNS | J120: 0 | K120: 0 | L120: 0 | M120: 29 | N120: 29 | O120: 21 | P120: 23 | Q120: 28.99982 | R120: 23 | S120: 18
C121: Eva Last | D121: Lichtschip | F121: DNS | G121: 0 | H121: 0 | I121: DNS | J121: 0 | K121: 0 | L121: 0 | M121: 0 | N121: 0 | O121: 21 | P121: 27 | Q121: -0.00019 | R121: 30 | S121: 19
C122: Eva Bronsema | D122: Lichtschip | F122: 16 | G122: 16 | H122: 25 | I122: 12 | J122: 12 | K122: 30 | L122: 55 | M122: 55 | N122: 155.3 | O122: 13 | P122: 13 | Q122: 155.2998 | R122: 13 | S122: 20
C123: Sarah Kapitein | D123: R.v.voorst | F123: 17 | G123: 17 | H123: 24 | I123: 18 | J123: 18 | K123: 24 | L123: 48 | M123: 48 | N123: 148.24 | O123: 15 | P123: 17 | Q123: 148.23979 | R123: 17 | S123: 21
C124: Julia van Egmond | D124: Horizon | F124: 21 | G124: 0 | H124: 0 | I124: DNS | J124: 0 | K124: 0 | L124: 0 | M124: 0 | N124: 0 | O124: 21 | P124: 27 | Q124: -0.00022 | R124: 31 | S124: 22
C125: Lynn Fuite | D125: Horizon | F125: 2 | G125: 2 | H125: 39 | I125: 1 | J125: 1 | K125: 40 | L125: 79 | M125: 79 | N125: 179.4 | O125: 1 | P125: 1 | Q125: 179.39977 | R125: 1 | S125: 23
C126: Lieke Louws | D126: Horizon | F126: 20 | G126: 20 | H126: 21 | I126: DNS | J126: 0 | K126: 0 | L126: 0 | M126: 21 | N126: 21 | O126: 21 | P126: 24 | Q126: 20.99976 | R126: 24 | S126: 24
C127: Lisa Baas | D127: Horizon | F127: 10 | G127: 10 | H127: 31 | I127: 9 | J127: 9 | K127: 33 | L127: 64 | M127: 64 | N127: 164.33 | O127: 7 | P127: 7 | Q127: 164.32975 | R127: 7 | S127: 25
C128: Cecile Schook | D128: Horizon | F128: 22 | G128: 0 | H128: 0 | I128: 11 | J128: 11 | K128: 31 | L128: 0 | M128: 31 | N128: 31 | O128: 21 | P128: 22 | Q128: 30.99974 | R128: 22 | S128: 26
C129: Esmay Bolken | D129: 't Kompas | F129: 8 | G129: 8 | H129: 33 | I129: 14 | J129: 14 | K129: 28 | L129: 61 | M129: 61 | N129: 161.28 | O129: 9 | P129: 9 | Q129: 161.27973 | R129: 9 | S129: 27
C130: Michelle Stevens | D130: 't Kompas | F130: 11 | G130: 11 | H130: 30 | I130: 15 | J130: 15 | K130: 27 | L130: 57 | M130: 57 | N130: 157.27 | O130: 11 | P130: 11 | Q130: 157.26972 | R130: 11 | S130: 28
C131: Vajèn Adema | D131: Lichtboei | F131: 1 | G131: 1 | H131: 40 | I131: 2 | J131: 2 | K131: 39 | L131: 79 | M131: 79 | N131: 179.39 | O131: 1 | P131: 2 | Q131: 179.38971 | R131: 2 | S131: 29
C132: Anna ligthart | D132: 7 sprong | F132: 6 | G132: 6 | H132: 35 | I132: 20 | J132: 20 | K132: 22 | L132: 57 | M132: 57 | N132: 157.22 | O132: 11 | P132: 12 | Q132: 157.2197 | R132: 12 | S132: 30
C133: Lana Heupink | D133: 7 sprong | F133: 14 | G133: 14 | H133: 27 | I133: 10 | J133: 10 | K133: 32 | L133: 59 | M133: 59 | N133: 159.32 | O133: 10 | P133: 10 | Q133: 159.31969 | R133: 10 | S133: 31
C134: 0 | D134: 0 | F134: 0 | G134: 0 | H134: 0 | I134: 0 | J134: 0 | K134: 0 | L134: 0 | M134: 0 | N134: 0 | O134: 21 | P134: 27 | Q134: -0.00032 | R134: 32 | S134: 32
C135: =F36 -> 0 | D135: =G36 -> 0 | F135: =IF(J36<>"",J36,0) -> 0 | G135: =IF(F135<>0,BM310,0) -> 0 | H135: =IF(G135<>0,VLOOKUP(G135,BP$278:BS$357,4),0) -> 0 | I135: =IF(L36<>"",L36,0) -> 0 | J135: =IF(I135<>0,BM394,0) -> 0 | K135: =IF(J135<>0,VLOOKUP(J135,BP$362:BS$441,4),0) -> 0 | L135: =IF(AND(H135>0,K135>0),H135+K135,0) -> 0 | M135: =N36 -> 0 | N135: =IF(AND(H135>0,K135>0),H135+(K135*1.01)+100,H135+K135) -> 0 | O135: =RANK(L135,L$103:L$182) -> 21 | P135: =RANK(N135,N$103:N$182) -> 27 | Q135: =N135-(A36*0.00001) -> -0.00033 | R135: =RANK(Q135,Q$103:Q$182) -> 33 | S135: 33
C136: 0 | D136: 0 | F136: 0 | G136: 0 | H136: 0 | I136: 0 | J136: 0 | K136: 0 | L136: 0 | M136: 0 | N136: 0 | O136: 21 | P136: 27 | Q136: -0.00034 | R136: 34 | S136: 34
C137: 0 | D137: 0 | F137: 0 | G137: 0 | H137: 0 | I137: 0 | J137: 0 | K137: 0 | L137: 0 | M137: 0 | N137: 0 | O137: 21 | P137: 27 | Q137: -0.00035 | R137: 35 | S137: 35
C138: 0 | D138: 0 | F138: 0 | G138: 0 | H138: 0 | I138: 0 | J138: 0 | K138: 0 | L138: 0 | M138: 0 | N138: 0 | O138: 21 | P138: 27 | Q138: -0.00036 | R138: 36 | S138: 36
C139: 0 | D139: 0 | F139: 0 | G139: 0 | H139: 0 | I139: 0 | J139: 0 | K139: 0 | L139: 0 | M139: 0 | N139: 0 | O139: 21 | P139: 27 | Q139: -0.00037 | R139: 37 | S139: 37
C140: 0 | D140: 0 | F140: 0 | G140: 0 | H140: 0 | I140: 0 | J140: 0 | K140: 0 | L140: 0 | M140: 0 | N140: 0 | O140: 21 | P140: 27 | Q140: -0.00038 | R140: 38 | S140: 38
C141: 0 | D141: 0 | F141: 0 | G141: 0 | H141: 0 | I141: 0 | J141: 0 | K141: 0 | L141: 0 | M141: 0 | N141: 0 | O141: 21 | P141: 27 | Q141: -0.00039 | R141: 39 | S141: 39
C142: 0 | D142: 0 | F142: 0 | G142: 0 | H142: 0 | I142: 0 | J142: 0 | K142: 0 | L142: 0 | M142: 0 | N142: 0 | O142: 21 | P142: 27 | Q142: -0.0004 | R142: 40 | S142: 40
C143: 0 | D143: 0 | F143: 0 | G143: 0 | H143: 0 | I143: 0 | J143: 0 | K143: 0 | L143: 0 | M143: 0 | N143: 0 | O143: 21 | P143: 27 | Q143: -0.00041 | R143: 41 | S143: 41
C144: 0 | D144: 0 | F144: 0 | G144: 0 | H144: 0 | I144: 0 | J144: 0 | K144: 0 | L144: 0 | M144: 0 | N144: 0 | O144: 21 | P144: 27 | Q144: -0.00042 | R144: 42 | S144: 42
C145: 0 | D145: 0 | F145: 0 | G145: 0 | H145: 0 | I145: 0 | J145: 0 | K145: 0 | L145: 0 | M145: 0 | N145: 0 | O145: 21 | P145: 27 | Q145: -0.00043 | R145: 43 | S145: 43
C146: 0 | D146: 0 | F146: 0 | G146: 0 | H146: 0 | I146: 0 | J146: 0 | K146: 0 | L146: 0 | M146: 0 | N146: 0 | O146: 21 | P146: 27 | Q146: -0.00044 | R146: 44 | S146: 44
C147: 0 | D147: 0 | F147: 0 | G147: 0 | H147: 0 | I147: 0 | J147: 0 | K147: 0 | L147: 0 | M147: 0 | N147: 0 | O147: 21 | P147: 27 | Q147: -0.00045 | R147: 45 | S147: 45
C148: 0 | D148: 0 | F148: 0 | G148: 0 | H148: 0 | I148: 0 | J148: 0 | K148: 0 | L148: 0 | M148: 0 | N148: 0 | O148: 21 | P148: 27 | Q148: -0.00046 | R148: 46 | S148: 46
C149: 0 | D149: 0 | F149: 0 | G149: 0 | H149: 0 | I149: 0 | J149: 0 | K149: 0 | L149: 0 | M149: 0 | N149: 0 | O149: 21 | P149: 27 | Q149: -0.00047 | R149: 47 | S149: 47
C150: 0 | D150: 0 | F150: 0 | G150: 0 | H150: 0 | I150: 0 | J150: 0 | K150: 0 | L150: 0 | M150: 0 | N150: 0 | O150: 21 | P150: 27 | Q150: -0.00048 | R150: 48 | S150: 48
C151: 0 | D151: 0 | F151: 0 | G151: 0 | H151: 0 | I151: 0 | J151: 0 | K151: 0 | L151: 0 | M151: 0 | N151: 0 | O151: 21 | P151: 27 | Q151: -0.00049 | R151: 49 | S151: 49
C152: 0 | D152: 0 | F152: 0 | G152: 0 | H152: 0 | I152: 0 | J152: 0 | K152: 0 | L152: 0 | M152: 0 | N152: 0 | O152: 21 | P152: 27 | Q152: -0.0005 | R152: 50 | S152: 50
C153: 0 | D153: 0 | F153: 0 | G153: 0 | H153: 0 | I153: 0 | J153: 0 | K153: 0 | L153: 0 | M153: 0 | N153: 0 | O153: 21 | P153: 27 | Q153: -0.00051 | R153: 51 | S153: 51
C154: 0 | D154: 0 | F154: 0 | G154: 0 | H154: 0 | I154: 0 | J154: 0 | K154: 0 | L154: 0 | M154: 0 | N154: 0 | O154: 21 | P154: 27 | Q154: -0.00052 | R154: 52 | S154: 52
C155: 0 | D155: 0 | F155: 0 | G155: 0 | H155: 0 | I155: 0 | J155: 0 | K155: 0 | L155: 0 | M155: 0 | N155: 0 | O155: 21 | P155: 27 | Q155: -0.00053 | R155: 53 | S155: 53
C156: 0 | D156: 0 | F156: 0 | G156: 0 | H156: 0 | I156: 0 | J156: 0 | K156: 0 | L156: 0 | M156: 0 | N156: 0 | O156: 21 | P156: 27 | Q156: -0.00054 | R156: 54 | S156: 54
C157: 0 | D157: 0 | F157: 0 | G157: 0 | H157: 0 | I157: 0 | J157: 0 | K157: 0 | L157: 0 | M157: 0 | N157: 0 | O157: 21 | P157: 27 | Q157: -0.00055 | R157: 55 | S157: 55
C158: 0 | D158: 0 | F158: 0 | G158: 0 | H158: 0 | I158: 0 | J158: 0 | K158: 0 | L158: 0 | M158: 0 | N158: 0 | O158: 21 | P158: 27 | Q158: -0.00056 | R158: 56 | S158: 56
C159: 0 | D159: 0 | F159: 0 | G159: 0 | H159: 0 | I159: 0 | J159: 0 | K159: 0 | L159: 0 | M159: 0 | N159: 0 | O159: 21 | P159: 27 | Q159: -0.00057 | R159: 57 | S159: 57
C160: 0 | D160: 0 | F160: 0 | G160: 0 | H160: 0 | I160: 0 | J160: 0 | K160: 0 | L160: 0 | M160: 0 | N160: 0 | O160: 21 | P160: 27 | Q160: -0.00058 | R160: 58 | S160: 58
C161: 0 | D161: 0 | F161: 0 | G161: 0 | H161: 0 | I161: 0 | J161: 0 | K161: 0 | L161: 0 | M161: 0 | N161: 0 | O161: 21 | P161: 27 | Q161: -0.00059 | R161: 59 | S161: 59
C162: 0 | D162: 0 | F162: 0 | G162: 0 | H162: 0 | I162: 0 | J162: 0 | K162: 0 | L162: 0 | M162: 0 | N162: 0 | O162: 21 | P162: 27 | Q162: -0.0006 | R162: 60 | S162: 60
C163: 0 | D163: 0 | F163: 0 | G163: 0 | H163: 0 | I163: 0 | J163: 0 | K163: 0 | L163: 0 | M163: 0 | N163: 0 | O163: 21 | P163: 27 | Q163: -0.00061 | R163: 61 | S163: 61
C164: 0 | D164: 0 | F164: 0 | G164: 0 | H164: 0 | I164: 0 | J164: 0 | K164: 0 | L164: 0 | M164: 0 | N164: 0 | O164: 21 | P164: 27 | Q164: -0.00062 | R164: 62 | S164: 62
C165: 0 | D165: 0 | F165: 0 | G165: 0 | H165: 0 | I165: 0 | J165: 0 | K165: 0 | L165: 0 | M165: 0 | N165: 0 | O165: 21 | P165: 27 | Q165: -0.00063 | R165: 63 | S165: 63
C166: 0 | D166: 0 | F166: 0 | G166: 0 | H166: 0 | I166: 0 | J166: 0 | K166: 0 | L166: 0 | M166: 0 | N166: 0 | O166: 21 | P166: 27 | Q166: -0.00064 | R166: 64 | S166: 64
C167: =F68 -> 0 | D167: =G68 -> 0 | F167: =IF(J68<>"",J68,0) -> 0 | G167: =IF(F167<>0,BM342,0) -> 0 | H167: =IF(G167<>0,VLOOKUP(G167,BP$278:BS$357,4),0) -> 0 | I167: =IF(L68<>"",L68,0) -> 0 | J167: =IF(I167<>0,BM426,0) -> 0 | K167: =IF(J167<>0,VLOOKUP(J167,BP$362:BS$441,4),0) -> 0 | L167: =IF(AND(H167>0,K167>0),H167+K167,0) -> 0 | M167: =N68 -> 0 | N167: =IF(AND(H167>0,K167>0),H167+(K167*1.01)+100,H167+K167) -> 0 | O167: =RANK(L167,L$103:L$182) -> 21 | P167: =RANK(N167,N$103:N$182) -> 27 | Q167: =N167-(A68*0.00001) -> -0.00065 | R167: =RANK(Q167,Q$103:Q$182) -> 65 | S167: 65
C168: 0 | D168: 0 | F168: 0 | G168: 0 | H168: 0 | I168: 0 | J168: 0 | K168: 0 | L168: 0 | M168: 0 | N168: 0 | O168: 21 | P168: 27 | Q168: -0.00066 | R168: 66 | S168: 66
C169: 0 | D169: 0 | F169: 0 | G169: 0 | H169: 0 | I169: 0 | J169: 0 | K169: 0 | L169: 0 | M169: 0 | N169: 0 | O169: 21 | P169: 27 | Q169: -0.00067 | R169: 67 | S169: 67
C170: 0 | D170: 0 | F170: 0 | G170: 0 | H170: 0 | I170: 0 | J170: 0 | K170: 0 | L170: 0 | M170: 0 | N170: 0 | O170: 21 | P170: 27 | Q170: -0.00068 | R170: 68 | S170: 68
C171: 0 | D171: 0 | F171: 0 | G171: 0 | H171: 0 | I171: 0 | J171: 0 | K171: 0 | L171: 0 | M171: 0 | N171: 0 | O171: 21 | P171: 27 | Q171: -0.00069 | R171: 69 | S171: 69
C172: 0 | D172: 0 | F172: 0 | G172: 0 | H172: 0 | I172: 0 | J172: 0 | K172: 0 | L172: 0 | M172: 0 | N172: 0 | O172: 21 | P172: 27 | Q172: -0.0007 | R172: 70 | S172: 70
C173: 0 | D173: 0 | F173: 0 | G173: 0 | H173: 0 | I173: 0 | J173: 0 | K173: 0 | L173: 0 | M173: 0 | N173: 0 | O173: 21 | P173: 27 | Q173: -0.00071 | R173: 71 | S173: 71
C174: 0 | D174: 0 | F174: 0 | G174: 0 | H174: 0 | I174: 0 | J174: 0 | K174: 0 | L174: 0 | M174: 0 | N174: 0 | O174: 21 | P174: 27 | Q174: -0.00072 | R174: 72 | S174: 72
C175: 0 | D175: 0 | F175: 0 | G175: 0 | H175: 0 | I175: 0 | J175: 0 | K175: 0 | L175: 0 | M175: 0 | N175: 0 | O175: 21 | P175: 27 | Q175: -0.00073 | R175: 73 | S175: 73
C176: 0 | D176: 0 | F176: 0 | G176: 0 | H176: 0 | I176: 0 | J176: 0 | K176: 0 | L176: 0 | M176: 0 | N176: 0 | O176: 21 | P176: 27 | Q176: -0.00074 | R176: 74 | S176: 74
C177: 0 | D177: 0 | F177: 0 | G177: 0 | H177: 0 | I177: 0 | J177: 0 | K177: 0 | L177: 0 | M177: 0 | N177: 0 | O177: 21 | P177: 27 | Q177: -0.00075 | R177: 75 | S177: 75
C178: 0 | D178: 0 | F178: 0 | G178: 0 | H178: 0 | I178: 0 | J178: 0 | K178: 0 | L178: 0 | M178: 0 | N178: 0 | O178: 21 | P178: 27 | Q178: -0.00076 | R178: 76 | S178: 76
C179: 0 | D179: 0 | F179: 0 | G179: 0 | H179: 0 | I179: 0 | J179: 0 | K179: 0 | L179: 0 | M179: 0 | N179: 0 | O179: 21 | P179: 27 | Q179: -0.00077 | R179: 77 | S179: 77
C180: 0 | D180: 0 | F180: 0 | G180: 0 | H180: 0 | I180: 0 | J180: 0 | K180: 0 | L180: 0 | M180: 0 | N180: 0 | O180: 21 | P180: 27 | Q180: -0.00078 | R180: 78 | S180: 78
C181: 0 | D181: 0 | F181: 0 | G181: 0 | H181: 0 | I181: 0 | J181: 0 | K181: 0 | L181: 0 | M181: 0 | N181: 0 | O181: 21 | P181: 27 | Q181: -0.00079 | R181: 79 | S181: 79
C182: 0 | D182: 0 | F182: 0 | G182: 0 | H182: 0 | I182: 0 | J182: 0 | K182: 0 | L182: 0 | M182: 0 | N182: 0 | O182: 21 | P182: 27 | Q182: -0.0008 | R182: 80 | S182: 80
C189: Mogelijke scholen
C190: =IF(Scholen!C3<>"",Scholen!C3,"") -> individueel | D190: =IF(Scholen!C4<>"",Scholen!C4,"") -> A.Schweit. | F190: =IF(Scholen!C5<>"",Scholen!C5,"") -> Com.Tol. | G190: =IF(Scholen!C6<>"",Scholen!C6,"") -> de Ark | H190: =IF(Scholen!C7<>"",Scholen!C7,"") -> Horizon | I190: =IF(Scholen!C8<>"",Scholen!C8,"") -> Windkr.10 | J190: =IF(Scholen!C9<>"",Scholen!C9,"") -> Lichtboei | K190: =IF(Scholen!C10<>"",Scholen!C10,"") -> Triangel | L190: =IF(Scholen!C11<>"",Scholen!C11,"") -> 7 sprong | M190: =IF(Scholen!C12<>"",Scholen!C12,"") -> Lichtschip | N190: =IF(Scholen!C13<>"",Scholen!C13,"") -> Mariab.s. | O190: =IF(Scholen!C14<>"",Scholen!C14,"") -> R.v.voorst | P190: =IF(Scholen!C15<>"",Scholen!C15,"") -> 't Kompas | Q190: =IF(Scholen!C16<>"",Scholen!C16,"") -> de Klipper | R190: =IF(Scholen!C17<>"",Scholen!C17,"") -> st Joseph | S190: =IF(Scholen!C18<>"",Scholen!C18,"") -> Floreant | T190: =IF(Scholen!C19<>"",Scholen!C19,"") -> Koperwiek | U190: =IF(Scholen!C20<>"",Scholen!C20,"") -> Wending | V190: =IF(Scholen!C21<>"",Scholen!C21,"") -> Zeester | W190: =IF(Scholen!C22<>"",Scholen!C22,"") -> Fondali | X190: =IF(Scholen!C23<>"",Scholen!C23,"") -> 3 sprong | Y190: =IF(Scholen!C24<>"",Scholen!C24,"") ->  | Z190: =IF(Scholen!C25<>"",Scholen!C25,"") ->  | AA190: =IF(Scholen!C26<>"",Scholen!C26,"") ->  | AB190: =IF(Scholen!C27<>"",Scholen!C27,"") ->  | AC190: =IF(Scholen!C28<>"",Scholen!C28,"") ->  | AD190: =IF(Scholen!C29<>"",Scholen!C29,"") ->  | AE190: =IF(Scholen!IC30<>"",Scholen!IC30,"") ->  | AF190: =IF(Scholen!C31<>"",Scholen!C31,"") ->  | AG190: =IF(Scholen!C32<>"",Scholen!C32,"") -> 
B191: 1 | D191: =IF($M103<>0,IF($D103=D$190,$M103,),0) -> 0 | F191: 0 | G191: 0 | H191: 0 | I191: 0 | J191: 0 | K191: 0 | L191: 0 | M191: 0 | N191: 0 | O191: 0 | P191: 0 | Q191: 0 | R191: 0 | S191: 0 | T191: 38 | U191: 0 | V191: 0 | W191: 0 | X191: 0 | Y191: 0 | Z191: 0 | AA191: 0 | AB191: 0 | AC191: 0 | AD191: 0 | AE191: 0 | AF191: 0 | AG191: 0
B192: 2 | D192: =IF($M104<>0,IF($D104=D$190,$M104,),0) -> 0 | F192: 0 | G192: 0 | H192: 0 | I192: 0 | J192: 0 | K192: 0 | L192: 0 | M192: 0 | N192: 0 | O192: 0 | P192: 0 | Q192: 0 | R192: 0 | S192: 0 | T192: 18 | U192: 0 | V192: 0 | W192: 0 | X192: 0 | Y192: 0 | Z192: 0 | AA192: 0 | AB192: 0 | AC192: 0 | AD192: 0 | AE192: 0 | AF192: 0 | AG192: 0
B193: 3 | D193: =IF($M105<>0,IF($D105=D$190,$M105,),0) -> 0 | F193: 0 | G193: 0 | H193: 0 | I193: 0 | J193: 0 | K193: 0 | L193: 0 | M193: 0 | N193: 0 | O193: 0 | P193: 0 | Q193: 0 | R193: 0 | S193: 0 | T193: 39 | U193: 0 | V193: 0 | W193: 0 | X193: 0 | Y193: 0 | Z193: 0 | AA193: 0 | AB193: 0 | AC193: 0 | AD193: 0 | AE193: 0 | AF193: 0 | AG193: 0
B194: 4 | D194: =IF($M106<>0,IF($D106=D$190,$M106,),0) -> 0 | F194: 0 | G194: 0 | H194: 0 | I194: 0 | J194: 0 | K194: 0 | L194: 0 | M194: 0 | N194: 0 | O194: 0 | P194: 0 | Q194: 0 | R194: 0 | S194: 0 | T194: 0 | U194: 0 | V194: 0 | W194: 0 | X194: 0 | Y194: 0 | Z194: 0 | AA194: 0 | AB194: 0 | AC194: 0 | AD194: 0 | AE194: 0 | AF194: 0 | AG194: 0
B195: 5 | D195: =IF($M107<>0,IF($D107=D$190,$M107,),0) -> 0 | F195: 0 | G195: 0 | H195: 0 | I195: 0 | J195: 48 | K195: 0 | L195: 0 | M195: 0 | N195: 0 | O195: 0 | P195: 0 | Q195: 0 | R195: 0 | S195: 0 | T195: 0 | U195: 0 | V195: 0 | W195: 0 | X195: 0 | Y195: 0 | Z195: 0 | AA195: 0 | AB195: 0 | AC195: 0 | AD195: 0 | AE195: 0 | AF195: 0 | AG195: 0
B196: 6 | D196: =IF($M108<>0,IF($D108=D$190,$M108,),0) -> 0 | F196: 0 | G196: 0 | H196: 0 | I196: 0 | J196: 37 | K196: 0 | L196: 0 | M196: 0 | N196: 0 | O196: 0 | P196: 0 | Q196: 0 | R196: 0 | S196: 0 | T196: 0 | U196: 0 | V196: 0 | W196: 0 | X196: 0 | Y196: 0 | Z196: 0 | AA196: 0 | AB196: 0 | AC196: 0 | AD196: 0 | AE196: 0 | AF196: 0 | AG196: 0
B197: 7 | D197: =IF($M109<>0,IF($D109=D$190,$M109,),0) -> 0 | F197: 0 | G197: 0 | H197: 0 | I197: 0 | J197: 19 | K197: 0 | L197: 0 | M197: 0 | N197: 0 | O197: 0 | P197: 0 | Q197: 0 | R197: 0 | S197: 0 | T197: 0 | U197: 0 | V197: 0 | W197: 0 | X197: 0 | Y197: 0 | Z197: 0 | AA197: 0 | AB197: 0 | AC197: 0 | AD197: 0 | AE197: 0 | AF197: 0 | AG197: 0
B198: 8 | D198: =IF($M110<>0,IF($D110=D$190,$M110,),0) -> 0 | F198: 0 | G198: 0 | H198: 0 | I198: 0 | J198: 0 | K198: 0 | L198: 0 | M198: 0 | N198: 0 | O198: 0 | P198: 0 | Q198: 0 | R198: 0 | S198: 67 | T198: 0 | U198: 0 | V198: 0 | W198: 0 | X198: 0 | Y198: 0 | Z198: 0 | AA198: 0 | AB198: 0 | AC198: 0 | AD198: 0 | AE198: 0 | AF198: 0 | AG198: 0
B199: 9 | D199: =IF($M111<>0,IF($D111=D$190,$M111,),0) -> 0 | F199: 0 | G199: 0 | H199: 0 | I199: 0 | J199: 0 | K199: 0 | L199: 0 | M199: 0 | N199: 0 | O199: 0 | P199: 0 | Q199: 0 | R199: 0 | S199: 0 | T199: 0 | U199: 0 | V199: 0 | W199: 0 | X199: 0 | Y199: 0 | Z199: 0 | AA199: 0 | AB199: 0 | AC199: 0 | AD199: 0 | AE199: 0 | AF199: 0 | AG199: 0
B200: 10 | D200: =IF($M112<>0,IF($D112=D$190,$M112,),0) -> 0 | F200: 0 | G200: 0 | H200: 0 | I200: 0 | J200: 0 | K200: 0 | L200: 0 | M200: 0 | N200: 0 | O200: 0 | P200: 0 | Q200: 0 | R200: 0 | S200: 71 | T200: 0 | U200: 0 | V200: 0 | W200: 0 | X200: 0 | Y200: 0 | Z200: 0 | AA200: 0 | AB200: 0 | AC200: 0 | AD200: 0 | AE200: 0 | AF200: 0 | AG200: 0
B201: 11 | D201: =IF($M113<>0,IF($D113=D$190,$M113,),0) -> 0 | F201: 0 | G201: 0 | H201: 0 | I201: 0 | J201: 0 | K201: 0 | L201: 0 | M201: 0 | N201: 0 | O201: 0 | P201: 0 | Q201: 0 | R201: 0 | S201: 74 | T201: 0 | U201: 0 | V201: 0 | W201: 0 | X201: 0 | Y201: 0 | Z201: 0 | AA201: 0 | AB201: 0 | AC201: 0 | AD201: 0 | AE201: 0 | AF201: 0 | AG201: 0
B202: 12 | D202: =IF($M114<>0,IF($D114=D$190,$M114,),0) -> 0 | F202: 0 | G202: 0 | H202: 0 | I202: 0 | J202: 0 | K202: 0 | L202: 0 | M202: 0 | N202: 0 | O202: 0 | P202: 0 | Q202: 0 | R202: 0 | S202: 0 | T202: 0 | U202: 0 | V202: 0 | W202: 0 | X202: 0 | Y202: 0 | Z202: 0 | AA202: 0 | AB202: 0 | AC202: 0 | AD202: 0 | AE202: 0 | AF202: 0 | AG202: 0
B203: 13 | D203: =IF($M115<>0,IF($D115=D$190,$M115,),0) -> 0 | F203: 0 | G203: 0 | H203: 0 | I203: 0 | J203: 0 | K203: 43 | L203: 0 | M203: 0 | N203: 0 | O203: 0 | P203: 0 | Q203: 0 | R203: 0 | S203: 0 | T203: 0 | U203: 0 | V203: 0 | W203: 0 | X203: 0 | Y203: 0 | Z203: 0 | AA203: 0 | AB203: 0 | AC203: 0 | AD203: 0 | AE203: 0 | AF203: 0 | AG203: 0
B204: 14 | D204: =IF($M116<>0,IF($D116=D$190,$M116,),0) -> 0 | F204: 0 | G204: 0 | H204: 0 | I204: 0 | J204: 0 | K204: 62 | L204: 0 | M204: 0 | N204: 0 | O204: 0 | P204: 0 | Q204: 0 | R204: 0 | S204: 0 | T204: 0 | U204: 0 | V204: 0 | W204: 0 | X204: 0 | Y204: 0 | Z204: 0 | AA204: 0 | AB204: 0 | AC204: 0 | AD204: 0 | AE204: 0 | AF204: 0 | AG204: 0
B205: 15 | D205: =IF($M117<>0,IF($D117=D$190,$M117,),0) -> 0 | F205: 0 | G205: 0 | H205: 0 | I205: 0 | J205: 0 | K205: 48 | L205: 0 | M205: 0 | N205: 0 | O205: 0 | P205: 0 | Q205: 0 | R205: 0 | S205: 0 | T205: 0 | U205: 0 | V205: 0 | W205: 0 | X205: 0 | Y205: 0 | Z205: 0 | AA205: 0 | AB205: 0 | AC205: 0 | AD205: 0 | AE205: 0 | AF205: 0 | AG205: 0
B206: 16 | D206: =IF($M118<>0,IF($D118=D$190,$M118,),0) -> 0 | F206: 0 | G206: 0 | H206: 0 | I206: 0 | J206: 0 | K206: 0 | L206: 0 | M206: 0 | N206: 0 | O206: 0 | P206: 0 | Q206: 0 | R206: 74 | S206: 0 | T206: 0 | U206: 0 | V206: 0 | W206: 0 | X206: 0 | Y206: 0 | Z206: 0 | AA206: 0 | AB206: 0 | AC206: 0 | AD206: 0 | AE206: 0 | AF206: 0 | AG206: 0
B207: 17 | D207: =IF($M119<>0,IF($D119=D$190,$M119,),0) -> 0 | F207: 0 | G207: 0 | H207: 0 | I207: 0 | J207: 0 | K207: 0 | L207: 0 | M207: 0 | N207: 0 | O207: 0 | P207: 0 | Q207: 0 | R207: 55 | S207: 0 | T207: 0 | U207: 0 | V207: 0 | W207: 0 | X207: 0 | Y207: 0 | Z207: 0 | AA207: 0 | AB207: 0 | AC207: 0 | AD207: 0 | AE207: 0 | AF207: 0 | AG207: 0
B208: 18 | D208: =IF($M120<>0,IF($D120=D$190,$M120,),0) -> 0 | F208: 29 | G208: 0 | H208: 0 | I208: 0 | J208: 0 | K208: 0 | L208: 0 | M208: 0 | N208: 0 | O208: 0 | P208: 0 | Q208: 0 | R208: 0 | S208: 0 | T208: 0 | U208: 0 | V208: 0 | W208: 0 | X208: 0 | Y208: 0 | Z208: 0 | AA208: 0 | AB208: 0 | AC208: 0 | AD208: 0 | AE208: 0 | AF208: 0 | AG208: 0
B209: 19 | D209: =IF($M121<>0,IF($D121=D$190,$M121,),0) -> 0 | F209: 0 | G209: 0 | H209: 0 | I209: 0 | J209: 0 | K209: 0 | L209: 0 | M209: 0 | N209: 0 | O209: 0 | P209: 0 | Q209: 0 | R209: 0 | S209: 0 | T209: 0 | U209: 0 | V209: 0 | W209: 0 | X209: 0 | Y209: 0 | Z209: 0 | AA209: 0 | AB209: 0 | AC209: 0 | AD209: 0 | AE209: 0 | AF209: 0 | AG209: 0
B210: 20 | D210: =IF($M122<>0,IF($D122=D$190,$M122,),0) -> 0 | F210: 0 | G210: 0 | H210: 0 | I210: 0 | J210: 0 | K210: 0 | L210: 0 | M210: 55 | N210: 0 | O210: 0 | P210: 0 | Q210: 0 | R210: 0 | S210: 0 | T210: 0 | U210: 0 | V210: 0 | W210: 0 | X210: 0 | Y210: 0 | Z210: 0 | AA210: 0 | AB210: 0 | AC210: 0 | AD210: 0 | AE210: 0 | AF210: 0 | AG210: 0
B211: 21 | D211: =IF($M123<>0,IF($D123=D$190,$M123,),0) -> 0 | F211: 0 | G211: 0 | H211: 0 | I211: 0 | J211: 0 | K211: 0 | L211: 0 | M211: 0 | N211: 0 | O211: 48 | P211: 0 | Q211: 0 | R211: 0 | S211: 0 | T211: 0 | U211: 0 | V211: 0 | W211: 0 | X211: 0 | Y211: 0 | Z211: 0 | AA211: 0 | AB211: 0 | AC211: 0 | AD211: 0 | AE211: 0 | AF211: 0 | AG211: 0
B212: 22 | D212: =IF($M124<>0,IF($D124=D$190,$M124,),0) -> 0 | F212: 0 | G212: 0 | H212: 0 | I212: 0 | J212: 0 | K212: 0 | L212: 0 | M212: 0 | N212: 0 | O212: 0 | P212: 0 | Q212: 0 | R212: 0 | S212: 0 | T212: 0 | U212: 0 | V212: 0 | W212: 0 | X212: 0 | Y212: 0 | Z212: 0 | AA212: 0 | AB212: 0 | AC212: 0 | AD212: 0 | AE212: 0 | AF212: 0 | AG212: 0
B213: 23 | D213: =IF($M125<>0,IF($D125=D$190,$M125,),0) -> 0 | F213: 0 | G213: 0 | H213: 79 | I213: 0 | J213: 0 | K213: 0 | L213: 0 | M213: 0 | N213: 0 | O213: 0 | P213: 0 | Q213: 0 | R213: 0 | S213: 0 | T213: 0 | U213: 0 | V213: 0 | W213: 0 | X213: 0 | Y213: 0 | Z213: 0 | AA213: 0 | AB213: 0 | AC213: 0 | AD213: 0 | AE213: 0 | AF213: 0 | AG213: 0
B214: 24 | D214: =IF($M126<>0,IF($D126=D$190,$M126,),0) -> 0 | F214: 0 | G214: 0 | H214: 21 | I214: 0 | J214: 0 | K214: 0 | L214: 0 | M214: 0 | N214: 0 | O214: 0 | P214: 0 | Q214: 0 | R214: 0 | S214: 0 | T214: 0 | U214: 0 | V214: 0 | W214: 0 | X214: 0 | Y214: 0 | Z214: 0 | AA214: 0 | AB214: 0 | AC214: 0 | AD214: 0 | AE214: 0 | AF214: 0 | AG214: 0
B215: 25 | D215: =IF($M127<>0,IF($D127=D$190,$M127,),0) -> 0 | F215: 0 | G215: 0 | H215: 64 | I215: 0 | J215: 0 | K215: 0 | L215: 0 | M215: 0 | N215: 0 | O215: 0 | P215: 0 | Q215: 0 | R215: 0 | S215: 0 | T215: 0 | U215: 0 | V215: 0 | W215: 0 | X215: 0 | Y215: 0 | Z215: 0 | AA215: 0 | AB215: 0 | AC215: 0 | AD215: 0 | AE215: 0 | AF215: 0 | AG215: 0
B216: 26 | D216: =IF($M128<>0,IF($D128=D$190,$M128,),0) -> 0 | F216: 0 | G216: 0 | H216: 31 | I216: 0 | J216: 0 | K216: 0 | L216: 0 | M216: 0 | N216: 0 | O216: 0 | P216: 0 | Q216: 0 | R216: 0 | S216: 0 | T216: 0 | U216: 0 | V216: 0 | W216: 0 | X216: 0 | Y216: 0 | Z216: 0 | AA216: 0 | AB216: 0 | AC216: 0 | AD216: 0 | AE216: 0 | AF216: 0 | AG216: 0
B217: 27 | D217: =IF($M129<>0,IF($D129=D$190,$M129,),0) -> 0 | F217: 0 | G217: 0 | H217: 0 | I217: 0 | J217: 0 | K217: 0 | L217: 0 | M217: 0 | N217: 0 | O217: 0 | P217: 61 | Q217: 0 | R217: 0 | S217: 0 | T217: 0 | U217: 0 | V217: 0 | W217: 0 | X217: 0 | Y217: 0 | Z217: 0 | AA217: 0 | AB217: 0 | AC217: 0 | AD217: 0 | AE217: 0 | AF217: 0 | AG217: 0
B218: 28 | D218: =IF($M130<>0,IF($D130=D$190,$M130,),0) -> 0 | F218: 0 | G218: 0 | H218: 0 | I218: 0 | J218: 0 | K218: 0 | L218: 0 | M218: 0 | N218: 0 | O218: 0 | P218: 57 | Q218: 0 | R218: 0 | S218: 0 | T218: 0 | U218: 0 | V218: 0 | W218: 0 | X218: 0 | Y218: 0 | Z218: 0 | AA218: 0 | AB218: 0 | AC218: 0 | AD218: 0 | AE218: 0 | AF218: 0 | AG218: 0
B219: 29 | D219: =IF($M131<>0,IF($D131=D$190,$M131,),0) -> 0 | F219: 0 | G219: 0 | H219: 0 | I219: 0 | J219: 79 | K219: 0 | L219: 0 | M219: 0 | N219: 0 | O219: 0 | P219: 0 | Q219: 0 | R219: 0 | S219: 0 | T219: 0 | U219: 0 | V219: 0 | W219: 0 | X219: 0 | Y219: 0 | Z219: 0 | AA219: 0 | AB219: 0 | AC219: 0 | AD219: 0 | AE219: 0 | AF219: 0 | AG219: 0
B220: 30 | D220: =IF($M132<>0,IF($D132=D$190,$M132,),0) -> 0 | F220: 0 | G220: 0 | H220: 0 | I220: 0 | J220: 0 | K220: 0 | L220: 57 | M220: 0 | N220: 0 | O220: 0 | P220: 0 | Q220: 0 | R220: 0 | S220: 0 | T220: 0 | U220: 0 | V220: 0 | W220: 0 | X220: 0 | Y220: 0 | Z220: 0 | AA220: 0 | AB220: 0 | AC220: 0 | AD220: 0 | AE220: 0 | AF220: 0 | AG220: 0
B221: 31 | D221: =IF($M133<>0,IF($D133=D$190,$M133,),0) -> 0 | F221: 0 | G221: 0 | H221: 0 | I221: 0 | J221: 0 | K221: 0 | L221: 59 | M221: 0 | N221: 0 | O221: 0 | P221: 0 | Q221: 0 | R221: 0 | S221: 0 | T221: 0 | U221: 0 | V221: 0 | W221: 0 | X221: 0 | Y221: 0 | Z221: 0 | AA221: 0 | AB221: 0 | AC221: 0 | AD221: 0 | AE221: 0 | AF221: 0 | AG221: 0
... 221 more rows

Sheet J-13
D1: Inschrijven | P1: Volgorde van binnenkomst | Z1: Uitslagen printscherm
C2: Volgorde | D2: 1e | E2: 2e | F2: =CONCATENATE("Jongens"," ",Stand!C1-6) -> Jongens 2013 | H2: 1e cross | I2: 2e cross | J2: 1e cross | L2: 2e cross | N2: Punten Totaal: | P2: =F2 -> Jongens 2013 | Z2: Volgorde | AA2: =AN3 -> 25 | AB2: =F2 -> Jongens 2013 | AC2: =Stand!C1 -> 2019 | AD2: 1e cross | AF2: 2e cross | AH2: School punten totaal: | AJ2: DNS 1e | AK2: DNS 2e
D3: st.nr. | E3: st.nr. | F3: Naam: | G3: School: | J3: Volgorde | K3: Punten | L3: Volgorde | M3: Punten | P3: 1e cross | R3: 2e cross | AA3: st.nr. | AB3: Naam: | AC3: School: | AD3: Volgorde | AE3: Punten | AF3: Volgorde | AG3: Punten | AJ3: =COUNTIF(AD4:AD83,"=dns") -> 1 | AK3: =COUNTIF(AF4:AF83,"=dns") -> 13 | AN3: =COUNTIF(AN4:AN83,">1") -> 25
A4: 1 | B4: =AO4 -> 25 | C4: =AO4 -> 25 | D4: 1371 | E4: 1371 | F4: Twan Dekker | G4: Koperwiek | J4: =IF(AND(F4<>"",H4<>""),"XX",IF(ISERROR(VLOOKUP(D4,P$4:Q$83,2,FALSE)),"",VLOOKUP(D4,P$4:Q$83,2,FALSE))) -> 25 | K4: =H103 -> 19 | L4: =IF(AND(F4<>"",I4<>""),"XX",IF(ISERROR(VLOOKUP(E4,R$4:S$83,2,FALSE)),"",VLOOKUP(E4,R$4:S$83,2,FALSE))) -> DNS | M4: =K103 -> 0 | N4: =IF(OR(K4="",M4=""),"",K4+M4) -> 19 | P4: 1361 | Q4: 1 | R4: 1361 | S4: 1 | T4: =IF(P4<>"",IF(VLOOKUP(P4,D$4:I$83,5,FALSE)="",1,0),1) -> 1 | U4: =IF(R4<>"",IF(VLOOKUP(R4,E$4:I$83,5,FALSE)="",1,0),1) -> 1 | V4: =COUNTIF(P$4:P$83,P4) -> 1 | W4: =COUNTIF(R$4:R$83,R4) -> 1 | X4: =IF(P4<>"",COUNTIF($D$4:$D$83,P4),1) -> 1 | Y4: =IF(R4<>"",COUNTIF($E$4:$E$83,R4),1) -> 1 | Z4: =VLOOKUP($A4,$B$4:$N$83,2,FALSE) -> 1 | AA4: =VLOOKUP($A4,$B$4:$N$83,3,FALSE) -> 1361 | AB4: =VLOOKUP($A4,$B$4:$N$83,5,FALSE) -> Colson Prins | AC4: =VLOOKUP($A4,$B$4:$N$83,6,FALSE) -> st Joseph | AD4: =IF(VLOOKUP($A4,$B$4:$N$83,9,FALSE)<>"",VLOOKUP($A4,$B$4:$N$83,9,FALSE),IF(AB4=0,"",IF($R$4="","","dns"))) -> 1 | AE4: =VLOOKUP($A4,$B$4:$N$83,10,FALSE) -> 40 | AF4: =IF(VLOOKUP($A4,$B$4:$N$83,11,FALSE)<>"",VLOOKUP($A4,$B$4:$N$83,11,FALSE),IF(AB4=0,"",IF($R$4="","","dns"))) -> 1 | AG4: =VLOOKUP($A4,$B$4:$N$83,12,FALSE) -> 40 | AH4: =VLOOKUP($A4,$B$4:$N$83,13,FALSE) -> 80 | AJ4: =Scholen!C3 -> individueel | AK4: =IF(G4<>"",IF(AND(H4="",I4=""),G4,""),"") -> Koperwiek | AL4: =IF(AND(H4="",I4<>""),G4,"") ->  | AM4: =IF(AND(H4<>"",I4=""),G4,"") ->  | AN4: =IF(AND(ISNUMBER(J4),ISNUMBER(L4)),160-(-A4*0.0001+J4+L4*1.01),IF(ISNUMBER(J4),80-J4,IF(ISNUMBER(L4),80-(L4*0.99),IF(AND(J4="",L4=""),0.5-A4*0.0001,0.5-A4*0.0001)))) -> 55 | AO4: =RANK(AN4,AN$4:AN$83,0) -> 25
A5: 2 | B5: 15 | C5: 15 | D5: 1370 | E5: 1370 | F5: Jens Crielaard | G5: Lichtboei | J5: =IF(AND(F5<>"",H5<>""),"XX",IF(ISERROR(VLOOKUP(D5,P$4:Q$83,2,FALSE)),"",VLOOKUP(D5,P$4:Q$83,2,FALSE))) -> 14 | K5: 27 | L5: =IF(AND(F5<>"",I5<>""),"XX",IF(ISERROR(VLOOKUP(E5,R$4:S$83,2,FALSE)),"",VLOOKUP(E5,R$4:S$83,2,FALSE))) -> DNS | M5: 0 | N5: 27 | P5: 1354 | Q5: 2 | R5: 1354 | S5: 2 | T5: =IF(P5<>"",IF(VLOOKUP(P5,D$4:I$83,5,FALSE)="",1,0),1) -> 1 | U5: =IF(R5<>"",IF(VLOOKUP(R5,E$4:I$83,5,FALSE)="",1,0),1) -> 1 | V5: 1 | W5: 1 | X5: 1 | Y5: =IF(R5<>"",COUNTIF($E$4:$E$83,R5),1) -> 1 | Z5: 2 | AA5: 1354 | AB5: =VLOOKUP($A5,$B$4:$N$83,5,FALSE) -> Bas Veld | AC5: =VLOOKUP($A5,$B$4:$N$83,6,FALSE) -> Horizon | AD5: =IF(VLOOKUP($A5,$B$4:$N$83,9,FALSE)<>"",VLOOKUP($A5,$B$4:$N$83,9,FALSE),IF(AB5=0,"",IF($R$4="","","dns"))) -> 2 | AE5: =VLOOKUP($A5,$B$4:$N$83,10,FALSE) -> 39 | AF5: =IF(VLOOKUP($A5,$B$4:$N$83,11,FALSE)<>"",VLOOKUP($A5,$B$4:$N$83,11,FALSE),IF(AB5=0,"",IF($R$4="","","dns"))) -> 2 | AG5: =VLOOKUP($A5,$B$4:$N$83,12,FALSE) -> 39 | AH5: =VLOOKUP($A5,$B$4:$N$83,13,FALSE) -> 78 | AJ5: =Scholen!C4 -> A.Schweit. | AK5: =IF(G5<>"",IF(AND(H5="",I5=""),G5,""),"") -> Lichtboei | AL5: =IF(AND(H5="",I5<>""),G5,"") ->  | AM5: =IF(AND(H5<>"",I5=""),G5,"") ->  | AN5: 66 | AO5: 15
A6: 3 | B6: 16 | C6: 16 | D6: 1369 | E6: 1369 | F6: Mika Souwman | G6: Lichtboei | J6: 15 | K6: 0 | L6: DNS | M6: 0 | N6: 0 | P6: 1366 | Q6: 3 | R6: 1366 | S6: 3 | T6: 1 | U6: 1 | V6: 1 | W6: 1 | X6: 1 | Y6: 1 | Z6: 3 | AA6: 1366 | AB6: =VLOOKUP($A6,$B$4:$N$83,5,FALSE) -> Mick ter Wijlen | AC6: =VLOOKUP($A6,$B$4:$N$83,6,FALSE) -> Lichtboei | AD6: 3 | AE6: =VLOOKUP($A6,$B$4:$N$83,10,FALSE) -> 38 | AF6: 3 | AG6: =VLOOKUP($A6,$B$4:$N$83,12,FALSE) -> 38 | AH6: =VLOOKUP($A6,$B$4:$N$83,13,FALSE) -> 76 | AJ6: =Scholen!C5 -> Com.Tol. | AK6: Lichtboei | AN6: 65 | AO6: 16
A7: 4 | B7: 21 | C7: 21 | D7: 1368 | E7: 1368 | F7: Gelf Pesman | G7: Lichtboei | J7: 21 | K7: 0 | L7: DNS | M7: 0 | N7: 0 | P7: 654 | Q7: 4 | R7: 1357 | S7: 4 | T7: 1 | U7: 1 | V7: 1 | W7: 1 | X7: 1 | Y7: 1 | Z7: 4 | AA7: 1357 | AB7: =VLOOKUP($A7,$B$4:$N$83,5,FALSE) -> Sietse Tichelaar | AC7: =VLOOKUP($A7,$B$4:$N$83,6,FALSE) -> Lichtschip | AD7: 5 | AE7: =VLOOKUP($A7,$B$4:$N$83,10,FALSE) -> 36 | AF7: 4 | AG7: =VLOOKUP($A7,$B$4:$N$83,12,FALSE) -> 37 | AH7: =VLOOKUP($A7,$B$4:$N$83,13,FALSE) -> 73 | AJ7: =Scholen!C6 -> de Ark | AK7: Lichtboei | AN7: 59 | AO7: 21
A8: 5 | B8: 26 | C8: 26 | D8: 1367 | E8: 1367 | F8: Jens Nijland | G8: Lichtboei | J8: DNS | K8: 0 | L8: DNS | M8: 0 | N8: 0 | P8: 1357 | Q8: 5 | R8: 654 | S8: 5 | T8: 1 | U8: 1 | V8: 1 | W8: 1 | X8: 1 | Y8: 1 | Z8: 5 | AA8: 654 | AB8: =VLOOKUP($A8,$B$4:$N$83,5,FALSE) -> Kik van der Weele | AC8: =VLOOKUP($A8,$B$4:$N$83,6,FALSE) -> 7 sprong | AD8: 4 | AE8: =VLOOKUP($A8,$B$4:$N$83,10,FALSE) -> 37 | AF8: 5 | AG8: =VLOOKUP($A8,$B$4:$N$83,12,FALSE) -> 36 | AH8: =VLOOKUP($A8,$B$4:$N$83,13,FALSE) -> 73 | AJ8: =Scholen!C7 -> Horizon | AK8: Lichtboei | AN8: 0.4995 | AO8: 26
A9: 6 | B9: 3 | C9: 3 | D9: 1366 | E9: 1366 | F9: Mick ter Wijlen | G9: Lichtboei | J9: 3 | K9: 38 | L9: 3 | M9: 38 | N9: 76 | P9: 1355 | Q9: 6 | R9: 1355 | S9: 6 | T9: 1 | U9: 1 | V9: 1 | W9: 1 | X9: 1 | Y9: 1 | Z9: 6 | AA9: 1355 | AB9: Tijn Stengs | AC9: R.v.voorst | AD9: 6 | AE9: 35 | AF9: 6 | AG9: 35 | AH9: 70 | AJ9: =Scholen!C8 -> Windkr.10 | AK9: Lichtboei | AN9: 153.9706 | AO9: 3
A10: 7 | B10: 10 | C10: 10 | D10: 1365 | E10: 1365 | F10: Sem Sloterwijk | G10: Lichtboei | J10: 11 | K10: 30 | L10: 9 | M10: 32 | N10: 62 | P10: 1350 | Q10: 7 | R10: 1364 | S10: 7 | T10: 1 | U10: 1 | V10: 1 | W10: 1 | X10: 1 | Y10: 1 | Z10: 7 | AA10: 1348 | AB10: Milo Gjaltema | AC10: 't Kompas | AD10: 8 | AE10: 33 | AF10: 10 | AG10: 31 | AH10: 64 | AJ10: =Scholen!C9 -> Lichtboei | AK10: Lichtboei | AN10: 139.9107 | AO10: 10
